{"text_format":"1","workbook":"xlsx","n_sheets":5,"sheets":["toutal","جارى","جارى2","جارى3","جارى4"],"not_rendered":{"charts":0,"images":3,"macros":1,"external_links":0,"defined_names":4,"comments":4,"pivot_tables":0},"unopened":[],"bounds":{"document_bytes":16777216,"sheet_cells":100000,"rows_first":2000,"rows_last":500,"rows_between":2000,"halvings":0,"cell_chars":16384,"cell_head_chars":4096},"cells_cut":0,"cells_raw":0,"read":"whole","date_system":"1900"}

{"sheet":"toutal","index":0,"n_rows":2320,"n_cols":30,"rows_kept":2320,"cut":false,"hidden":false,"merged":[[0,12,1,12],[0,13,1,13],[0,14,1,14],[0,15,1,15],[0,1,1,1],[0,8,1,8],[0,11,1,11],[0,2,1,2],[0,7,1,7],[0,9,1,9],[0,10,1,10],[0,6,1,6],[0,3,1,3],[0,5,1,5],[0,4,1,4]]}
[null,"رقم الجارى","بيــــــــــــــــان الأعمــــــــــال",{"$f":"+جارى!D10","v":"     ○ رقم العقد :- "},{"$f":"+جارى!D7","v":"الشركة او المورد او المقاول"},{"$f":"+جارى!D12","v":"     ○ رقم الكلاستــر :- "},{"$f":"+جارى!D13","v":"     ○ رقم الصوبـــــــة:-  "},{"$f":"+جارى!G15","v":"ما سبق"},{"$f":"+جارى!H15","v":"الكمية الحالية"},{"$f":"+جارى!I15","v":"إجمالي الكمية "},{"$f":"+جارى!J15","v":"قيمة المستخلص"},{"$f":"+جارى!K15","v":"قيمة التأمين (10%)"},{"$f":"+جارى!L15","v":"قيمة تأمين بيت الخدمه (5%)"},{"$f":"+جارى!M15","v":"صافى المستحق"},{"$f":"+جارى!N15","v":"الخصم"},{"$f":"+جارى!O15","v":"ملاحظــــــــــــــــــــــات"}]
[null,null,null,null,null,null,null,null,null,null,null,null,null,null,null,null,null,null,null,null,null,null,null,null,null,null,null,null,null,"جارى"]
["جارى","جارى",{"$f":"IFERROR(INDIRECT($B3&\"!d16\"),\"\")","v":"تركيب مجاري المطر - كمر- تدعيم اكسات- تدعيم كهات"},{"$f":"IFERROR(INDIRECT($B3&\"!e10\"),\"\")","v":"  2023/34"},{"$f":"IFERROR(INDIRECT($B3&\"!e7\"),\"\")","v":"أحمد حجازى عبدالحكيم"},{"$f":"IFERROR(INDIRECT($B3&\"!e12\"),\"\")","v":"    E12"},{"$f":"IFERROR(INDIRECT($B3&\"!e13\"),\"\")","v":2},{"$f":"IFERROR(INDIRECT($B3&\"!g16\"),\"\")","v":0.5},{"$f":"IFERROR(INDIRECT($B3&\"!h16\"),\"\")","v":0.1},{"$f":"IFERROR(INDIRECT($B3&\"!i16\"),\"\")","v":0.6},{"$f":"IFERROR(INDIRECT($B3&\"!j16\"),\"\")","v":3200},{"$f":"IFERROR(INDIRECT($B3&\"!k16\"),\"\")","v":320},{"$f":"IFERROR(INDIRECT($B3&\"!l16\"),\"\")","v":160},{"$f":"IFERROR(INDIRECT($B3&\"!m16\"),\"\")","v":2720},{"$f":"IFERROR(INDIRECT($B3&\"!n16\"),\"\")","v":0},{"$f":"IFERROR(INDIRECT($B3&\"!o16\"),\"\")","v":0},null,null,null,null,null,null,null,null,null,null,null,null,null,"جارى3"]
["جارى2","جارى",{"$f":"IFERROR(INDIRECT($B4&\"!d17\"),\"\")","v":"الاقواس- المدادات"},{"$f":"IFERROR(INDIRECT($B4&\"!e10\"),\"\")","v":"  2023/34"},{"$f":"IFERROR(INDIRECT($B4&\"!e7\"),\"\")","v":"أحمد حجازى عبدالحكيم"},{"$f":"IFERROR(INDIRECT($B4&\"!e12\"),\"\")","v":"    E12"},{"$f":"IFERROR(INDIRECT($B4&\"!e13\"),\"\")","v":2},{"$f":"IFERROR(INDIRECT($B4&\"!g17\"),\"\")","v":0.2},{"$f":"IFERROR(INDIRECT($B4&\"!i17\"),\"\")","v":0.35},{"$f":"IFERROR(INDIRECT($B4&\"!i17\"),\"\")","v":0.35},{"$f":"IFERROR(INDIRECT($B4&\"!j17\"),\"\")","v":6300},{"$f":"IFERROR(INDIRECT($B4&\"!k17\"),\"\")","v":630},{"$f":"IFERROR(INDIRECT($B4&\"!l17\"),\"\")","v":315},{"$f":"IFERROR(INDIRECT($B4&\"!m17\"),\"\")","v":5355},{"$f":"IFERROR(INDIRECT($B4&\"!n17\"),\"\")","v":0},{"$f":"IFERROR(INDIRECT($B4&\"!o17\"),\"\")","v":0},null,null,null,null,null,null,null,null,null,null,null,null,null,"جارى4"]
["جارى3","جارى",{"$f":"IFERROR(INDIRECT($B5&\"!d18\"),\"\")","v":"البروفيل"},"  2023/34","أحمد حجازى عبدالحكيم","    E12",2,{"$f":"IFERROR(INDIRECT($B5&\"!g18\"),\"\")","v":0.3},{"$f":"IFERROR(INDIRECT($B5&\"!i18\"),\"\")","v":0.6},{"$f":"IFERROR(INDIRECT($B5&\"!i18\"),\"\")","v":0.6},{"$f":"IFERROR(INDIRECT($B5&\"!j18\"),\"\")","v":3600},{"$f":"IFERROR(INDIRECT($B5&\"!k18\"),\"\")","v":360},{"$f":"IFERROR(INDIRECT($B5&\"!l18\"),\"\")","v":180},{"$f":"IFERROR(INDIRECT($B5&\"!m18\"),\"\")","v":3060},{"$f":"IFERROR(INDIRECT($B5&\"!n18\"),\"\")","v":0},{"$f":"IFERROR(INDIRECT($B5&\"!o18\"),\"\")","v":0},null,null,null,null,null,null,null,null,null,null,null,null,null,"جارى5"]
["جارى4","جارى",{"$f":"IFERROR(INDIRECT($B6&\"!d19\"),\"\")","v":"البوابات"},"  2023/34","أحمد حجازى عبدالحكيم","    E12",2,{"$f":"IFERROR(INDIRECT($B6&\"!g19\"),\"\")","v":0.15},{"$f":"IFERROR(INDIRECT($B6&\"!i19\"),\"\")","v":0.75},{"$f":"IFERROR(INDIRECT($B6&\"!i19\"),\"\")","v":0.75},{"$f":"IFERROR(INDIRECT($B6&\"!j19\"),\"\")","v":3600},{"$f":"IFERROR(INDIRECT($B6&\"!k19\"),\"\")","v":360},{"$f":"IFERROR(INDIRECT($B6&\"!l19\"),\"\")","v":180},{"$f":"IFERROR(INDIRECT($B6&\"!m19\"),\"\")","v":3060},{"$f":"IFERROR(INDIRECT($B6&\"!n19\"),\"\")","v":0},{"$f":"IFERROR(INDIRECT($B6&\"!o19\"),\"\")","v":0},null,null,null,null,null,null,null,null,null,null,null,null,null,"جارى6"]
[null,"جارى",{"$f":"IFERROR(INDIRECT($B7&\"!d20\"),\"\")","v":"النهايز"},"  2023/34","أحمد حجازى عبدالحكيم","    E12",2,{"$f":"IFERROR(INDIRECT($B7&\"!g20\"),\"\")","v":0.6},{"$f":"IFERROR(INDIRECT($B7&\"!i20\"),\"\")","v":0.95},{"$f":"IFERROR(INDIRECT($B7&\"!i20\"),\"\")","v":0.95},{"$f":"IFERROR(INDIRECT($B7&\"!j20\"),\"\")","v":2100},{"$f":"IFERROR(INDIRECT($B7&\"!k20\"),\"\")","v":210},{"$f":"IFERROR(INDIRECT($B7&\"!l20\"),\"\")","v":105},{"$f":"IFERROR(INDIRECT($B7&\"!m20\"),\"\")","v":1785},{"$f":"IFERROR(INDIRECT($B7&\"!n20\"),\"\")","v":0},{"$f":"IFERROR(INDIRECT($B7&\"!o120\"),\"\")","v":0},null,null,null,null,null,null,null,null,null,null,null,null,null,"جارى7"]
[null,"جارى",{"$f":"IFERROR(INDIRECT($B8&\"!d21\"),\"\")","v":"حامل الثمار"},"  2023/34","أحمد حجازى عبدالحكيم","    E12",2,{"$f":"IFERROR(INDIRECT($B8&\"!g21\"),\"\")","v":0.7},{"$f":"IFERROR(INDIRECT($B8&\"!i21\"),\"\")","v":0.95},{"$f":"IFERROR(INDIRECT($B8&\"!i21\"),\"\")","v":0.95},{"$f":"IFERROR(INDIRECT($B8&\"!j21\"),\"\")","v":2500},{"$f":"IFERROR(INDIRECT($B8&\"!k21\"),\"\")","v":250},{"$f":"IFERROR(INDIRECT($B8&\"!l21\"),\"\")","v":125},{"$f":"IFERROR(INDIRECT($B8&\"!m21\"),\"\")","v":2125},{"$f":"IFERROR(INDIRECT($B8&\"!n21\"),\"\")","v":0},{"$f":"IFERROR(INDIRECT($B8&\"!o121\"),\"\")","v":0},null,null,null,null,null,null,null,null,null,null,null,null,null,"جارى8"]
[null,"جارى",{"$f":"IFERROR(INDIRECT($B9&\"!d22\"),\"\")","v":"النقل"},"  2023/34","أحمد حجازى عبدالحكيم","    E12",2,{"$f":"IFERROR(INDIRECT($B9&\"!g22\"),\"\")","v":0.9},{"$f":"IFERROR(INDIRECT($B9&\"!i22\"),\"\")","v":0.95000000000000007},{"$f":"IFERROR(INDIRECT($B9&\"!i22\"),\"\")","v":0.95000000000000007},{"$f":"IFERROR(INDIRECT($B9&\"!j22\"),\"\")","v":350},{"$f":"IFERROR(INDIRECT($B9&\"!k22\"),\"\")","v":35},{"$f":"IFERROR(INDIRECT($B9&\"!l22\"),\"\")","v":17.5},{"$f":"IFERROR(INDIRECT($B9&\"!m22\"),\"\")","v":297.5},{"$f":"IFERROR(INDIRECT($B9&\"!n22\"),\"\")","v":0},{"$f":"IFERROR(INDIRECT($B9&\"!o22\"),\"\")","v":0},null,null,null,null,null,null,null,null,null,null,null,null,null,"جارى9"]
[null,"جارى2",{"$f":"IFERROR(INDIRECT($B10&\"!d16\"),\"\")","v":"تركيب مجاري المطر - كمر- تدعيم اكسات- تدعيم كهات"},{"$f":"IFERROR(INDIRECT($B10&\"!e10\"),\"\")","v":"  2023/34"},{"$f":"IFERROR(INDIRECT($B10&\"!e7\"),\"\")","v":"أحمد حجازى عبدالحكيم"},{"$f":"IFERROR(INDIRECT($B10&\"!e12\"),\"\")","v":"    E12"},{"$f":"IFERROR(INDIRECT($B10&\"!e13\"),\"\")","v":2},{"$f":"IFERROR(INDIRECT($B10&\"!g16\"),\"\")","v":0.6},{"$f":"IFERROR(INDIRECT($B10&\"!h16\"),\"\")","v":0.3},0.89999999999999991,9600,960,480,8160,{"$f":"IFERROR(INDIRECT($B10&\"!n16\"),\"\")","v":0},0,null,null,null,null,null,null,null,null,null,null,null,null,null,"جارى10"]
[null,"جارى2",{"$f":"IFERROR(INDIRECT($B11&\"!d17\"),\"\")","v":"الاقواس- المدادات"},"  2023/34","أحمد حجازى عبدالحكيم","    E12",2,{"$f":"IFERROR(INDIRECT($B11&\"!g17\"),\"\")","v":0.35},{"$f":"IFERROR(INDIRECT($B11&\"!i17\"),\"\")","v":0.5},{"$f":"IFERROR(INDIRECT($B11&\"!i17\"),\"\")","v":0.5},{"$f":"IFERROR(INDIRECT($B11&\"!j17\"),\"\")","v":6300},{"$f":"IFERROR(INDIRECT($B11&\"!k17\"),\"\")","v":630},{"$f":"IFERROR(INDIRECT($B11&\"!l17\"),\"\")","v":315},{"$f":"IFERROR(INDIRECT($B11&\"!m17\"),\"\")","v":5355},{"$f":"IFERROR(INDIRECT($B11&\"!n17\"),\"\")","v":0},{"$f":"IFERROR(INDIRECT($B11&\"!o17\"),\"\")","v":0},null,null,null,null,null,null,null,null,null,null,null,null,null,"جارى11"]
[null,"جارى2",{"$f":"IFERROR(INDIRECT($B12&\"!d18\"),\"\")","v":"البروفيل"},"  2023/34","أحمد حجازى عبدالحكيم","    E12",2,{"$f":"IFERROR(INDIRECT($B12&\"!g18\"),\"\")","v":0.6},{"$f":"IFERROR(INDIRECT($B12&\"!i18\"),\"\")","v":0.8},{"$f":"IFERROR(INDIRECT($B12&\"!i18\"),\"\")","v":0.8},{"$f":"IFERROR(INDIRECT($B12&\"!j18\"),\"\")","v":2400},{"$f":"IFERROR(INDIRECT($B12&\"!k18\"),\"\")","v":240},{"$f":"IFERROR(INDIRECT($B12&\"!l18\"),\"\")","v":120},{"$f":"IFERROR(INDIRECT($B12&\"!m18\"),\"\")","v":2040},{"$f":"IFERROR(INDIRECT($B12&\"!n18\"),\"\")","v":0},{"$f":"IFERROR(INDIRECT($B12&\"!o18\"),\"\")","v":0},null,null,null,null,null,null,null,null,null,null,null,null,null,"جارى12"]
[null,"جارى2",{"$f":"IFERROR(INDIRECT($B13&\"!d19\"),\"\")","v":"البوابات"},"  2023/34","أحمد حجازى عبدالحكيم","    E12",2,{"$f":"IFERROR(INDIRECT($B13&\"!g19\"),\"\")","v":0.75},{"$f":"IFERROR(INDIRECT($B13&\"!i19\"),\"\")","v":0.85},{"$f":"IFERROR(INDIRECT($B13&\"!i19\"),\"\")","v":0.85},{"$f":"IFERROR(INDIRECT($B13&\"!j19\"),\"\")","v":600},{"$f":"IFERROR(INDIRECT($B13&\"!k19\"),\"\")","v":60},{"$f":"IFERROR(INDIRECT($B13&\"!l19\"),\"\")","v":30},{"$f":"IFERROR(INDIRECT($B13&\"!m19\"),\"\")","v":510},{"$f":"IFERROR(INDIRECT($B13&\"!n19\"),\"\")","v":0},{"$f":"IFERROR(INDIRECT($B13&\"!o19\"),\"\")","v":0},null,null,null,null,null,null,null,null,null,null,null,null,null,"جارى13"]
[null,"جارى2",{"$f":"IFERROR(INDIRECT($B14&\"!d20\"),\"\")","v":"النهايز"},"  2023/34","أحمد حجازى عبدالحكيم","    E12",2,{"$f":"IFERROR(INDIRECT($B14&\"!g20\"),\"\")","v":0.95},{"$f":"IFERROR(INDIRECT($B14&\"!i20\"),\"\")","v":0.95},{"$f":"IFERROR(INDIRECT($B14&\"!i20\"),\"\")","v":0.95},{"$f":"IFERROR(INDIRECT($B14&\"!j20\"),\"\")","v":0},{"$f":"IFERROR(INDIRECT($B14&\"!k20\"),\"\")","v":0},{"$f":"IFERROR(INDIRECT($B14&\"!l20\"),\"\")","v":0},{"$f":"IFERROR(INDIRECT($B14&\"!m20\"),\"\")","v":0},{"$f":"IFERROR(INDIRECT($B14&\"!n20\"),\"\")","v":0},{"$f":"IFERROR(INDIRECT($B14&\"!o120\"),\"\")","v":0},null,null,null,null,null,null,null,null,null,null,null,null,null,"جارى14"]
[null,"جارى2",{"$f":"IFERROR(INDIRECT($B15&\"!d21\"),\"\")","v":"حامل الثمار"},"  2023/34","أحمد حجازى عبدالحكيم","    E12",2,{"$f":"IFERROR(INDIRECT($B15&\"!g21\"),\"\")","v":0.95},{"$f":"IFERROR(INDIRECT($B15&\"!i21\"),\"\")","v":0.95},{"$f":"IFERROR(INDIRECT($B15&\"!i21\"),\"\")","v":0.95},{"$f":"IFERROR(INDIRECT($B15&\"!j21\"),\"\")","v":0},{"$f":"IFERROR(INDIRECT($B15&\"!k21\"),\"\")","v":0},{"$f":"IFERROR(INDIRECT($B15&\"!l21\"),\"\")","v":0},{"$f":"IFERROR(INDIRECT($B15&\"!m21\"),\"\")","v":0},{"$f":"IFERROR(INDIRECT($B15&\"!n21\"),\"\")","v":0},{"$f":"IFERROR(INDIRECT($B15&\"!o121\"),\"\")","v":0},null,null,null,null,null,null,null,null,null,null,null,null,null,"جارى15"]
[null,"جارى2",{"$f":"IFERROR(INDIRECT($B16&\"!d22\"),\"\")","v":"النقل"},"  2023/34","أحمد حجازى عبدالحكيم","    E12",2,{"$f":"IFERROR(INDIRECT($B16&\"!g22\"),\"\")","v":0.95000000000000007},{"$f":"IFERROR(INDIRECT($B16&\"!i22\"),\"\")","v":0.95000000000000007},{"$f":"IFERROR(INDIRECT($B16&\"!i22\"),\"\")","v":0.95000000000000007},{"$f":"IFERROR(INDIRECT($B16&\"!j22\"),\"\")","v":0},{"$f":"IFERROR(INDIRECT($B16&\"!k22\"),\"\")","v":0},{"$f":"IFERROR(INDIRECT($B16&\"!l22\"),\"\")","v":0},{"$f":"IFERROR(INDIRECT($B16&\"!m22\"),\"\")","v":0},{"$f":"IFERROR(INDIRECT($B16&\"!n22\"),\"\")","v":0},{"$f":"IFERROR(INDIRECT($B16&\"!o22\"),\"\")","v":0},null,null,null,null,null,null,null,null,null,null,null,null,null,"جارى16"]
[null,"جارى3",{"$f":"IFERROR(INDIRECT($B17&\"!d16\"),\"\")","v":"تركيب مجاري المطر - كمر- تدعيم اكسات- تدعيم كهات"},{"$f":"IFERROR(INDIRECT($B17&\"!e10\"),\"\")","v":"  2023/34"},{"$f":"IFERROR(INDIRECT($B17&\"!e7\"),\"\")","v":"أحمد حجازى عبدالحكيم"},{"$f":"IFERROR(INDIRECT($B17&\"!e12\"),\"\")","v":"    E12"},{"$f":"IFERROR(INDIRECT($B17&\"!e13\"),\"\")","v":2},{"$f":"IFERROR(INDIRECT($B17&\"!g16\"),\"\")","v":0.89999999999999991},{"$f":"IFERROR(INDIRECT($B17&\"!h16\"),\"\")","v":0.05},0.95,1600,160,80,1360,{"$f":"IFERROR(INDIRECT($B17&\"!n16\"),\"\")","v":0},0,null,null,null,null,null,null,null,null,null,null,null,null,null,"جارى17"]
[null,"جارى3",{"$f":"IFERROR(INDIRECT($B18&\"!d17\"),\"\")","v":"الاقواس- المدادات"},"  2023/34","أحمد حجازى عبدالحكيم","    E12",2,{"$f":"IFERROR(INDIRECT($B18&\"!g17\"),\"\")","v":0.5},{"$f":"IFERROR(INDIRECT($B18&\"!i17\"),\"\")","v":0.8},{"$f":"IFERROR(INDIRECT($B18&\"!i17\"),\"\")","v":0.8},{"$f":"IFERROR(INDIRECT($B18&\"!j17\"),\"\")","v":12600},{"$f":"IFERROR(INDIRECT($B18&\"!k17\"),\"\")","v":1260},{"$f":"IFERROR(INDIRECT($B18&\"!l17\"),\"\")","v":630},{"$f":"IFERROR(INDIRECT($B18&\"!m17\"),\"\")","v":10710},{"$f":"IFERROR(INDIRECT($B18&\"!n17\"),\"\")","v":0},{"$f":"IFERROR(INDIRECT($B18&\"!o17\"),\"\")","v":0},null,null,null,null,null,null,null,null,null,null,null,null,null,"جارى18"]
[null,"جارى3",{"$f":"IFERROR(INDIRECT($B19&\"!d18\"),\"\")","v":"البروفيل"},"  2023/34","أحمد حجازى عبدالحكيم","    E12",2,{"$f":"IFERROR(INDIRECT($B19&\"!g18\"),\"\")","v":0.8},{"$f":"IFERROR(INDIRECT($B19&\"!i18\"),\"\")","v":0.8},{"$f":"IFERROR(INDIRECT($B19&\"!i18\"),\"\")","v":0.8},{"$f":"IFERROR(INDIRECT($B19&\"!j18\"),\"\")","v":0},{"$f":"IFERROR(INDIRECT($B19&\"!k18\"),\"\")","v":0},{"$f":"IFERROR(INDIRECT($B19&\"!l18\"),\"\")","v":0},{"$f":"IFERROR(INDIRECT($B19&\"!m18\"),\"\")","v":0},{"$f":"IFERROR(INDIRECT($B19&\"!n18\"),\"\")","v":0},{"$f":"IFERROR(INDIRECT($B19&\"!o18\"),\"\")","v":0},null,null,null,null,null,null,null,null,null,null,null,null,null,"جارى19"]
[null,"جارى3",{"$f":"IFERROR(INDIRECT($B20&\"!d19\"),\"\")","v":"البوابات"},"  2023/34","أحمد حجازى عبدالحكيم","    E12",2,{"$f":"IFERROR(INDIRECT($B20&\"!g19\"),\"\")","v":0.85},{"$f":"IFERROR(INDIRECT($B20&\"!i19\"),\"\")","v":0.85},{"$f":"IFERROR(INDIRECT($B20&\"!i19\"),\"\")","v":0.85},{"$f":"IFERROR(INDIRECT($B20&\"!j19\"),\"\")","v":0},{"$f":"IFERROR(INDIRECT($B20&\"!k19\"),\"\")","v":0},{"$f":"IFERROR(INDIRECT($B20&\"!l19\"),\"\")","v":0},{"$f":"IFERROR(INDIRECT($B20&\"!m19\"),\"\")","v":0},{"$f":"IFERROR(INDIRECT($B20&\"!n19\"),\"\")","v":0},{"$f":"IFERROR(INDIRECT($B20&\"!o19\"),\"\")","v":0},null,null,null,null,null,null,null,null,null,null,null,null,null,"جارى20"]
[null,"جارى3",{"$f":"IFERROR(INDIRECT($B21&\"!d20\"),\"\")","v":"النهايز"},"  2023/34","أحمد حجازى عبدالحكيم","    E12",2,{"$f":"IFERROR(INDIRECT($B21&\"!g20\"),\"\")","v":0.95},{"$f":"IFERROR(INDIRECT($B21&\"!i20\"),\"\")","v":0.95},{"$f":"IFERROR(INDIRECT($B21&\"!i20\"),\"\")","v":0.95},{"$f":"IFERROR(INDIRECT($B21&\"!j20\"),\"\")","v":0},{"$f":"IFERROR(INDIRECT($B21&\"!k20\"),\"\")","v":0},{"$f":"IFERROR(INDIRECT($B21&\"!l20\"),\"\")","v":0},{"$f":"IFERROR(INDIRECT($B21&\"!m20\"),\"\")","v":0},{"$f":"IFERROR(INDIRECT($B21&\"!n20\"),\"\")","v":0},{"$f":"IFERROR(INDIRECT($B21&\"!o120\"),\"\")","v":0},null,null,null,null,null,null,null,null,null,null,null,null,null,"جارى21"]
[null,"جارى3",{"$f":"IFERROR(INDIRECT($B22&\"!d21\"),\"\")","v":"حامل الثمار"},"  2023/34","أحمد حجازى عبدالحكيم","    E12",2,{"$f":"IFERROR(INDIRECT($B22&\"!g21\"),\"\")","v":0.95},{"$f":"IFERROR(INDIRECT($B22&\"!i21\"),\"\")","v":0.95},{"$f":"IFERROR(INDIRECT($B22&\"!i21\"),\"\")","v":0.95},{"$f":"IFERROR(INDIRECT($B22&\"!j21\"),\"\")","v":0},{"$f":"IFERROR(INDIRECT($B22&\"!k21\"),\"\")","v":0},{"$f":"IFERROR(INDIRECT($B22&\"!l21\"),\"\")","v":0},{"$f":"IFERROR(INDIRECT($B22&\"!m21\"),\"\")","v":0},{"$f":"IFERROR(INDIRECT($B22&\"!n21\"),\"\")","v":0},{"$f":"IFERROR(INDIRECT($B22&\"!o121\"),\"\")","v":0},null,null,null,null,null,null,null,null,null,null,null,null,null,"جارى22"]
[null,"جارى3",{"$f":"IFERROR(INDIRECT($B23&\"!d22\"),\"\")","v":"النقل"},"  2023/34","أحمد حجازى عبدالحكيم","    E12",2,{"$f":"IFERROR(INDIRECT($B23&\"!g22\"),\"\")","v":0.95000000000000007},{"$f":"IFERROR(INDIRECT($B23&\"!i22\"),\"\")","v":0.95000000000000007},{"$f":"IFERROR(INDIRECT($B23&\"!i22\"),\"\")","v":0.95000000000000007},{"$f":"IFERROR(INDIRECT($B23&\"!j22\"),\"\")","v":0},{"$f":"IFERROR(INDIRECT($B23&\"!k22\"),\"\")","v":0},{"$f":"IFERROR(INDIRECT($B23&\"!l22\"),\"\")","v":0},{"$f":"IFERROR(INDIRECT($B23&\"!m22\"),\"\")","v":0},{"$f":"IFERROR(INDIRECT($B23&\"!n22\"),\"\")","v":0},{"$f":"IFERROR(INDIRECT($B23&\"!o22\"),\"\")","v":0},null,null,null,null,null,null,null,null,null,null,null,null,null,"جارى23"]
[null,"جارى4",{"$f":"IFERROR(INDIRECT($B24&\"!d16\"),\"\")","v":"تركيب مجاري المطر - كمر- تدعيم اكسات- تدعيم كهات"},"  2023/34","أحمد حجازى عبدالحكيم","    E12",2,{"$f":"IFERROR(INDIRECT($B24&\"!g16\"),\"\")","v":0.5},{"$f":"IFERROR(INDIRECT($B24&\"!h16\"),\"\")","v":0.1},{"$f":"IFERROR(INDIRECT($B24&\"!i16\"),\"\")","v":0.6},{"$f":"IFERROR(INDIRECT($B24&\"!j16\"),\"\")","v":3200},{"$f":"IFERROR(INDIRECT($B24&\"!k16\"),\"\")","v":320},{"$f":"IFERROR(INDIRECT($B24&\"!l16\"),\"\")","v":160},{"$f":"IFERROR(INDIRECT($B24&\"!m16\"),\"\")","v":2720},{"$f":"IFERROR(INDIRECT($B24&\"!n16\"),\"\")","v":0},{"$f":"IFERROR(INDIRECT($B24&\"!o16\"),\"\")","v":0},null,null,null,null,null,null,null,null,null,null,null,null,null,"جارى24"]
[null,null,{"$f":"IFERROR(INDIRECT($B25&\"!d17\"),\"\")","v":""},"","","","",{"$f":"IFERROR(INDIRECT($B25&\"!g17\"),\"\")","v":""},{"$f":"IFERROR(INDIRECT($B25&\"!i17\"),\"\")","v":""},"",{"$f":"IFERROR(INDIRECT($B25&\"!j17\"),\"\")","v":""},{"$f":"IFERROR(INDIRECT($B25&\"!k17\"),\"\")","v":""},{"$f":"IFERROR(INDIRECT($B25&\"!l17\"),\"\")","v":""},{"$f":"IFERROR(INDIRECT($B25&\"!m17\"),\"\")","v":""},{"$f":"IFERROR(INDIRECT($B25&\"!n17\"),\"\")","v":""},{"$f":"IFERROR(INDIRECT($B25&\"!o17\"),\"\")","v":""},null,null,null,null,null,null,null,null,null,null,null,null,null,"جارى25"]
[null,null,{"$f":"IFERROR(INDIRECT($B26&\"!d18\"),\"\")","v":""},"","","","",{"$f":"IFERROR(INDIRECT($B26&\"!g18\"),\"\")","v":""},{"$f":"IFERROR(INDIRECT($B26&\"!i18\"),\"\")","v":""},"",{"$f":"IFERROR(INDIRECT($B26&\"!j18\"),\"\")","v":""},{"$f":"IFERROR(INDIRECT($B26&\"!k18\"),\"\")","v":""},{"$f":"IFERROR(INDIRECT($B26&\"!l18\"),\"\")","v":""},{"$f":"IFERROR(INDIRECT($B26&\"!m18\"),\"\")","v":""},{"$f":"IFERROR(INDIRECT($B26&\"!n18\"),\"\")","v":""},{"$f":"IFERROR(INDIRECT($B26&\"!o18\"),\"\")","v":""},null,null,null,null,null,null,null,null,null,null,null,null,null,"جارى26"]
[null,null,{"$f":"IFERROR(INDIRECT($B27&\"!d19\"),\"\")","v":""},"","","","",{"$f":"IFERROR(INDIRECT($B27&\"!g19\"),\"\")","v":""},{"$f":"IFERROR(INDIRECT($B27&\"!i19\"),\"\")","v":""},"",{"$f":"IFERROR(INDIRECT($B27&\"!j19\"),\"\")","v":""},{"$f":"IFERROR(INDIRECT($B27&\"!k19\"),\"\")","v":""},{"$f":"IFERROR(INDIRECT($B27&\"!l19\"),\"\")","v":""},{"$f":"IFERROR(INDIRECT($B27&\"!m19\"),\"\")","v":""},{"$f":"IFERROR(INDIRECT($B27&\"!n19\"),\"\")","v":""},{"$f":"IFERROR(INDIRECT($B27&\"!o19\"),\"\")","v":""},null,null,null,null,null,null,null,null,null,null,null,null,null,"جارى27"]
[null,null,{"$f":"IFERROR(INDIRECT($B28&\"!d20\"),\"\")","v":""},"","","","",{"$f":"IFERROR(INDIRECT($B28&\"!g20\"),\"\")","v":""},{"$f":"IFERROR(INDIRECT($B28&\"!i20\"),\"\")","v":""},"",{"$f":"IFERROR(INDIRECT($B28&\"!j20\"),\"\")","v":""},{"$f":"IFERROR(INDIRECT($B28&\"!k20\"),\"\")","v":""},{"$f":"IFERROR(INDIRECT($B28&\"!l20\"),\"\")","v":""},{"$f":"IFERROR(INDIRECT($B28&\"!m20\"),\"\")","v":""},{"$f":"IFERROR(INDIRECT($B28&\"!n20\"),\"\")","v":""},{"$f":"IFERROR(INDIRECT($B28&\"!o120\"),\"\")","v":""},null,null,null,null,null,null,null,null,null,null,null,null,null,"جارى28"]
[null,null,{"$f":"IFERROR(INDIRECT($B29&\"!d21\"),\"\")","v":""},"","","","",{"$f":"IFERROR(INDIRECT($B29&\"!g21\"),\"\")","v":""},{"$f":"IFERROR(INDIRECT($B29&\"!i21\"),\"\")","v":""},"",{"$f":"IFERROR(INDIRECT($B29&\"!j21\"),\"\")","v":""},{"$f":"IFERROR(INDIRECT($B29&\"!k21\"),\"\")","v":""},{"$f":"IFERROR(INDIRECT($B29&\"!l21\"),\"\")","v":""},{"$f":"IFERROR(INDIRECT($B29&\"!m21\"),\"\")","v":""},{"$f":"IFERROR(INDIRECT($B29&\"!n21\"),\"\")","v":""},{"$f":"IFERROR(INDIRECT($B29&\"!o121\"),\"\")","v":""},null,null,null,null,null,null,null,null,null,null,null,null,null,"جارى29"]
[null,null,{"$f":"IFERROR(INDIRECT($B30&\"!d22\"),\"\")","v":""},"","","","",{"$f":"IFERROR(INDIRECT($B30&\"!g22\"),\"\")","v":""},{"$f":"IFERROR(INDIRECT($B30&\"!i22\"),\"\")","v":""},"",{"$f":"IFERROR(INDIRECT($B30&\"!j22\"),\"\")","v":""},{"$f":"IFERROR(INDIRECT($B30&\"!k22\"),\"\")","v":""},{"$f":"IFERROR(INDIRECT($B30&\"!l22\"),\"\")","v":""},{"$f":"IFERROR(INDIRECT($B30&\"!m22\"),\"\")","v":""},{"$f":"IFERROR(INDIRECT($B30&\"!n22\"),\"\")","v":""},{"$f":"IFERROR(INDIRECT($B30&\"!o22\"),\"\")","v":""},null,null,null,null,null,null,null,null,null,null,null,null,null,"جارى30"]
[null,null,{"$f":"IFERROR(INDIRECT($B31&\"!d16\"),\"\")","v":""},"","","","",{"$f":"IFERROR(INDIRECT($B31&\"!g16\"),\"\")","v":""},{"$f":"IFERROR(INDIRECT($B31&\"!h16\"),\"\")","v":""},"","","","","",{"$f":"IFERROR(INDIRECT($B31&\"!n16\"),\"\")","v":""},"",null,null,null,null,null,null,null,null,null,null,null,null,null,"جارى31"]
[null,null,{"$f":"IFERROR(INDIRECT($B32&\"!d17\"),\"\")","v":""},"","","","",{"$f":"IFERROR(INDIRECT($B32&\"!g17\"),\"\")","v":""},{"$f":"IFERROR(INDIRECT($B32&\"!i17\"),\"\")","v":""},"",{"$f":"IFERROR(INDIRECT($B32&\"!j17\"),\"\")","v":""},{"$f":"IFERROR(INDIRECT($B32&\"!k17\"),\"\")","v":""},{"$f":"IFERROR(INDIRECT($B32&\"!l17\"),\"\")","v":""},{"$f":"IFERROR(INDIRECT($B32&\"!m17\"),\"\")","v":""},{"$f":"IFERROR(INDIRECT($B32&\"!n17\"),\"\")","v":""},{"$f":"IFERROR(INDIRECT($B32&\"!o17\"),\"\")","v":""},null,null,null,null,null,null,null,null,null,null,null,null,null,"جارى32"]
[null,null,{"$f":"IFERROR(INDIRECT($B33&\"!d18\"),\"\")","v":""},"","","","",{"$f":"IFERROR(INDIRECT($B33&\"!g18\"),\"\")","v":""},{"$f":"IFERROR(INDIRECT($B33&\"!i18\"),\"\")","v":""},"",{"$f":"IFERROR(INDIRECT($B33&\"!j18\"),\"\")","v":""},{"$f":"IFERROR(INDIRECT($B33&\"!k18\"),\"\")","v":""},{"$f":"IFERROR(INDIRECT($B33&\"!l18\"),\"\")","v":""},{"$f":"IFERROR(INDIRECT($B33&\"!m18\"),\"\")","v":""},{"$f":"IFERROR(INDIRECT($B33&\"!n18\"),\"\")","v":""},{"$f":"IFERROR(INDIRECT($B33&\"!o18\"),\"\")","v":""},null,null,null,null,null,null,null,null,null,null,null,null,null,"جارى33"]
[null,null,{"$f":"IFERROR(INDIRECT($B34&\"!d19\"),\"\")","v":""},"","","","",{"$f":"IFERROR(INDIRECT($B34&\"!g19\"),\"\")","v":""},{"$f":"IFERROR(INDIRECT($B34&\"!i19\"),\"\")","v":""},"",{"$f":"IFERROR(INDIRECT($B34&\"!j19\"),\"\")","v":""},{"$f":"IFERROR(INDIRECT($B34&\"!k19\"),\"\")","v":""},{"$f":"IFERROR(INDIRECT($B34&\"!l19\"),\"\")","v":""},{"$f":"IFERROR(INDIRECT($B34&\"!m19\"),\"\")","v":""},{"$f":"IFERROR(INDIRECT($B34&\"!n19\"),\"\")","v":""},{"$f":"IFERROR(INDIRECT($B34&\"!o19\"),\"\")","v":""},null,null,null,null,null,null,null,null,null,null,null,null,null,"جارى34"]
[null,null,{"$f":"IFERROR(INDIRECT($B35&\"!d20\"),\"\")","v":""},"","","","",{"$f":"IFERROR(INDIRECT($B35&\"!g20\"),\"\")","v":""},{"$f":"IFERROR(INDIRECT($B35&\"!i20\"),\"\")","v":""},"",{"$f":"IFERROR(INDIRECT($B35&\"!j20\"),\"\")","v":""},{"$f":"IFERROR(INDIRECT($B35&\"!k20\"),\"\")","v":""},{"$f":"IFERROR(INDIRECT($B35&\"!l20\"),\"\")","v":""},{"$f":"IFERROR(INDIRECT($B35&\"!m20\"),\"\")","v":""},{"$f":"IFERROR(INDIRECT($B35&\"!n20\"),\"\")","v":""},{"$f":"IFERROR(INDIRECT($B35&\"!o120\"),\"\")","v":""},null,null,null,null,null,null,null,null,null,null,null,null,null,"جارى35"]
[null,null,{"$f":"IFERROR(INDIRECT($B36&\"!d21\"),\"\")","v":""},"","","","",{"$f":"IFERROR(INDIRECT($B36&\"!g21\"),\"\")","v":""},{"$f":"IFERROR(INDIRECT($B36&\"!i21\"),\"\")","v":""},"",{"$f":"IFERROR(INDIRECT($B36&\"!j21\"),\"\")","v":""},{"$f":"IFERROR(INDIRECT($B36&\"!k21\"),\"\")","v":""},{"$f":"IFERROR(INDIRECT($B36&\"!l21\"),\"\")","v":""},{"$f":"IFERROR(INDIRECT($B36&\"!m21\"),\"\")","v":""},{"$f":"IFERROR(INDIRECT($B36&\"!n21\"),\"\")","v":""},{"$f":"IFERROR(INDIRECT($B36&\"!o121\"),\"\")","v":""},null,null,null,null,null,null,null,null,null,null,null,null,null,"جارى36"]
[null,null,{"$f":"IFERROR(INDIRECT($B37&\"!d22\"),\"\")","v":""},"","","","",{"$f":"IFERROR(INDIRECT($B37&\"!g22\"),\"\")","v":""},{"$f":"IFERROR(INDIRECT($B37&\"!i22\"),\"\")","v":""},"",{"$f":"IFERROR(INDIRECT($B37&\"!j22\"),\"\")","v":""},{"$f":"IFERROR(INDIRECT($B37&\"!k22\"),\"\")","v":""},{"$f":"IFERROR(INDIRECT($B37&\"!l22\"),\"\")","v":""},{"$f":"IFERROR(INDIRECT($B37&\"!m22\"),\"\")","v":""},{"$f":"IFERROR(INDIRECT($B37&\"!n22\"),\"\")","v":""},{"$f":"IFERROR(INDIRECT($B37&\"!o22\"),\"\")","v":""},null,null,null,null,null,null,null,null,null,null,null,null,null,"جارى37"]
[null,null,{"$f":"IFERROR(INDIRECT($B38&\"!d16\"),\"\")","v":""},"","","","",{"$f":"IFERROR(INDIRECT($B38&\"!g16\"),\"\")","v":""},{"$f":"IFERROR(INDIRECT($B38&\"!h16\"),\"\")","v":""},"","","","","",{"$f":"IFERROR(INDIRECT($B38&\"!n16\"),\"\")","v":""},"",null,null,null,null,null,null,null,null,null,null,null,null,null,"جارى38"]
[null,null,{"$f":"IFERROR(INDIRECT($B39&\"!d17\"),\"\")","v":""},"","","","",{"$f":"IFERROR(INDIRECT($B39&\"!g17\"),\"\")","v":""},{"$f":"IFERROR(INDIRECT($B39&\"!i17\"),\"\")","v":""},"",{"$f":"IFERROR(INDIRECT($B39&\"!j17\"),\"\")","v":""},{"$f":"IFERROR(INDIRECT($B39&\"!k17\"),\"\")","v":""},{"$f":"IFERROR(INDIRECT($B39&\"!l17\"),\"\")","v":""},{"$f":"IFERROR(INDIRECT($B39&\"!m17\"),\"\")","v":""},{"$f":"IFERROR(INDIRECT($B39&\"!n17\"),\"\")","v":""},{"$f":"IFERROR(INDIRECT($B39&\"!o17\"),\"\")","v":""},null,null,null,null,null,null,null,null,null,null,null,null,null,"جارى39"]
[null,null,{"$f":"IFERROR(INDIRECT($B40&\"!d18\"),\"\")","v":""},"","","","",{"$f":"IFERROR(INDIRECT($B40&\"!g18\"),\"\")","v":""},{"$f":"IFERROR(INDIRECT($B40&\"!i18\"),\"\")","v":""},"",{"$f":"IFERROR(INDIRECT($B40&\"!j18\"),\"\")","v":""},{"$f":"IFERROR(INDIRECT($B40&\"!k18\"),\"\")","v":""},{"$f":"IFERROR(INDIRECT($B40&\"!l18\"),\"\")","v":""},{"$f":"IFERROR(INDIRECT($B40&\"!m18\"),\"\")","v":""},{"$f":"IFERROR(INDIRECT($B40&\"!n18\"),\"\")","v":""},{"$f":"IFERROR(INDIRECT($B40&\"!o18\"),\"\")","v":""},null,null,null,null,null,null,null,null,null,null,null,null,null,"جارى40"]
[null,null,{"$f":"IFERROR(INDIRECT($B41&\"!d19\"),\"\")","v":""},"","","","",{"$f":"IFERROR(INDIRECT($B41&\"!g19\"),\"\")","v":""},{"$f":"IFERROR(INDIRECT($B41&\"!i19\"),\"\")","v":""},"",{"$f":"IFERROR(INDIRECT($B41&\"!j19\"),\"\")","v":""},{"$f":"IFERROR(INDIRECT($B41&\"!k19\"),\"\")","v":""},{"$f":"IFERROR(INDIRECT($B41&\"!l19\"),\"\")","v":""},{"$f":"IFERROR(INDIRECT($B41&\"!m19\"),\"\")","v":""},{"$f":"IFERROR(INDIRECT($B41&\"!n19\"),\"\")","v":""},{"$f":"IFERROR(INDIRECT($B41&\"!o19\"),\"\")","v":""},null,null,null,null,null,null,null,null,null,null,null,null,null,"جارى41"]
[null,null,{"$f":"IFERROR(INDIRECT($B42&\"!d20\"),\"\")","v":""},"","","","",{"$f":"IFERROR(INDIRECT($B42&\"!g20\"),\"\")","v":""},{"$f":"IFERROR(INDIRECT($B42&\"!i20\"),\"\")","v":""},"",{"$f":"IFERROR(INDIRECT($B42&\"!j20\"),\"\")","v":""},{"$f":"IFERROR(INDIRECT($B42&\"!k20\"),\"\")","v":""},{"$f":"IFERROR(INDIRECT($B42&\"!l20\"),\"\")","v":""},{"$f":"IFERROR(INDIRECT($B42&\"!m20\"),\"\")","v":""},{"$f":"IFERROR(INDIRECT($B42&\"!n20\"),\"\")","v":""},{"$f":"IFERROR(INDIRECT($B42&\"!o120\"),\"\")","v":""},null,null,null,null,null,null,null,null,null,null,null,null,null,"جارى42"]
[null,null,{"$f":"IFERROR(INDIRECT($B43&\"!d21\"),\"\")","v":""},"","","","",{"$f":"IFERROR(INDIRECT($B43&\"!g21\"),\"\")","v":""},{"$f":"IFERROR(INDIRECT($B43&\"!i21\"),\"\")","v":""},"",{"$f":"IFERROR(INDIRECT($B43&\"!j21\"),\"\")","v":""},{"$f":"IFERROR(INDIRECT($B43&\"!k21\"),\"\")","v":""},{"$f":"IFERROR(INDIRECT($B43&\"!l21\"),\"\")","v":""},{"$f":"IFERROR(INDIRECT($B43&\"!m21\"),\"\")","v":""},{"$f":"IFERROR(INDIRECT($B43&\"!n21\"),\"\")","v":""},{"$f":"IFERROR(INDIRECT($B43&\"!o121\"),\"\")","v":""},null,null,null,null,null,null,null,null,null,null,null,null,null,"جارى43"]
[null,null,{"$f":"IFERROR(INDIRECT($B44&\"!d22\"),\"\")","v":""},"","","","",{"$f":"IFERROR(INDIRECT($B44&\"!g22\"),\"\")","v":""},{"$f":"IFERROR(INDIRECT($B44&\"!i22\"),\"\")","v":""},"",{"$f":"IFERROR(INDIRECT($B44&\"!j22\"),\"\")","v":""},{"$f":"IFERROR(INDIRECT($B44&\"!k22\"),\"\")","v":""},{"$f":"IFERROR(INDIRECT($B44&\"!l22\"),\"\")","v":""},{"$f":"IFERROR(INDIRECT($B44&\"!m22\"),\"\")","v":""},{"$f":"IFERROR(INDIRECT($B44&\"!n22\"),\"\")","v":""},{"$f":"IFERROR(INDIRECT($B44&\"!o22\"),\"\")","v":""},null,null,null,null,null,null,null,null,null,null,null,null,null,"جارى44"]
[null,null,{"$f":"IFERROR(INDIRECT($B45&\"!d16\"),\"\")","v":""},"","","","",{"$f":"IFERROR(INDIRECT($B45&\"!g16\"),\"\")","v":""},{"$f":"IFERROR(INDIRECT($B45&\"!h16\"),\"\")","v":""},"","","","","",{"$f":"IFERROR(INDIRECT($B45&\"!n16\"),\"\")","v":""},"",null,null,null,null,null,null,null,null,null,null,null,null,null,"جارى45"]
[null,null,{"$f":"IFERROR(INDIRECT($B46&\"!d17\"),\"\")","v":""},"","","","",{"$f":"IFERROR(INDIRECT($B46&\"!g17\"),\"\")","v":""},{"$f":"IFERROR(INDIRECT($B46&\"!i17\"),\"\")","v":""},"",{"$f":"IFERROR(INDIRECT($B46&\"!j17\"),\"\")","v":""},{"$f":"IFERROR(INDIRECT($B46&\"!k17\"),\"\")","v":""},{"$f":"IFERROR(INDIRECT($B46&\"!l17\"),\"\")","v":""},{"$f":"IFERROR(INDIRECT($B46&\"!m17\"),\"\")","v":""},{"$f":"IFERROR(INDIRECT($B46&\"!n17\"),\"\")","v":""},{"$f":"IFERROR(INDIRECT($B46&\"!o17\"),\"\")","v":""},null,null,null,null,null,null,null,null,null,null,null,null,null,"جارى46"]
[null,null,{"$f":"IFERROR(INDIRECT($B47&\"!d18\"),\"\")","v":""},"","","","",{"$f":"IFERROR(INDIRECT($B47&\"!g18\"),\"\")","v":""},{"$f":"IFERROR(INDIRECT($B47&\"!i18\"),\"\")","v":""},"",{"$f":"IFERROR(INDIRECT($B47&\"!j18\"),\"\")","v":""},{"$f":"IFERROR(INDIRECT($B47&\"!k18\"),\"\")","v":""},{"$f":"IFERROR(INDIRECT($B47&\"!l18\"),\"\")","v":""},{"$f":"IFERROR(INDIRECT($B47&\"!m18\"),\"\")","v":""},{"$f":"IFERROR(INDIRECT($B47&\"!n18\"),\"\")","v":""},{"$f":"IFERROR(INDIRECT($B47&\"!o18\"),\"\")","v":""},null,null,null,null,null,null,null,null,null,null,null,null,null,"جارى47"]
[null,null,{"$f":"IFERROR(INDIRECT($B48&\"!d19\"),\"\")","v":""},"","","","",{"$f":"IFERROR(INDIRECT($B48&\"!g19\"),\"\")","v":""},{"$f":"IFERROR(INDIRECT($B48&\"!i19\"),\"\")","v":""},"",{"$f":"IFERROR(INDIRECT($B48&\"!j19\"),\"\")","v":""},{"$f":"IFERROR(INDIRECT($B48&\"!k19\"),\"\")","v":""},{"$f":"IFERROR(INDIRECT($B48&\"!l19\"),\"\")","v":""},{"$f":"IFERROR(INDIRECT($B48&\"!m19\"),\"\")","v":""},{"$f":"IFERROR(INDIRECT($B48&\"!n19\"),\"\")","v":""},{"$f":"IFERROR(INDIRECT($B48&\"!o19\"),\"\")","v":""},null,null,null,null,null,null,null,null,null,null,null,null,null,"جارى48"]
[null,null,{"$f":"IFERROR(INDIRECT($B49&\"!d20\"),\"\")","v":""},"","","","",{"$f":"IFERROR(INDIRECT($B49&\"!g20\"),\"\")","v":""},{"$f":"IFERROR(INDIRECT($B49&\"!i20\"),\"\")","v":""},"",{"$f":"IFERROR(INDIRECT($B49&\"!j20\"),\"\")","v":""},{"$f":"IFERROR(INDIRECT($B49&\"!k20\"),\"\")","v":""},{"$f":"IFERROR(INDIRECT($B49&\"!l20\"),\"\")","v":""},{"$f":"IFERROR(INDIRECT($B49&\"!m20\"),\"\")","v":""},{"$f":"IFERROR(INDIRECT($B49&\"!n20\"),\"\")","v":""},{"$f":"IFERROR(INDIRECT($B49&\"!o120\"),\"\")","v":""},null,null,null,null,null,null,null,null,null,null,null,null,null,"جارى49"]
[null,null,{"$f":"IFERROR(INDIRECT($B50&\"!d21\"),\"\")","v":""},"","","","",{"$f":"IFERROR(INDIRECT($B50&\"!g21\"),\"\")","v":""},{"$f":"IFERROR(INDIRECT($B50&\"!i21\"),\"\")","v":""},"",{"$f":"IFERROR(INDIRECT($B50&\"!j21\"),\"\")","v":""},{"$f":"IFERROR(INDIRECT($B50&\"!k21\"),\"\")","v":""},{"$f":"IFERROR(INDIRECT($B50&\"!l21\"),\"\")","v":""},{"$f":"IFERROR(INDIRECT($B50&\"!m21\"),\"\")","v":""},{"$f":"IFERROR(INDIRECT($B50&\"!n21\"),\"\")","v":""},{"$f":"IFERROR(INDIRECT($B50&\"!o121\"),\"\")","v":""},null,null,null,null,null,null,null,null,null,null,null,null,null,"جارى50"]
[null,null,{"$f":"IFERROR(INDIRECT($B51&\"!d22\"),\"\")","v":""},"","","","",{"$f":"IFERROR(INDIRECT($B51&\"!g22\"),\"\")","v":""},{"$f":"IFERROR(INDIRECT($B51&\"!i22\"),\"\")","v":""},"",{"$f":"IFERROR(INDIRECT($B51&\"!j22\"),\"\")","v":""},{"$f":"IFERROR(INDIRECT($B51&\"!k22\"),\"\")","v":""},{"$f":"IFERROR(INDIRECT($B51&\"!l22\"),\"\")","v":""},{"$f":"IFERROR(INDIRECT($B51&\"!m22\"),\"\")","v":""},{"$f":"IFERROR(INDIRECT($B51&\"!n22\"),\"\")","v":""},{"$f":"IFERROR(INDIRECT($B51&\"!o22\"),\"\")","v":""},null,null,null,null,null,null,null,null,null,null,null,null,null,"جارى51"]
[null,null,{"$f":"IFERROR(INDIRECT($B52&\"!d16\"),\"\")","v":""},"","","","",{"$f":"IFERROR(INDIRECT($B52&\"!g16\"),\"\")","v":""},{"$f":"IFERROR(INDIRECT($B52&\"!h16\"),\"\")","v":""},"","","","","",{"$f":"IFERROR(INDIRECT($B52&\"!n16\"),\"\")","v":""},"",null,null,null,null,null,null,null,null,null,null,null,null,null,"جارى52"]
[null,null,{"$f":"IFERROR(INDIRECT($B53&\"!d17\"),\"\")","v":""},"","","","",{"$f":"IFERROR(INDIRECT($B53&\"!g17\"),\"\")","v":""},{"$f":"IFERROR(INDIRECT($B53&\"!i17\"),\"\")","v":""},"",{"$f":"IFERROR(INDIRECT($B53&\"!j17\"),\"\")","v":""},{"$f":"IFERROR(INDIRECT($B53&\"!k17\"),\"\")","v":""},{"$f":"IFERROR(INDIRECT($B53&\"!l17\"),\"\")","v":""},{"$f":"IFERROR(INDIRECT($B53&\"!m17\"),\"\")","v":""},{"$f":"IFERROR(INDIRECT($B53&\"!n17\"),\"\")","v":""},{"$f":"IFERROR(INDIRECT($B53&\"!o17\"),\"\")","v":""},null,null,null,null,null,null,null,null,null,null,null,null,null,"جارى53"]
[null,null,{"$f":"IFERROR(INDIRECT($B54&\"!d18\"),\"\")","v":""},"","","","",{"$f":"IFERROR(INDIRECT($B54&\"!g18\"),\"\")","v":""},{"$f":"IFERROR(INDIRECT($B54&\"!i18\"),\"\")","v":""},"",{"$f":"IFERROR(INDIRECT($B54&\"!j18\"),\"\")","v":""},{"$f":"IFERROR(INDIRECT($B54&\"!k18\"),\"\")","v":""},{"$f":"IFERROR(INDIRECT($B54&\"!l18\"),\"\")","v":""},{"$f":"IFERROR(INDIRECT($B54&\"!m18\"),\"\")","v":""},{"$f":"IFERROR(INDIRECT($B54&\"!n18\"),\"\")","v":""},{"$f":"IFERROR(INDIRECT($B54&\"!o18\"),\"\")","v":""},null,null,null,null,null,null,null,null,null,null,null,null,null,"جارى54"]
[null,null,{"$f":"IFERROR(INDIRECT($B55&\"!d19\"),\"\")","v":""},"","","","",{"$f":"IFERROR(INDIRECT($B55&\"!g19\"),\"\")","v":""},{"$f":"IFERROR(INDIRECT($B55&\"!i19\"),\"\")","v":""},"",{"$f":"IFERROR(INDIRECT($B55&\"!j19\"),\"\")","v":""},{"$f":"IFERROR(INDIRECT($B55&\"!k19\"),\"\")","v":""},{"$f":"IFERROR(INDIRECT($B55&\"!l19\"),\"\")","v":""},{"$f":"IFERROR(INDIRECT($B55&\"!m19\"),\"\")","v":""},{"$f":"IFERROR(INDIRECT($B55&\"!n19\"),\"\")","v":""},{"$f":"IFERROR(INDIRECT($B55&\"!o19\"),\"\")","v":""},null,null,null,null,null,null,null,null,null,null,null,null,null,"جارى55"]
[null,null,{"$f":"IFERROR(INDIRECT($B56&\"!d20\"),\"\")","v":""},"","","","",{"$f":"IFERROR(INDIRECT($B56&\"!g20\"),\"\")","v":""},{"$f":"IFERROR(INDIRECT($B56&\"!i20\"),\"\")","v":""},"",{"$f":"IFERROR(INDIRECT($B56&\"!j20\"),\"\")","v":""},{"$f":"IFERROR(INDIRECT($B56&\"!k20\"),\"\")","v":""},{"$f":"IFERROR(INDIRECT($B56&\"!l20\"),\"\")","v":""},{"$f":"IFERROR(INDIRECT($B56&\"!m20\"),\"\")","v":""},{"$f":"IFERROR(INDIRECT($B56&\"!n20\"),\"\")","v":""},{"$f":"IFERROR(INDIRECT($B56&\"!o120\"),\"\")","v":""},null,null,null,null,null,null,null,null,null,null,null,null,null,"جارى56"]
[null,null,{"$f":"IFERROR(INDIRECT($B57&\"!d21\"),\"\")","v":""},"","","","",{"$f":"IFERROR(INDIRECT($B57&\"!g21\"),\"\")","v":""},{"$f":"IFERROR(INDIRECT($B57&\"!i21\"),\"\")","v":""},"",{"$f":"IFERROR(INDIRECT($B57&\"!j21\"),\"\")","v":""},{"$f":"IFERROR(INDIRECT($B57&\"!k21\"),\"\")","v":""},{"$f":"IFERROR(INDIRECT($B57&\"!l21\"),\"\")","v":""},{"$f":"IFERROR(INDIRECT($B57&\"!m21\"),\"\")","v":""},{"$f":"IFERROR(INDIRECT($B57&\"!n21\"),\"\")","v":""},{"$f":"IFERROR(INDIRECT($B57&\"!o121\"),\"\")","v":""},null,null,null,null,null,null,null,null,null,null,null,null,null,"جارى57"]
[null,null,{"$f":"IFERROR(INDIRECT($B58&\"!d22\"),\"\")","v":""},"","","","",{"$f":"IFERROR(INDIRECT($B58&\"!g22\"),\"\")","v":""},{"$f":"IFERROR(INDIRECT($B58&\"!i22\"),\"\")","v":""},"",{"$f":"IFERROR(INDIRECT($B58&\"!j22\"),\"\")","v":""},{"$f":"IFERROR(INDIRECT($B58&\"!k22\"),\"\")","v":""},{"$f":"IFERROR(INDIRECT($B58&\"!l22\"),\"\")","v":""},{"$f":"IFERROR(INDIRECT($B58&\"!m22\"),\"\")","v":""},{"$f":"IFERROR(INDIRECT($B58&\"!n22\"),\"\")","v":""},{"$f":"IFERROR(INDIRECT($B58&\"!o22\"),\"\")","v":""},null,null,null,null,null,null,null,null,null,null,null,null,null,"جارى58"]
[null,null,{"$f":"IFERROR(INDIRECT($B59&\"!d16\"),\"\")","v":""},"","","","",{"$f":"IFERROR(INDIRECT($B59&\"!g16\"),\"\")","v":""},{"$f":"IFERROR(INDIRECT($B59&\"!h16\"),\"\")","v":""},"","","","","",{"$f":"IFERROR(INDIRECT($B59&\"!n16\"),\"\")","v":""},"",null,null,null,null,null,null,null,null,null,null,null,null,null,"جارى59"]
[null,null,{"$f":"IFERROR(INDIRECT($B60&\"!d17\"),\"\")","v":""},"","","","",{"$f":"IFERROR(INDIRECT($B60&\"!g17\"),\"\")","v":""},{"$f":"IFERROR(INDIRECT($B60&\"!i17\"),\"\")","v":""},"",{"$f":"IFERROR(INDIRECT($B60&\"!j17\"),\"\")","v":""},{"$f":"IFERROR(INDIRECT($B60&\"!k17\"),\"\")","v":""},{"$f":"IFERROR(INDIRECT($B60&\"!l17\"),\"\")","v":""},{"$f":"IFERROR(INDIRECT($B60&\"!m17\"),\"\")","v":""},{"$f":"IFERROR(INDIRECT($B60&\"!n17\"),\"\")","v":""},{"$f":"IFERROR(INDIRECT($B60&\"!o17\"),\"\")","v":""},null,null,null,null,null,null,null,null,null,null,null,null,null,"جارى60"]
[null,null,{"$f":"IFERROR(INDIRECT($B61&\"!d18\"),\"\")","v":""},"","","","",{"$f":"IFERROR(INDIRECT($B61&\"!g18\"),\"\")","v":""},{"$f":"IFERROR(INDIRECT($B61&\"!i18\"),\"\")","v":""},"",{"$f":"IFERROR(INDIRECT($B61&\"!j18\"),\"\")","v":""},{"$f":"IFERROR(INDIRECT($B61&\"!k18\"),\"\")","v":""},{"$f":"IFERROR(INDIRECT($B61&\"!l18\"),\"\")","v":""},{"$f":"IFERROR(INDIRECT($B61&\"!m18\"),\"\")","v":""},{"$f":"IFERROR(INDIRECT($B61&\"!n18\"),\"\")","v":""},{"$f":"IFERROR(INDIRECT($B61&\"!o18\"),\"\")","v":""},null,null,null,null,null,null,null,null,null,null,null,null,null,"جارى61"]
[null,null,{"$f":"IFERROR(INDIRECT($B62&\"!d19\"),\"\")","v":""},"","","","",{"$f":"IFERROR(INDIRECT($B62&\"!g19\"),\"\")","v":""},{"$f":"IFERROR(INDIRECT($B62&\"!i19\"),\"\")","v":""},"",{"$f":"IFERROR(INDIRECT($B62&\"!j19\"),\"\")","v":""},{"$f":"IFERROR(INDIRECT($B62&\"!k19\"),\"\")","v":""},{"$f":"IFERROR(INDIRECT($B62&\"!l19\"),\"\")","v":""},{"$f":"IFERROR(INDIRECT($B62&\"!m19\"),\"\")","v":""},{"$f":"IFERROR(INDIRECT($B62&\"!n19\"),\"\")","v":""},{"$f":"IFERROR(INDIRECT($B62&\"!o19\"),\"\")","v":""},null,null,null,null,null,null,null,null,null,null,null,null,null,"جارى62"]
[null,null,{"$f":"IFERROR(INDIRECT($B63&\"!d20\"),\"\")","v":""},"","","","",{"$f":"IFERROR(INDIRECT($B63&\"!g20\"),\"\")","v":""},{"$f":"IFERROR(INDIRECT($B63&\"!i20\"),\"\")","v":""},"",{"$f":"IFERROR(INDIRECT($B63&\"!j20\"),\"\")","v":""},{"$f":"IFERROR(INDIRECT($B63&\"!k20\"),\"\")","v":""},{"$f":"IFERROR(INDIRECT($B63&\"!l20\"),\"\")","v":""},{"$f":"IFERROR(INDIRECT($B63&\"!m20\"),\"\")","v":""},{"$f":"IFERROR(INDIRECT($B63&\"!n20\"),\"\")","v":""},{"$f":"IFERROR(INDIRECT($B63&\"!o120\"),\"\")","v":""},null,null,null,null,null,null,null,null,null,null,null,null,null,"جارى63"]
[null,null,{"$f":"IFERROR(INDIRECT($B64&\"!d21\"),\"\")","v":""},"","","","",{"$f":"IFERROR(INDIRECT($B64&\"!g21\"),\"\")","v":""},{"$f":"IFERROR(INDIRECT($B64&\"!i21\"),\"\")","v":""},"",{"$f":"IFERROR(INDIRECT($B64&\"!j21\"),\"\")","v":""},{"$f":"IFERROR(INDIRECT($B64&\"!k21\"),\"\")","v":""},{"$f":"IFERROR(INDIRECT($B64&\"!l21\"),\"\")","v":""},{"$f":"IFERROR(INDIRECT($B64&\"!m21\"),\"\")","v":""},{"$f":"IFERROR(INDIRECT($B64&\"!n21\"),\"\")","v":""},{"$f":"IFERROR(INDIRECT($B64&\"!o121\"),\"\")","v":""},null,null,null,null,null,null,null,null,null,null,null,null,null,"جارى64"]
[null,null,{"$f":"IFERROR(INDIRECT($B65&\"!d22\"),\"\")","v":""},"","","","",{"$f":"IFERROR(INDIRECT($B65&\"!g22\"),\"\")","v":""},{"$f":"IFERROR(INDIRECT($B65&\"!i22\"),\"\")","v":""},"",{"$f":"IFERROR(INDIRECT($B65&\"!j22\"),\"\")","v":""},{"$f":"IFERROR(INDIRECT($B65&\"!k22\"),\"\")","v":""},{"$f":"IFERROR(INDIRECT($B65&\"!l22\"),\"\")","v":""},{"$f":"IFERROR(INDIRECT($B65&\"!m22\"),\"\")","v":""},{"$f":"IFERROR(INDIRECT($B65&\"!n22\"),\"\")","v":""},{"$f":"IFERROR(INDIRECT($B65&\"!o22\"),\"\")","v":""},null,null,null,null,null,null,null,null,null,null,null,null,null,"جارى65"]
[null,null,{"$f":"IFERROR(INDIRECT($B66&\"!d16\"),\"\")","v":""},"","","","",{"$f":"IFERROR(INDIRECT($B66&\"!g16\"),\"\")","v":""},{"$f":"IFERROR(INDIRECT($B66&\"!h16\"),\"\")","v":""},"","","","","",{"$f":"IFERROR(INDIRECT($B66&\"!n16\"),\"\")","v":""},"",null,null,null,null,null,null,null,null,null,null,null,null,null,"جارى66"]
[null,null,{"$f":"IFERROR(INDIRECT($B67&\"!d17\"),\"\")","v":""},"","","","",{"$f":"IFERROR(INDIRECT($B67&\"!g17\"),\"\")","v":""},{"$f":"IFERROR(INDIRECT($B67&\"!i17\"),\"\")","v":""},"",{"$f":"IFERROR(INDIRECT($B67&\"!j17\"),\"\")","v":""},{"$f":"IFERROR(INDIRECT($B67&\"!k17\"),\"\")","v":""},{"$f":"IFERROR(INDIRECT($B67&\"!l17\"),\"\")","v":""},{"$f":"IFERROR(INDIRECT($B67&\"!m17\"),\"\")","v":""},{"$f":"IFERROR(INDIRECT($B67&\"!n17\"),\"\")","v":""},{"$f":"IFERROR(INDIRECT($B67&\"!o17\"),\"\")","v":""},null,null,null,null,null,null,null,null,null,null,null,null,null,"جارى67"]
[null,null,{"$f":"IFERROR(INDIRECT($B68&\"!d18\"),\"\")","v":""},{"$f":"IFERROR(INDIRECT($B68&\"!e10\"),\"\")","v":""},{"$f":"IFERROR(INDIRECT($B68&\"!e7\"),\"\")","v":""},{"$f":"IFERROR(INDIRECT($B68&\"!e12\"),\"\")","v":""},{"$f":"IFERROR(INDIRECT($B68&\"!e13\"),\"\")","v":""},{"$f":"IFERROR(INDIRECT($B68&\"!g18\"),\"\")","v":""},{"$f":"IFERROR(INDIRECT($B68&\"!i18\"),\"\")","v":""},"",{"$f":"IFERROR(INDIRECT($B68&\"!j18\"),\"\")","v":""},{"$f":"IFERROR(INDIRECT($B68&\"!k18\"),\"\")","v":""},{"$f":"IFERROR(INDIRECT($B68&\"!l18\"),\"\")","v":""},{"$f":"IFERROR(INDIRECT($B68&\"!m18\"),\"\")","v":""},{"$f":"IFERROR(INDIRECT($B68&\"!n18\"),\"\")","v":""},{"$f":"IFERROR(INDIRECT($B68&\"!o18\"),\"\")","v":""},null,null,null,null,null,null,null,null,null,null,null,null,null,"جارى68"]
[null,null,{"$f":"IFERROR(INDIRECT($B69&\"!d19\"),\"\")","v":""},"","","","",{"$f":"IFERROR(INDIRECT($B69&\"!g19\"),\"\")","v":""},{"$f":"IFERROR(INDIRECT($B69&\"!i19\"),\"\")","v":""},"",{"$f":"IFERROR(INDIRECT($B69&\"!j19\"),\"\")","v":""},{"$f":"IFERROR(INDIRECT($B69&\"!k19\"),\"\")","v":""},{"$f":"IFERROR(INDIRECT($B69&\"!l19\"),\"\")","v":""},{"$f":"IFERROR(INDIRECT($B69&\"!m19\"),\"\")","v":""},{"$f":"IFERROR(INDIRECT($B69&\"!n19\"),\"\")","v":""},{"$f":"IFERROR(INDIRECT($B69&\"!o19\"),\"\")","v":""},null,null,null,null,null,null,null,null,null,null,null,null,null,"جارى69"]
[null,null,{"$f":"IFERROR(INDIRECT($B70&\"!d20\"),\"\")","v":""},"","","","",{"$f":"IFERROR(INDIRECT($B70&\"!g20\"),\"\")","v":""},{"$f":"IFERROR(INDIRECT($B70&\"!i20\"),\"\")","v":""},"",{"$f":"IFERROR(INDIRECT($B70&\"!j20\"),\"\")","v":""},{"$f":"IFERROR(INDIRECT($B70&\"!k20\"),\"\")","v":""},{"$f":"IFERROR(INDIRECT($B70&\"!l20\"),\"\")","v":""},{"$f":"IFERROR(INDIRECT($B70&\"!m20\"),\"\")","v":""},{"$f":"IFERROR(INDIRECT($B70&\"!n20\"),\"\")","v":""},{"$f":"IFERROR(INDIRECT($B70&\"!o120\"),\"\")","v":""},null,null,null,null,null,null,null,null,null,null,null,null,null,"جارى70"]
[null,null,{"$f":"IFERROR(INDIRECT($B71&\"!d21\"),\"\")","v":""},"","","","",{"$f":"IFERROR(INDIRECT($B71&\"!g21\"),\"\")","v":""},{"$f":"IFERROR(INDIRECT($B71&\"!i21\"),\"\")","v":""},"",{"$f":"IFERROR(INDIRECT($B71&\"!j21\"),\"\")","v":""},{"$f":"IFERROR(INDIRECT($B71&\"!k21\"),\"\")","v":""},{"$f":"IFERROR(INDIRECT($B71&\"!l21\"),\"\")","v":""},{"$f":"IFERROR(INDIRECT($B71&\"!m21\"),\"\")","v":""},{"$f":"IFERROR(INDIRECT($B71&\"!n21\"),\"\")","v":""},{"$f":"IFERROR(INDIRECT($B71&\"!o121\"),\"\")","v":""},null,null,null,null,null,null,null,null,null,null,null,null,null,"جارى71"]
[null,null,{"$f":"IFERROR(INDIRECT($B72&\"!d22\"),\"\")","v":""},"","","","",{"$f":"IFERROR(INDIRECT($B72&\"!g22\"),\"\")","v":""},{"$f":"IFERROR(INDIRECT($B72&\"!i22\"),\"\")","v":""},"",{"$f":"IFERROR(INDIRECT($B72&\"!j22\"),\"\")","v":""},{"$f":"IFERROR(INDIRECT($B72&\"!k22\"),\"\")","v":""},{"$f":"IFERROR(INDIRECT($B72&\"!l22\"),\"\")","v":""},{"$f":"IFERROR(INDIRECT($B72&\"!m22\"),\"\")","v":""},{"$f":"IFERROR(INDIRECT($B72&\"!n22\"),\"\")","v":""},{"$f":"IFERROR(INDIRECT($B72&\"!o22\"),\"\")","v":""},null,null,null,null,null,null,null,null,null,null,null,null,null,"جارى72"]
[null,null,{"$f":"IFERROR(INDIRECT($B73&\"!d16\"),\"\")","v":""},"","","","",{"$f":"IFERROR(INDIRECT($B73&\"!g16\"),\"\")","v":""},{"$f":"IFERROR(INDIRECT($B73&\"!h16\"),\"\")","v":""},"","","","","",{"$f":"IFERROR(INDIRECT($B73&\"!n16\"),\"\")","v":""},"",null,null,null,null,null,null,null,null,null,null,null,null,null,"جارى73"]
[null,null,{"$f":"IFERROR(INDIRECT($B74&\"!d17\"),\"\")","v":""},"","","","",{"$f":"IFERROR(INDIRECT($B74&\"!g17\"),\"\")","v":""},{"$f":"IFERROR(INDIRECT($B74&\"!i17\"),\"\")","v":""},"",{"$f":"IFERROR(INDIRECT($B74&\"!j17\"),\"\")","v":""},{"$f":"IFERROR(INDIRECT($B74&\"!k17\"),\"\")","v":""},{"$f":"IFERROR(INDIRECT($B74&\"!l17\"),\"\")","v":""},{"$f":"IFERROR(INDIRECT($B74&\"!m17\"),\"\")","v":""},{"$f":"IFERROR(INDIRECT($B74&\"!n17\"),\"\")","v":""},{"$f":"IFERROR(INDIRECT($B74&\"!o17\"),\"\")","v":""},null,null,null,null,null,null,null,null,null,null,null,null,null,"جارى74"]
[null,null,{"$f":"IFERROR(INDIRECT($B75&\"!d18\"),\"\")","v":""},"","","","",{"$f":"IFERROR(INDIRECT($B75&\"!g18\"),\"\")","v":""},{"$f":"IFERROR(INDIRECT($B75&\"!i18\"),\"\")","v":""},"",{"$f":"IFERROR(INDIRECT($B75&\"!j18\"),\"\")","v":""},{"$f":"IFERROR(INDIRECT($B75&\"!k18\"),\"\")","v":""},{"$f":"IFERROR(INDIRECT($B75&\"!l18\"),\"\")","v":""},{"$f":"IFERROR(INDIRECT($B75&\"!m18\"),\"\")","v":""},{"$f":"IFERROR(INDIRECT($B75&\"!n18\"),\"\")","v":""},{"$f":"IFERROR(INDIRECT($B75&\"!o18\"),\"\")","v":""},null,null,null,null,null,null,null,null,null,null,null,null,null,"جارى75"]
[null,null,{"$f":"IFERROR(INDIRECT($B76&\"!d19\"),\"\")","v":""},"","","","",{"$f":"IFERROR(INDIRECT($B76&\"!g19\"),\"\")","v":""},{"$f":"IFERROR(INDIRECT($B76&\"!i19\"),\"\")","v":""},"",{"$f":"IFERROR(INDIRECT($B76&\"!j19\"),\"\")","v":""},{"$f":"IFERROR(INDIRECT($B76&\"!k19\"),\"\")","v":""},{"$f":"IFERROR(INDIRECT($B76&\"!l19\"),\"\")","v":""},{"$f":"IFERROR(INDIRECT($B76&\"!m19\"),\"\")","v":""},{"$f":"IFERROR(INDIRECT($B76&\"!n19\"),\"\")","v":""},{"$f":"IFERROR(INDIRECT($B76&\"!o19\"),\"\")","v":""},null,null,null,null,null,null,null,null,null,null,null,null,null,"جارى76"]
[null,null,{"$f":"IFERROR(INDIRECT($B77&\"!d20\"),\"\")","v":""},"","","","",{"$f":"IFERROR(INDIRECT($B77&\"!g20\"),\"\")","v":""},{"$f":"IFERROR(INDIRECT($B77&\"!i20\"),\"\")","v":""},"",{"$f":"IFERROR(INDIRECT($B77&\"!j20\"),\"\")","v":""},{"$f":"IFERROR(INDIRECT($B77&\"!k20\"),\"\")","v":""},{"$f":"IFERROR(INDIRECT($B77&\"!l20\"),\"\")","v":""},{"$f":"IFERROR(INDIRECT($B77&\"!m20\"),\"\")","v":""},{"$f":"IFERROR(INDIRECT($B77&\"!n20\"),\"\")","v":""},{"$f":"IFERROR(INDIRECT($B77&\"!o120\"),\"\")","v":""},null,null,null,null,null,null,null,null,null,null,null,null,null,"جارى77"]
[null,null,{"$f":"IFERROR(INDIRECT($B78&\"!d21\"),\"\")","v":""},"","","","",{"$f":"IFERROR(INDIRECT($B78&\"!g21\"),\"\")","v":""},{"$f":"IFERROR(INDIRECT($B78&\"!i21\"),\"\")","v":""},"",{"$f":"IFERROR(INDIRECT($B78&\"!j21\"),\"\")","v":""},{"$f":"IFERROR(INDIRECT($B78&\"!k21\"),\"\")","v":""},{"$f":"IFERROR(INDIRECT($B78&\"!l21\"),\"\")","v":""},{"$f":"IFERROR(INDIRECT($B78&\"!m21\"),\"\")","v":""},{"$f":"IFERROR(INDIRECT($B78&\"!n21\"),\"\")","v":""},{"$f":"IFERROR(INDIRECT($B78&\"!o121\"),\"\")","v":""},null,null,null,null,null,null,null,null,null,null,null,null,null,"جارى78"]
[null,null,{"$f":"IFERROR(INDIRECT($B79&\"!d22\"),\"\")","v":""},"","","","",{"$f":"IFERROR(INDIRECT($B79&\"!g22\"),\"\")","v":""},{"$f":"IFERROR(INDIRECT($B79&\"!i22\"),\"\")","v":""},"",{"$f":"IFERROR(INDIRECT($B79&\"!j22\"),\"\")","v":""},{"$f":"IFERROR(INDIRECT($B79&\"!k22\"),\"\")","v":""},{"$f":"IFERROR(INDIRECT($B79&\"!l22\"),\"\")","v":""},{"$f":"IFERROR(INDIRECT($B79&\"!m22\"),\"\")","v":""},{"$f":"IFERROR(INDIRECT($B79&\"!n22\"),\"\")","v":""},{"$f":"IFERROR(INDIRECT($B79&\"!o22\"),\"\")","v":""},null,null,null,null,null,null,null,null,null,null,null,null,null,"جارى79"]
[null,null,{"$f":"IFERROR(INDIRECT($B80&\"!d16\"),\"\")","v":""},"","","","",{"$f":"IFERROR(INDIRECT($B80&\"!g16\"),\"\")","v":""},{"$f":"IFERROR(INDIRECT($B80&\"!h16\"),\"\")","v":""},"","","","","",{"$f":"IFERROR(INDIRECT($B80&\"!n16\"),\"\")","v":""},"",null,null,null,null,null,null,null,null,null,null,null,null,null,"جارى80"]
[null,null,{"$f":"IFERROR(INDIRECT($B81&\"!d17\"),\"\")","v":""},"","","","",{"$f":"IFERROR(INDIRECT($B81&\"!g17\"),\"\")","v":""},{"$f":"IFERROR(INDIRECT($B81&\"!i17\"),\"\")","v":""},"",{"$f":"IFERROR(INDIRECT($B81&\"!j17\"),\"\")","v":""},{"$f":"IFERROR(INDIRECT($B81&\"!k17\"),\"\")","v":""},{"$f":"IFERROR(INDIRECT($B81&\"!l17\"),\"\")","v":""},{"$f":"IFERROR(INDIRECT($B81&\"!m17\"),\"\")","v":""},{"$f":"IFERROR(INDIRECT($B81&\"!n17\"),\"\")","v":""},{"$f":"IFERROR(INDIRECT($B81&\"!o17\"),\"\")","v":""},null,null,null,null,null,null,null,null,null,null,null,null,null,"جارى81"]
[null,null,{"$f":"IFERROR(INDIRECT($B82&\"!d18\"),\"\")","v":""},"","","","",{"$f":"IFERROR(INDIRECT($B82&\"!g18\"),\"\")","v":""},{"$f":"IFERROR(INDIRECT($B82&\"!i18\"),\"\")","v":""},"",{"$f":"IFERROR(INDIRECT($B82&\"!j18\"),\"\")","v":""},{"$f":"IFERROR(INDIRECT($B82&\"!k18\"),\"\")","v":""},{"$f":"IFERROR(INDIRECT($B82&\"!l18\"),\"\")","v":""},{"$f":"IFERROR(INDIRECT($B82&\"!m18\"),\"\")","v":""},{"$f":"IFERROR(INDIRECT($B82&\"!n18\"),\"\")","v":""},{"$f":"IFERROR(INDIRECT($B82&\"!o18\"),\"\")","v":""},null,null,null,null,null,null,null,null,null,null,null,null,null,"جارى82"]
[null,null,{"$f":"IFERROR(INDIRECT($B83&\"!d19\"),\"\")","v":""},"","","","",{"$f":"IFERROR(INDIRECT($B83&\"!g19\"),\"\")","v":""},{"$f":"IFERROR(INDIRECT($B83&\"!i19\"),\"\")","v":""},"",{"$f":"IFERROR(INDIRECT($B83&\"!j19\"),\"\")","v":""},{"$f":"IFERROR(INDIRECT($B83&\"!k19\"),\"\")","v":""},{"$f":"IFERROR(INDIRECT($B83&\"!l19\"),\"\")","v":""},{"$f":"IFERROR(INDIRECT($B83&\"!m19\"),\"\")","v":""},{"$f":"IFERROR(INDIRECT($B83&\"!n19\"),\"\")","v":""},{"$f":"IFERROR(INDIRECT($B83&\"!o19\"),\"\")","v":""},null,null,null,null,null,null,null,null,null,null,null,null,null,"جارى83"]
[null,null,{"$f":"IFERROR(INDIRECT($B84&\"!d20\"),\"\")","v":""},"","","","",{"$f":"IFERROR(INDIRECT($B84&\"!g20\"),\"\")","v":""},{"$f":"IFERROR(INDIRECT($B84&\"!i20\"),\"\")","v":""},"",{"$f":"IFERROR(INDIRECT($B84&\"!j20\"),\"\")","v":""},{"$f":"IFERROR(INDIRECT($B84&\"!k20\"),\"\")","v":""},{"$f":"IFERROR(INDIRECT($B84&\"!l20\"),\"\")","v":""},{"$f":"IFERROR(INDIRECT($B84&\"!m20\"),\"\")","v":""},{"$f":"IFERROR(INDIRECT($B84&\"!n20\"),\"\")","v":""},{"$f":"IFERROR(INDIRECT($B84&\"!o120\"),\"\")","v":""},null,null,null,null,null,null,null,null,null,null,null,null,null,"جارى84"]
[null,null,{"$f":"IFERROR(INDIRECT($B85&\"!d21\"),\"\")","v":""},"","","","",{"$f":"IFERROR(INDIRECT($B85&\"!g21\"),\"\")","v":""},{"$f":"IFERROR(INDIRECT($B85&\"!i21\"),\"\")","v":""},"",{"$f":"IFERROR(INDIRECT($B85&\"!j21\"),\"\")","v":""},{"$f":"IFERROR(INDIRECT($B85&\"!k21\"),\"\")","v":""},{"$f":"IFERROR(INDIRECT($B85&\"!l21\"),\"\")","v":""},{"$f":"IFERROR(INDIRECT($B85&\"!m21\"),\"\")","v":""},{"$f":"IFERROR(INDIRECT($B85&\"!n21\"),\"\")","v":""},{"$f":"IFERROR(INDIRECT($B85&\"!o121\"),\"\")","v":""},null,null,null,null,null,null,null,null,null,null,null,null,null,"جارى85"]
[null,null,{"$f":"IFERROR(INDIRECT($B86&\"!d22\"),\"\")","v":""},"","","","",{"$f":"IFERROR(INDIRECT($B86&\"!g22\"),\"\")","v":""},{"$f":"IFERROR(INDIRECT($B86&\"!i22\"),\"\")","v":""},"",{"$f":"IFERROR(INDIRECT($B86&\"!j22\"),\"\")","v":""},{"$f":"IFERROR(INDIRECT($B86&\"!k22\"),\"\")","v":""},{"$f":"IFERROR(INDIRECT($B86&\"!l22\"),\"\")","v":""},{"$f":"IFERROR(INDIRECT($B86&\"!m22\"),\"\")","v":""},{"$f":"IFERROR(INDIRECT($B86&\"!n22\"),\"\")","v":""},{"$f":"IFERROR(INDIRECT($B86&\"!o22\"),\"\")","v":""},null,null,null,null,null,null,null,null,null,null,null,null,null,"جارى86"]
[null,null,{"$f":"IFERROR(INDIRECT($B87&\"!d16\"),\"\")","v":""},"","","","",{"$f":"IFERROR(INDIRECT($B87&\"!g16\"),\"\")","v":""},{"$f":"IFERROR(INDIRECT($B87&\"!h16\"),\"\")","v":""},"","","","","",{"$f":"IFERROR(INDIRECT($B87&\"!n16\"),\"\")","v":""},"",null,null,null,null,null,null,null,null,null,null,null,null,null,"جارى87"]
[null,null,{"$f":"IFERROR(INDIRECT($B88&\"!d17\"),\"\")","v":""},"","","","",{"$f":"IFERROR(INDIRECT($B88&\"!g17\"),\"\")","v":""},{"$f":"IFERROR(INDIRECT($B88&\"!i17\"),\"\")","v":""},"",{"$f":"IFERROR(INDIRECT($B88&\"!j17\"),\"\")","v":""},{"$f":"IFERROR(INDIRECT($B88&\"!k17\"),\"\")","v":""},{"$f":"IFERROR(INDIRECT($B88&\"!l17\"),\"\")","v":""},{"$f":"IFERROR(INDIRECT($B88&\"!m17\"),\"\")","v":""},{"$f":"IFERROR(INDIRECT($B88&\"!n17\"),\"\")","v":""},{"$f":"IFERROR(INDIRECT($B88&\"!o17\"),\"\")","v":""},null,null,null,null,null,null,null,null,null,null,null,null,null,"جارى88"]
[null,null,{"$f":"IFERROR(INDIRECT($B89&\"!d18\"),\"\")","v":""},"","","","",{"$f":"IFERROR(INDIRECT($B89&\"!g18\"),\"\")","v":""},{"$f":"IFERROR(INDIRECT($B89&\"!i18\"),\"\")","v":""},"",{"$f":"IFERROR(INDIRECT($B89&\"!j18\"),\"\")","v":""},{"$f":"IFERROR(INDIRECT($B89&\"!k18\"),\"\")","v":""},{"$f":"IFERROR(INDIRECT($B89&\"!l18\"),\"\")","v":""},{"$f":"IFERROR(INDIRECT($B89&\"!m18\"),\"\")","v":""},{"$f":"IFERROR(INDIRECT($B89&\"!n18\"),\"\")","v":""},{"$f":"IFERROR(INDIRECT($B89&\"!o18\"),\"\")","v":""},null,null,null,null,null,null,null,null,null,null,null,null,null,"جارى89"]
[null,null,{"$f":"IFERROR(INDIRECT($B90&\"!d19\"),\"\")","v":""},"","","","",{"$f":"IFERROR(INDIRECT($B90&\"!g19\"),\"\")","v":""},{"$f":"IFERROR(INDIRECT($B90&\"!i19\"),\"\")","v":""},"",{"$f":"IFERROR(INDIRECT($B90&\"!j19\"),\"\")","v":""},{"$f":"IFERROR(INDIRECT($B90&\"!k19\"),\"\")","v":""},{"$f":"IFERROR(INDIRECT($B90&\"!l19\"),\"\")","v":""},{"$f":"IFERROR(INDIRECT($B90&\"!m19\"),\"\")","v":""},{"$f":"IFERROR(INDIRECT($B90&\"!n19\"),\"\")","v":""},{"$f":"IFERROR(INDIRECT($B90&\"!o19\"),\"\")","v":""},null,null,null,null,null,null,null,null,null,null,null,null,null,"جارى90"]
[null,null,{"$f":"IFERROR(INDIRECT($B91&\"!d20\"),\"\")","v":""},"","","","",{"$f":"IFERROR(INDIRECT($B91&\"!g20\"),\"\")","v":""},{"$f":"IFERROR(INDIRECT($B91&\"!i20\"),\"\")","v":""},"",{"$f":"IFERROR(INDIRECT($B91&\"!j20\"),\"\")","v":""},{"$f":"IFERROR(INDIRECT($B91&\"!k20\"),\"\")","v":""},{"$f":"IFERROR(INDIRECT($B91&\"!l20\"),\"\")","v":""},{"$f":"IFERROR(INDIRECT($B91&\"!m20\"),\"\")","v":""},{"$f":"IFERROR(INDIRECT($B91&\"!n20\"),\"\")","v":""},{"$f":"IFERROR(INDIRECT($B91&\"!o120\"),\"\")","v":""},null,null,null,null,null,null,null,null,null,null,null,null,null,"جارى91"]
[null,null,{"$f":"IFERROR(INDIRECT($B92&\"!d21\"),\"\")","v":""},"","","","",{"$f":"IFERROR(INDIRECT($B92&\"!g21\"),\"\")","v":""},{"$f":"IFERROR(INDIRECT($B92&\"!i21\"),\"\")","v":""},"",{"$f":"IFERROR(INDIRECT($B92&\"!j21\"),\"\")","v":""},{"$f":"IFERROR(INDIRECT($B92&\"!k21\"),\"\")","v":""},{"$f":"IFERROR(INDIRECT($B92&\"!l21\"),\"\")","v":""},{"$f":"IFERROR(INDIRECT($B92&\"!m21\"),\"\")","v":""},{"$f":"IFERROR(INDIRECT($B92&\"!n21\"),\"\")","v":""},{"$f":"IFERROR(INDIRECT($B92&\"!o121\"),\"\")","v":""},null,null,null,null,null,null,null,null,null,null,null,null,null,"جارى92"]
[null,null,{"$f":"IFERROR(INDIRECT($B93&\"!d22\"),\"\")","v":""},"","","","",{"$f":"IFERROR(INDIRECT($B93&\"!g22\"),\"\")","v":""},{"$f":"IFERROR(INDIRECT($B93&\"!i22\"),\"\")","v":""},"",{"$f":"IFERROR(INDIRECT($B93&\"!j22\"),\"\")","v":""},{"$f":"IFERROR(INDIRECT($B93&\"!k22\"),\"\")","v":""},{"$f":"IFERROR(INDIRECT($B93&\"!l22\"),\"\")","v":""},{"$f":"IFERROR(INDIRECT($B93&\"!m22\"),\"\")","v":""},{"$f":"IFERROR(INDIRECT($B93&\"!n22\"),\"\")","v":""},{"$f":"IFERROR(INDIRECT($B93&\"!o22\"),\"\")","v":""},null,null,null,null,null,null,null,null,null,null,null,null,null,"جارى93"]
[null,null,{"$f":"IFERROR(INDIRECT($B94&\"!d16\"),\"\")","v":""},"","","","",{"$f":"IFERROR(INDIRECT($B94&\"!g16\"),\"\")","v":""},{"$f":"IFERROR(INDIRECT($B94&\"!h16\"),\"\")","v":""},{"$f":"IFERROR(INDIRECT($B94&\"!i16\"),\"\")","v":""},{"$f":"IFERROR(INDIRECT($B94&\"!j16\"),\"\")","v":""},{"$f":"IFERROR(INDIRECT($B94&\"!k16\"),\"\")","v":""},{"$f":"IFERROR(INDIRECT($B94&\"!l16\"),\"\")","v":""},{"$f":"IFERROR(INDIRECT($B94&\"!m16\"),\"\")","v":""},{"$f":"IFERROR(INDIRECT($B94&\"!n16\"),\"\")","v":""},{"$f":"IFERROR(INDIRECT($B94&\"!o16\"),\"\")","v":""},null,null,null,null,null,null,null,null,null,null,null,null,null,"جارى94"]
[null,null,{"$f":"IFERROR(INDIRECT($B95&\"!d17\"),\"\")","v":""},"","","","",{"$f":"IFERROR(INDIRECT($B95&\"!g17\"),\"\")","v":""},{"$f":"IFERROR(INDIRECT($B95&\"!i17\"),\"\")","v":""},"",{"$f":"IFERROR(INDIRECT($B95&\"!j17\"),\"\")","v":""},{"$f":"IFERROR(INDIRECT($B95&\"!k17\"),\"\")","v":""},{"$f":"IFERROR(INDIRECT($B95&\"!l17\"),\"\")","v":""},{"$f":"IFERROR(INDIRECT($B95&\"!m17\"),\"\")","v":""},{"$f":"IFERROR(INDIRECT($B95&\"!n17\"),\"\")","v":""},{"$f":"IFERROR(INDIRECT($B95&\"!o17\"),\"\")","v":""},null,null,null,null,null,null,null,null,null,null,null,null,null,"جارى95"]
[null,null,{"$f":"IFERROR(INDIRECT($B96&\"!d18\"),\"\")","v":""},"","","","",{"$f":"IFERROR(INDIRECT($B96&\"!g18\"),\"\")","v":""},{"$f":"IFERROR(INDIRECT($B96&\"!i18\"),\"\")","v":""},"",{"$f":"IFERROR(INDIRECT($B96&\"!j18\"),\"\")","v":""},{"$f":"IFERROR(INDIRECT($B96&\"!k18\"),\"\")","v":""},{"$f":"IFERROR(INDIRECT($B96&\"!l18\"),\"\")","v":""},{"$f":"IFERROR(INDIRECT($B96&\"!m18\"),\"\")","v":""},{"$f":"IFERROR(INDIRECT($B96&\"!n18\"),\"\")","v":""},{"$f":"IFERROR(INDIRECT($B96&\"!o18\"),\"\")","v":""},null,null,null,null,null,null,null,null,null,null,null,null,null,"جارى96"]
[null,null,{"$f":"IFERROR(INDIRECT($B97&\"!d19\"),\"\")","v":""},"","","","",{"$f":"IFERROR(INDIRECT($B97&\"!g19\"),\"\")","v":""},{"$f":"IFERROR(INDIRECT($B97&\"!i19\"),\"\")","v":""},"",{"$f":"IFERROR(INDIRECT($B97&\"!j19\"),\"\")","v":""},{"$f":"IFERROR(INDIRECT($B97&\"!k19\"),\"\")","v":""},{"$f":"IFERROR(INDIRECT($B97&\"!l19\"),\"\")","v":""},{"$f":"IFERROR(INDIRECT($B97&\"!m19\"),\"\")","v":""},{"$f":"IFERROR(INDIRECT($B97&\"!n19\"),\"\")","v":""},{"$f":"IFERROR(INDIRECT($B97&\"!o19\"),\"\")","v":""},null,null,null,null,null,null,null,null,null,null,null,null,null,"جارى97"]
[null,null,{"$f":"IFERROR(INDIRECT($B98&\"!d20\"),\"\")","v":""},"","","","",{"$f":"IFERROR(INDIRECT($B98&\"!g20\"),\"\")","v":""},{"$f":"IFERROR(INDIRECT($B98&\"!i20\"),\"\")","v":""},"",{"$f":"IFERROR(INDIRECT($B98&\"!j20\"),\"\")","v":""},{"$f":"IFERROR(INDIRECT($B98&\"!k20\"),\"\")","v":""},{"$f":"IFERROR(INDIRECT($B98&\"!l20\"),\"\")","v":""},{"$f":"IFERROR(INDIRECT($B98&\"!m20\"),\"\")","v":""},{"$f":"IFERROR(INDIRECT($B98&\"!n20\"),\"\")","v":""},{"$f":"IFERROR(INDIRECT($B98&\"!o120\"),\"\")","v":""},null,null,null,null,null,null,null,null,null,null,null,null,null,"جارى98"]
[null,null,{"$f":"IFERROR(INDIRECT($B99&\"!d21\"),\"\")","v":""},"","","","",{"$f":"IFERROR(INDIRECT($B99&\"!g21\"),\"\")","v":""},{"$f":"IFERROR(INDIRECT($B99&\"!i21\"),\"\")","v":""},"",{"$f":"IFERROR(INDIRECT($B99&\"!j21\"),\"\")","v":""},{"$f":"IFERROR(INDIRECT($B99&\"!k21\"),\"\")","v":""},{"$f":"IFERROR(INDIRECT($B99&\"!l21\"),\"\")","v":""},{"$f":"IFERROR(INDIRECT($B99&\"!m21\"),\"\")","v":""},{"$f":"IFERROR(INDIRECT($B99&\"!n21\"),\"\")","v":""},{"$f":"IFERROR(INDIRECT($B99&\"!o121\"),\"\")","v":""},null,null,null,null,null,null,null,null,null,null,null,null,null,"جارى99"]
[null,null,{"$f":"IFERROR(INDIRECT($B100&\"!d22\"),\"\")","v":""},"","","","",{"$f":"IFERROR(INDIRECT($B100&\"!g22\"),\"\")","v":""},{"$f":"IFERROR(INDIRECT($B100&\"!i22\"),\"\")","v":""},"",{"$f":"IFERROR(INDIRECT($B100&\"!j22\"),\"\")","v":""},{"$f":"IFERROR(INDIRECT($B100&\"!k22\"),\"\")","v":""},{"$f":"IFERROR(INDIRECT($B100&\"!l22\"),\"\")","v":""},{"$f":"IFERROR(INDIRECT($B100&\"!m22\"),\"\")","v":""},{"$f":"IFERROR(INDIRECT($B100&\"!n22\"),\"\")","v":""},{"$f":"IFERROR(INDIRECT($B100&\"!o22\"),\"\")","v":""},null,null,null,null,null,null,null,null,null,null,null,null,null,"جارى100"]
[1,null,{"$f":"IFERROR(INDIRECT($B101&\"!d16\"),\"\")","v":""},"","","","",{"$f":"IFERROR(INDIRECT($B101&\"!g16\"),\"\")","v":""},{"$f":"IFERROR(INDIRECT($B101&\"!h16\"),\"\")","v":""},"","","","","",{"$f":"IFERROR(INDIRECT($B101&\"!n16\"),\"\")","v":""},"",null,null,null,null,null,null,null,null,null,null,null,null,null,"جارى101"]
[1,null,{"$f":"IFERROR(INDIRECT($B102&\"!d17\"),\"\")","v":""},"","","","",{"$f":"IFERROR(INDIRECT($B102&\"!g17\"),\"\")","v":""},{"$f":"IFERROR(INDIRECT($B102&\"!i17\"),\"\")","v":""},"",{"$f":"IFERROR(INDIRECT($B102&\"!j17\"),\"\")","v":""},{"$f":"IFERROR(INDIRECT($B102&\"!k17\"),\"\")","v":""},{"$f":"IFERROR(INDIRECT($B102&\"!l17\"),\"\")","v":""},{"$f":"IFERROR(INDIRECT($B102&\"!m17\"),\"\")","v":""},{"$f":"IFERROR(INDIRECT($B102&\"!n17\"),\"\")","v":""},{"$f":"IFERROR(INDIRECT($B102&\"!o17\"),\"\")","v":""},null,null,null,null,null,null,null,null,null,null,null,null,null,"جارى102"]
[1,null,{"$f":"IFERROR(INDIRECT($B103&\"!d18\"),\"\")","v":""},"","","","",{"$f":"IFERROR(INDIRECT($B103&\"!g18\"),\"\")","v":""},{"$f":"IFERROR(INDIRECT($B103&\"!i18\"),\"\")","v":""},"",{"$f":"IFERROR(INDIRECT($B103&\"!j18\"),\"\")","v":""},{"$f":"IFERROR(INDIRECT($B103&\"!k18\"),\"\")","v":""},{"$f":"IFERROR(INDIRECT($B103&\"!l18\"),\"\")","v":""},{"$f":"IFERROR(INDIRECT($B103&\"!m18\"),\"\")","v":""},{"$f":"IFERROR(INDIRECT($B103&\"!n18\"),\"\")","v":""},{"$f":"IFERROR(INDIRECT($B103&\"!o18\"),\"\")","v":""},null,null,null,null,null,null,null,null,null,null,null,null,null,"جارى103"]
[1,null,{"$f":"IFERROR(INDIRECT($B104&\"!d19\"),\"\")","v":""},"","","","",{"$f":"IFERROR(INDIRECT($B104&\"!g19\"),\"\")","v":""},{"$f":"IFERROR(INDIRECT($B104&\"!i19\"),\"\")","v":""},"",{"$f":"IFERROR(INDIRECT($B104&\"!j19\"),\"\")","v":""},{"$f":"IFERROR(INDIRECT($B104&\"!k19\"),\"\")","v":""},{"$f":"IFERROR(INDIRECT($B104&\"!l19\"),\"\")","v":""},{"$f":"IFERROR(INDIRECT($B104&\"!m19\"),\"\")","v":""},{"$f":"IFERROR(INDIRECT($B104&\"!n19\"),\"\")","v":""},{"$f":"IFERROR(INDIRECT($B104&\"!o19\"),\"\")","v":""},null,null,null,null,null,null,null,null,null,null,null,null,null,"جارى104"]
[1,null,{"$f":"IFERROR(INDIRECT($B105&\"!d20\"),\"\")","v":""},"","","","",{"$f":"IFERROR(INDIRECT($B105&\"!g20\"),\"\")","v":""},{"$f":"IFERROR(INDIRECT($B105&\"!i20\"),\"\")","v":""},"",{"$f":"IFERROR(INDIRECT($B105&\"!j20\"),\"\")","v":""},{"$f":"IFERROR(INDIRECT($B105&\"!k20\"),\"\")","v":""},{"$f":"IFERROR(INDIRECT($B105&\"!l20\"),\"\")","v":""},{"$f":"IFERROR(INDIRECT($B105&\"!m20\"),\"\")","v":""},{"$f":"IFERROR(INDIRECT($B105&\"!n20\"),\"\")","v":""},{"$f":"IFERROR(INDIRECT($B105&\"!o120\"),\"\")","v":""},null,null,null,null,null,null,null,null,null,null,null,null,null,"جارى105"]
[1,null,{"$f":"IFERROR(INDIRECT($B106&\"!d21\"),\"\")","v":""},"","","","",{"$f":"IFERROR(INDIRECT($B106&\"!g21\"),\"\")","v":""},{"$f":"IFERROR(INDIRECT($B106&\"!i21\"),\"\")","v":""},"",{"$f":"IFERROR(INDIRECT($B106&\"!j21\"),\"\")","v":""},{"$f":"IFERROR(INDIRECT($B106&\"!k21\"),\"\")","v":""},{"$f":"IFERROR(INDIRECT($B106&\"!l21\"),\"\")","v":""},{"$f":"IFERROR(INDIRECT($B106&\"!m21\"),\"\")","v":""},{"$f":"IFERROR(INDIRECT($B106&\"!n21\"),\"\")","v":""},{"$f":"IFERROR(INDIRECT($B106&\"!o121\"),\"\")","v":""},null,null,null,null,null,null,null,null,null,null,null,null,null,"جارى106"]
[1,null,{"$f":"IFERROR(INDIRECT($B107&\"!d22\"),\"\")","v":""},"","","","",{"$f":"IFERROR(INDIRECT($B107&\"!g22\"),\"\")","v":""},{"$f":"IFERROR(INDIRECT($B107&\"!i22\"),\"\")","v":""},"",{"$f":"IFERROR(INDIRECT($B107&\"!j22\"),\"\")","v":""},{"$f":"IFERROR(INDIRECT($B107&\"!k22\"),\"\")","v":""},{"$f":"IFERROR(INDIRECT($B107&\"!l22\"),\"\")","v":""},{"$f":"IFERROR(INDIRECT($B107&\"!m22\"),\"\")","v":""},{"$f":"IFERROR(INDIRECT($B107&\"!n22\"),\"\")","v":""},{"$f":"IFERROR(INDIRECT($B107&\"!o22\"),\"\")","v":""},null,null,null,null,null,null,null,null,null,null,null,null,null,"جارى107"]
[1,null,{"$f":"IFERROR(INDIRECT($B108&\"!d16\"),\"\")","v":""},"","","","",{"$f":"IFERROR(INDIRECT($B108&\"!g16\"),\"\")","v":""},{"$f":"IFERROR(INDIRECT($B108&\"!h16\"),\"\")","v":""},"","","","","",{"$f":"IFERROR(INDIRECT($B108&\"!n16\"),\"\")","v":""},"",null,null,null,null,null,null,null,null,null,null,null,null,null,"جارى108"]
[1,null,{"$f":"IFERROR(INDIRECT($B109&\"!d17\"),\"\")","v":""},"","","","",{"$f":"IFERROR(INDIRECT($B109&\"!g17\"),\"\")","v":""},{"$f":"IFERROR(INDIRECT($B109&\"!i17\"),\"\")","v":""},"",{"$f":"IFERROR(INDIRECT($B109&\"!j17\"),\"\")","v":""},{"$f":"IFERROR(INDIRECT($B109&\"!k17\"),\"\")","v":""},{"$f":"IFERROR(INDIRECT($B109&\"!l17\"),\"\")","v":""},{"$f":"IFERROR(INDIRECT($B109&\"!m17\"),\"\")","v":""},{"$f":"IFERROR(INDIRECT($B109&\"!n17\"),\"\")","v":""},{"$f":"IFERROR(INDIRECT($B109&\"!o17\"),\"\")","v":""},null,null,null,null,null,null,null,null,null,null,null,null,null,"جارى109"]
[1,null,{"$f":"IFERROR(INDIRECT($B110&\"!d18\"),\"\")","v":""},"","","","",{"$f":"IFERROR(INDIRECT($B110&\"!g18\"),\"\")","v":""},{"$f":"IFERROR(INDIRECT($B110&\"!i18\"),\"\")","v":""},"",{"$f":"IFERROR(INDIRECT($B110&\"!j18\"),\"\")","v":""},{"$f":"IFERROR(INDIRECT($B110&\"!k18\"),\"\")","v":""},{"$f":"IFERROR(INDIRECT($B110&\"!l18\"),\"\")","v":""},{"$f":"IFERROR(INDIRECT($B110&\"!m18\"),\"\")","v":""},{"$f":"IFERROR(INDIRECT($B110&\"!n18\"),\"\")","v":""},{"$f":"IFERROR(INDIRECT($B110&\"!o18\"),\"\")","v":""},null,null,null,null,null,null,null,null,null,null,null,null,null,"جارى110"]
[1,null,{"$f":"IFERROR(INDIRECT($B111&\"!d19\"),\"\")","v":""},"","","","",{"$f":"IFERROR(INDIRECT($B111&\"!g19\"),\"\")","v":""},{"$f":"IFERROR(INDIRECT($B111&\"!i19\"),\"\")","v":""},"",{"$f":"IFERROR(INDIRECT($B111&\"!j19\"),\"\")","v":""},{"$f":"IFERROR(INDIRECT($B111&\"!k19\"),\"\")","v":""},{"$f":"IFERROR(INDIRECT($B111&\"!l19\"),\"\")","v":""},{"$f":"IFERROR(INDIRECT($B111&\"!m19\"),\"\")","v":""},{"$f":"IFERROR(INDIRECT($B111&\"!n19\"),\"\")","v":""},{"$f":"IFERROR(INDIRECT($B111&\"!o19\"),\"\")","v":""},null,null,null,null,null,null,null,null,null,null,null,null,null,"جارى111"]
[1,null,{"$f":"IFERROR(INDIRECT($B112&\"!d20\"),\"\")","v":""},"","","","",{"$f":"IFERROR(INDIRECT($B112&\"!g20\"),\"\")","v":""},{"$f":"IFERROR(INDIRECT($B112&\"!i20\"),\"\")","v":""},"",{"$f":"IFERROR(INDIRECT($B112&\"!j20\"),\"\")","v":""},{"$f":"IFERROR(INDIRECT($B112&\"!k20\"),\"\")","v":""},{"$f":"IFERROR(INDIRECT($B112&\"!l20\"),\"\")","v":""},{"$f":"IFERROR(INDIRECT($B112&\"!m20\"),\"\")","v":""},{"$f":"IFERROR(INDIRECT($B112&\"!n20\"),\"\")","v":""},{"$f":"IFERROR(INDIRECT($B112&\"!o120\"),\"\")","v":""},null,null,null,null,null,null,null,null,null,null,null,null,null,"جارى112"]
[1,null,{"$f":"IFERROR(INDIRECT($B113&\"!d21\"),\"\")","v":""},"","","","",{"$f":"IFERROR(INDIRECT($B113&\"!g21\"),\"\")","v":""},{"$f":"IFERROR(INDIRECT($B113&\"!i21\"),\"\")","v":""},"",{"$f":"IFERROR(INDIRECT($B113&\"!j21\"),\"\")","v":""},{"$f":"IFERROR(INDIRECT($B113&\"!k21\"),\"\")","v":""},{"$f":"IFERROR(INDIRECT($B113&\"!l21\"),\"\")","v":""},{"$f":"IFERROR(INDIRECT($B113&\"!m21\"),\"\")","v":""},{"$f":"IFERROR(INDIRECT($B113&\"!n21\"),\"\")","v":""},{"$f":"IFERROR(INDIRECT($B113&\"!o121\"),\"\")","v":""},null,null,null,null,null,null,null,null,null,null,null,null,null,"جارى113"]
[1,null,{"$f":"IFERROR(INDIRECT($B114&\"!d22\"),\"\")","v":""},"","","","",{"$f":"IFERROR(INDIRECT($B114&\"!g22\"),\"\")","v":""},{"$f":"IFERROR(INDIRECT($B114&\"!i22\"),\"\")","v":""},"",{"$f":"IFERROR(INDIRECT($B114&\"!j22\"),\"\")","v":""},{"$f":"IFERROR(INDIRECT($B114&\"!k22\"),\"\")","v":""},{"$f":"IFERROR(INDIRECT($B114&\"!l22\"),\"\")","v":""},{"$f":"IFERROR(INDIRECT($B114&\"!m22\"),\"\")","v":""},{"$f":"IFERROR(INDIRECT($B114&\"!n22\"),\"\")","v":""},{"$f":"IFERROR(INDIRECT($B114&\"!o22\"),\"\")","v":""},null,null,null,null,null,null,null,null,null,null,null,null,null,"جارى114"]
[1,null,{"$f":"IFERROR(INDIRECT($B115&\"!d16\"),\"\")","v":""},"","","","",{"$f":"IFERROR(INDIRECT($B115&\"!g16\"),\"\")","v":""},{"$f":"IFERROR(INDIRECT($B115&\"!h16\"),\"\")","v":""},"","","","","",{"$f":"IFERROR(INDIRECT($B115&\"!n16\"),\"\")","v":""},"",null,null,null,null,null,null,null,null,null,null,null,null,null,"جارى115"]
[1,null,{"$f":"IFERROR(INDIRECT($B116&\"!d17\"),\"\")","v":""},"","","","",{"$f":"IFERROR(INDIRECT($B116&\"!g17\"),\"\")","v":""},{"$f":"IFERROR(INDIRECT($B116&\"!i17\"),\"\")","v":""},"",{"$f":"IFERROR(INDIRECT($B116&\"!j17\"),\"\")","v":""},{"$f":"IFERROR(INDIRECT($B116&\"!k17\"),\"\")","v":""},{"$f":"IFERROR(INDIRECT($B116&\"!l17\"),\"\")","v":""},{"$f":"IFERROR(INDIRECT($B116&\"!m17\"),\"\")","v":""},{"$f":"IFERROR(INDIRECT($B116&\"!n17\"),\"\")","v":""},{"$f":"IFERROR(INDIRECT($B116&\"!o17\"),\"\")","v":""},null,null,null,null,null,null,null,null,null,null,null,null,null,"جارى116"]
[1,null,{"$f":"IFERROR(INDIRECT($B117&\"!d18\"),\"\")","v":""},"","","","",{"$f":"IFERROR(INDIRECT($B117&\"!g18\"),\"\")","v":""},{"$f":"IFERROR(INDIRECT($B117&\"!i18\"),\"\")","v":""},"",{"$f":"IFERROR(INDIRECT($B117&\"!j18\"),\"\")","v":""},{"$f":"IFERROR(INDIRECT($B117&\"!k18\"),\"\")","v":""},{"$f":"IFERROR(INDIRECT($B117&\"!l18\"),\"\")","v":""},{"$f":"IFERROR(INDIRECT($B117&\"!m18\"),\"\")","v":""},{"$f":"IFERROR(INDIRECT($B117&\"!n18\"),\"\")","v":""},{"$f":"IFERROR(INDIRECT($B117&\"!o18\"),\"\")","v":""},null,null,null,null,null,null,null,null,null,null,null,null,null,"جارى117"]
[1,null,{"$f":"IFERROR(INDIRECT($B118&\"!d19\"),\"\")","v":""},"","","","",{"$f":"IFERROR(INDIRECT($B118&\"!g19\"),\"\")","v":""},{"$f":"IFERROR(INDIRECT($B118&\"!i19\"),\"\")","v":""},"",{"$f":"IFERROR(INDIRECT($B118&\"!j19\"),\"\")","v":""},{"$f":"IFERROR(INDIRECT($B118&\"!k19\"),\"\")","v":""},{"$f":"IFERROR(INDIRECT($B118&\"!l19\"),\"\")","v":""},{"$f":"IFERROR(INDIRECT($B118&\"!m19\"),\"\")","v":""},{"$f":"IFERROR(INDIRECT($B118&\"!n19\"),\"\")","v":""},{"$f":"IFERROR(INDIRECT($B118&\"!o19\"),\"\")","v":""},null,null,null,null,null,null,null,null,null,null,null,null,null,"جارى118"]
[1,null,{"$f":"IFERROR(INDIRECT($B119&\"!d20\"),\"\")","v":""},"","","","",{"$f":"IFERROR(INDIRECT($B119&\"!g20\"),\"\")","v":""},{"$f":"IFERROR(INDIRECT($B119&\"!i20\"),\"\")","v":""},"",{"$f":"IFERROR(INDIRECT($B119&\"!j20\"),\"\")","v":""},{"$f":"IFERROR(INDIRECT($B119&\"!k20\"),\"\")","v":""},{"$f":"IFERROR(INDIRECT($B119&\"!l20\"),\"\")","v":""},{"$f":"IFERROR(INDIRECT($B119&\"!m20\"),\"\")","v":""},{"$f":"IFERROR(INDIRECT($B119&\"!n20\"),\"\")","v":""},{"$f":"IFERROR(INDIRECT($B119&\"!o120\"),\"\")","v":""},null,null,null,null,null,null,null,null,null,null,null,null,null,"جارى119"]
[1,null,{"$f":"IFERROR(INDIRECT($B120&\"!d21\"),\"\")","v":""},"","","","",{"$f":"IFERROR(INDIRECT($B120&\"!g21\"),\"\")","v":""},{"$f":"IFERROR(INDIRECT($B120&\"!i21\"),\"\")","v":""},"",{"$f":"IFERROR(INDIRECT($B120&\"!j21\"),\"\")","v":""},{"$f":"IFERROR(INDIRECT($B120&\"!k21\"),\"\")","v":""},{"$f":"IFERROR(INDIRECT($B120&\"!l21\"),\"\")","v":""},{"$f":"IFERROR(INDIRECT($B120&\"!m21\"),\"\")","v":""},{"$f":"IFERROR(INDIRECT($B120&\"!n21\"),\"\")","v":""},{"$f":"IFERROR(INDIRECT($B120&\"!o121\"),\"\")","v":""},null,null,null,null,null,null,null,null,null,null,null,null,null,"جارى120"]
[1,null,{"$f":"IFERROR(INDIRECT($B121&\"!d22\"),\"\")","v":""},"","","","",{"$f":"IFERROR(INDIRECT($B121&\"!g22\"),\"\")","v":""},{"$f":"IFERROR(INDIRECT($B121&\"!i22\"),\"\")","v":""},"",{"$f":"IFERROR(INDIRECT($B121&\"!j22\"),\"\")","v":""},{"$f":"IFERROR(INDIRECT($B121&\"!k22\"),\"\")","v":""},{"$f":"IFERROR(INDIRECT($B121&\"!l22\"),\"\")","v":""},{"$f":"IFERROR(INDIRECT($B121&\"!m22\"),\"\")","v":""},{"$f":"IFERROR(INDIRECT($B121&\"!n22\"),\"\")","v":""},{"$f":"IFERROR(INDIRECT($B121&\"!o22\"),\"\")","v":""},null,null,null,null,null,null,null,null,null,null,null,null,null,"جارى121"]
[1,null,{"$f":"IFERROR(INDIRECT($B122&\"!d16\"),\"\")","v":""},"","","","",{"$f":"IFERROR(INDIRECT($B122&\"!g16\"),\"\")","v":""},{"$f":"IFERROR(INDIRECT($B122&\"!h16\"),\"\")","v":""},"","","","","",{"$f":"IFERROR(INDIRECT($B122&\"!n16\"),\"\")","v":""},"",null,null,null,null,null,null,null,null,null,null,null,null,null,"جارى122"]
[1,null,{"$f":"IFERROR(INDIRECT($B123&\"!d17\"),\"\")","v":""},"","","","",{"$f":"IFERROR(INDIRECT($B123&\"!g17\"),\"\")","v":""},{"$f":"IFERROR(INDIRECT($B123&\"!i17\"),\"\")","v":""},"",{"$f":"IFERROR(INDIRECT($B123&\"!j17\"),\"\")","v":""},{"$f":"IFERROR(INDIRECT($B123&\"!k17\"),\"\")","v":""},{"$f":"IFERROR(INDIRECT($B123&\"!l17\"),\"\")","v":""},{"$f":"IFERROR(INDIRECT($B123&\"!m17\"),\"\")","v":""},{"$f":"IFERROR(INDIRECT($B123&\"!n17\"),\"\")","v":""},{"$f":"IFERROR(INDIRECT($B123&\"!o17\"),\"\")","v":""},null,null,null,null,null,null,null,null,null,null,null,null,null,"جارى123"]
[1,null,{"$f":"IFERROR(INDIRECT($B124&\"!d18\"),\"\")","v":""},"","","","",{"$f":"IFERROR(INDIRECT($B124&\"!g18\"),\"\")","v":""},{"$f":"IFERROR(INDIRECT($B124&\"!i18\"),\"\")","v":""},"",{"$f":"IFERROR(INDIRECT($B124&\"!j18\"),\"\")","v":""},{"$f":"IFERROR(INDIRECT($B124&\"!k18\"),\"\")","v":""},{"$f":"IFERROR(INDIRECT($B124&\"!l18\"),\"\")","v":""},{"$f":"IFERROR(INDIRECT($B124&\"!m18\"),\"\")","v":""},{"$f":"IFERROR(INDIRECT($B124&\"!n18\"),\"\")","v":""},{"$f":"IFERROR(INDIRECT($B124&\"!o18\"),\"\")","v":""},null,null,null,null,null,null,null,null,null,null,null,null,null,"جارى124"]
[1,null,{"$f":"IFERROR(INDIRECT($B125&\"!d19\"),\"\")","v":""},"","","","",{"$f":"IFERROR(INDIRECT($B125&\"!g19\"),\"\")","v":""},{"$f":"IFERROR(INDIRECT($B125&\"!i19\"),\"\")","v":""},"",{"$f":"IFERROR(INDIRECT($B125&\"!j19\"),\"\")","v":""},{"$f":"IFERROR(INDIRECT($B125&\"!k19\"),\"\")","v":""},{"$f":"IFERROR(INDIRECT($B125&\"!l19\"),\"\")","v":""},{"$f":"IFERROR(INDIRECT($B125&\"!m19\"),\"\")","v":""},{"$f":"IFERROR(INDIRECT($B125&\"!n19\"),\"\")","v":""},{"$f":"IFERROR(INDIRECT($B125&\"!o19\"),\"\")","v":""},null,null,null,null,null,null,null,null,null,null,null,null,null,"جارى125"]
[1,null,{"$f":"IFERROR(INDIRECT($B126&\"!d20\"),\"\")","v":""},"","","","",{"$f":"IFERROR(INDIRECT($B126&\"!g20\"),\"\")","v":""},{"$f":"IFERROR(INDIRECT($B126&\"!i20\"),\"\")","v":""},"",{"$f":"IFERROR(INDIRECT($B126&\"!j20\"),\"\")","v":""},{"$f":"IFERROR(INDIRECT($B126&\"!k20\"),\"\")","v":""},{"$f":"IFERROR(INDIRECT($B126&\"!l20\"),\"\")","v":""},{"$f":"IFERROR(INDIRECT($B126&\"!m20\"),\"\")","v":""},{"$f":"IFERROR(INDIRECT($B126&\"!n20\"),\"\")","v":""},{"$f":"IFERROR(INDIRECT($B126&\"!o120\"),\"\")","v":""},null,null,null,null,null,null,null,null,null,null,null,null,null,"جارى126"]
[1,null,{"$f":"IFERROR(INDIRECT($B127&\"!d21\"),\"\")","v":""},"","","","",{"$f":"IFERROR(INDIRECT($B127&\"!g21\"),\"\")","v":""},{"$f":"IFERROR(INDIRECT($B127&\"!i21\"),\"\")","v":""},"",{"$f":"IFERROR(INDIRECT($B127&\"!j21\"),\"\")","v":""},{"$f":"IFERROR(INDIRECT($B127&\"!k21\"),\"\")","v":""},{"$f":"IFERROR(INDIRECT($B127&\"!l21\"),\"\")","v":""},{"$f":"IFERROR(INDIRECT($B127&\"!m21\"),\"\")","v":""},{"$f":"IFERROR(INDIRECT($B127&\"!n21\"),\"\")","v":""},{"$f":"IFERROR(INDIRECT($B127&\"!o121\"),\"\")","v":""},null,null,null,null,null,null,null,null,null,null,null,null,null,"جارى127"]
[1,null,{"$f":"IFERROR(INDIRECT($B128&\"!d22\"),\"\")","v":""},"","","","",{"$f":"IFERROR(INDIRECT($B128&\"!g22\"),\"\")","v":""},{"$f":"IFERROR(INDIRECT($B128&\"!i22\"),\"\")","v":""},"",{"$f":"IFERROR(INDIRECT($B128&\"!j22\"),\"\")","v":""},{"$f":"IFERROR(INDIRECT($B128&\"!k22\"),\"\")","v":""},{"$f":"IFERROR(INDIRECT($B128&\"!l22\"),\"\")","v":""},{"$f":"IFERROR(INDIRECT($B128&\"!m22\"),\"\")","v":""},{"$f":"IFERROR(INDIRECT($B128&\"!n22\"),\"\")","v":""},{"$f":"IFERROR(INDIRECT($B128&\"!o22\"),\"\")","v":""},null,null,null,null,null,null,null,null,null,null,null,null,null,"جارى128"]
[1,null,{"$f":"IFERROR(INDIRECT($B129&\"!d16\"),\"\")","v":""},"","","","",{"$f":"IFERROR(INDIRECT($B129&\"!g16\"),\"\")","v":""},{"$f":"IFERROR(INDIRECT($B129&\"!h16\"),\"\")","v":""},"","","","","",{"$f":"IFERROR(INDIRECT($B129&\"!n16\"),\"\")","v":""},"",null,null,null,null,null,null,null,null,null,null,null,null,null,"جارى129"]
[1,null,{"$f":"IFERROR(INDIRECT($B130&\"!d17\"),\"\")","v":""},"","","","",{"$f":"IFERROR(INDIRECT($B130&\"!g17\"),\"\")","v":""},{"$f":"IFERROR(INDIRECT($B130&\"!i17\"),\"\")","v":""},"",{"$f":"IFERROR(INDIRECT($B130&\"!j17\"),\"\")","v":""},{"$f":"IFERROR(INDIRECT($B130&\"!k17\"),\"\")","v":""},{"$f":"IFERROR(INDIRECT($B130&\"!l17\"),\"\")","v":""},{"$f":"IFERROR(INDIRECT($B130&\"!m17\"),\"\")","v":""},{"$f":"IFERROR(INDIRECT($B130&\"!n17\"),\"\")","v":""},{"$f":"IFERROR(INDIRECT($B130&\"!o17\"),\"\")","v":""},null,null,null,null,null,null,null,null,null,null,null,null,null,"جارى130"]
[1,null,{"$f":"IFERROR(INDIRECT($B131&\"!d18\"),\"\")","v":""},"","","","",{"$f":"IFERROR(INDIRECT($B131&\"!g18\"),\"\")","v":""},{"$f":"IFERROR(INDIRECT($B131&\"!i18\"),\"\")","v":""},"",{"$f":"IFERROR(INDIRECT($B131&\"!j18\"),\"\")","v":""},{"$f":"IFERROR(INDIRECT($B131&\"!k18\"),\"\")","v":""},{"$f":"IFERROR(INDIRECT($B131&\"!l18\"),\"\")","v":""},{"$f":"IFERROR(INDIRECT($B131&\"!m18\"),\"\")","v":""},{"$f":"IFERROR(INDIRECT($B131&\"!n18\"),\"\")","v":""},{"$f":"IFERROR(INDIRECT($B131&\"!o18\"),\"\")","v":""},null,null,null,null,null,null,null,null,null,null,null,null,null,"جارى131"]
[1,null,{"$f":"IFERROR(INDIRECT($B132&\"!d19\"),\"\")","v":""},{"$f":"IFERROR(INDIRECT($B132&\"!e10\"),\"\")","v":""},{"$f":"IFERROR(INDIRECT($B132&\"!e7\"),\"\")","v":""},{"$f":"IFERROR(INDIRECT($B132&\"!e12\"),\"\")","v":""},{"$f":"IFERROR(INDIRECT($B132&\"!e13\"),\"\")","v":""},{"$f":"IFERROR(INDIRECT($B132&\"!g19\"),\"\")","v":""},{"$f":"IFERROR(INDIRECT($B132&\"!i19\"),\"\")","v":""},"",{"$f":"IFERROR(INDIRECT($B132&\"!j19\"),\"\")","v":""},{"$f":"IFERROR(INDIRECT($B132&\"!k19\"),\"\")","v":""},{"$f":"IFERROR(INDIRECT($B132&\"!l19\"),\"\")","v":""},{"$f":"IFERROR(INDIRECT($B132&\"!m19\"),\"\")","v":""},{"$f":"IFERROR(INDIRECT($B132&\"!n19\"),\"\")","v":""},{"$f":"IFERROR(INDIRECT($B132&\"!o19\"),\"\")","v":""},null,null,null,null,null,null,null,null,null,null,null,null,null,"جارى132"]
[1,null,{"$f":"IFERROR(INDIRECT($B133&\"!d20\"),\"\")","v":""},"","","","",{"$f":"IFERROR(INDIRECT($B133&\"!g20\"),\"\")","v":""},{"$f":"IFERROR(INDIRECT($B133&\"!i20\"),\"\")","v":""},"",{"$f":"IFERROR(INDIRECT($B133&\"!j20\"),\"\")","v":""},{"$f":"IFERROR(INDIRECT($B133&\"!k20\"),\"\")","v":""},{"$f":"IFERROR(INDIRECT($B133&\"!l20\"),\"\")","v":""},{"$f":"IFERROR(INDIRECT($B133&\"!m20\"),\"\")","v":""},{"$f":"IFERROR(INDIRECT($B133&\"!n20\"),\"\")","v":""},{"$f":"IFERROR(INDIRECT($B133&\"!o120\"),\"\")","v":""},null,null,null,null,null,null,null,null,null,null,null,null,null,"جارى133"]
[1,null,{"$f":"IFERROR(INDIRECT($B134&\"!d21\"),\"\")","v":""},"","","","",{"$f":"IFERROR(INDIRECT($B134&\"!g21\"),\"\")","v":""},{"$f":"IFERROR(INDIRECT($B134&\"!i21\"),\"\")","v":""},"",{"$f":"IFERROR(INDIRECT($B134&\"!j21\"),\"\")","v":""},{"$f":"IFERROR(INDIRECT($B134&\"!k21\"),\"\")","v":""},{"$f":"IFERROR(INDIRECT($B134&\"!l21\"),\"\")","v":""},{"$f":"IFERROR(INDIRECT($B134&\"!m21\"),\"\")","v":""},{"$f":"IFERROR(INDIRECT($B134&\"!n21\"),\"\")","v":""},{"$f":"IFERROR(INDIRECT($B134&\"!o121\"),\"\")","v":""},null,null,null,null,null,null,null,null,null,null,null,null,null,"جارى134"]
[1,null,{"$f":"IFERROR(INDIRECT($B135&\"!d22\"),\"\")","v":""},"","","","",{"$f":"IFERROR(INDIRECT($B135&\"!g22\"),\"\")","v":""},{"$f":"IFERROR(INDIRECT($B135&\"!i22\"),\"\")","v":""},"",{"$f":"IFERROR(INDIRECT($B135&\"!j22\"),\"\")","v":""},{"$f":"IFERROR(INDIRECT($B135&\"!k22\"),\"\")","v":""},{"$f":"IFERROR(INDIRECT($B135&\"!l22\"),\"\")","v":""},{"$f":"IFERROR(INDIRECT($B135&\"!m22\"),\"\")","v":""},{"$f":"IFERROR(INDIRECT($B135&\"!n22\"),\"\")","v":""},{"$f":"IFERROR(INDIRECT($B135&\"!o22\"),\"\")","v":""},null,null,null,null,null,null,null,null,null,null,null,null,null,"جارى135"]
[1,null,{"$f":"IFERROR(INDIRECT($B136&\"!d16\"),\"\")","v":""},"","","","",{"$f":"IFERROR(INDIRECT($B136&\"!g16\"),\"\")","v":""},{"$f":"IFERROR(INDIRECT($B136&\"!h16\"),\"\")","v":""},"","","","","",{"$f":"IFERROR(INDIRECT($B136&\"!n16\"),\"\")","v":""},"",null,null,null,null,null,null,null,null,null,null,null,null,null,"جارى136"]
[1,null,{"$f":"IFERROR(INDIRECT($B137&\"!d17\"),\"\")","v":""},"","","","",{"$f":"IFERROR(INDIRECT($B137&\"!g17\"),\"\")","v":""},{"$f":"IFERROR(INDIRECT($B137&\"!i17\"),\"\")","v":""},"",{"$f":"IFERROR(INDIRECT($B137&\"!j17\"),\"\")","v":""},{"$f":"IFERROR(INDIRECT($B137&\"!k17\"),\"\")","v":""},{"$f":"IFERROR(INDIRECT($B137&\"!l17\"),\"\")","v":""},{"$f":"IFERROR(INDIRECT($B137&\"!m17\"),\"\")","v":""},{"$f":"IFERROR(INDIRECT($B137&\"!n17\"),\"\")","v":""},{"$f":"IFERROR(INDIRECT($B137&\"!o17\"),\"\")","v":""},null,null,null,null,null,null,null,null,null,null,null,null,null,"جارى137"]
[1,null,{"$f":"IFERROR(INDIRECT($B138&\"!d18\"),\"\")","v":""},"","","","",{"$f":"IFERROR(INDIRECT($B138&\"!g18\"),\"\")","v":""},{"$f":"IFERROR(INDIRECT($B138&\"!i18\"),\"\")","v":""},"",{"$f":"IFERROR(INDIRECT($B138&\"!j18\"),\"\")","v":""},{"$f":"IFERROR(INDIRECT($B138&\"!k18\"),\"\")","v":""},{"$f":"IFERROR(INDIRECT($B138&\"!l18\"),\"\")","v":""},{"$f":"IFERROR(INDIRECT($B138&\"!m18\"),\"\")","v":""},{"$f":"IFERROR(INDIRECT($B138&\"!n18\"),\"\")","v":""},{"$f":"IFERROR(INDIRECT($B138&\"!o18\"),\"\")","v":""},null,null,null,null,null,null,null,null,null,null,null,null,null,"جارى138"]
[1,null,{"$f":"IFERROR(INDIRECT($B139&\"!d19\"),\"\")","v":""},"","","","",{"$f":"IFERROR(INDIRECT($B139&\"!g19\"),\"\")","v":""},{"$f":"IFERROR(INDIRECT($B139&\"!i19\"),\"\")","v":""},"",{"$f":"IFERROR(INDIRECT($B139&\"!j19\"),\"\")","v":""},{"$f":"IFERROR(INDIRECT($B139&\"!k19\"),\"\")","v":""},{"$f":"IFERROR(INDIRECT($B139&\"!l19\"),\"\")","v":""},{"$f":"IFERROR(INDIRECT($B139&\"!m19\"),\"\")","v":""},{"$f":"IFERROR(INDIRECT($B139&\"!n19\"),\"\")","v":""},{"$f":"IFERROR(INDIRECT($B139&\"!o19\"),\"\")","v":""},null,null,null,null,null,null,null,null,null,null,null,null,null,"جارى139"]
[1,null,{"$f":"IFERROR(INDIRECT($B140&\"!d20\"),\"\")","v":""},"","","","",{"$f":"IFERROR(INDIRECT($B140&\"!g20\"),\"\")","v":""},{"$f":"IFERROR(INDIRECT($B140&\"!i20\"),\"\")","v":""},"",{"$f":"IFERROR(INDIRECT($B140&\"!j20\"),\"\")","v":""},{"$f":"IFERROR(INDIRECT($B140&\"!k20\"),\"\")","v":""},{"$f":"IFERROR(INDIRECT($B140&\"!l20\"),\"\")","v":""},{"$f":"IFERROR(INDIRECT($B140&\"!m20\"),\"\")","v":""},{"$f":"IFERROR(INDIRECT($B140&\"!n20\"),\"\")","v":""},{"$f":"IFERROR(INDIRECT($B140&\"!o120\"),\"\")","v":""},null,null,null,null,null,null,null,null,null,null,null,null,null,"جارى140"]
[1,null,{"$f":"IFERROR(INDIRECT($B141&\"!d21\"),\"\")","v":""},"","","","",{"$f":"IFERROR(INDIRECT($B141&\"!g21\"),\"\")","v":""},{"$f":"IFERROR(INDIRECT($B141&\"!i21\"),\"\")","v":""},"",{"$f":"IFERROR(INDIRECT($B141&\"!j21\"),\"\")","v":""},{"$f":"IFERROR(INDIRECT($B141&\"!k21\"),\"\")","v":""},{"$f":"IFERROR(INDIRECT($B141&\"!l21\"),\"\")","v":""},{"$f":"IFERROR(INDIRECT($B141&\"!m21\"),\"\")","v":""},{"$f":"IFERROR(INDIRECT($B141&\"!n21\"),\"\")","v":""},{"$f":"IFERROR(INDIRECT($B141&\"!o121\"),\"\")","v":""},null,null,null,null,null,null,null,null,null,null,null,null,null,"جارى141"]
[1,null,{"$f":"IFERROR(INDIRECT($B142&\"!d22\"),\"\")","v":""},"","","","",{"$f":"IFERROR(INDIRECT($B142&\"!g22\"),\"\")","v":""},{"$f":"IFERROR(INDIRECT($B142&\"!i22\"),\"\")","v":""},"",{"$f":"IFERROR(INDIRECT($B142&\"!j22\"),\"\")","v":""},{"$f":"IFERROR(INDIRECT($B142&\"!k22\"),\"\")","v":""},{"$f":"IFERROR(INDIRECT($B142&\"!l22\"),\"\")","v":""},{"$f":"IFERROR(INDIRECT($B142&\"!m22\"),\"\")","v":""},{"$f":"IFERROR(INDIRECT($B142&\"!n22\"),\"\")","v":""},{"$f":"IFERROR(INDIRECT($B142&\"!o22\"),\"\")","v":""},null,null,null,null,null,null,null,null,null,null,null,null,null,"جارى142"]
[1,null,{"$f":"IFERROR(INDIRECT($B143&\"!d16\"),\"\")","v":""},"","","","",{"$f":"IFERROR(INDIRECT($B143&\"!g16\"),\"\")","v":""},{"$f":"IFERROR(INDIRECT($B143&\"!h16\"),\"\")","v":""},"","","","","",{"$f":"IFERROR(INDIRECT($B143&\"!n16\"),\"\")","v":""},"",null,null,null,null,null,null,null,null,null,null,null,null,null,"جارى143"]
[1,null,{"$f":"IFERROR(INDIRECT($B144&\"!d17\"),\"\")","v":""},"","","","",{"$f":"IFERROR(INDIRECT($B144&\"!g17\"),\"\")","v":""},{"$f":"IFERROR(INDIRECT($B144&\"!i17\"),\"\")","v":""},"",{"$f":"IFERROR(INDIRECT($B144&\"!j17\"),\"\")","v":""},{"$f":"IFERROR(INDIRECT($B144&\"!k17\"),\"\")","v":""},{"$f":"IFERROR(INDIRECT($B144&\"!l17\"),\"\")","v":""},{"$f":"IFERROR(INDIRECT($B144&\"!m17\"),\"\")","v":""},{"$f":"IFERROR(INDIRECT($B144&\"!n17\"),\"\")","v":""},{"$f":"IFERROR(INDIRECT($B144&\"!o17\"),\"\")","v":""},null,null,null,null,null,null,null,null,null,null,null,null,null,"جارى144"]
[1,null,{"$f":"IFERROR(INDIRECT($B145&\"!d18\"),\"\")","v":""},"","","","",{"$f":"IFERROR(INDIRECT($B145&\"!g18\"),\"\")","v":""},{"$f":"IFERROR(INDIRECT($B145&\"!i18\"),\"\")","v":""},"",{"$f":"IFERROR(INDIRECT($B145&\"!j18\"),\"\")","v":""},{"$f":"IFERROR(INDIRECT($B145&\"!k18\"),\"\")","v":""},{"$f":"IFERROR(INDIRECT($B145&\"!l18\"),\"\")","v":""},{"$f":"IFERROR(INDIRECT($B145&\"!m18\"),\"\")","v":""},{"$f":"IFERROR(INDIRECT($B145&\"!n18\"),\"\")","v":""},{"$f":"IFERROR(INDIRECT($B145&\"!o18\"),\"\")","v":""},null,null,null,null,null,null,null,null,null,null,null,null,null,"جارى145"]
[1,null,{"$f":"IFERROR(INDIRECT($B146&\"!d19\"),\"\")","v":""},"","","","",{"$f":"IFERROR(INDIRECT($B146&\"!g19\"),\"\")","v":""},{"$f":"IFERROR(INDIRECT($B146&\"!i19\"),\"\")","v":""},"",{"$f":"IFERROR(INDIRECT($B146&\"!j19\"),\"\")","v":""},{"$f":"IFERROR(INDIRECT($B146&\"!k19\"),\"\")","v":""},{"$f":"IFERROR(INDIRECT($B146&\"!l19\"),\"\")","v":""},{"$f":"IFERROR(INDIRECT($B146&\"!m19\"),\"\")","v":""},{"$f":"IFERROR(INDIRECT($B146&\"!n19\"),\"\")","v":""},{"$f":"IFERROR(INDIRECT($B146&\"!o19\"),\"\")","v":""},null,null,null,null,null,null,null,null,null,null,null,null,null,"جارى146"]
[1,null,{"$f":"IFERROR(INDIRECT($B147&\"!d20\"),\"\")","v":""},"","","","",{"$f":"IFERROR(INDIRECT($B147&\"!g20\"),\"\")","v":""},{"$f":"IFERROR(INDIRECT($B147&\"!i20\"),\"\")","v":""},"",{"$f":"IFERROR(INDIRECT($B147&\"!j20\"),\"\")","v":""},{"$f":"IFERROR(INDIRECT($B147&\"!k20\"),\"\")","v":""},{"$f":"IFERROR(INDIRECT($B147&\"!l20\"),\"\")","v":""},{"$f":"IFERROR(INDIRECT($B147&\"!m20\"),\"\")","v":""},{"$f":"IFERROR(INDIRECT($B147&\"!n20\"),\"\")","v":""},{"$f":"IFERROR(INDIRECT($B147&\"!o120\"),\"\")","v":""},null,null,null,null,null,null,null,null,null,null,null,null,null,"جارى147"]
[1,null,{"$f":"IFERROR(INDIRECT($B148&\"!d21\"),\"\")","v":""},"","","","",{"$f":"IFERROR(INDIRECT($B148&\"!g21\"),\"\")","v":""},{"$f":"IFERROR(INDIRECT($B148&\"!i21\"),\"\")","v":""},"",{"$f":"IFERROR(INDIRECT($B148&\"!j21\"),\"\")","v":""},{"$f":"IFERROR(INDIRECT($B148&\"!k21\"),\"\")","v":""},{"$f":"IFERROR(INDIRECT($B148&\"!l21\"),\"\")","v":""},{"$f":"IFERROR(INDIRECT($B148&\"!m21\"),\"\")","v":""},{"$f":"IFERROR(INDIRECT($B148&\"!n21\"),\"\")","v":""},{"$f":"IFERROR(INDIRECT($B148&\"!o121\"),\"\")","v":""},null,null,null,null,null,null,null,null,null,null,null,null,null,"جارى148"]
[1,null,{"$f":"IFERROR(INDIRECT($B149&\"!d22\"),\"\")","v":""},"","","","",{"$f":"IFERROR(INDIRECT($B149&\"!g22\"),\"\")","v":""},{"$f":"IFERROR(INDIRECT($B149&\"!i22\"),\"\")","v":""},"",{"$f":"IFERROR(INDIRECT($B149&\"!j22\"),\"\")","v":""},{"$f":"IFERROR(INDIRECT($B149&\"!k22\"),\"\")","v":""},{"$f":"IFERROR(INDIRECT($B149&\"!l22\"),\"\")","v":""},{"$f":"IFERROR(INDIRECT($B149&\"!m22\"),\"\")","v":""},{"$f":"IFERROR(INDIRECT($B149&\"!n22\"),\"\")","v":""},{"$f":"IFERROR(INDIRECT($B149&\"!o22\"),\"\")","v":""},null,null,null,null,null,null,null,null,null,null,null,null,null,"جارى149"]
[1,null,{"$f":"IFERROR(INDIRECT($B150&\"!d16\"),\"\")","v":""},"","","","",{"$f":"IFERROR(INDIRECT($B150&\"!g16\"),\"\")","v":""},{"$f":"IFERROR(INDIRECT($B150&\"!h16\"),\"\")","v":""},"","","","","",{"$f":"IFERROR(INDIRECT($B150&\"!n16\"),\"\")","v":""},"",null,null,null,null,null,null,null,null,null,null,null,null,null,"جارى150"]
[1,null,{"$f":"IFERROR(INDIRECT($B151&\"!d17\"),\"\")","v":""},"","","","",{"$f":"IFERROR(INDIRECT($B151&\"!g17\"),\"\")","v":""},{"$f":"IFERROR(INDIRECT($B151&\"!i17\"),\"\")","v":""},"",{"$f":"IFERROR(INDIRECT($B151&\"!j17\"),\"\")","v":""},{"$f":"IFERROR(INDIRECT($B151&\"!k17\"),\"\")","v":""},{"$f":"IFERROR(INDIRECT($B151&\"!l17\"),\"\")","v":""},{"$f":"IFERROR(INDIRECT($B151&\"!m17\"),\"\")","v":""},{"$f":"IFERROR(INDIRECT($B151&\"!n17\"),\"\")","v":""},{"$f":"IFERROR(INDIRECT($B151&\"!o17\"),\"\")","v":""},null,null,null,null,null,null,null,null,null,null,null,null,null,"جارى151"]
[1,null,{"$f":"IFERROR(INDIRECT($B152&\"!d18\"),\"\")","v":""},"","","","",{"$f":"IFERROR(INDIRECT($B152&\"!g18\"),\"\")","v":""},{"$f":"IFERROR(INDIRECT($B152&\"!i18\"),\"\")","v":""},"",{"$f":"IFERROR(INDIRECT($B152&\"!j18\"),\"\")","v":""},{"$f":"IFERROR(INDIRECT($B152&\"!k18\"),\"\")","v":""},{"$f":"IFERROR(INDIRECT($B152&\"!l18\"),\"\")","v":""},{"$f":"IFERROR(INDIRECT($B152&\"!m18\"),\"\")","v":""},{"$f":"IFERROR(INDIRECT($B152&\"!n18\"),\"\")","v":""},{"$f":"IFERROR(INDIRECT($B152&\"!o18\"),\"\")","v":""},null,null,null,null,null,null,null,null,null,null,null,null,null,"جارى152"]
[1,null,{"$f":"IFERROR(INDIRECT($B153&\"!d19\"),\"\")","v":""},"","","","",{"$f":"IFERROR(INDIRECT($B153&\"!g19\"),\"\")","v":""},{"$f":"IFERROR(INDIRECT($B153&\"!i19\"),\"\")","v":""},"",{"$f":"IFERROR(INDIRECT($B153&\"!j19\"),\"\")","v":""},{"$f":"IFERROR(INDIRECT($B153&\"!k19\"),\"\")","v":""},{"$f":"IFERROR(INDIRECT($B153&\"!l19\"),\"\")","v":""},{"$f":"IFERROR(INDIRECT($B153&\"!m19\"),\"\")","v":""},{"$f":"IFERROR(INDIRECT($B153&\"!n19\"),\"\")","v":""},{"$f":"IFERROR(INDIRECT($B153&\"!o19\"),\"\")","v":""},null,null,null,null,null,null,null,null,null,null,null,null,null,"جارى153"]
[1,null,{"$f":"IFERROR(INDIRECT($B154&\"!d20\"),\"\")","v":""},"","","","",{"$f":"IFERROR(INDIRECT($B154&\"!g20\"),\"\")","v":""},{"$f":"IFERROR(INDIRECT($B154&\"!i20\"),\"\")","v":""},"",{"$f":"IFERROR(INDIRECT($B154&\"!j20\"),\"\")","v":""},{"$f":"IFERROR(INDIRECT($B154&\"!k20\"),\"\")","v":""},{"$f":"IFERROR(INDIRECT($B154&\"!l20\"),\"\")","v":""},{"$f":"IFERROR(INDIRECT($B154&\"!m20\"),\"\")","v":""},{"$f":"IFERROR(INDIRECT($B154&\"!n20\"),\"\")","v":""},{"$f":"IFERROR(INDIRECT($B154&\"!o120\"),\"\")","v":""},null,null,null,null,null,null,null,null,null,null,null,null,null,"جارى154"]
[1,null,{"$f":"IFERROR(INDIRECT($B155&\"!d21\"),\"\")","v":""},"","","","",{"$f":"IFERROR(INDIRECT($B155&\"!g21\"),\"\")","v":""},{"$f":"IFERROR(INDIRECT($B155&\"!i21\"),\"\")","v":""},"",{"$f":"IFERROR(INDIRECT($B155&\"!j21\"),\"\")","v":""},{"$f":"IFERROR(INDIRECT($B155&\"!k21\"),\"\")","v":""},{"$f":"IFERROR(INDIRECT($B155&\"!l21\"),\"\")","v":""},{"$f":"IFERROR(INDIRECT($B155&\"!m21\"),\"\")","v":""},{"$f":"IFERROR(INDIRECT($B155&\"!n21\"),\"\")","v":""},{"$f":"IFERROR(INDIRECT($B155&\"!o121\"),\"\")","v":""},null,null,null,null,null,null,null,null,null,null,null,null,null,"جارى155"]
[1,null,{"$f":"IFERROR(INDIRECT($B156&\"!d22\"),\"\")","v":""},"","","","",{"$f":"IFERROR(INDIRECT($B156&\"!g22\"),\"\")","v":""},{"$f":"IFERROR(INDIRECT($B156&\"!i22\"),\"\")","v":""},"",{"$f":"IFERROR(INDIRECT($B156&\"!j22\"),\"\")","v":""},{"$f":"IFERROR(INDIRECT($B156&\"!k22\"),\"\")","v":""},{"$f":"IFERROR(INDIRECT($B156&\"!l22\"),\"\")","v":""},{"$f":"IFERROR(INDIRECT($B156&\"!m22\"),\"\")","v":""},{"$f":"IFERROR(INDIRECT($B156&\"!n22\"),\"\")","v":""},{"$f":"IFERROR(INDIRECT($B156&\"!o22\"),\"\")","v":""},null,null,null,null,null,null,null,null,null,null,null,null,null,"جارى156"]
[1,null,{"$f":"IFERROR(INDIRECT($B157&\"!d16\"),\"\")","v":""},"","","","",{"$f":"IFERROR(INDIRECT($B157&\"!g16\"),\"\")","v":""},{"$f":"IFERROR(INDIRECT($B157&\"!h16\"),\"\")","v":""},"","","","","",{"$f":"IFERROR(INDIRECT($B157&\"!n16\"),\"\")","v":""},"",null,null,null,null,null,null,null,null,null,null,null,null,null,"جارى157"]
[1,null,{"$f":"IFERROR(INDIRECT($B158&\"!d17\"),\"\")","v":""},"","","","",{"$f":"IFERROR(INDIRECT($B158&\"!g17\"),\"\")","v":""},{"$f":"IFERROR(INDIRECT($B158&\"!i17\"),\"\")","v":""},"",{"$f":"IFERROR(INDIRECT($B158&\"!j17\"),\"\")","v":""},{"$f":"IFERROR(INDIRECT($B158&\"!k17\"),\"\")","v":""},{"$f":"IFERROR(INDIRECT($B158&\"!l17\"),\"\")","v":""},{"$f":"IFERROR(INDIRECT($B158&\"!m17\"),\"\")","v":""},{"$f":"IFERROR(INDIRECT($B158&\"!n17\"),\"\")","v":""},{"$f":"IFERROR(INDIRECT($B158&\"!o17\"),\"\")","v":""},null,null,null,null,null,null,null,null,null,null,null,null,null,"جارى158"]
[1,null,{"$f":"IFERROR(INDIRECT($B159&\"!d18\"),\"\")","v":""},"","","","",{"$f":"IFERROR(INDIRECT($B159&\"!g18\"),\"\")","v":""},{"$f":"IFERROR(INDIRECT($B159&\"!i18\"),\"\")","v":""},"",{"$f":"IFERROR(INDIRECT($B159&\"!j18\"),\"\")","v":""},{"$f":"IFERROR(INDIRECT($B159&\"!k18\"),\"\")","v":""},{"$f":"IFERROR(INDIRECT($B159&\"!l18\"),\"\")","v":""},{"$f":"IFERROR(INDIRECT($B159&\"!m18\"),\"\")","v":""},{"$f":"IFERROR(INDIRECT($B159&\"!n18\"),\"\")","v":""},{"$f":"IFERROR(INDIRECT($B159&\"!o18\"),\"\")","v":""},null,null,null,null,null,null,null,null,null,null,null,null,null,"جارى159"]
[1,null,{"$f":"IFERROR(INDIRECT($B160&\"!d19\"),\"\")","v":""},"","","","",{"$f":"IFERROR(INDIRECT($B160&\"!g19\"),\"\")","v":""},{"$f":"IFERROR(INDIRECT($B160&\"!i19\"),\"\")","v":""},"",{"$f":"IFERROR(INDIRECT($B160&\"!j19\"),\"\")","v":""},{"$f":"IFERROR(INDIRECT($B160&\"!k19\"),\"\")","v":""},{"$f":"IFERROR(INDIRECT($B160&\"!l19\"),\"\")","v":""},{"$f":"IFERROR(INDIRECT($B160&\"!m19\"),\"\")","v":""},{"$f":"IFERROR(INDIRECT($B160&\"!n19\"),\"\")","v":""},{"$f":"IFERROR(INDIRECT($B160&\"!o19\"),\"\")","v":""},null,null,null,null,null,null,null,null,null,null,null,null,null,"جارى160"]
[1,null,{"$f":"IFERROR(INDIRECT($B161&\"!d20\"),\"\")","v":""},"","","","",{"$f":"IFERROR(INDIRECT($B161&\"!g20\"),\"\")","v":""},{"$f":"IFERROR(INDIRECT($B161&\"!i20\"),\"\")","v":""},"",{"$f":"IFERROR(INDIRECT($B161&\"!j20\"),\"\")","v":""},{"$f":"IFERROR(INDIRECT($B161&\"!k20\"),\"\")","v":""},{"$f":"IFERROR(INDIRECT($B161&\"!l20\"),\"\")","v":""},{"$f":"IFERROR(INDIRECT($B161&\"!m20\"),\"\")","v":""},{"$f":"IFERROR(INDIRECT($B161&\"!n20\"),\"\")","v":""},{"$f":"IFERROR(INDIRECT($B161&\"!o120\"),\"\")","v":""},null,null,null,null,null,null,null,null,null,null,null,null,null,"جارى161"]
[1,null,{"$f":"IFERROR(INDIRECT($B162&\"!d21\"),\"\")","v":""},"","","","",{"$f":"IFERROR(INDIRECT($B162&\"!g21\"),\"\")","v":""},{"$f":"IFERROR(INDIRECT($B162&\"!i21\"),\"\")","v":""},"",{"$f":"IFERROR(INDIRECT($B162&\"!j21\"),\"\")","v":""},{"$f":"IFERROR(INDIRECT($B162&\"!k21\"),\"\")","v":""},{"$f":"IFERROR(INDIRECT($B162&\"!l21\"),\"\")","v":""},{"$f":"IFERROR(INDIRECT($B162&\"!m21\"),\"\")","v":""},{"$f":"IFERROR(INDIRECT($B162&\"!n21\"),\"\")","v":""},{"$f":"IFERROR(INDIRECT($B162&\"!o121\"),\"\")","v":""},null,null,null,null,null,null,null,null,null,null,null,null,null,"جارى162"]
[1,null,{"$f":"IFERROR(INDIRECT($B163&\"!d22\"),\"\")","v":""},"","","","",{"$f":"IFERROR(INDIRECT($B163&\"!g22\"),\"\")","v":""},{"$f":"IFERROR(INDIRECT($B163&\"!i22\"),\"\")","v":""},"",{"$f":"IFERROR(INDIRECT($B163&\"!j22\"),\"\")","v":""},{"$f":"IFERROR(INDIRECT($B163&\"!k22\"),\"\")","v":""},{"$f":"IFERROR(INDIRECT($B163&\"!l22\"),\"\")","v":""},{"$f":"IFERROR(INDIRECT($B163&\"!m22\"),\"\")","v":""},{"$f":"IFERROR(INDIRECT($B163&\"!n22\"),\"\")","v":""},{"$f":"IFERROR(INDIRECT($B163&\"!o22\"),\"\")","v":""},null,null,null,null,null,null,null,null,null,null,null,null,null,"جارى163"]
[1,null,{"$f":"IFERROR(INDIRECT($B164&\"!d16\"),\"\")","v":""},"","","","",{"$f":"IFERROR(INDIRECT($B164&\"!g16\"),\"\")","v":""},{"$f":"IFERROR(INDIRECT($B164&\"!h16\"),\"\")","v":""},{"$f":"IFERROR(INDIRECT($B164&\"!i16\"),\"\")","v":""},{"$f":"IFERROR(INDIRECT($B164&\"!j16\"),\"\")","v":""},{"$f":"IFERROR(INDIRECT($B164&\"!k16\"),\"\")","v":""},{"$f":"IFERROR(INDIRECT($B164&\"!l16\"),\"\")","v":""},{"$f":"IFERROR(INDIRECT($B164&\"!m16\"),\"\")","v":""},{"$f":"IFERROR(INDIRECT($B164&\"!n16\"),\"\")","v":""},{"$f":"IFERROR(INDIRECT($B164&\"!o16\"),\"\")","v":""},null,null,null,null,null,null,null,null,null,null,null,null,null,"جارى164"]
[1,null,{"$f":"IFERROR(INDIRECT($B165&\"!d17\"),\"\")","v":""},"","","","",{"$f":"IFERROR(INDIRECT($B165&\"!g17\"),\"\")","v":""},{"$f":"IFERROR(INDIRECT($B165&\"!i17\"),\"\")","v":""},"",{"$f":"IFERROR(INDIRECT($B165&\"!j17\"),\"\")","v":""},{"$f":"IFERROR(INDIRECT($B165&\"!k17\"),\"\")","v":""},{"$f":"IFERROR(INDIRECT($B165&\"!l17\"),\"\")","v":""},{"$f":"IFERROR(INDIRECT($B165&\"!m17\"),\"\")","v":""},{"$f":"IFERROR(INDIRECT($B165&\"!n17\"),\"\")","v":""},{"$f":"IFERROR(INDIRECT($B165&\"!o17\"),\"\")","v":""},null,null,null,null,null,null,null,null,null,null,null,null,null,"جارى165"]
[1,null,{"$f":"IFERROR(INDIRECT($B166&\"!d18\"),\"\")","v":""},"","","","",{"$f":"IFERROR(INDIRECT($B166&\"!g18\"),\"\")","v":""},{"$f":"IFERROR(INDIRECT($B166&\"!i18\"),\"\")","v":""},"",{"$f":"IFERROR(INDIRECT($B166&\"!j18\"),\"\")","v":""},{"$f":"IFERROR(INDIRECT($B166&\"!k18\"),\"\")","v":""},{"$f":"IFERROR(INDIRECT($B166&\"!l18\"),\"\")","v":""},{"$f":"IFERROR(INDIRECT($B166&\"!m18\"),\"\")","v":""},{"$f":"IFERROR(INDIRECT($B166&\"!n18\"),\"\")","v":""},{"$f":"IFERROR(INDIRECT($B166&\"!o18\"),\"\")","v":""},null,null,null,null,null,null,null,null,null,null,null,null,null,"جارى166"]
[1,null,{"$f":"IFERROR(INDIRECT($B167&\"!d19\"),\"\")","v":""},"","","","",{"$f":"IFERROR(INDIRECT($B167&\"!g19\"),\"\")","v":""},{"$f":"IFERROR(INDIRECT($B167&\"!i19\"),\"\")","v":""},"",{"$f":"IFERROR(INDIRECT($B167&\"!j19\"),\"\")","v":""},{"$f":"IFERROR(INDIRECT($B167&\"!k19\"),\"\")","v":""},{"$f":"IFERROR(INDIRECT($B167&\"!l19\"),\"\")","v":""},{"$f":"IFERROR(INDIRECT($B167&\"!m19\"),\"\")","v":""},{"$f":"IFERROR(INDIRECT($B167&\"!n19\"),\"\")","v":""},{"$f":"IFERROR(INDIRECT($B167&\"!o19\"),\"\")","v":""},null,null,null,null,null,null,null,null,null,null,null,null,null,"جارى167"]
[1,null,{"$f":"IFERROR(INDIRECT($B168&\"!d20\"),\"\")","v":""},"","","","",{"$f":"IFERROR(INDIRECT($B168&\"!g20\"),\"\")","v":""},{"$f":"IFERROR(INDIRECT($B168&\"!i20\"),\"\")","v":""},"",{"$f":"IFERROR(INDIRECT($B168&\"!j20\"),\"\")","v":""},{"$f":"IFERROR(INDIRECT($B168&\"!k20\"),\"\")","v":""},{"$f":"IFERROR(INDIRECT($B168&\"!l20\"),\"\")","v":""},{"$f":"IFERROR(INDIRECT($B168&\"!m20\"),\"\")","v":""},{"$f":"IFERROR(INDIRECT($B168&\"!n20\"),\"\")","v":""},{"$f":"IFERROR(INDIRECT($B168&\"!o120\"),\"\")","v":""},null,null,null,null,null,null,null,null,null,null,null,null,null,"جارى168"]
[1,null,{"$f":"IFERROR(INDIRECT($B169&\"!d21\"),\"\")","v":""},"","","","",{"$f":"IFERROR(INDIRECT($B169&\"!g21\"),\"\")","v":""},{"$f":"IFERROR(INDIRECT($B169&\"!i21\"),\"\")","v":""},"",{"$f":"IFERROR(INDIRECT($B169&\"!j21\"),\"\")","v":""},{"$f":"IFERROR(INDIRECT($B169&\"!k21\"),\"\")","v":""},{"$f":"IFERROR(INDIRECT($B169&\"!l21\"),\"\")","v":""},{"$f":"IFERROR(INDIRECT($B169&\"!m21\"),\"\")","v":""},{"$f":"IFERROR(INDIRECT($B169&\"!n21\"),\"\")","v":""},{"$f":"IFERROR(INDIRECT($B169&\"!o121\"),\"\")","v":""},null,null,null,null,null,null,null,null,null,null,null,null,null,"جارى169"]
[1,null,{"$f":"IFERROR(INDIRECT($B170&\"!d22\"),\"\")","v":""},"","","","",{"$f":"IFERROR(INDIRECT($B170&\"!g22\"),\"\")","v":""},{"$f":"IFERROR(INDIRECT($B170&\"!i22\"),\"\")","v":""},"",{"$f":"IFERROR(INDIRECT($B170&\"!j22\"),\"\")","v":""},{"$f":"IFERROR(INDIRECT($B170&\"!k22\"),\"\")","v":""},{"$f":"IFERROR(INDIRECT($B170&\"!l22\"),\"\")","v":""},{"$f":"IFERROR(INDIRECT($B170&\"!m22\"),\"\")","v":""},{"$f":"IFERROR(INDIRECT($B170&\"!n22\"),\"\")","v":""},{"$f":"IFERROR(INDIRECT($B170&\"!o22\"),\"\")","v":""},null,null,null,null,null,null,null,null,null,null,null,null,null,"جارى170"]
[1,null,{"$f":"IFERROR(INDIRECT($B171&\"!d16\"),\"\")","v":""},"","","","",{"$f":"IFERROR(INDIRECT($B171&\"!g16\"),\"\")","v":""},{"$f":"IFERROR(INDIRECT($B171&\"!h16\"),\"\")","v":""},"","","","","",{"$f":"IFERROR(INDIRECT($B171&\"!n16\"),\"\")","v":""},"",null,null,null,null,null,null,null,null,null,null,null,null,null,"جارى171"]
[1,null,{"$f":"IFERROR(INDIRECT($B172&\"!d17\"),\"\")","v":""},"","","","",{"$f":"IFERROR(INDIRECT($B172&\"!g17\"),\"\")","v":""},{"$f":"IFERROR(INDIRECT($B172&\"!i17\"),\"\")","v":""},"",{"$f":"IFERROR(INDIRECT($B172&\"!j17\"),\"\")","v":""},{"$f":"IFERROR(INDIRECT($B172&\"!k17\"),\"\")","v":""},{"$f":"IFERROR(INDIRECT($B172&\"!l17\"),\"\")","v":""},{"$f":"IFERROR(INDIRECT($B172&\"!m17\"),\"\")","v":""},{"$f":"IFERROR(INDIRECT($B172&\"!n17\"),\"\")","v":""},{"$f":"IFERROR(INDIRECT($B172&\"!o17\"),\"\")","v":""},null,null,null,null,null,null,null,null,null,null,null,null,null,"جارى172"]
[1,null,{"$f":"IFERROR(INDIRECT($B173&\"!d18\"),\"\")","v":""},"","","","",{"$f":"IFERROR(INDIRECT($B173&\"!g18\"),\"\")","v":""},{"$f":"IFERROR(INDIRECT($B173&\"!i18\"),\"\")","v":""},"",{"$f":"IFERROR(INDIRECT($B173&\"!j18\"),\"\")","v":""},{"$f":"IFERROR(INDIRECT($B173&\"!k18\"),\"\")","v":""},{"$f":"IFERROR(INDIRECT($B173&\"!l18\"),\"\")","v":""},{"$f":"IFERROR(INDIRECT($B173&\"!m18\"),\"\")","v":""},{"$f":"IFERROR(INDIRECT($B173&\"!n18\"),\"\")","v":""},{"$f":"IFERROR(INDIRECT($B173&\"!o18\"),\"\")","v":""},null,null,null,null,null,null,null,null,null,null,null,null,null,"جارى173"]
[1,null,{"$f":"IFERROR(INDIRECT($B174&\"!d19\"),\"\")","v":""},"","","","",{"$f":"IFERROR(INDIRECT($B174&\"!g19\"),\"\")","v":""},{"$f":"IFERROR(INDIRECT($B174&\"!i19\"),\"\")","v":""},"",{"$f":"IFERROR(INDIRECT($B174&\"!j19\"),\"\")","v":""},{"$f":"IFERROR(INDIRECT($B174&\"!k19\"),\"\")","v":""},{"$f":"IFERROR(INDIRECT($B174&\"!l19\"),\"\")","v":""},{"$f":"IFERROR(INDIRECT($B174&\"!m19\"),\"\")","v":""},{"$f":"IFERROR(INDIRECT($B174&\"!n19\"),\"\")","v":""},{"$f":"IFERROR(INDIRECT($B174&\"!o19\"),\"\")","v":""},null,null,null,null,null,null,null,null,null,null,null,null,null,"جارى174"]
[1,null,{"$f":"IFERROR(INDIRECT($B175&\"!d20\"),\"\")","v":""},"","","","",{"$f":"IFERROR(INDIRECT($B175&\"!g20\"),\"\")","v":""},{"$f":"IFERROR(INDIRECT($B175&\"!i20\"),\"\")","v":""},"",{"$f":"IFERROR(INDIRECT($B175&\"!j20\"),\"\")","v":""},{"$f":"IFERROR(INDIRECT($B175&\"!k20\"),\"\")","v":""},{"$f":"IFERROR(INDIRECT($B175&\"!l20\"),\"\")","v":""},{"$f":"IFERROR(INDIRECT($B175&\"!m20\"),\"\")","v":""},{"$f":"IFERROR(INDIRECT($B175&\"!n20\"),\"\")","v":""},{"$f":"IFERROR(INDIRECT($B175&\"!o120\"),\"\")","v":""},null,null,null,null,null,null,null,null,null,null,null,null,null,"جارى175"]
[1,null,{"$f":"IFERROR(INDIRECT($B176&\"!d21\"),\"\")","v":""},"","","","",{"$f":"IFERROR(INDIRECT($B176&\"!g21\"),\"\")","v":""},{"$f":"IFERROR(INDIRECT($B176&\"!i21\"),\"\")","v":""},"",{"$f":"IFERROR(INDIRECT($B176&\"!j21\"),\"\")","v":""},{"$f":"IFERROR(INDIRECT($B176&\"!k21\"),\"\")","v":""},{"$f":"IFERROR(INDIRECT($B176&\"!l21\"),\"\")","v":""},{"$f":"IFERROR(INDIRECT($B176&\"!m21\"),\"\")","v":""},{"$f":"IFERROR(INDIRECT($B176&\"!n21\"),\"\")","v":""},{"$f":"IFERROR(INDIRECT($B176&\"!o121\"),\"\")","v":""},null,null,null,null,null,null,null,null,null,null,null,null,null,"جارى176"]
[1,null,{"$f":"IFERROR(INDIRECT($B177&\"!d22\"),\"\")","v":""},"","","","",{"$f":"IFERROR(INDIRECT($B177&\"!g22\"),\"\")","v":""},{"$f":"IFERROR(INDIRECT($B177&\"!i22\"),\"\")","v":""},"",{"$f":"IFERROR(INDIRECT($B177&\"!j22\"),\"\")","v":""},{"$f":"IFERROR(INDIRECT($B177&\"!k22\"),\"\")","v":""},{"$f":"IFERROR(INDIRECT($B177&\"!l22\"),\"\")","v":""},{"$f":"IFERROR(INDIRECT($B177&\"!m22\"),\"\")","v":""},{"$f":"IFERROR(INDIRECT($B177&\"!n22\"),\"\")","v":""},{"$f":"IFERROR(INDIRECT($B177&\"!o22\"),\"\")","v":""},null,null,null,null,null,null,null,null,null,null,null,null,null,"جارى177"]
[1,null,{"$f":"IFERROR(INDIRECT($B178&\"!d16\"),\"\")","v":""},"","","","",{"$f":"IFERROR(INDIRECT($B178&\"!g16\"),\"\")","v":""},{"$f":"IFERROR(INDIRECT($B178&\"!h16\"),\"\")","v":""},"","","","","",{"$f":"IFERROR(INDIRECT($B178&\"!n16\"),\"\")","v":""},"",null,null,null,null,null,null,null,null,null,null,null,null,null,"جارى178"]
[1,null,{"$f":"IFERROR(INDIRECT($B179&\"!d17\"),\"\")","v":""},"","","","",{"$f":"IFERROR(INDIRECT($B179&\"!g17\"),\"\")","v":""},{"$f":"IFERROR(INDIRECT($B179&\"!i17\"),\"\")","v":""},"",{"$f":"IFERROR(INDIRECT($B179&\"!j17\"),\"\")","v":""},{"$f":"IFERROR(INDIRECT($B179&\"!k17\"),\"\")","v":""},{"$f":"IFERROR(INDIRECT($B179&\"!l17\"),\"\")","v":""},{"$f":"IFERROR(INDIRECT($B179&\"!m17\"),\"\")","v":""},{"$f":"IFERROR(INDIRECT($B179&\"!n17\"),\"\")","v":""},{"$f":"IFERROR(INDIRECT($B179&\"!o17\"),\"\")","v":""},null,null,null,null,null,null,null,null,null,null,null,null,null,"جارى179"]
[1,null,{"$f":"IFERROR(INDIRECT($B180&\"!d18\"),\"\")","v":""},"","","","",{"$f":"IFERROR(INDIRECT($B180&\"!g18\"),\"\")","v":""},{"$f":"IFERROR(INDIRECT($B180&\"!i18\"),\"\")","v":""},"",{"$f":"IFERROR(INDIRECT($B180&\"!j18\"),\"\")","v":""},{"$f":"IFERROR(INDIRECT($B180&\"!k18\"),\"\")","v":""},{"$f":"IFERROR(INDIRECT($B180&\"!l18\"),\"\")","v":""},{"$f":"IFERROR(INDIRECT($B180&\"!m18\"),\"\")","v":""},{"$f":"IFERROR(INDIRECT($B180&\"!n18\"),\"\")","v":""},{"$f":"IFERROR(INDIRECT($B180&\"!o18\"),\"\")","v":""},null,null,null,null,null,null,null,null,null,null,null,null,null,"جارى180"]
[1,null,{"$f":"IFERROR(INDIRECT($B181&\"!d19\"),\"\")","v":""},"","","","",{"$f":"IFERROR(INDIRECT($B181&\"!g19\"),\"\")","v":""},{"$f":"IFERROR(INDIRECT($B181&\"!i19\"),\"\")","v":""},"",{"$f":"IFERROR(INDIRECT($B181&\"!j19\"),\"\")","v":""},{"$f":"IFERROR(INDIRECT($B181&\"!k19\"),\"\")","v":""},{"$f":"IFERROR(INDIRECT($B181&\"!l19\"),\"\")","v":""},{"$f":"IFERROR(INDIRECT($B181&\"!m19\"),\"\")","v":""},{"$f":"IFERROR(INDIRECT($B181&\"!n19\"),\"\")","v":""},{"$f":"IFERROR(INDIRECT($B181&\"!o19\"),\"\")","v":""}]
[1,null,{"$f":"IFERROR(INDIRECT($B182&\"!d20\"),\"\")","v":""},"","","","",{"$f":"IFERROR(INDIRECT($B182&\"!g20\"),\"\")","v":""},{"$f":"IFERROR(INDIRECT($B182&\"!i20\"),\"\")","v":""},"",{"$f":"IFERROR(INDIRECT($B182&\"!j20\"),\"\")","v":""},{"$f":"IFERROR(INDIRECT($B182&\"!k20\"),\"\")","v":""},{"$f":"IFERROR(INDIRECT($B182&\"!l20\"),\"\")","v":""},{"$f":"IFERROR(INDIRECT($B182&\"!m20\"),\"\")","v":""},{"$f":"IFERROR(INDIRECT($B182&\"!n20\"),\"\")","v":""},{"$f":"IFERROR(INDIRECT($B182&\"!o120\"),\"\")","v":""}]
[1,null,{"$f":"IFERROR(INDIRECT($B183&\"!d21\"),\"\")","v":""},"","","","",{"$f":"IFERROR(INDIRECT($B183&\"!g21\"),\"\")","v":""},{"$f":"IFERROR(INDIRECT($B183&\"!i21\"),\"\")","v":""},"",{"$f":"IFERROR(INDIRECT($B183&\"!j21\"),\"\")","v":""},{"$f":"IFERROR(INDIRECT($B183&\"!k21\"),\"\")","v":""},{"$f":"IFERROR(INDIRECT($B183&\"!l21\"),\"\")","v":""},{"$f":"IFERROR(INDIRECT($B183&\"!m21\"),\"\")","v":""},{"$f":"IFERROR(INDIRECT($B183&\"!n21\"),\"\")","v":""},{"$f":"IFERROR(INDIRECT($B183&\"!o121\"),\"\")","v":""}]
[1,null,{"$f":"IFERROR(INDIRECT($B184&\"!d22\"),\"\")","v":""},"","","","",{"$f":"IFERROR(INDIRECT($B184&\"!g22\"),\"\")","v":""},{"$f":"IFERROR(INDIRECT($B184&\"!i22\"),\"\")","v":""},"",{"$f":"IFERROR(INDIRECT($B184&\"!j22\"),\"\")","v":""},{"$f":"IFERROR(INDIRECT($B184&\"!k22\"),\"\")","v":""},{"$f":"IFERROR(INDIRECT($B184&\"!l22\"),\"\")","v":""},{"$f":"IFERROR(INDIRECT($B184&\"!m22\"),\"\")","v":""},{"$f":"IFERROR(INDIRECT($B184&\"!n22\"),\"\")","v":""},{"$f":"IFERROR(INDIRECT($B184&\"!o22\"),\"\")","v":""}]
[1,null,{"$f":"IFERROR(INDIRECT($B185&\"!d16\"),\"\")","v":""},"","","","",{"$f":"IFERROR(INDIRECT($B185&\"!g16\"),\"\")","v":""},{"$f":"IFERROR(INDIRECT($B185&\"!h16\"),\"\")","v":""},"","","","","",{"$f":"IFERROR(INDIRECT($B185&\"!n16\"),\"\")","v":""},""]
[1,null,{"$f":"IFERROR(INDIRECT($B186&\"!d17\"),\"\")","v":""},"","","","",{"$f":"IFERROR(INDIRECT($B186&\"!g17\"),\"\")","v":""},{"$f":"IFERROR(INDIRECT($B186&\"!i17\"),\"\")","v":""},"",{"$f":"IFERROR(INDIRECT($B186&\"!j17\"),\"\")","v":""},{"$f":"IFERROR(INDIRECT($B186&\"!k17\"),\"\")","v":""},{"$f":"IFERROR(INDIRECT($B186&\"!l17\"),\"\")","v":""},{"$f":"IFERROR(INDIRECT($B186&\"!m17\"),\"\")","v":""},{"$f":"IFERROR(INDIRECT($B186&\"!n17\"),\"\")","v":""},{"$f":"IFERROR(INDIRECT($B186&\"!o17\"),\"\")","v":""}]
[1,null,{"$f":"IFERROR(INDIRECT($B187&\"!d18\"),\"\")","v":""},"","","","",{"$f":"IFERROR(INDIRECT($B187&\"!g18\"),\"\")","v":""},{"$f":"IFERROR(INDIRECT($B187&\"!i18\"),\"\")","v":""},"",{"$f":"IFERROR(INDIRECT($B187&\"!j18\"),\"\")","v":""},{"$f":"IFERROR(INDIRECT($B187&\"!k18\"),\"\")","v":""},{"$f":"IFERROR(INDIRECT($B187&\"!l18\"),\"\")","v":""},{"$f":"IFERROR(INDIRECT($B187&\"!m18\"),\"\")","v":""},{"$f":"IFERROR(INDIRECT($B187&\"!n18\"),\"\")","v":""},{"$f":"IFERROR(INDIRECT($B187&\"!o18\"),\"\")","v":""}]
[1,null,{"$f":"IFERROR(INDIRECT($B188&\"!d19\"),\"\")","v":""},"","","","",{"$f":"IFERROR(INDIRECT($B188&\"!g19\"),\"\")","v":""},{"$f":"IFERROR(INDIRECT($B188&\"!i19\"),\"\")","v":""},"",{"$f":"IFERROR(INDIRECT($B188&\"!j19\"),\"\")","v":""},{"$f":"IFERROR(INDIRECT($B188&\"!k19\"),\"\")","v":""},{"$f":"IFERROR(INDIRECT($B188&\"!l19\"),\"\")","v":""},{"$f":"IFERROR(INDIRECT($B188&\"!m19\"),\"\")","v":""},{"$f":"IFERROR(INDIRECT($B188&\"!n19\"),\"\")","v":""},{"$f":"IFERROR(INDIRECT($B188&\"!o19\"),\"\")","v":""}]
[1,null,{"$f":"IFERROR(INDIRECT($B189&\"!d20\"),\"\")","v":""},"","","","",{"$f":"IFERROR(INDIRECT($B189&\"!g20\"),\"\")","v":""},{"$f":"IFERROR(INDIRECT($B189&\"!i20\"),\"\")","v":""},"",{"$f":"IFERROR(INDIRECT($B189&\"!j20\"),\"\")","v":""},{"$f":"IFERROR(INDIRECT($B189&\"!k20\"),\"\")","v":""},{"$f":"IFERROR(INDIRECT($B189&\"!l20\"),\"\")","v":""},{"$f":"IFERROR(INDIRECT($B189&\"!m20\"),\"\")","v":""},{"$f":"IFERROR(INDIRECT($B189&\"!n20\"),\"\")","v":""},{"$f":"IFERROR(INDIRECT($B189&\"!o120\"),\"\")","v":""}]
[1,null,{"$f":"IFERROR(INDIRECT($B190&\"!d21\"),\"\")","v":""},"","","","",{"$f":"IFERROR(INDIRECT($B190&\"!g21\"),\"\")","v":""},{"$f":"IFERROR(INDIRECT($B190&\"!i21\"),\"\")","v":""},"",{"$f":"IFERROR(INDIRECT($B190&\"!j21\"),\"\")","v":""},{"$f":"IFERROR(INDIRECT($B190&\"!k21\"),\"\")","v":""},{"$f":"IFERROR(INDIRECT($B190&\"!l21\"),\"\")","v":""},{"$f":"IFERROR(INDIRECT($B190&\"!m21\"),\"\")","v":""},{"$f":"IFERROR(INDIRECT($B190&\"!n21\"),\"\")","v":""},{"$f":"IFERROR(INDIRECT($B190&\"!o121\"),\"\")","v":""}]
[1,null,{"$f":"IFERROR(INDIRECT($B191&\"!d22\"),\"\")","v":""},"","","","",{"$f":"IFERROR(INDIRECT($B191&\"!g22\"),\"\")","v":""},{"$f":"IFERROR(INDIRECT($B191&\"!i22\"),\"\")","v":""},"",{"$f":"IFERROR(INDIRECT($B191&\"!j22\"),\"\")","v":""},{"$f":"IFERROR(INDIRECT($B191&\"!k22\"),\"\")","v":""},{"$f":"IFERROR(INDIRECT($B191&\"!l22\"),\"\")","v":""},{"$f":"IFERROR(INDIRECT($B191&\"!m22\"),\"\")","v":""},{"$f":"IFERROR(INDIRECT($B191&\"!n22\"),\"\")","v":""},{"$f":"IFERROR(INDIRECT($B191&\"!o22\"),\"\")","v":""}]
[1,null,{"$f":"IFERROR(INDIRECT($B192&\"!d16\"),\"\")","v":""},"","","","",{"$f":"IFERROR(INDIRECT($B192&\"!g16\"),\"\")","v":""},{"$f":"IFERROR(INDIRECT($B192&\"!h16\"),\"\")","v":""},"","","","","",{"$f":"IFERROR(INDIRECT($B192&\"!n16\"),\"\")","v":""},""]
[1,null,{"$f":"IFERROR(INDIRECT($B193&\"!d17\"),\"\")","v":""},"","","","",{"$f":"IFERROR(INDIRECT($B193&\"!g17\"),\"\")","v":""},{"$f":"IFERROR(INDIRECT($B193&\"!i17\"),\"\")","v":""},"",{"$f":"IFERROR(INDIRECT($B193&\"!j17\"),\"\")","v":""},{"$f":"IFERROR(INDIRECT($B193&\"!k17\"),\"\")","v":""},{"$f":"IFERROR(INDIRECT($B193&\"!l17\"),\"\")","v":""},{"$f":"IFERROR(INDIRECT($B193&\"!m17\"),\"\")","v":""},{"$f":"IFERROR(INDIRECT($B193&\"!n17\"),\"\")","v":""},{"$f":"IFERROR(INDIRECT($B193&\"!o17\"),\"\")","v":""}]
[1,null,{"$f":"IFERROR(INDIRECT($B194&\"!d18\"),\"\")","v":""},"","","","",{"$f":"IFERROR(INDIRECT($B194&\"!g18\"),\"\")","v":""},{"$f":"IFERROR(INDIRECT($B194&\"!i18\"),\"\")","v":""},"",{"$f":"IFERROR(INDIRECT($B194&\"!j18\"),\"\")","v":""},{"$f":"IFERROR(INDIRECT($B194&\"!k18\"),\"\")","v":""},{"$f":"IFERROR(INDIRECT($B194&\"!l18\"),\"\")","v":""},{"$f":"IFERROR(INDIRECT($B194&\"!m18\"),\"\")","v":""},{"$f":"IFERROR(INDIRECT($B194&\"!n18\"),\"\")","v":""},{"$f":"IFERROR(INDIRECT($B194&\"!o18\"),\"\")","v":""}]
[1,null,{"$f":"IFERROR(INDIRECT($B195&\"!d19\"),\"\")","v":""},"","","","",{"$f":"IFERROR(INDIRECT($B195&\"!g19\"),\"\")","v":""},{"$f":"IFERROR(INDIRECT($B195&\"!i19\"),\"\")","v":""},"",{"$f":"IFERROR(INDIRECT($B195&\"!j19\"),\"\")","v":""},{"$f":"IFERROR(INDIRECT($B195&\"!k19\"),\"\")","v":""},{"$f":"IFERROR(INDIRECT($B195&\"!l19\"),\"\")","v":""},{"$f":"IFERROR(INDIRECT($B195&\"!m19\"),\"\")","v":""},{"$f":"IFERROR(INDIRECT($B195&\"!n19\"),\"\")","v":""},{"$f":"IFERROR(INDIRECT($B195&\"!o19\"),\"\")","v":""}]
[1,null,{"$f":"IFERROR(INDIRECT($B196&\"!d20\"),\"\")","v":""},{"$f":"IFERROR(INDIRECT($B196&\"!e10\"),\"\")","v":""},{"$f":"IFERROR(INDIRECT($B196&\"!e7\"),\"\")","v":""},{"$f":"IFERROR(INDIRECT($B196&\"!e12\"),\"\")","v":""},{"$f":"IFERROR(INDIRECT($B196&\"!e13\"),\"\")","v":""},{"$f":"IFERROR(INDIRECT($B196&\"!g20\"),\"\")","v":""},{"$f":"IFERROR(INDIRECT($B196&\"!i20\"),\"\")","v":""},"",{"$f":"IFERROR(INDIRECT($B196&\"!j20\"),\"\")","v":""},{"$f":"IFERROR(INDIRECT($B196&\"!k20\"),\"\")","v":""},{"$f":"IFERROR(INDIRECT($B196&\"!l20\"),\"\")","v":""},{"$f":"IFERROR(INDIRECT($B196&\"!m20\"),\"\")","v":""},{"$f":"IFERROR(INDIRECT($B196&\"!n20\"),\"\")","v":""},{"$f":"IFERROR(INDIRECT($B196&\"!o120\"),\"\")","v":""}]
[1,null,{"$f":"IFERROR(INDIRECT($B197&\"!d21\"),\"\")","v":""},"","","","",{"$f":"IFERROR(INDIRECT($B197&\"!g21\"),\"\")","v":""},{"$f":"IFERROR(INDIRECT($B197&\"!i21\"),\"\")","v":""},"",{"$f":"IFERROR(INDIRECT($B197&\"!j21\"),\"\")","v":""},{"$f":"IFERROR(INDIRECT($B197&\"!k21\"),\"\")","v":""},{"$f":"IFERROR(INDIRECT($B197&\"!l21\"),\"\")","v":""},{"$f":"IFERROR(INDIRECT($B197&\"!m21\"),\"\")","v":""},{"$f":"IFERROR(INDIRECT($B197&\"!n21\"),\"\")","v":""},{"$f":"IFERROR(INDIRECT($B197&\"!o121\"),\"\")","v":""}]
[1,null,{"$f":"IFERROR(INDIRECT($B198&\"!d22\"),\"\")","v":""},"","","","",{"$f":"IFERROR(INDIRECT($B198&\"!g22\"),\"\")","v":""},{"$f":"IFERROR(INDIRECT($B198&\"!i22\"),\"\")","v":""},"",{"$f":"IFERROR(INDIRECT($B198&\"!j22\"),\"\")","v":""},{"$f":"IFERROR(INDIRECT($B198&\"!k22\"),\"\")","v":""},{"$f":"IFERROR(INDIRECT($B198&\"!l22\"),\"\")","v":""},{"$f":"IFERROR(INDIRECT($B198&\"!m22\"),\"\")","v":""},{"$f":"IFERROR(INDIRECT($B198&\"!n22\"),\"\")","v":""},{"$f":"IFERROR(INDIRECT($B198&\"!o22\"),\"\")","v":""}]
[1,null,{"$f":"IFERROR(INDIRECT($B199&\"!d16\"),\"\")","v":""},"","","","",{"$f":"IFERROR(INDIRECT($B199&\"!g16\"),\"\")","v":""},{"$f":"IFERROR(INDIRECT($B199&\"!h16\"),\"\")","v":""},"","","","","",{"$f":"IFERROR(INDIRECT($B199&\"!n16\"),\"\")","v":""},""]
[1,null,{"$f":"IFERROR(INDIRECT($B200&\"!d17\"),\"\")","v":""},"","","","",{"$f":"IFERROR(INDIRECT($B200&\"!g17\"),\"\")","v":""},{"$f":"IFERROR(INDIRECT($B200&\"!i17\"),\"\")","v":""},"",{"$f":"IFERROR(INDIRECT($B200&\"!j17\"),\"\")","v":""},{"$f":"IFERROR(INDIRECT($B200&\"!k17\"),\"\")","v":""},{"$f":"IFERROR(INDIRECT($B200&\"!l17\"),\"\")","v":""},{"$f":"IFERROR(INDIRECT($B200&\"!m17\"),\"\")","v":""},{"$f":"IFERROR(INDIRECT($B200&\"!n17\"),\"\")","v":""},{"$f":"IFERROR(INDIRECT($B200&\"!o17\"),\"\")","v":""}]
[1,null,{"$f":"IFERROR(INDIRECT($B201&\"!d18\"),\"\")","v":""},"","","","",{"$f":"IFERROR(INDIRECT($B201&\"!g18\"),\"\")","v":""},{"$f":"IFERROR(INDIRECT($B201&\"!i18\"),\"\")","v":""},"",{"$f":"IFERROR(INDIRECT($B201&\"!j18\"),\"\")","v":""},{"$f":"IFERROR(INDIRECT($B201&\"!k18\"),\"\")","v":""},{"$f":"IFERROR(INDIRECT($B201&\"!l18\"),\"\")","v":""},{"$f":"IFERROR(INDIRECT($B201&\"!m18\"),\"\")","v":""},{"$f":"IFERROR(INDIRECT($B201&\"!n18\"),\"\")","v":""},{"$f":"IFERROR(INDIRECT($B201&\"!o18\"),\"\")","v":""}]
[1,null,{"$f":"IFERROR(INDIRECT($B202&\"!d19\"),\"\")","v":""},"","","","",{"$f":"IFERROR(INDIRECT($B202&\"!g19\"),\"\")","v":""},{"$f":"IFERROR(INDIRECT($B202&\"!i19\"),\"\")","v":""},"",{"$f":"IFERROR(INDIRECT($B202&\"!j19\"),\"\")","v":""},{"$f":"IFERROR(INDIRECT($B202&\"!k19\"),\"\")","v":""},{"$f":"IFERROR(INDIRECT($B202&\"!l19\"),\"\")","v":""},{"$f":"IFERROR(INDIRECT($B202&\"!m19\"),\"\")","v":""},{"$f":"IFERROR(INDIRECT($B202&\"!n19\"),\"\")","v":""},{"$f":"IFERROR(INDIRECT($B202&\"!o19\"),\"\")","v":""}]
[1,null,{"$f":"IFERROR(INDIRECT($B203&\"!d20\"),\"\")","v":""},"","","","",{"$f":"IFERROR(INDIRECT($B203&\"!g20\"),\"\")","v":""},{"$f":"IFERROR(INDIRECT($B203&\"!i20\"),\"\")","v":""},"",{"$f":"IFERROR(INDIRECT($B203&\"!j20\"),\"\")","v":""},{"$f":"IFERROR(INDIRECT($B203&\"!k20\"),\"\")","v":""},{"$f":"IFERROR(INDIRECT($B203&\"!l20\"),\"\")","v":""},{"$f":"IFERROR(INDIRECT($B203&\"!m20\"),\"\")","v":""},{"$f":"IFERROR(INDIRECT($B203&\"!n20\"),\"\")","v":""},{"$f":"IFERROR(INDIRECT($B203&\"!o120\"),\"\")","v":""}]
[1,null,{"$f":"IFERROR(INDIRECT($B204&\"!d21\"),\"\")","v":""},"","","","",{"$f":"IFERROR(INDIRECT($B204&\"!g21\"),\"\")","v":""},{"$f":"IFERROR(INDIRECT($B204&\"!i21\"),\"\")","v":""},"",{"$f":"IFERROR(INDIRECT($B204&\"!j21\"),\"\")","v":""},{"$f":"IFERROR(INDIRECT($B204&\"!k21\"),\"\")","v":""},{"$f":"IFERROR(INDIRECT($B204&\"!l21\"),\"\")","v":""},{"$f":"IFERROR(INDIRECT($B204&\"!m21\"),\"\")","v":""},{"$f":"IFERROR(INDIRECT($B204&\"!n21\"),\"\")","v":""},{"$f":"IFERROR(INDIRECT($B204&\"!o121\"),\"\")","v":""}]
[1,null,{"$f":"IFERROR(INDIRECT($B205&\"!d22\"),\"\")","v":""},"","","","",{"$f":"IFERROR(INDIRECT($B205&\"!g22\"),\"\")","v":""},{"$f":"IFERROR(INDIRECT($B205&\"!i22\"),\"\")","v":""},"",{"$f":"IFERROR(INDIRECT($B205&\"!j22\"),\"\")","v":""},{"$f":"IFERROR(INDIRECT($B205&\"!k22\"),\"\")","v":""},{"$f":"IFERROR(INDIRECT($B205&\"!l22\"),\"\")","v":""},{"$f":"IFERROR(INDIRECT($B205&\"!m22\"),\"\")","v":""},{"$f":"IFERROR(INDIRECT($B205&\"!n22\"),\"\")","v":""},{"$f":"IFERROR(INDIRECT($B205&\"!o22\"),\"\")","v":""}]
[1,null,{"$f":"IFERROR(INDIRECT($B206&\"!d16\"),\"\")","v":""},"","","","",{"$f":"IFERROR(INDIRECT($B206&\"!g16\"),\"\")","v":""},{"$f":"IFERROR(INDIRECT($B206&\"!h16\"),\"\")","v":""},"","","","","",{"$f":"IFERROR(INDIRECT($B206&\"!n16\"),\"\")","v":""},""]
[1,null,{"$f":"IFERROR(INDIRECT($B207&\"!d17\"),\"\")","v":""},"","","","",{"$f":"IFERROR(INDIRECT($B207&\"!g17\"),\"\")","v":""},{"$f":"IFERROR(INDIRECT($B207&\"!i17\"),\"\")","v":""},"",{"$f":"IFERROR(INDIRECT($B207&\"!j17\"),\"\")","v":""},{"$f":"IFERROR(INDIRECT($B207&\"!k17\"),\"\")","v":""},{"$f":"IFERROR(INDIRECT($B207&\"!l17\"),\"\")","v":""},{"$f":"IFERROR(INDIRECT($B207&\"!m17\"),\"\")","v":""},{"$f":"IFERROR(INDIRECT($B207&\"!n17\"),\"\")","v":""},{"$f":"IFERROR(INDIRECT($B207&\"!o17\"),\"\")","v":""}]
[1,null,{"$f":"IFERROR(INDIRECT($B208&\"!d18\"),\"\")","v":""},"","","","",{"$f":"IFERROR(INDIRECT($B208&\"!g18\"),\"\")","v":""},{"$f":"IFERROR(INDIRECT($B208&\"!i18\"),\"\")","v":""},"",{"$f":"IFERROR(INDIRECT($B208&\"!j18\"),\"\")","v":""},{"$f":"IFERROR(INDIRECT($B208&\"!k18\"),\"\")","v":""},{"$f":"IFERROR(INDIRECT($B208&\"!l18\"),\"\")","v":""},{"$f":"IFERROR(INDIRECT($B208&\"!m18\"),\"\")","v":""},{"$f":"IFERROR(INDIRECT($B208&\"!n18\"),\"\")","v":""},{"$f":"IFERROR(INDIRECT($B208&\"!o18\"),\"\")","v":""}]
[1,null,{"$f":"IFERROR(INDIRECT($B209&\"!d19\"),\"\")","v":""},"","","","",{"$f":"IFERROR(INDIRECT($B209&\"!g19\"),\"\")","v":""},{"$f":"IFERROR(INDIRECT($B209&\"!i19\"),\"\")","v":""},"",{"$f":"IFERROR(INDIRECT($B209&\"!j19\"),\"\")","v":""},{"$f":"IFERROR(INDIRECT($B209&\"!k19\"),\"\")","v":""},{"$f":"IFERROR(INDIRECT($B209&\"!l19\"),\"\")","v":""},{"$f":"IFERROR(INDIRECT($B209&\"!m19\"),\"\")","v":""},{"$f":"IFERROR(INDIRECT($B209&\"!n19\"),\"\")","v":""},{"$f":"IFERROR(INDIRECT($B209&\"!o19\"),\"\")","v":""}]
[1,null,{"$f":"IFERROR(INDIRECT($B210&\"!d20\"),\"\")","v":""},"","","","",{"$f":"IFERROR(INDIRECT($B210&\"!g20\"),\"\")","v":""},{"$f":"IFERROR(INDIRECT($B210&\"!i20\"),\"\")","v":""},"",{"$f":"IFERROR(INDIRECT($B210&\"!j20\"),\"\")","v":""},{"$f":"IFERROR(INDIRECT($B210&\"!k20\"),\"\")","v":""},{"$f":"IFERROR(INDIRECT($B210&\"!l20\"),\"\")","v":""},{"$f":"IFERROR(INDIRECT($B210&\"!m20\"),\"\")","v":""},{"$f":"IFERROR(INDIRECT($B210&\"!n20\"),\"\")","v":""},{"$f":"IFERROR(INDIRECT($B210&\"!o120\"),\"\")","v":""}]
[1,null,{"$f":"IFERROR(INDIRECT($B211&\"!d21\"),\"\")","v":""},"","","","",{"$f":"IFERROR(INDIRECT($B211&\"!g21\"),\"\")","v":""},{"$f":"IFERROR(INDIRECT($B211&\"!i21\"),\"\")","v":""},"",{"$f":"IFERROR(INDIRECT($B211&\"!j21\"),\"\")","v":""},{"$f":"IFERROR(INDIRECT($B211&\"!k21\"),\"\")","v":""},{"$f":"IFERROR(INDIRECT($B211&\"!l21\"),\"\")","v":""},{"$f":"IFERROR(INDIRECT($B211&\"!m21\"),\"\")","v":""},{"$f":"IFERROR(INDIRECT($B211&\"!n21\"),\"\")","v":""},{"$f":"IFERROR(INDIRECT($B211&\"!o121\"),\"\")","v":""}]
[1,null,{"$f":"IFERROR(INDIRECT($B212&\"!d22\"),\"\")","v":""},"","","","",{"$f":"IFERROR(INDIRECT($B212&\"!g22\"),\"\")","v":""},{"$f":"IFERROR(INDIRECT($B212&\"!i22\"),\"\")","v":""},"",{"$f":"IFERROR(INDIRECT($B212&\"!j22\"),\"\")","v":""},{"$f":"IFERROR(INDIRECT($B212&\"!k22\"),\"\")","v":""},{"$f":"IFERROR(INDIRECT($B212&\"!l22\"),\"\")","v":""},{"$f":"IFERROR(INDIRECT($B212&\"!m22\"),\"\")","v":""},{"$f":"IFERROR(INDIRECT($B212&\"!n22\"),\"\")","v":""},{"$f":"IFERROR(INDIRECT($B212&\"!o22\"),\"\")","v":""}]
[1,null,{"$f":"IFERROR(INDIRECT($B213&\"!d16\"),\"\")","v":""},"","","","",{"$f":"IFERROR(INDIRECT($B213&\"!g16\"),\"\")","v":""},{"$f":"IFERROR(INDIRECT($B213&\"!h16\"),\"\")","v":""},"","","","","",{"$f":"IFERROR(INDIRECT($B213&\"!n16\"),\"\")","v":""},""]
[1,null,{"$f":"IFERROR(INDIRECT($B214&\"!d17\"),\"\")","v":""},"","","","",{"$f":"IFERROR(INDIRECT($B214&\"!g17\"),\"\")","v":""},{"$f":"IFERROR(INDIRECT($B214&\"!i17\"),\"\")","v":""},"",{"$f":"IFERROR(INDIRECT($B214&\"!j17\"),\"\")","v":""},{"$f":"IFERROR(INDIRECT($B214&\"!k17\"),\"\")","v":""},{"$f":"IFERROR(INDIRECT($B214&\"!l17\"),\"\")","v":""},{"$f":"IFERROR(INDIRECT($B214&\"!m17\"),\"\")","v":""},{"$f":"IFERROR(INDIRECT($B214&\"!n17\"),\"\")","v":""},{"$f":"IFERROR(INDIRECT($B214&\"!o17\"),\"\")","v":""}]
[1,null,{"$f":"IFERROR(INDIRECT($B215&\"!d18\"),\"\")","v":""},"","","","",{"$f":"IFERROR(INDIRECT($B215&\"!g18\"),\"\")","v":""},{"$f":"IFERROR(INDIRECT($B215&\"!i18\"),\"\")","v":""},"",{"$f":"IFERROR(INDIRECT($B215&\"!j18\"),\"\")","v":""},{"$f":"IFERROR(INDIRECT($B215&\"!k18\"),\"\")","v":""},{"$f":"IFERROR(INDIRECT($B215&\"!l18\"),\"\")","v":""},{"$f":"IFERROR(INDIRECT($B215&\"!m18\"),\"\")","v":""},{"$f":"IFERROR(INDIRECT($B215&\"!n18\"),\"\")","v":""},{"$f":"IFERROR(INDIRECT($B215&\"!o18\"),\"\")","v":""}]
[1,null,{"$f":"IFERROR(INDIRECT($B216&\"!d19\"),\"\")","v":""},"","","","",{"$f":"IFERROR(INDIRECT($B216&\"!g19\"),\"\")","v":""},{"$f":"IFERROR(INDIRECT($B216&\"!i19\"),\"\")","v":""},"",{"$f":"IFERROR(INDIRECT($B216&\"!j19\"),\"\")","v":""},{"$f":"IFERROR(INDIRECT($B216&\"!k19\"),\"\")","v":""},{"$f":"IFERROR(INDIRECT($B216&\"!l19\"),\"\")","v":""},{"$f":"IFERROR(INDIRECT($B216&\"!m19\"),\"\")","v":""},{"$f":"IFERROR(INDIRECT($B216&\"!n19\"),\"\")","v":""},{"$f":"IFERROR(INDIRECT($B216&\"!o19\"),\"\")","v":""}]
[1,null,{"$f":"IFERROR(INDIRECT($B217&\"!d20\"),\"\")","v":""},"","","","",{"$f":"IFERROR(INDIRECT($B217&\"!g20\"),\"\")","v":""},{"$f":"IFERROR(INDIRECT($B217&\"!i20\"),\"\")","v":""},"",{"$f":"IFERROR(INDIRECT($B217&\"!j20\"),\"\")","v":""},{"$f":"IFERROR(INDIRECT($B217&\"!k20\"),\"\")","v":""},{"$f":"IFERROR(INDIRECT($B217&\"!l20\"),\"\")","v":""},{"$f":"IFERROR(INDIRECT($B217&\"!m20\"),\"\")","v":""},{"$f":"IFERROR(INDIRECT($B217&\"!n20\"),\"\")","v":""},{"$f":"IFERROR(INDIRECT($B217&\"!o120\"),\"\")","v":""}]
[1,null,{"$f":"IFERROR(INDIRECT($B218&\"!d21\"),\"\")","v":""},"","","","",{"$f":"IFERROR(INDIRECT($B218&\"!g21\"),\"\")","v":""},{"$f":"IFERROR(INDIRECT($B218&\"!i21\"),\"\")","v":""},"",{"$f":"IFERROR(INDIRECT($B218&\"!j21\"),\"\")","v":""},{"$f":"IFERROR(INDIRECT($B218&\"!k21\"),\"\")","v":""},{"$f":"IFERROR(INDIRECT($B218&\"!l21\"),\"\")","v":""},{"$f":"IFERROR(INDIRECT($B218&\"!m21\"),\"\")","v":""},{"$f":"IFERROR(INDIRECT($B218&\"!n21\"),\"\")","v":""},{"$f":"IFERROR(INDIRECT($B218&\"!o121\"),\"\")","v":""}]
[1,null,{"$f":"IFERROR(INDIRECT($B219&\"!d22\"),\"\")","v":""},"","","","",{"$f":"IFERROR(INDIRECT($B219&\"!g22\"),\"\")","v":""},{"$f":"IFERROR(INDIRECT($B219&\"!i22\"),\"\")","v":""},"",{"$f":"IFERROR(INDIRECT($B219&\"!j22\"),\"\")","v":""},{"$f":"IFERROR(INDIRECT($B219&\"!k22\"),\"\")","v":""},{"$f":"IFERROR(INDIRECT($B219&\"!l22\"),\"\")","v":""},{"$f":"IFERROR(INDIRECT($B219&\"!m22\"),\"\")","v":""},{"$f":"IFERROR(INDIRECT($B219&\"!n22\"),\"\")","v":""},{"$f":"IFERROR(INDIRECT($B219&\"!o22\"),\"\")","v":""}]
[1,null,{"$f":"IFERROR(INDIRECT($B220&\"!d16\"),\"\")","v":""},"","","","",{"$f":"IFERROR(INDIRECT($B220&\"!g16\"),\"\")","v":""},{"$f":"IFERROR(INDIRECT($B220&\"!h16\"),\"\")","v":""},"","","","","",{"$f":"IFERROR(INDIRECT($B220&\"!n16\"),\"\")","v":""},""]
[1,null,{"$f":"IFERROR(INDIRECT($B221&\"!d17\"),\"\")","v":""},"","","","",{"$f":"IFERROR(INDIRECT($B221&\"!g17\"),\"\")","v":""},{"$f":"IFERROR(INDIRECT($B221&\"!i17\"),\"\")","v":""},"",{"$f":"IFERROR(INDIRECT($B221&\"!j17\"),\"\")","v":""},{"$f":"IFERROR(INDIRECT($B221&\"!k17\"),\"\")","v":""},{"$f":"IFERROR(INDIRECT($B221&\"!l17\"),\"\")","v":""},{"$f":"IFERROR(INDIRECT($B221&\"!m17\"),\"\")","v":""},{"$f":"IFERROR(INDIRECT($B221&\"!n17\"),\"\")","v":""},{"$f":"IFERROR(INDIRECT($B221&\"!o17\"),\"\")","v":""}]
[1,null,{"$f":"IFERROR(INDIRECT($B222&\"!d18\"),\"\")","v":""},"","","","",{"$f":"IFERROR(INDIRECT($B222&\"!g18\"),\"\")","v":""},{"$f":"IFERROR(INDIRECT($B222&\"!i18\"),\"\")","v":""},"",{"$f":"IFERROR(INDIRECT($B222&\"!j18\"),\"\")","v":""},{"$f":"IFERROR(INDIRECT($B222&\"!k18\"),\"\")","v":""},{"$f":"IFERROR(INDIRECT($B222&\"!l18\"),\"\")","v":""},{"$f":"IFERROR(INDIRECT($B222&\"!m18\"),\"\")","v":""},{"$f":"IFERROR(INDIRECT($B222&\"!n18\"),\"\")","v":""},{"$f":"IFERROR(INDIRECT($B222&\"!o18\"),\"\")","v":""}]
[1,null,{"$f":"IFERROR(INDIRECT($B223&\"!d19\"),\"\")","v":""},"","","","",{"$f":"IFERROR(INDIRECT($B223&\"!g19\"),\"\")","v":""},{"$f":"IFERROR(INDIRECT($B223&\"!i19\"),\"\")","v":""},"",{"$f":"IFERROR(INDIRECT($B223&\"!j19\"),\"\")","v":""},{"$f":"IFERROR(INDIRECT($B223&\"!k19\"),\"\")","v":""},{"$f":"IFERROR(INDIRECT($B223&\"!l19\"),\"\")","v":""},{"$f":"IFERROR(INDIRECT($B223&\"!m19\"),\"\")","v":""},{"$f":"IFERROR(INDIRECT($B223&\"!n19\"),\"\")","v":""},{"$f":"IFERROR(INDIRECT($B223&\"!o19\"),\"\")","v":""}]
[1,null,{"$f":"IFERROR(INDIRECT($B224&\"!d20\"),\"\")","v":""},"","","","",{"$f":"IFERROR(INDIRECT($B224&\"!g20\"),\"\")","v":""},{"$f":"IFERROR(INDIRECT($B224&\"!i20\"),\"\")","v":""},"",{"$f":"IFERROR(INDIRECT($B224&\"!j20\"),\"\")","v":""},{"$f":"IFERROR(INDIRECT($B224&\"!k20\"),\"\")","v":""},{"$f":"IFERROR(INDIRECT($B224&\"!l20\"),\"\")","v":""},{"$f":"IFERROR(INDIRECT($B224&\"!m20\"),\"\")","v":""},{"$f":"IFERROR(INDIRECT($B224&\"!n20\"),\"\")","v":""},{"$f":"IFERROR(INDIRECT($B224&\"!o120\"),\"\")","v":""}]
[1,null,{"$f":"IFERROR(INDIRECT($B225&\"!d21\"),\"\")","v":""},"","","","",{"$f":"IFERROR(INDIRECT($B225&\"!g21\"),\"\")","v":""},{"$f":"IFERROR(INDIRECT($B225&\"!i21\"),\"\")","v":""},"",{"$f":"IFERROR(INDIRECT($B225&\"!j21\"),\"\")","v":""},{"$f":"IFERROR(INDIRECT($B225&\"!k21\"),\"\")","v":""},{"$f":"IFERROR(INDIRECT($B225&\"!l21\"),\"\")","v":""},{"$f":"IFERROR(INDIRECT($B225&\"!m21\"),\"\")","v":""},{"$f":"IFERROR(INDIRECT($B225&\"!n21\"),\"\")","v":""},{"$f":"IFERROR(INDIRECT($B225&\"!o121\"),\"\")","v":""}]
[1,null,{"$f":"IFERROR(INDIRECT($B226&\"!d22\"),\"\")","v":""},"","","","",{"$f":"IFERROR(INDIRECT($B226&\"!g22\"),\"\")","v":""},{"$f":"IFERROR(INDIRECT($B226&\"!i22\"),\"\")","v":""},"",{"$f":"IFERROR(INDIRECT($B226&\"!j22\"),\"\")","v":""},{"$f":"IFERROR(INDIRECT($B226&\"!k22\"),\"\")","v":""},{"$f":"IFERROR(INDIRECT($B226&\"!l22\"),\"\")","v":""},{"$f":"IFERROR(INDIRECT($B226&\"!m22\"),\"\")","v":""},{"$f":"IFERROR(INDIRECT($B226&\"!n22\"),\"\")","v":""},{"$f":"IFERROR(INDIRECT($B226&\"!o22\"),\"\")","v":""}]
[1,null,{"$f":"IFERROR(INDIRECT($B227&\"!d16\"),\"\")","v":""},"","","","",{"$f":"IFERROR(INDIRECT($B227&\"!g16\"),\"\")","v":""},{"$f":"IFERROR(INDIRECT($B227&\"!h16\"),\"\")","v":""},"","","","","",{"$f":"IFERROR(INDIRECT($B227&\"!n16\"),\"\")","v":""},""]
[1,null,{"$f":"IFERROR(INDIRECT($B228&\"!d17\"),\"\")","v":""},"","","","",{"$f":"IFERROR(INDIRECT($B228&\"!g17\"),\"\")","v":""},{"$f":"IFERROR(INDIRECT($B228&\"!i17\"),\"\")","v":""},"",{"$f":"IFERROR(INDIRECT($B228&\"!j17\"),\"\")","v":""},{"$f":"IFERROR(INDIRECT($B228&\"!k17\"),\"\")","v":""},{"$f":"IFERROR(INDIRECT($B228&\"!l17\"),\"\")","v":""},{"$f":"IFERROR(INDIRECT($B228&\"!m17\"),\"\")","v":""},{"$f":"IFERROR(INDIRECT($B228&\"!n17\"),\"\")","v":""},{"$f":"IFERROR(INDIRECT($B228&\"!o17\"),\"\")","v":""}]
[1,null,{"$f":"IFERROR(INDIRECT($B229&\"!d18\"),\"\")","v":""},"","","","",{"$f":"IFERROR(INDIRECT($B229&\"!g18\"),\"\")","v":""},{"$f":"IFERROR(INDIRECT($B229&\"!i18\"),\"\")","v":""},"",{"$f":"IFERROR(INDIRECT($B229&\"!j18\"),\"\")","v":""},{"$f":"IFERROR(INDIRECT($B229&\"!k18\"),\"\")","v":""},{"$f":"IFERROR(INDIRECT($B229&\"!l18\"),\"\")","v":""},{"$f":"IFERROR(INDIRECT($B229&\"!m18\"),\"\")","v":""},{"$f":"IFERROR(INDIRECT($B229&\"!n18\"),\"\")","v":""},{"$f":"IFERROR(INDIRECT($B229&\"!o18\"),\"\")","v":""}]
[1,null,{"$f":"IFERROR(INDIRECT($B230&\"!d19\"),\"\")","v":""},"","","","",{"$f":"IFERROR(INDIRECT($B230&\"!g19\"),\"\")","v":""},{"$f":"IFERROR(INDIRECT($B230&\"!i19\"),\"\")","v":""},"",{"$f":"IFERROR(INDIRECT($B230&\"!j19\"),\"\")","v":""},{"$f":"IFERROR(INDIRECT($B230&\"!k19\"),\"\")","v":""},{"$f":"IFERROR(INDIRECT($B230&\"!l19\"),\"\")","v":""},{"$f":"IFERROR(INDIRECT($B230&\"!m19\"),\"\")","v":""},{"$f":"IFERROR(INDIRECT($B230&\"!n19\"),\"\")","v":""},{"$f":"IFERROR(INDIRECT($B230&\"!o19\"),\"\")","v":""}]
[1,null,{"$f":"IFERROR(INDIRECT($B231&\"!d20\"),\"\")","v":""},"","","","",{"$f":"IFERROR(INDIRECT($B231&\"!g20\"),\"\")","v":""},{"$f":"IFERROR(INDIRECT($B231&\"!i20\"),\"\")","v":""},"",{"$f":"IFERROR(INDIRECT($B231&\"!j20\"),\"\")","v":""},{"$f":"IFERROR(INDIRECT($B231&\"!k20\"),\"\")","v":""},{"$f":"IFERROR(INDIRECT($B231&\"!l20\"),\"\")","v":""},{"$f":"IFERROR(INDIRECT($B231&\"!m20\"),\"\")","v":""},{"$f":"IFERROR(INDIRECT($B231&\"!n20\"),\"\")","v":""},{"$f":"IFERROR(INDIRECT($B231&\"!o120\"),\"\")","v":""}]
[1,null,{"$f":"IFERROR(INDIRECT($B232&\"!d21\"),\"\")","v":""},"","","","",{"$f":"IFERROR(INDIRECT($B232&\"!g21\"),\"\")","v":""},{"$f":"IFERROR(INDIRECT($B232&\"!i21\"),\"\")","v":""},"",{"$f":"IFERROR(INDIRECT($B232&\"!j21\"),\"\")","v":""},{"$f":"IFERROR(INDIRECT($B232&\"!k21\"),\"\")","v":""},{"$f":"IFERROR(INDIRECT($B232&\"!l21\"),\"\")","v":""},{"$f":"IFERROR(INDIRECT($B232&\"!m21\"),\"\")","v":""},{"$f":"IFERROR(INDIRECT($B232&\"!n21\"),\"\")","v":""},{"$f":"IFERROR(INDIRECT($B232&\"!o121\"),\"\")","v":""}]
[1,null,{"$f":"IFERROR(INDIRECT($B233&\"!d22\"),\"\")","v":""},"","","","",{"$f":"IFERROR(INDIRECT($B233&\"!g22\"),\"\")","v":""},{"$f":"IFERROR(INDIRECT($B233&\"!i22\"),\"\")","v":""},"",{"$f":"IFERROR(INDIRECT($B233&\"!j22\"),\"\")","v":""},{"$f":"IFERROR(INDIRECT($B233&\"!k22\"),\"\")","v":""},{"$f":"IFERROR(INDIRECT($B233&\"!l22\"),\"\")","v":""},{"$f":"IFERROR(INDIRECT($B233&\"!m22\"),\"\")","v":""},{"$f":"IFERROR(INDIRECT($B233&\"!n22\"),\"\")","v":""},{"$f":"IFERROR(INDIRECT($B233&\"!o22\"),\"\")","v":""}]
[1,null,{"$f":"IFERROR(INDIRECT($B234&\"!d16\"),\"\")","v":""},"","","","",{"$f":"IFERROR(INDIRECT($B234&\"!g16\"),\"\")","v":""},{"$f":"IFERROR(INDIRECT($B234&\"!h16\"),\"\")","v":""},{"$f":"IFERROR(INDIRECT($B234&\"!i16\"),\"\")","v":""},{"$f":"IFERROR(INDIRECT($B234&\"!j16\"),\"\")","v":""},{"$f":"IFERROR(INDIRECT($B234&\"!k16\"),\"\")","v":""},{"$f":"IFERROR(INDIRECT($B234&\"!l16\"),\"\")","v":""},{"$f":"IFERROR(INDIRECT($B234&\"!m16\"),\"\")","v":""},{"$f":"IFERROR(INDIRECT($B234&\"!n16\"),\"\")","v":""},{"$f":"IFERROR(INDIRECT($B234&\"!o16\"),\"\")","v":""}]
[1,null,{"$f":"IFERROR(INDIRECT($B235&\"!d17\"),\"\")","v":""},"","","","",{"$f":"IFERROR(INDIRECT($B235&\"!g17\"),\"\")","v":""},{"$f":"IFERROR(INDIRECT($B235&\"!i17\"),\"\")","v":""},"",{"$f":"IFERROR(INDIRECT($B235&\"!j17\"),\"\")","v":""},{"$f":"IFERROR(INDIRECT($B235&\"!k17\"),\"\")","v":""},{"$f":"IFERROR(INDIRECT($B235&\"!l17\"),\"\")","v":""},{"$f":"IFERROR(INDIRECT($B235&\"!m17\"),\"\")","v":""},{"$f":"IFERROR(INDIRECT($B235&\"!n17\"),\"\")","v":""},{"$f":"IFERROR(INDIRECT($B235&\"!o17\"),\"\")","v":""}]
[1,null,{"$f":"IFERROR(INDIRECT($B236&\"!d18\"),\"\")","v":""},"","","","",{"$f":"IFERROR(INDIRECT($B236&\"!g18\"),\"\")","v":""},{"$f":"IFERROR(INDIRECT($B236&\"!i18\"),\"\")","v":""},"",{"$f":"IFERROR(INDIRECT($B236&\"!j18\"),\"\")","v":""},{"$f":"IFERROR(INDIRECT($B236&\"!k18\"),\"\")","v":""},{"$f":"IFERROR(INDIRECT($B236&\"!l18\"),\"\")","v":""},{"$f":"IFERROR(INDIRECT($B236&\"!m18\"),\"\")","v":""},{"$f":"IFERROR(INDIRECT($B236&\"!n18\"),\"\")","v":""},{"$f":"IFERROR(INDIRECT($B236&\"!o18\"),\"\")","v":""}]
[1,null,{"$f":"IFERROR(INDIRECT($B237&\"!d19\"),\"\")","v":""},"","","","",{"$f":"IFERROR(INDIRECT($B237&\"!g19\"),\"\")","v":""},{"$f":"IFERROR(INDIRECT($B237&\"!i19\"),\"\")","v":""},"",{"$f":"IFERROR(INDIRECT($B237&\"!j19\"),\"\")","v":""},{"$f":"IFERROR(INDIRECT($B237&\"!k19\"),\"\")","v":""},{"$f":"IFERROR(INDIRECT($B237&\"!l19\"),\"\")","v":""},{"$f":"IFERROR(INDIRECT($B237&\"!m19\"),\"\")","v":""},{"$f":"IFERROR(INDIRECT($B237&\"!n19\"),\"\")","v":""},{"$f":"IFERROR(INDIRECT($B237&\"!o19\"),\"\")","v":""}]
[1,null,{"$f":"IFERROR(INDIRECT($B238&\"!d20\"),\"\")","v":""},"","","","",{"$f":"IFERROR(INDIRECT($B238&\"!g20\"),\"\")","v":""},{"$f":"IFERROR(INDIRECT($B238&\"!i20\"),\"\")","v":""},"",{"$f":"IFERROR(INDIRECT($B238&\"!j20\"),\"\")","v":""},{"$f":"IFERROR(INDIRECT($B238&\"!k20\"),\"\")","v":""},{"$f":"IFERROR(INDIRECT($B238&\"!l20\"),\"\")","v":""},{"$f":"IFERROR(INDIRECT($B238&\"!m20\"),\"\")","v":""},{"$f":"IFERROR(INDIRECT($B238&\"!n20\"),\"\")","v":""},{"$f":"IFERROR(INDIRECT($B238&\"!o120\"),\"\")","v":""}]
[1,null,{"$f":"IFERROR(INDIRECT($B239&\"!d21\"),\"\")","v":""},"","","","",{"$f":"IFERROR(INDIRECT($B239&\"!g21\"),\"\")","v":""},{"$f":"IFERROR(INDIRECT($B239&\"!i21\"),\"\")","v":""},"",{"$f":"IFERROR(INDIRECT($B239&\"!j21\"),\"\")","v":""},{"$f":"IFERROR(INDIRECT($B239&\"!k21\"),\"\")","v":""},{"$f":"IFERROR(INDIRECT($B239&\"!l21\"),\"\")","v":""},{"$f":"IFERROR(INDIRECT($B239&\"!m21\"),\"\")","v":""},{"$f":"IFERROR(INDIRECT($B239&\"!n21\"),\"\")","v":""},{"$f":"IFERROR(INDIRECT($B239&\"!o121\"),\"\")","v":""}]
[1,null,{"$f":"IFERROR(INDIRECT($B240&\"!d22\"),\"\")","v":""},"","","","",{"$f":"IFERROR(INDIRECT($B240&\"!g22\"),\"\")","v":""},{"$f":"IFERROR(INDIRECT($B240&\"!i22\"),\"\")","v":""},"",{"$f":"IFERROR(INDIRECT($B240&\"!j22\"),\"\")","v":""},{"$f":"IFERROR(INDIRECT($B240&\"!k22\"),\"\")","v":""},{"$f":"IFERROR(INDIRECT($B240&\"!l22\"),\"\")","v":""},{"$f":"IFERROR(INDIRECT($B240&\"!m22\"),\"\")","v":""},{"$f":"IFERROR(INDIRECT($B240&\"!n22\"),\"\")","v":""},{"$f":"IFERROR(INDIRECT($B240&\"!o22\"),\"\")","v":""}]
[1,null,{"$f":"IFERROR(INDIRECT($B241&\"!d16\"),\"\")","v":""},"","","","",{"$f":"IFERROR(INDIRECT($B241&\"!g16\"),\"\")","v":""},{"$f":"IFERROR(INDIRECT($B241&\"!h16\"),\"\")","v":""},"","","","","",{"$f":"IFERROR(INDIRECT($B241&\"!n16\"),\"\")","v":""},""]
[1,null,{"$f":"IFERROR(INDIRECT($B242&\"!d17\"),\"\")","v":""},"","","","",{"$f":"IFERROR(INDIRECT($B242&\"!g17\"),\"\")","v":""},{"$f":"IFERROR(INDIRECT($B242&\"!i17\"),\"\")","v":""},"",{"$f":"IFERROR(INDIRECT($B242&\"!j17\"),\"\")","v":""},{"$f":"IFERROR(INDIRECT($B242&\"!k17\"),\"\")","v":""},{"$f":"IFERROR(INDIRECT($B242&\"!l17\"),\"\")","v":""},{"$f":"IFERROR(INDIRECT($B242&\"!m17\"),\"\")","v":""},{"$f":"IFERROR(INDIRECT($B242&\"!n17\"),\"\")","v":""},{"$f":"IFERROR(INDIRECT($B242&\"!o17\"),\"\")","v":""}]
[1,null,{"$f":"IFERROR(INDIRECT($B243&\"!d18\"),\"\")","v":""},"","","","",{"$f":"IFERROR(INDIRECT($B243&\"!g18\"),\"\")","v":""},{"$f":"IFERROR(INDIRECT($B243&\"!i18\"),\"\")","v":""},"",{"$f":"IFERROR(INDIRECT($B243&\"!j18\"),\"\")","v":""},{"$f":"IFERROR(INDIRECT($B243&\"!k18\"),\"\")","v":""},{"$f":"IFERROR(INDIRECT($B243&\"!l18\"),\"\")","v":""},{"$f":"IFERROR(INDIRECT($B243&\"!m18\"),\"\")","v":""},{"$f":"IFERROR(INDIRECT($B243&\"!n18\"),\"\")","v":""},{"$f":"IFERROR(INDIRECT($B243&\"!o18\"),\"\")","v":""}]
[1,null,{"$f":"IFERROR(INDIRECT($B244&\"!d19\"),\"\")","v":""},"","","","",{"$f":"IFERROR(INDIRECT($B244&\"!g19\"),\"\")","v":""},{"$f":"IFERROR(INDIRECT($B244&\"!i19\"),\"\")","v":""},"",{"$f":"IFERROR(INDIRECT($B244&\"!j19\"),\"\")","v":""},{"$f":"IFERROR(INDIRECT($B244&\"!k19\"),\"\")","v":""},{"$f":"IFERROR(INDIRECT($B244&\"!l19\"),\"\")","v":""},{"$f":"IFERROR(INDIRECT($B244&\"!m19\"),\"\")","v":""},{"$f":"IFERROR(INDIRECT($B244&\"!n19\"),\"\")","v":""},{"$f":"IFERROR(INDIRECT($B244&\"!o19\"),\"\")","v":""}]
[1,null,{"$f":"IFERROR(INDIRECT($B245&\"!d20\"),\"\")","v":""},"","","","",{"$f":"IFERROR(INDIRECT($B245&\"!g20\"),\"\")","v":""},{"$f":"IFERROR(INDIRECT($B245&\"!i20\"),\"\")","v":""},"",{"$f":"IFERROR(INDIRECT($B245&\"!j20\"),\"\")","v":""},{"$f":"IFERROR(INDIRECT($B245&\"!k20\"),\"\")","v":""},{"$f":"IFERROR(INDIRECT($B245&\"!l20\"),\"\")","v":""},{"$f":"IFERROR(INDIRECT($B245&\"!m20\"),\"\")","v":""},{"$f":"IFERROR(INDIRECT($B245&\"!n20\"),\"\")","v":""},{"$f":"IFERROR(INDIRECT($B245&\"!o120\"),\"\")","v":""}]
[1,null,{"$f":"IFERROR(INDIRECT($B246&\"!d21\"),\"\")","v":""},"","","","",{"$f":"IFERROR(INDIRECT($B246&\"!g21\"),\"\")","v":""},{"$f":"IFERROR(INDIRECT($B246&\"!i21\"),\"\")","v":""},"",{"$f":"IFERROR(INDIRECT($B246&\"!j21\"),\"\")","v":""},{"$f":"IFERROR(INDIRECT($B246&\"!k21\"),\"\")","v":""},{"$f":"IFERROR(INDIRECT($B246&\"!l21\"),\"\")","v":""},{"$f":"IFERROR(INDIRECT($B246&\"!m21\"),\"\")","v":""},{"$f":"IFERROR(INDIRECT($B246&\"!n21\"),\"\")","v":""},{"$f":"IFERROR(INDIRECT($B246&\"!o121\"),\"\")","v":""}]
[1,null,{"$f":"IFERROR(INDIRECT($B247&\"!d22\"),\"\")","v":""},"","","","",{"$f":"IFERROR(INDIRECT($B247&\"!g22\"),\"\")","v":""},{"$f":"IFERROR(INDIRECT($B247&\"!i22\"),\"\")","v":""},"",{"$f":"IFERROR(INDIRECT($B247&\"!j22\"),\"\")","v":""},{"$f":"IFERROR(INDIRECT($B247&\"!k22\"),\"\")","v":""},{"$f":"IFERROR(INDIRECT($B247&\"!l22\"),\"\")","v":""},{"$f":"IFERROR(INDIRECT($B247&\"!m22\"),\"\")","v":""},{"$f":"IFERROR(INDIRECT($B247&\"!n22\"),\"\")","v":""},{"$f":"IFERROR(INDIRECT($B247&\"!o22\"),\"\")","v":""}]
[1,null,{"$f":"IFERROR(INDIRECT($B248&\"!d16\"),\"\")","v":""},"","","","",{"$f":"IFERROR(INDIRECT($B248&\"!g16\"),\"\")","v":""},{"$f":"IFERROR(INDIRECT($B248&\"!h16\"),\"\")","v":""},"","","","","",{"$f":"IFERROR(INDIRECT($B248&\"!n16\"),\"\")","v":""},""]
[1,null,{"$f":"IFERROR(INDIRECT($B249&\"!d17\"),\"\")","v":""},"","","","",{"$f":"IFERROR(INDIRECT($B249&\"!g17\"),\"\")","v":""},{"$f":"IFERROR(INDIRECT($B249&\"!i17\"),\"\")","v":""},"",{"$f":"IFERROR(INDIRECT($B249&\"!j17\"),\"\")","v":""},{"$f":"IFERROR(INDIRECT($B249&\"!k17\"),\"\")","v":""},{"$f":"IFERROR(INDIRECT($B249&\"!l17\"),\"\")","v":""},{"$f":"IFERROR(INDIRECT($B249&\"!m17\"),\"\")","v":""},{"$f":"IFERROR(INDIRECT($B249&\"!n17\"),\"\")","v":""},{"$f":"IFERROR(INDIRECT($B249&\"!o17\"),\"\")","v":""}]
[1,null,{"$f":"IFERROR(INDIRECT($B250&\"!d18\"),\"\")","v":""},"","","","",{"$f":"IFERROR(INDIRECT($B250&\"!g18\"),\"\")","v":""},{"$f":"IFERROR(INDIRECT($B250&\"!i18\"),\"\")","v":""},"",{"$f":"IFERROR(INDIRECT($B250&\"!j18\"),\"\")","v":""},{"$f":"IFERROR(INDIRECT($B250&\"!k18\"),\"\")","v":""},{"$f":"IFERROR(INDIRECT($B250&\"!l18\"),\"\")","v":""},{"$f":"IFERROR(INDIRECT($B250&\"!m18\"),\"\")","v":""},{"$f":"IFERROR(INDIRECT($B250&\"!n18\"),\"\")","v":""},{"$f":"IFERROR(INDIRECT($B250&\"!o18\"),\"\")","v":""}]
[1,null,{"$f":"IFERROR(INDIRECT($B251&\"!d19\"),\"\")","v":""},"","","","",{"$f":"IFERROR(INDIRECT($B251&\"!g19\"),\"\")","v":""},{"$f":"IFERROR(INDIRECT($B251&\"!i19\"),\"\")","v":""},"",{"$f":"IFERROR(INDIRECT($B251&\"!j19\"),\"\")","v":""},{"$f":"IFERROR(INDIRECT($B251&\"!k19\"),\"\")","v":""},{"$f":"IFERROR(INDIRECT($B251&\"!l19\"),\"\")","v":""},{"$f":"IFERROR(INDIRECT($B251&\"!m19\"),\"\")","v":""},{"$f":"IFERROR(INDIRECT($B251&\"!n19\"),\"\")","v":""},{"$f":"IFERROR(INDIRECT($B251&\"!o19\"),\"\")","v":""}]
[1,null,{"$f":"IFERROR(INDIRECT($B252&\"!d20\"),\"\")","v":""},"","","","",{"$f":"IFERROR(INDIRECT($B252&\"!g20\"),\"\")","v":""},{"$f":"IFERROR(INDIRECT($B252&\"!i20\"),\"\")","v":""},"",{"$f":"IFERROR(INDIRECT($B252&\"!j20\"),\"\")","v":""},{"$f":"IFERROR(INDIRECT($B252&\"!k20\"),\"\")","v":""},{"$f":"IFERROR(INDIRECT($B252&\"!l20\"),\"\")","v":""},{"$f":"IFERROR(INDIRECT($B252&\"!m20\"),\"\")","v":""},{"$f":"IFERROR(INDIRECT($B252&\"!n20\"),\"\")","v":""},{"$f":"IFERROR(INDIRECT($B252&\"!o120\"),\"\")","v":""}]
[1,null,{"$f":"IFERROR(INDIRECT($B253&\"!d21\"),\"\")","v":""},"","","","",{"$f":"IFERROR(INDIRECT($B253&\"!g21\"),\"\")","v":""},{"$f":"IFERROR(INDIRECT($B253&\"!i21\"),\"\")","v":""},"",{"$f":"IFERROR(INDIRECT($B253&\"!j21\"),\"\")","v":""},{"$f":"IFERROR(INDIRECT($B253&\"!k21\"),\"\")","v":""},{"$f":"IFERROR(INDIRECT($B253&\"!l21\"),\"\")","v":""},{"$f":"IFERROR(INDIRECT($B253&\"!m21\"),\"\")","v":""},{"$f":"IFERROR(INDIRECT($B253&\"!n21\"),\"\")","v":""},{"$f":"IFERROR(INDIRECT($B253&\"!o121\"),\"\")","v":""}]
[1,null,{"$f":"IFERROR(INDIRECT($B254&\"!d22\"),\"\")","v":""},"","","","",{"$f":"IFERROR(INDIRECT($B254&\"!g22\"),\"\")","v":""},{"$f":"IFERROR(INDIRECT($B254&\"!i22\"),\"\")","v":""},"",{"$f":"IFERROR(INDIRECT($B254&\"!j22\"),\"\")","v":""},{"$f":"IFERROR(INDIRECT($B254&\"!k22\"),\"\")","v":""},{"$f":"IFERROR(INDIRECT($B254&\"!l22\"),\"\")","v":""},{"$f":"IFERROR(INDIRECT($B254&\"!m22\"),\"\")","v":""},{"$f":"IFERROR(INDIRECT($B254&\"!n22\"),\"\")","v":""},{"$f":"IFERROR(INDIRECT($B254&\"!o22\"),\"\")","v":""}]
[1,null,{"$f":"IFERROR(INDIRECT($B255&\"!d16\"),\"\")","v":""},"","","","",{"$f":"IFERROR(INDIRECT($B255&\"!g16\"),\"\")","v":""},{"$f":"IFERROR(INDIRECT($B255&\"!h16\"),\"\")","v":""},"","","","","",{"$f":"IFERROR(INDIRECT($B255&\"!n16\"),\"\")","v":""},""]
[1,null,{"$f":"IFERROR(INDIRECT($B256&\"!d17\"),\"\")","v":""},"","","","",{"$f":"IFERROR(INDIRECT($B256&\"!g17\"),\"\")","v":""},{"$f":"IFERROR(INDIRECT($B256&\"!i17\"),\"\")","v":""},"",{"$f":"IFERROR(INDIRECT($B256&\"!j17\"),\"\")","v":""},{"$f":"IFERROR(INDIRECT($B256&\"!k17\"),\"\")","v":""},{"$f":"IFERROR(INDIRECT($B256&\"!l17\"),\"\")","v":""},{"$f":"IFERROR(INDIRECT($B256&\"!m17\"),\"\")","v":""},{"$f":"IFERROR(INDIRECT($B256&\"!n17\"),\"\")","v":""},{"$f":"IFERROR(INDIRECT($B256&\"!o17\"),\"\")","v":""}]
[1,null,{"$f":"IFERROR(INDIRECT($B257&\"!d18\"),\"\")","v":""},"","","","",{"$f":"IFERROR(INDIRECT($B257&\"!g18\"),\"\")","v":""},{"$f":"IFERROR(INDIRECT($B257&\"!i18\"),\"\")","v":""},"",{"$f":"IFERROR(INDIRECT($B257&\"!j18\"),\"\")","v":""},{"$f":"IFERROR(INDIRECT($B257&\"!k18\"),\"\")","v":""},{"$f":"IFERROR(INDIRECT($B257&\"!l18\"),\"\")","v":""},{"$f":"IFERROR(INDIRECT($B257&\"!m18\"),\"\")","v":""},{"$f":"IFERROR(INDIRECT($B257&\"!n18\"),\"\")","v":""},{"$f":"IFERROR(INDIRECT($B257&\"!o18\"),\"\")","v":""}]
[1,null,{"$f":"IFERROR(INDIRECT($B258&\"!d19\"),\"\")","v":""},"","","","",{"$f":"IFERROR(INDIRECT($B258&\"!g19\"),\"\")","v":""},{"$f":"IFERROR(INDIRECT($B258&\"!i19\"),\"\")","v":""},"",{"$f":"IFERROR(INDIRECT($B258&\"!j19\"),\"\")","v":""},{"$f":"IFERROR(INDIRECT($B258&\"!k19\"),\"\")","v":""},{"$f":"IFERROR(INDIRECT($B258&\"!l19\"),\"\")","v":""},{"$f":"IFERROR(INDIRECT($B258&\"!m19\"),\"\")","v":""},{"$f":"IFERROR(INDIRECT($B258&\"!n19\"),\"\")","v":""},{"$f":"IFERROR(INDIRECT($B258&\"!o19\"),\"\")","v":""}]
[1,null,{"$f":"IFERROR(INDIRECT($B259&\"!d20\"),\"\")","v":""},"","","","",{"$f":"IFERROR(INDIRECT($B259&\"!g20\"),\"\")","v":""},{"$f":"IFERROR(INDIRECT($B259&\"!i20\"),\"\")","v":""},"",{"$f":"IFERROR(INDIRECT($B259&\"!j20\"),\"\")","v":""},{"$f":"IFERROR(INDIRECT($B259&\"!k20\"),\"\")","v":""},{"$f":"IFERROR(INDIRECT($B259&\"!l20\"),\"\")","v":""},{"$f":"IFERROR(INDIRECT($B259&\"!m20\"),\"\")","v":""},{"$f":"IFERROR(INDIRECT($B259&\"!n20\"),\"\")","v":""},{"$f":"IFERROR(INDIRECT($B259&\"!o120\"),\"\")","v":""}]
[1,null,{"$f":"IFERROR(INDIRECT($B260&\"!d21\"),\"\")","v":""},{"$f":"IFERROR(INDIRECT($B260&\"!e10\"),\"\")","v":""},{"$f":"IFERROR(INDIRECT($B260&\"!e7\"),\"\")","v":""},{"$f":"IFERROR(INDIRECT($B260&\"!e12\"),\"\")","v":""},{"$f":"IFERROR(INDIRECT($B260&\"!e13\"),\"\")","v":""},{"$f":"IFERROR(INDIRECT($B260&\"!g21\"),\"\")","v":""},{"$f":"IFERROR(INDIRECT($B260&\"!i21\"),\"\")","v":""},"",{"$f":"IFERROR(INDIRECT($B260&\"!j21\"),\"\")","v":""},{"$f":"IFERROR(INDIRECT($B260&\"!k21\"),\"\")","v":""},{"$f":"IFERROR(INDIRECT($B260&\"!l21\"),\"\")","v":""},{"$f":"IFERROR(INDIRECT($B260&\"!m21\"),\"\")","v":""},{"$f":"IFERROR(INDIRECT($B260&\"!n21\"),\"\")","v":""},{"$f":"IFERROR(INDIRECT($B260&\"!o121\"),\"\")","v":""}]
[1,null,{"$f":"IFERROR(INDIRECT($B261&\"!d22\"),\"\")","v":""},"","","","",{"$f":"IFERROR(INDIRECT($B261&\"!g22\"),\"\")","v":""},{"$f":"IFERROR(INDIRECT($B261&\"!i22\"),\"\")","v":""},"",{"$f":"IFERROR(INDIRECT($B261&\"!j22\"),\"\")","v":""},{"$f":"IFERROR(INDIRECT($B261&\"!k22\"),\"\")","v":""},{"$f":"IFERROR(INDIRECT($B261&\"!l22\"),\"\")","v":""},{"$f":"IFERROR(INDIRECT($B261&\"!m22\"),\"\")","v":""},{"$f":"IFERROR(INDIRECT($B261&\"!n22\"),\"\")","v":""},{"$f":"IFERROR(INDIRECT($B261&\"!o22\"),\"\")","v":""}]
[1,null,{"$f":"IFERROR(INDIRECT($B262&\"!d16\"),\"\")","v":""},"","","","",{"$f":"IFERROR(INDIRECT($B262&\"!g16\"),\"\")","v":""},{"$f":"IFERROR(INDIRECT($B262&\"!h16\"),\"\")","v":""},"","","","","",{"$f":"IFERROR(INDIRECT($B262&\"!n16\"),\"\")","v":""},""]
[1,null,{"$f":"IFERROR(INDIRECT($B263&\"!d17\"),\"\")","v":""},"","","","",{"$f":"IFERROR(INDIRECT($B263&\"!g17\"),\"\")","v":""},{"$f":"IFERROR(INDIRECT($B263&\"!i17\"),\"\")","v":""},"",{"$f":"IFERROR(INDIRECT($B263&\"!j17\"),\"\")","v":""},{"$f":"IFERROR(INDIRECT($B263&\"!k17\"),\"\")","v":""},{"$f":"IFERROR(INDIRECT($B263&\"!l17\"),\"\")","v":""},{"$f":"IFERROR(INDIRECT($B263&\"!m17\"),\"\")","v":""},{"$f":"IFERROR(INDIRECT($B263&\"!n17\"),\"\")","v":""},{"$f":"IFERROR(INDIRECT($B263&\"!o17\"),\"\")","v":""}]
[1,null,{"$f":"IFERROR(INDIRECT($B264&\"!d18\"),\"\")","v":""},"","","","",{"$f":"IFERROR(INDIRECT($B264&\"!g18\"),\"\")","v":""},{"$f":"IFERROR(INDIRECT($B264&\"!i18\"),\"\")","v":""},"",{"$f":"IFERROR(INDIRECT($B264&\"!j18\"),\"\")","v":""},{"$f":"IFERROR(INDIRECT($B264&\"!k18\"),\"\")","v":""},{"$f":"IFERROR(INDIRECT($B264&\"!l18\"),\"\")","v":""},{"$f":"IFERROR(INDIRECT($B264&\"!m18\"),\"\")","v":""},{"$f":"IFERROR(INDIRECT($B264&\"!n18\"),\"\")","v":""},{"$f":"IFERROR(INDIRECT($B264&\"!o18\"),\"\")","v":""}]
[1,null,{"$f":"IFERROR(INDIRECT($B265&\"!d19\"),\"\")","v":""},"","","","",{"$f":"IFERROR(INDIRECT($B265&\"!g19\"),\"\")","v":""},{"$f":"IFERROR(INDIRECT($B265&\"!i19\"),\"\")","v":""},"",{"$f":"IFERROR(INDIRECT($B265&\"!j19\"),\"\")","v":""},{"$f":"IFERROR(INDIRECT($B265&\"!k19\"),\"\")","v":""},{"$f":"IFERROR(INDIRECT($B265&\"!l19\"),\"\")","v":""},{"$f":"IFERROR(INDIRECT($B265&\"!m19\"),\"\")","v":""},{"$f":"IFERROR(INDIRECT($B265&\"!n19\"),\"\")","v":""},{"$f":"IFERROR(INDIRECT($B265&\"!o19\"),\"\")","v":""}]
[1,null,{"$f":"IFERROR(INDIRECT($B266&\"!d20\"),\"\")","v":""},"","","","",{"$f":"IFERROR(INDIRECT($B266&\"!g20\"),\"\")","v":""},{"$f":"IFERROR(INDIRECT($B266&\"!i20\"),\"\")","v":""},"",{"$f":"IFERROR(INDIRECT($B266&\"!j20\"),\"\")","v":""},{"$f":"IFERROR(INDIRECT($B266&\"!k20\"),\"\")","v":""},{"$f":"IFERROR(INDIRECT($B266&\"!l20\"),\"\")","v":""},{"$f":"IFERROR(INDIRECT($B266&\"!m20\"),\"\")","v":""},{"$f":"IFERROR(INDIRECT($B266&\"!n20\"),\"\")","v":""},{"$f":"IFERROR(INDIRECT($B266&\"!o120\"),\"\")","v":""}]
[1,null,{"$f":"IFERROR(INDIRECT($B267&\"!d21\"),\"\")","v":""},"","","","",{"$f":"IFERROR(INDIRECT($B267&\"!g21\"),\"\")","v":""},{"$f":"IFERROR(INDIRECT($B267&\"!i21\"),\"\")","v":""},"",{"$f":"IFERROR(INDIRECT($B267&\"!j21\"),\"\")","v":""},{"$f":"IFERROR(INDIRECT($B267&\"!k21\"),\"\")","v":""},{"$f":"IFERROR(INDIRECT($B267&\"!l21\"),\"\")","v":""},{"$f":"IFERROR(INDIRECT($B267&\"!m21\"),\"\")","v":""},{"$f":"IFERROR(INDIRECT($B267&\"!n21\"),\"\")","v":""},{"$f":"IFERROR(INDIRECT($B267&\"!o121\"),\"\")","v":""}]
[1,null,{"$f":"IFERROR(INDIRECT($B268&\"!d22\"),\"\")","v":""},"","","","",{"$f":"IFERROR(INDIRECT($B268&\"!g22\"),\"\")","v":""},{"$f":"IFERROR(INDIRECT($B268&\"!i22\"),\"\")","v":""},"",{"$f":"IFERROR(INDIRECT($B268&\"!j22\"),\"\")","v":""},{"$f":"IFERROR(INDIRECT($B268&\"!k22\"),\"\")","v":""},{"$f":"IFERROR(INDIRECT($B268&\"!l22\"),\"\")","v":""},{"$f":"IFERROR(INDIRECT($B268&\"!m22\"),\"\")","v":""},{"$f":"IFERROR(INDIRECT($B268&\"!n22\"),\"\")","v":""},{"$f":"IFERROR(INDIRECT($B268&\"!o22\"),\"\")","v":""}]
[1,null,{"$f":"IFERROR(INDIRECT($B269&\"!d16\"),\"\")","v":""},"","","","",{"$f":"IFERROR(INDIRECT($B269&\"!g16\"),\"\")","v":""},{"$f":"IFERROR(INDIRECT($B269&\"!h16\"),\"\")","v":""},"","","","","",{"$f":"IFERROR(INDIRECT($B269&\"!n16\"),\"\")","v":""},""]
[1,null,{"$f":"IFERROR(INDIRECT($B270&\"!d17\"),\"\")","v":""},"","","","",{"$f":"IFERROR(INDIRECT($B270&\"!g17\"),\"\")","v":""},{"$f":"IFERROR(INDIRECT($B270&\"!i17\"),\"\")","v":""},"",{"$f":"IFERROR(INDIRECT($B270&\"!j17\"),\"\")","v":""},{"$f":"IFERROR(INDIRECT($B270&\"!k17\"),\"\")","v":""},{"$f":"IFERROR(INDIRECT($B270&\"!l17\"),\"\")","v":""},{"$f":"IFERROR(INDIRECT($B270&\"!m17\"),\"\")","v":""},{"$f":"IFERROR(INDIRECT($B270&\"!n17\"),\"\")","v":""},{"$f":"IFERROR(INDIRECT($B270&\"!o17\"),\"\")","v":""}]
[1,null,{"$f":"IFERROR(INDIRECT($B271&\"!d18\"),\"\")","v":""},"","","","",{"$f":"IFERROR(INDIRECT($B271&\"!g18\"),\"\")","v":""},{"$f":"IFERROR(INDIRECT($B271&\"!i18\"),\"\")","v":""},"",{"$f":"IFERROR(INDIRECT($B271&\"!j18\"),\"\")","v":""},{"$f":"IFERROR(INDIRECT($B271&\"!k18\"),\"\")","v":""},{"$f":"IFERROR(INDIRECT($B271&\"!l18\"),\"\")","v":""},{"$f":"IFERROR(INDIRECT($B271&\"!m18\"),\"\")","v":""},{"$f":"IFERROR(INDIRECT($B271&\"!n18\"),\"\")","v":""},{"$f":"IFERROR(INDIRECT($B271&\"!o18\"),\"\")","v":""}]
[1,null,{"$f":"IFERROR(INDIRECT($B272&\"!d19\"),\"\")","v":""},"","","","",{"$f":"IFERROR(INDIRECT($B272&\"!g19\"),\"\")","v":""},{"$f":"IFERROR(INDIRECT($B272&\"!i19\"),\"\")","v":""},"",{"$f":"IFERROR(INDIRECT($B272&\"!j19\"),\"\")","v":""},{"$f":"IFERROR(INDIRECT($B272&\"!k19\"),\"\")","v":""},{"$f":"IFERROR(INDIRECT($B272&\"!l19\"),\"\")","v":""},{"$f":"IFERROR(INDIRECT($B272&\"!m19\"),\"\")","v":""},{"$f":"IFERROR(INDIRECT($B272&\"!n19\"),\"\")","v":""},{"$f":"IFERROR(INDIRECT($B272&\"!o19\"),\"\")","v":""}]
[1,null,{"$f":"IFERROR(INDIRECT($B273&\"!d20\"),\"\")","v":""},"","","","",{"$f":"IFERROR(INDIRECT($B273&\"!g20\"),\"\")","v":""},{"$f":"IFERROR(INDIRECT($B273&\"!i20\"),\"\")","v":""},"",{"$f":"IFERROR(INDIRECT($B273&\"!j20\"),\"\")","v":""},{"$f":"IFERROR(INDIRECT($B273&\"!k20\"),\"\")","v":""},{"$f":"IFERROR(INDIRECT($B273&\"!l20\"),\"\")","v":""},{"$f":"IFERROR(INDIRECT($B273&\"!m20\"),\"\")","v":""},{"$f":"IFERROR(INDIRECT($B273&\"!n20\"),\"\")","v":""},{"$f":"IFERROR(INDIRECT($B273&\"!o120\"),\"\")","v":""}]
[1,null,{"$f":"IFERROR(INDIRECT($B274&\"!d21\"),\"\")","v":""},"","","","",{"$f":"IFERROR(INDIRECT($B274&\"!g21\"),\"\")","v":""},{"$f":"IFERROR(INDIRECT($B274&\"!i21\"),\"\")","v":""},"",{"$f":"IFERROR(INDIRECT($B274&\"!j21\"),\"\")","v":""},{"$f":"IFERROR(INDIRECT($B274&\"!k21\"),\"\")","v":""},{"$f":"IFERROR(INDIRECT($B274&\"!l21\"),\"\")","v":""},{"$f":"IFERROR(INDIRECT($B274&\"!m21\"),\"\")","v":""},{"$f":"IFERROR(INDIRECT($B274&\"!n21\"),\"\")","v":""},{"$f":"IFERROR(INDIRECT($B274&\"!o121\"),\"\")","v":""}]
[1,null,{"$f":"IFERROR(INDIRECT($B275&\"!d22\"),\"\")","v":""},"","","","",{"$f":"IFERROR(INDIRECT($B275&\"!g22\"),\"\")","v":""},{"$f":"IFERROR(INDIRECT($B275&\"!i22\"),\"\")","v":""},"",{"$f":"IFERROR(INDIRECT($B275&\"!j22\"),\"\")","v":""},{"$f":"IFERROR(INDIRECT($B275&\"!k22\"),\"\")","v":""},{"$f":"IFERROR(INDIRECT($B275&\"!l22\"),\"\")","v":""},{"$f":"IFERROR(INDIRECT($B275&\"!m22\"),\"\")","v":""},{"$f":"IFERROR(INDIRECT($B275&\"!n22\"),\"\")","v":""},{"$f":"IFERROR(INDIRECT($B275&\"!o22\"),\"\")","v":""}]
[1,null,{"$f":"IFERROR(INDIRECT($B276&\"!d16\"),\"\")","v":""},"","","","",{"$f":"IFERROR(INDIRECT($B276&\"!g16\"),\"\")","v":""},{"$f":"IFERROR(INDIRECT($B276&\"!h16\"),\"\")","v":""},"","","","","",{"$f":"IFERROR(INDIRECT($B276&\"!n16\"),\"\")","v":""},""]
[1,null,{"$f":"IFERROR(INDIRECT($B277&\"!d17\"),\"\")","v":""},"","","","",{"$f":"IFERROR(INDIRECT($B277&\"!g17\"),\"\")","v":""},{"$f":"IFERROR(INDIRECT($B277&\"!i17\"),\"\")","v":""},"",{"$f":"IFERROR(INDIRECT($B277&\"!j17\"),\"\")","v":""},{"$f":"IFERROR(INDIRECT($B277&\"!k17\"),\"\")","v":""},{"$f":"IFERROR(INDIRECT($B277&\"!l17\"),\"\")","v":""},{"$f":"IFERROR(INDIRECT($B277&\"!m17\"),\"\")","v":""},{"$f":"IFERROR(INDIRECT($B277&\"!n17\"),\"\")","v":""},{"$f":"IFERROR(INDIRECT($B277&\"!o17\"),\"\")","v":""}]
[1,null,{"$f":"IFERROR(INDIRECT($B278&\"!d18\"),\"\")","v":""},"","","","",{"$f":"IFERROR(INDIRECT($B278&\"!g18\"),\"\")","v":""},{"$f":"IFERROR(INDIRECT($B278&\"!i18\"),\"\")","v":""},"",{"$f":"IFERROR(INDIRECT($B278&\"!j18\"),\"\")","v":""},{"$f":"IFERROR(INDIRECT($B278&\"!k18\"),\"\")","v":""},{"$f":"IFERROR(INDIRECT($B278&\"!l18\"),\"\")","v":""},{"$f":"IFERROR(INDIRECT($B278&\"!m18\"),\"\")","v":""},{"$f":"IFERROR(INDIRECT($B278&\"!n18\"),\"\")","v":""},{"$f":"IFERROR(INDIRECT($B278&\"!o18\"),\"\")","v":""}]
[1,null,{"$f":"IFERROR(INDIRECT($B279&\"!d19\"),\"\")","v":""},"","","","",{"$f":"IFERROR(INDIRECT($B279&\"!g19\"),\"\")","v":""},{"$f":"IFERROR(INDIRECT($B279&\"!i19\"),\"\")","v":""},"",{"$f":"IFERROR(INDIRECT($B279&\"!j19\"),\"\")","v":""},{"$f":"IFERROR(INDIRECT($B279&\"!k19\"),\"\")","v":""},{"$f":"IFERROR(INDIRECT($B279&\"!l19\"),\"\")","v":""},{"$f":"IFERROR(INDIRECT($B279&\"!m19\"),\"\")","v":""},{"$f":"IFERROR(INDIRECT($B279&\"!n19\"),\"\")","v":""},{"$f":"IFERROR(INDIRECT($B279&\"!o19\"),\"\")","v":""}]
[1,null,{"$f":"IFERROR(INDIRECT($B280&\"!d20\"),\"\")","v":""},"","","","",{"$f":"IFERROR(INDIRECT($B280&\"!g20\"),\"\")","v":""},{"$f":"IFERROR(INDIRECT($B280&\"!i20\"),\"\")","v":""},"",{"$f":"IFERROR(INDIRECT($B280&\"!j20\"),\"\")","v":""},{"$f":"IFERROR(INDIRECT($B280&\"!k20\"),\"\")","v":""},{"$f":"IFERROR(INDIRECT($B280&\"!l20\"),\"\")","v":""},{"$f":"IFERROR(INDIRECT($B280&\"!m20\"),\"\")","v":""},{"$f":"IFERROR(INDIRECT($B280&\"!n20\"),\"\")","v":""},{"$f":"IFERROR(INDIRECT($B280&\"!o120\"),\"\")","v":""}]
[1,null,{"$f":"IFERROR(INDIRECT($B281&\"!d21\"),\"\")","v":""},"","","","",{"$f":"IFERROR(INDIRECT($B281&\"!g21\"),\"\")","v":""},{"$f":"IFERROR(INDIRECT($B281&\"!i21\"),\"\")","v":""},"",{"$f":"IFERROR(INDIRECT($B281&\"!j21\"),\"\")","v":""},{"$f":"IFERROR(INDIRECT($B281&\"!k21\"),\"\")","v":""},{"$f":"IFERROR(INDIRECT($B281&\"!l21\"),\"\")","v":""},{"$f":"IFERROR(INDIRECT($B281&\"!m21\"),\"\")","v":""},{"$f":"IFERROR(INDIRECT($B281&\"!n21\"),\"\")","v":""},{"$f":"IFERROR(INDIRECT($B281&\"!o121\"),\"\")","v":""}]
[1,null,{"$f":"IFERROR(INDIRECT($B282&\"!d22\"),\"\")","v":""},"","","","",{"$f":"IFERROR(INDIRECT($B282&\"!g22\"),\"\")","v":""},{"$f":"IFERROR(INDIRECT($B282&\"!i22\"),\"\")","v":""},"",{"$f":"IFERROR(INDIRECT($B282&\"!j22\"),\"\")","v":""},{"$f":"IFERROR(INDIRECT($B282&\"!k22\"),\"\")","v":""},{"$f":"IFERROR(INDIRECT($B282&\"!l22\"),\"\")","v":""},{"$f":"IFERROR(INDIRECT($B282&\"!m22\"),\"\")","v":""},{"$f":"IFERROR(INDIRECT($B282&\"!n22\"),\"\")","v":""},{"$f":"IFERROR(INDIRECT($B282&\"!o22\"),\"\")","v":""}]
[1,null,{"$f":"IFERROR(INDIRECT($B283&\"!d16\"),\"\")","v":""},"","","","",{"$f":"IFERROR(INDIRECT($B283&\"!g16\"),\"\")","v":""},{"$f":"IFERROR(INDIRECT($B283&\"!h16\"),\"\")","v":""},"","","","","",{"$f":"IFERROR(INDIRECT($B283&\"!n16\"),\"\")","v":""},""]
[1,null,{"$f":"IFERROR(INDIRECT($B284&\"!d17\"),\"\")","v":""},"","","","",{"$f":"IFERROR(INDIRECT($B284&\"!g17\"),\"\")","v":""},{"$f":"IFERROR(INDIRECT($B284&\"!i17\"),\"\")","v":""},"",{"$f":"IFERROR(INDIRECT($B284&\"!j17\"),\"\")","v":""},{"$f":"IFERROR(INDIRECT($B284&\"!k17\"),\"\")","v":""},{"$f":"IFERROR(INDIRECT($B284&\"!l17\"),\"\")","v":""},{"$f":"IFERROR(INDIRECT($B284&\"!m17\"),\"\")","v":""},{"$f":"IFERROR(INDIRECT($B284&\"!n17\"),\"\")","v":""},{"$f":"IFERROR(INDIRECT($B284&\"!o17\"),\"\")","v":""}]
[1,null,{"$f":"IFERROR(INDIRECT($B285&\"!d18\"),\"\")","v":""},"","","","",{"$f":"IFERROR(INDIRECT($B285&\"!g18\"),\"\")","v":""},{"$f":"IFERROR(INDIRECT($B285&\"!i18\"),\"\")","v":""},"",{"$f":"IFERROR(INDIRECT($B285&\"!j18\"),\"\")","v":""},{"$f":"IFERROR(INDIRECT($B285&\"!k18\"),\"\")","v":""},{"$f":"IFERROR(INDIRECT($B285&\"!l18\"),\"\")","v":""},{"$f":"IFERROR(INDIRECT($B285&\"!m18\"),\"\")","v":""},{"$f":"IFERROR(INDIRECT($B285&\"!n18\"),\"\")","v":""},{"$f":"IFERROR(INDIRECT($B285&\"!o18\"),\"\")","v":""}]
[1,null,{"$f":"IFERROR(INDIRECT($B286&\"!d19\"),\"\")","v":""},"","","","",{"$f":"IFERROR(INDIRECT($B286&\"!g19\"),\"\")","v":""},{"$f":"IFERROR(INDIRECT($B286&\"!i19\"),\"\")","v":""},"",{"$f":"IFERROR(INDIRECT($B286&\"!j19\"),\"\")","v":""},{"$f":"IFERROR(INDIRECT($B286&\"!k19\"),\"\")","v":""},{"$f":"IFERROR(INDIRECT($B286&\"!l19\"),\"\")","v":""},{"$f":"IFERROR(INDIRECT($B286&\"!m19\"),\"\")","v":""},{"$f":"IFERROR(INDIRECT($B286&\"!n19\"),\"\")","v":""},{"$f":"IFERROR(INDIRECT($B286&\"!o19\"),\"\")","v":""}]
[1,null,{"$f":"IFERROR(INDIRECT($B287&\"!d20\"),\"\")","v":""},"","","","",{"$f":"IFERROR(INDIRECT($B287&\"!g20\"),\"\")","v":""},{"$f":"IFERROR(INDIRECT($B287&\"!i20\"),\"\")","v":""},"",{"$f":"IFERROR(INDIRECT($B287&\"!j20\"),\"\")","v":""},{"$f":"IFERROR(INDIRECT($B287&\"!k20\"),\"\")","v":""},{"$f":"IFERROR(INDIRECT($B287&\"!l20\"),\"\")","v":""},{"$f":"IFERROR(INDIRECT($B287&\"!m20\"),\"\")","v":""},{"$f":"IFERROR(INDIRECT($B287&\"!n20\"),\"\")","v":""},{"$f":"IFERROR(INDIRECT($B287&\"!o120\"),\"\")","v":""}]
[1,null,{"$f":"IFERROR(INDIRECT($B288&\"!d21\"),\"\")","v":""},"","","","",{"$f":"IFERROR(INDIRECT($B288&\"!g21\"),\"\")","v":""},{"$f":"IFERROR(INDIRECT($B288&\"!i21\"),\"\")","v":""},"",{"$f":"IFERROR(INDIRECT($B288&\"!j21\"),\"\")","v":""},{"$f":"IFERROR(INDIRECT($B288&\"!k21\"),\"\")","v":""},{"$f":"IFERROR(INDIRECT($B288&\"!l21\"),\"\")","v":""},{"$f":"IFERROR(INDIRECT($B288&\"!m21\"),\"\")","v":""},{"$f":"IFERROR(INDIRECT($B288&\"!n21\"),\"\")","v":""},{"$f":"IFERROR(INDIRECT($B288&\"!o121\"),\"\")","v":""}]
[1,null,{"$f":"IFERROR(INDIRECT($B289&\"!d22\"),\"\")","v":""},"","","","",{"$f":"IFERROR(INDIRECT($B289&\"!g22\"),\"\")","v":""},{"$f":"IFERROR(INDIRECT($B289&\"!i22\"),\"\")","v":""},"",{"$f":"IFERROR(INDIRECT($B289&\"!j22\"),\"\")","v":""},{"$f":"IFERROR(INDIRECT($B289&\"!k22\"),\"\")","v":""},{"$f":"IFERROR(INDIRECT($B289&\"!l22\"),\"\")","v":""},{"$f":"IFERROR(INDIRECT($B289&\"!m22\"),\"\")","v":""},{"$f":"IFERROR(INDIRECT($B289&\"!n22\"),\"\")","v":""},{"$f":"IFERROR(INDIRECT($B289&\"!o22\"),\"\")","v":""}]
[1,null,{"$f":"IFERROR(INDIRECT($B290&\"!d16\"),\"\")","v":""},"","","","",{"$f":"IFERROR(INDIRECT($B290&\"!g16\"),\"\")","v":""},{"$f":"IFERROR(INDIRECT($B290&\"!h16\"),\"\")","v":""},"","","","","",{"$f":"IFERROR(INDIRECT($B290&\"!n16\"),\"\")","v":""},""]
[1,null,{"$f":"IFERROR(INDIRECT($B291&\"!d17\"),\"\")","v":""},"","","","",{"$f":"IFERROR(INDIRECT($B291&\"!g17\"),\"\")","v":""},{"$f":"IFERROR(INDIRECT($B291&\"!i17\"),\"\")","v":""},"",{"$f":"IFERROR(INDIRECT($B291&\"!j17\"),\"\")","v":""},{"$f":"IFERROR(INDIRECT($B291&\"!k17\"),\"\")","v":""},{"$f":"IFERROR(INDIRECT($B291&\"!l17\"),\"\")","v":""},{"$f":"IFERROR(INDIRECT($B291&\"!m17\"),\"\")","v":""},{"$f":"IFERROR(INDIRECT($B291&\"!n17\"),\"\")","v":""},{"$f":"IFERROR(INDIRECT($B291&\"!o17\"),\"\")","v":""}]
[1,null,{"$f":"IFERROR(INDIRECT($B292&\"!d18\"),\"\")","v":""},"","","","",{"$f":"IFERROR(INDIRECT($B292&\"!g18\"),\"\")","v":""},{"$f":"IFERROR(INDIRECT($B292&\"!i18\"),\"\")","v":""},"",{"$f":"IFERROR(INDIRECT($B292&\"!j18\"),\"\")","v":""},{"$f":"IFERROR(INDIRECT($B292&\"!k18\"),\"\")","v":""},{"$f":"IFERROR(INDIRECT($B292&\"!l18\"),\"\")","v":""},{"$f":"IFERROR(INDIRECT($B292&\"!m18\"),\"\")","v":""},{"$f":"IFERROR(INDIRECT($B292&\"!n18\"),\"\")","v":""},{"$f":"IFERROR(INDIRECT($B292&\"!o18\"),\"\")","v":""}]
[1,null,{"$f":"IFERROR(INDIRECT($B293&\"!d19\"),\"\")","v":""},"","","","",{"$f":"IFERROR(INDIRECT($B293&\"!g19\"),\"\")","v":""},{"$f":"IFERROR(INDIRECT($B293&\"!i19\"),\"\")","v":""},"",{"$f":"IFERROR(INDIRECT($B293&\"!j19\"),\"\")","v":""},{"$f":"IFERROR(INDIRECT($B293&\"!k19\"),\"\")","v":""},{"$f":"IFERROR(INDIRECT($B293&\"!l19\"),\"\")","v":""},{"$f":"IFERROR(INDIRECT($B293&\"!m19\"),\"\")","v":""},{"$f":"IFERROR(INDIRECT($B293&\"!n19\"),\"\")","v":""},{"$f":"IFERROR(INDIRECT($B293&\"!o19\"),\"\")","v":""}]
[1,null,{"$f":"IFERROR(INDIRECT($B294&\"!d20\"),\"\")","v":""},"","","","",{"$f":"IFERROR(INDIRECT($B294&\"!g20\"),\"\")","v":""},{"$f":"IFERROR(INDIRECT($B294&\"!i20\"),\"\")","v":""},"",{"$f":"IFERROR(INDIRECT($B294&\"!j20\"),\"\")","v":""},{"$f":"IFERROR(INDIRECT($B294&\"!k20\"),\"\")","v":""},{"$f":"IFERROR(INDIRECT($B294&\"!l20\"),\"\")","v":""},{"$f":"IFERROR(INDIRECT($B294&\"!m20\"),\"\")","v":""},{"$f":"IFERROR(INDIRECT($B294&\"!n20\"),\"\")","v":""},{"$f":"IFERROR(INDIRECT($B294&\"!o120\"),\"\")","v":""},{"$f":"2023/7","v":289}]
[1,null,{"$f":"IFERROR(INDIRECT($B295&\"!d21\"),\"\")","v":""},"","","","",{"$f":"IFERROR(INDIRECT($B295&\"!g21\"),\"\")","v":""},{"$f":"IFERROR(INDIRECT($B295&\"!i21\"),\"\")","v":""},"",{"$f":"IFERROR(INDIRECT($B295&\"!j21\"),\"\")","v":""},{"$f":"IFERROR(INDIRECT($B295&\"!k21\"),\"\")","v":""},{"$f":"IFERROR(INDIRECT($B295&\"!l21\"),\"\")","v":""},{"$f":"IFERROR(INDIRECT($B295&\"!m21\"),\"\")","v":""},{"$f":"IFERROR(INDIRECT($B295&\"!n21\"),\"\")","v":""},{"$f":"IFERROR(INDIRECT($B295&\"!o121\"),\"\")","v":""}]
[1,null,{"$f":"IFERROR(INDIRECT($B296&\"!d22\"),\"\")","v":""},"","","","",{"$f":"IFERROR(INDIRECT($B296&\"!g22\"),\"\")","v":""},{"$f":"IFERROR(INDIRECT($B296&\"!i22\"),\"\")","v":""},"",{"$f":"IFERROR(INDIRECT($B296&\"!j22\"),\"\")","v":""},{"$f":"IFERROR(INDIRECT($B296&\"!k22\"),\"\")","v":""},{"$f":"IFERROR(INDIRECT($B296&\"!l22\"),\"\")","v":""},{"$f":"IFERROR(INDIRECT($B296&\"!m22\"),\"\")","v":""},{"$f":"IFERROR(INDIRECT($B296&\"!n22\"),\"\")","v":""},{"$f":"IFERROR(INDIRECT($B296&\"!o22\"),\"\")","v":""}]
[1,null,{"$f":"IFERROR(INDIRECT($B297&\"!e9\"),\"\")","v":""},{"$f":"IFERROR(INDIRECT($B297&\"!e10\"),\"\")","v":""},{"$f":"IFERROR(INDIRECT($B297&\"!e7\"),\"\")","v":""},{"$f":"IFERROR(INDIRECT($B297&\"!e12\"),\"\")","v":""},{"$f":"IFERROR(INDIRECT($B297&\"!e13\"),\"\")","v":""},{"$f":"IFERROR(INDIRECT($B297&\"!h16\"),\"\")","v":""},{"$f":"IFERROR(INDIRECT($B297&\"!i16\"),\"\")","v":""},{"$f":"IFERROR(INDIRECT($B297&\"!j16\"),\"\")","v":""},{"$f":"IFERROR(INDIRECT($B297&\"!k16\"),\"\")","v":""},{"$f":"IFERROR(INDIRECT($B297&\"!l16\"),\"\")","v":""},{"$f":"IFERROR(INDIRECT($B297&\"!m16\"),\"\")","v":""},{"$f":"IFERROR(INDIRECT($B297&\"!n16\"),\"\")","v":""},{"$f":"IFERROR(INDIRECT($B297&\"!o16\"),\"\")","v":""},{"$f":"IFERROR(INDIRECT($B297&\"!p16\"),\"\")","v":""},1]
[1,null,"","","","","","","","","","","","","","",1]
[1,null,"","","","","","","","","","","","","","",1]
[1,null,null,null,null,null,null,null,null,null,null,null,null,null,null,null,1]
[1,null,null,null,null,null,null,null,null,null,null,null,null,null,null,null,1]
[1,null,null,null,null,null,null,null,null,null,null,null,null,null,null,null,1]
[1,null,null,null,null,null,null,null,null,null,null,null,null,null,null,null,1]
[1,null,null,null,null,null,null,null,null,null,null,null,null,null,null,null,1]
[1,null,null,null,null,null,null,null,null,null,null,null,null,null,null,null,1]
[1,null,null,null,null,null,null,null,null,null,null,null,null,null,null,null,1]
[1,null,null,null,null,null,null,null,null,null,null,null,null,null,null,null,1]
[1,null,null,null,null,null,null,null,null,null,null,null,null,null,null,null,1]
[1,null,null,null,null,null,null,null,null,null,null,null,null,null,null,null,1]
[1,null,null,null,null,null,null,null,null,null,null,null,null,null,null,null,1]
[1,null,null,null,null,null,null,null,null,null,null,null,null,null,null,null,1]
[1,null,null,null,null,null,null,null,null,null,null,null,null,null,null,null,1]
[1,null,null,null,null,null,null,null,null,null,null,null,null,null,null,null,1]
[1,null,null,null,null,null,null,null,null,null,null,null,null,null,null,null,1]
[1,null,null,null,null,null,null,null,null,null,null,null,null,null,null,null,1]
[1,null,null,null,null,null,null,null,null,null,null,null,null,null,null,null,1]
[1,null,null,null,null,null,null,null,null,null,null,null,null,null,null,null,1]
[1,null,null,null,null,null,null,null,null,null,null,null,null,null,null,null,1]
[1,null,null,null,null,null,null,null,null,null,null,null,null,null,null,null,1]
[1,null,null,null,null,null,null,null,null,null,null,null,null,null,null,null,1]
[1,null,null,null,null,null,null,null,null,null,null,null,null,null,null,null,1]
[1,null,null,null,null,null,null,null,null,null,null,null,null,null,null,null,1]
[1,null,null,null,null,null,null,null,null,null,null,null,null,null,null,null,1]
[1,null,null,null,null,null,null,null,null,null,null,null,null,null,null,null,1]
[1,null,null,null,null,null,null,null,null,null,null,null,null,null,null,null,1]
[1,null,null,null,null,null,null,null,null,null,null,null,null,null,null,null,1]
[1,null,null,null,null,null,null,null,null,null,null,null,null,null,null,null,1]
[1,null,null,null,null,null,null,null,null,null,null,null,null,null,null,null,1]
[1,null,null,null,null,null,null,null,null,null,null,null,null,null,null,null,1]
[1,null,null,null,null,null,null,null,null,null,null,null,null,null,null,null,1]
[1,null,null,null,null,null,null,null,null,null,null,null,null,null,null,null,1]
[1,null,null,null,null,null,null,null,null,null,null,null,null,null,null,null,1]
[1,null,null,null,null,null,null,null,null,null,null,null,null,null,null,null,1]
[1,null,null,null,null,null,null,null,null,null,null,null,null,null,null,null,1]
[1,null,null,null,null,null,null,null,null,null,null,null,null,null,null,null,1]
[1,null,null,null,null,null,null,null,null,null,null,null,null,null,null,null,1]
[1,null,null,null,null,null,null,null,null,null,null,null,null,null,null,null,1]
[1,null,null,null,null,null,null,null,null,null,null,null,null,null,null,null,1]
[1,null,null,null,null,null,null,null,null,null,null,null,null,null,null,null,1]
[1,null,null,null,null,null,null,null,null,null,null,null,null,null,null,null,1]
[1,null,null,null,null,null,null,null,null,null,null,null,null,null,null,null,1]
[1,null,null,null,null,null,null,null,null,null,null,null,null,null,null,null,1]
[1,null,null,null,null,null,null,null,null,null,null,null,null,null,null,null,1]
[1,null,null,null,null,null,null,null,null,null,null,null,null,null,null,null,1]
[1,null,null,null,null,null,null,null,null,null,null,null,null,null,null,null,1]
[1,null,null,null,null,null,null,null,null,null,null,null,null,null,null,null,1]
[1,null,null,null,null,null,null,null,null,null,null,null,null,null,null,null,1]
[1,null,null,null,null,null,null,null,null,null,null,null,null,null,null,null,1]
[1,null,null,null,null,null,null,null,null,null,null,null,null,null,null,null,1]
[1,null,null,null,null,null,null,null,null,null,null,null,null,null,null,null,1]
[1,null,null,null,null,null,null,null,null,null,null,null,null,null,null,null,1]
[1,null,null,null,null,null,null,null,null,null,null,null,null,null,null,null,1]
[1,null,null,null,null,null,null,null,null,null,null,null,null,null,null,null,1]
[1,null,null,null,null,null,null,null,null,null,null,null,null,null,null,null,1]
[1,null,null,null,null,null,null,null,null,null,null,null,null,null,null,null,1]
[1,null,null,null,null,null,null,null,null,null,null,null,null,null,null,null,1]
[1,null,null,null,null,null,null,null,null,null,null,null,null,null,null,null,1]
[1,null,null,null,null,null,null,null,null,null,null,null,null,null,null,null,1]
[1,null,null,null,null,null,null,null,null,null,null,null,null,null,null,null,1]
[1,null,null,null,null,null,null,null,null,null,null,null,null,null,null,null,1]
[1,null,null,null,null,null,null,null,null,null,null,null,null,null,null,null,1]
[1,null,null,null,null,null,null,null,null,null,null,null,null,null,null,null,1]
[1,null,null,null,null,null,null,null,null,null,null,null,null,null,null,null,1]
[1,null,null,null,null,null,null,null,null,null,null,null,null,null,null,null,1]
[1,null,null,null,null,null,null,null,null,null,null,null,null,null,null,null,1]
[1,null,null,null,null,null,null,null,null,null,null,null,null,null,null,null,1]
[1,null,null,null,null,null,null,null,null,null,null,null,null,null,null,null,1]
[1,null,null,null,null,null,null,null,null,null,null,null,null,null,null,null,1]
[1,null,null,null,null,null,null,null,null,null,null,null,null,null,null,null,1]
[1,null,null,null,null,null,null,null,null,null,null,null,null,null,null,null,1]
[1,null,null,null,null,null,null,null,null,null,null,null,null,null,null,null,1]
[1,null,null,null,null,null,null,null,null,null,null,null,null,null,null,null,1]
[1,null,null,null,null,null,null,null,null,null,null,null,null,null,null,null,1]
[1,null,null,null,null,null,null,null,null,null,null,null,null,null,null,null,1]
[1,null,null,null,null,null,null,null,null,null,null,null,null,null,null,null,1]
[1,null,null,null,null,null,null,null,null,null,null,null,null,null,null,null,1]
[1,null,null,null,null,null,null,null,null,null,null,null,null,null,null,null,1]
[1,null,null,null,null,null,null,null,null,null,null,null,null,null,null,null,1]
[1,null,null,null,null,null,null,null,null,null,null,null,null,null,null,null,1]
[1,null,null,null,null,null,null,null,null,null,null,null,null,null,null,null,1]
[1,null,null,null,null,null,null,null,null,null,null,null,null,null,null,null,1]
[1,null,null,null,null,null,null,null,null,null,null,null,null,null,null,null,1]
[1,null,null,null,null,null,null,null,null,null,null,null,null,null,null,null,1]
[1,null,null,null,null,null,null,null,null,null,null,null,null,null,null,null,1]
[1,null,null,null,null,null,null,null,null,null,null,null,null,null,null,null,1]
[1,null,null,null,null,null,null,null,null,null,null,null,null,null,null,null,1]
[1,null,null,null,null,null,null,null,null,null,null,null,null,null,null,null,1]
[1,null,null,null,null,null,null,null,null,null,null,null,null,null,null,null,1]
[1,null,null,null,null,null,null,null,null,null,null,null,null,null,null,null,1]
[1,null,null,null,null,null,null,null,null,null,null,null,null,null,null,null,1]
[1,null,null,null,null,null,null,null,null,null,null,null,null,null,null,null,1]
[1,null,null,null,null,null,null,null,null,null,null,null,null,null,null,null,1]
[1,null,null,null,null,null,null,null,null,null,null,null,null,null,null,null,1]
[1,null,null,null,null,null,null,null,null,null,null,null,null,null,null,null,1]
[1,null,null,null,null,null,null,null,null,null,null,null,null,null,null,null,1]
[1,null,null,null,null,null,null,null,null,null,null,null,null,null,null,null,1]
[1,null,null,null,null,null,null,null,null,null,null,null,null,null,null,null,1]
[1,null,null,null,null,null,null,null,null,null,null,null,null,null,null,null,1]
[1,null,null,null,null,null,null,null,null,null,null,null,null,null,null,null,1]
[1,null,null,null,null,null,null,null,null,null,null,null,null,null,null,null,1]
[1,null,null,null,null,null,null,null,null,null,null,null,null,null,null,null,1]
[1,null,null,null,null,null,null,null,null,null,null,null,null,null,null,null,1]
[1,null,null,null,null,null,null,null,null,null,null,null,null,null,null,null,1]
[1,null,null,null,null,null,null,null,null,null,null,null,null,null,null,null,1]
[1,null,null,null,null,null,null,null,null,null,null,null,null,null,null,null,1]
[1,null,null,null,null,null,null,null,null,null,null,null,null,null,null,null,1]
[1,null,null,null,null,null,null,null,null,null,null,null,null,null,null,null,1]
[1,null,null,null,null,null,null,null,null,null,null,null,null,null,null,null,1]
[1,null,null,null,null,null,null,null,null,null,null,null,null,null,null,null,1]
[1,null,null,null,null,null,null,null,null,null,null,null,null,null,null,null,1]
[1,null,null,null,null,null,null,null,null,null,null,null,null,null,null,null,1]
[1,null,null,null,null,null,null,null,null,null,null,null,null,null,null,null,1]
[1,null,null,null,null,null,null,null,null,null,null,null,null,null,null,null,1]
[1,null,null,null,null,null,null,null,null,null,null,null,null,null,null,null,1]
[1,null,null,null,null,null,null,null,null,null,null,null,null,null,null,null,1]
[1,null,null,null,null,null,null,null,null,null,null,null,null,null,null,null,1]
[1,null,null,null,null,null,null,null,null,null,null,null,null,null,null,null,1]
[1,null,null,null,null,null,null,null,null,null,null,null,null,null,null,null,1]
[1,null,null,null,null,null,null,null,null,null,null,null,null,null,null,null,1]
[1,null,null,null,null,null,null,null,null,null,null,null,null,null,null,null,1]
[1,null,null,null,null,null,null,null,null,null,null,null,null,null,null,null,1]
[1,null,null,null,null,null,null,null,null,null,null,null,null,null,null,null,1]
[1,null,null,null,null,null,null,null,null,null,null,null,null,null,null,null,1]
[1,null,null,null,null,null,null,null,null,null,null,null,null,null,null,null,1]
[1,null,null,null,null,null,null,null,null,null,null,null,null,null,null,null,1]
[1,null,null,null,null,null,null,null,null,null,null,null,null,null,null,null,1]
[1,null,null,null,null,null,null,null,null,null,null,null,null,null,null,null,1]
[1,null,null,null,null,null,null,null,null,null,null,null,null,null,null,null,1]
[1,null,null,null,null,null,null,null,null,null,null,null,null,null,null,null,1]
[1,null,null,null,null,null,null,null,null,null,null,null,null,null,null,null,1]
[1,null,null,null,null,null,null,null,null,null,null,null,null,null,null,null,1]
[1,null,null,null,null,null,null,null,null,null,null,null,null,null,null,null,1]
[1,null,null,null,null,null,null,null,null,null,null,null,null,null,null,null,1]
[1,null,null,null,null,null,null,null,null,null,null,null,null,null,null,null,1]
[1,null,null,null,null,null,null,null,null,null,null,null,null,null,null,null,1]
[1,null,null,null,null,null,null,null,null,null,null,null,null,null,null,null,1]
[1,null,null,null,null,null,null,null,null,null,null,null,null,null,null,null,1]
[1,null,null,null,null,null,null,null,null,null,null,null,null,null,null,null,1]
[1,null,null,null,null,null,null,null,null,null,null,null,null,null,null,null,1]
[1,null,null,null,null,null,null,null,null,null,null,null,null,null,null,null,1]
[1,null,null,null,null,null,null,null,null,null,null,null,null,null,null,null,1]
[1,null,null,null,null,null,null,null,null,null,null,null,null,null,null,null,1]
[1,null,null,null,null,null,null,null,null,null,null,null,null,null,null,null,1]
[1,null,null,null,null,null,null,null,null,null,null,null,null,null,null,null,1]
[1,null,null,null,null,null,null,null,null,null,null,null,null,null,null,null,1]
[1,null,null,null,null,null,null,null,null,null,null,null,null,null,null,null,1]
[1,null,null,null,null,null,null,null,null,null,null,null,null,null,null,null,1]
[1,null,null,null,null,null,null,null,null,null,null,null,null,null,null,null,1]
[1,null,null,null,null,null,null,null,null,null,null,null,null,null,null,null,1]
[1,null,null,null,null,null,null,null,null,null,null,null,null,null,null,null,1]
[1,null,null,null,null,null,null,null,null,null,null,null,null,null,null,null,1]
[1,null,null,null,null,null,null,null,null,null,null,null,null,null,null,null,1]
[1,null,null,null,null,null,null,null,null,null,null,null,null,null,null,null,1]
[1,null,null,null,null,null,null,null,null,null,null,null,null,null,null,null,1]
[1,null,null,null,null,null,null,null,null,null,null,null,null,null,null,null,1]
[1,null,null,null,null,null,null,null,null,null,null,null,null,null,null,null,1]
[1,null,null,null,null,null,null,null,null,null,null,null,null,null,null,null,1]
[1,null,null,null,null,null,null,null,null,null,null,null,null,null,null,null,1]
[1,null,null,null,null,null,null,null,null,null,null,null,null,null,null,null,1]
[1,null,null,null,null,null,null,null,null,null,null,null,null,null,null,null,1]
[1,null,null,null,null,null,null,null,null,null,null,null,null,null,null,null,1]
[1,null,null,null,null,null,null,null,null,null,null,null,null,null,null,null,1]
[1,null,null,null,null,null,null,null,null,null,null,null,null,null,null,null,1]
[1,null,null,null,null,null,null,null,null,null,null,null,null,null,null,null,1]
[1,null,null,null,null,null,null,null,null,null,null,null,null,null,null,null,1]
[1,null,null,null,null,null,null,null,null,null,null,null,null,null,null,null,1]
[1,null,null,null,null,null,null,null,null,null,null,null,null,null,null,null,1]
[1,null,null,null,null,null,null,null,null,null,null,null,null,null,null,null,1]
[1,null,null,null,null,null,null,null,null,null,null,null,null,null,null,null,1]
[1,null,null,null,null,null,null,null,null,null,null,null,null,null,null,null,1]
[1,null,null,null,null,null,null,null,null,null,null,null,null,null,null,null,1]
[1,null,null,null,null,null,null,null,null,null,null,null,null,null,null,null,1]
[1,null,null,null,null,null,null,null,null,null,null,null,null,null,null,null,1]
[1,null,null,null,null,null,null,null,null,null,null,null,null,null,null,null,1]
[1,null,null,null,null,null,null,null,null,null,null,null,null,null,null,null,1]
[1,null,null,null,null,null,null,null,null,null,null,null,null,null,null,null,1]
[1,null,null,null,null,null,null,null,null,null,null,null,null,null,null,null,1]
[1,null,null,null,null,null,null,null,null,null,null,null,null,null,null,null,1]
[1,null,null,null,null,null,null,null,null,null,null,null,null,null,null,null,1]
[1,null,null,null,null,null,null,null,null,null,null,null,null,null,null,null,1]
[1,null,null,null,null,null,null,null,null,null,null,null,null,null,null,null,1]
[1,null,null,null,null,null,null,null,null,null,null,null,null,null,null,null,1]
[1,null,null,null,null,null,null,null,null,null,null,null,null,null,null,null,1]
[1,null,null,null,null,null,null,null,null,null,null,null,null,null,null,null,1]
[1,null,null,null,null,null,null,null,null,null,null,null,null,null,null,null,1]
[1,null,null,null,null,null,null,null,null,null,null,null,null,null,null,null,1]
[1,null,null,null,null,null,null,null,null,null,null,null,null,null,null,null,1]
[1,null,null,null,null,null,null,null,null,null,null,null,null,null,null,null,1]
[1,null,null,null,null,null,null,null,null,null,null,null,null,null,null,null,1]
[1,null,null,null,null,null,null,null,null,null,null,null,null,null,null,null,1]
[1,null,null,null,null,null,null,null,null,null,null,null,null,null,null,null,1]
[1,null,null,null,null,null,null,null,null,null,null,null,null,null,null,null,1]
[1,null,null,null,null,null,null,null,null,null,null,null,null,null,null,null,1]
[1,null,null,null,null,null,null,null,null,null,null,null,null,null,null,null,1]
[1,null,null,null,null,null,null,null,null,null,null,null,null,null,null,null,1]
[1,null,null,null,null,null,null,null,null,null,null,null,null,null,null,null,1]
[1,null,null,null,null,null,null,null,null,null,null,null,null,null,null,null,1]
[1,null,null,null,null,null,null,null,null,null,null,null,null,null,null,null,1]
[1,null,null,null,null,null,null,null,null,null,null,null,null,null,null,null,1]
[1,null,null,null,null,null,null,null,null,null,null,null,null,null,null,null,1]
[1,null,null,null,null,null,null,null,null,null,null,null,null,null,null,null,1]
[1,null,null,null,null,null,null,null,null,null,null,null,null,null,null,null,1]
[1,null,null,null,null,null,null,null,null,null,null,null,null,null,null,null,1]
[1,null,null,null,null,null,null,null,null,null,null,null,null,null,null,null,1]
[1,null,null,null,null,null,null,null,null,null,null,null,null,null,null,null,1]
[1,null,null,null,null,null,null,null,null,null,null,null,null,null,null,null,1]
[1,null,null,null,null,null,null,null,null,null,null,null,null,null,null,null,1]
[1,null,null,null,null,null,null,null,null,null,null,null,null,null,null,null,1]
[1,null,null,null,null,null,null,null,null,null,null,null,null,null,null,null,1]
[1,null,null,null,null,null,null,null,null,null,null,null,null,null,null,null,1]
[1,null,null,null,null,null,null,null,null,null,null,null,null,null,null,null,1]
[1,null,null,null,null,null,null,null,null,null,null,null,null,null,null,null,1]
[1,null,null,null,null,null,null,null,null,null,null,null,null,null,null,null,1]
[1,null,null,null,null,null,null,null,null,null,null,null,null,null,null,null,1]
[1,null,null,null,null,null,null,null,null,null,null,null,null,null,null,null,1]
[1,null,null,null,null,null,null,null,null,null,null,null,null,null,null,null,1]
[1,null,null,null,null,null,null,null,null,null,null,null,null,null,null,null,1]
[1,null,null,null,null,null,null,null,null,null,null,null,null,null,null,null,1]
[1,null,null,null,null,null,null,null,null,null,null,null,null,null,null,null,1]
[1,null,null,null,null,null,null,null,null,null,null,null,null,null,null,null,1]
[1,null,null,null,null,null,null,null,null,null,null,null,null,null,null,null,1]
[1,null,null,null,null,null,null,null,null,null,null,null,null,null,null,null,1]
[1,null,null,null,null,null,null,null,null,null,null,null,null,null,null,null,1]
[1,null,null,null,null,null,null,null,null,null,null,null,null,null,null,null,1]
[1,null,null,null,null,null,null,null,null,null,null,null,null,null,null,null,1]
[1,null,null,null,null,null,null,null,null,null,null,null,null,null,null,null,1]
[1,null,null,null,null,null,null,null,null,null,null,null,null,null,null,null,1]
[1,null,null,null,null,null,null,null,null,null,null,null,null,null,null,null,1]
[1,null,null,null,null,null,null,null,null,null,null,null,null,null,null,null,1]
[1,null,null,null,null,null,null,null,null,null,null,null,null,null,null,null,1]
[1,null,null,null,null,null,null,null,null,null,null,null,null,null,null,null,1]
[1,null,null,null,null,null,null,null,null,null,null,null,null,null,null,null,1]
[1,null,null,null,null,null,null,null,null,null,null,null,null,null,null,null,1]
[1,null,null,null,null,null,null,null,null,null,null,null,null,null,null,null,1]
[1,null,null,null,null,null,null,null,null,null,null,null,null,null,null,null,1]
[1,null,null,null,null,null,null,null,null,null,null,null,null,null,null,null,1]
[1,null,null,null,null,null,null,null,null,null,null,null,null,null,null,null,1]
[1,null,null,null,null,null,null,null,null,null,null,null,null,null,null,null,1]
[1,null,null,null,null,null,null,null,null,null,null,null,null,null,null,null,1]
[1,null,null,null,null,null,null,null,null,null,null,null,null,null,null,null,1]
[1,null,null,null,null,null,null,null,null,null,null,null,null,null,null,null,1]
[1,null,null,null,null,null,null,null,null,null,null,null,null,null,null,null,1]
[1,null,null,null,null,null,null,null,null,null,null,null,null,null,null,null,1]
[1,null,null,null,null,null,null,null,null,null,null,null,null,null,null,null,1]
[1,null,null,null,null,null,null,null,null,null,null,null,null,null,null,null,1]
[1,null,null,null,null,null,null,null,null,null,null,null,null,null,null,null,1]
[1,null,null,null,null,null,null,null,null,null,null,null,null,null,null,null,1]
[1,null,null,null,null,null,null,null,null,null,null,null,null,null,null,null,1]
[1,null,null,null,null,null,null,null,null,null,null,null,null,null,null,null,1]
[1,null,null,null,null,null,null,null,null,null,null,null,null,null,null,null,1]
[1,null,null,null,null,null,null,null,null,null,null,null,null,null,null,null,1]
[1,null,null,null,null,null,null,null,null,null,null,null,null,null,null,null,1]
[1,null,null,null,null,null,null,null,null,null,null,null,null,null,null,null,1]
[1,null,null,null,null,null,null,null,null,null,null,null,null,null,null,null,1]
[1,null,null,null,null,null,null,null,null,null,null,null,null,null,null,null,1]
[1,null,null,null,null,null,null,null,null,null,null,null,null,null,null,null,1]
[1,null,null,null,null,null,null,null,null,null,null,null,null,null,null,null,1]
[1,null,null,null,null,null,null,null,null,null,null,null,null,null,null,null,1]
[1,null,null,null,null,null,null,null,null,null,null,null,null,null,null,null,1]
[1,null,null,null,null,null,null,null,null,null,null,null,null,null,null,null,1]
[1,null,null,null,null,null,null,null,null,null,null,null,null,null,null,null,1]
[1,null,null,null,null,null,null,null,null,null,null,null,null,null,null,null,1]
[1,null,null,null,null,null,null,null,null,null,null,null,null,null,null,null,1]
[1,null,null,null,null,null,null,null,null,null,null,null,null,null,null,null,1]
[1,null,null,null,null,null,null,null,null,null,null,null,null,null,null,null,1]
[1,null,null,null,null,null,null,null,null,null,null,null,null,null,null,null,1]
[1,null,null,null,null,null,null,null,null,null,null,null,null,null,null,null,1]
[1,null,null,null,null,null,null,null,null,null,null,null,null,null,null,null,1]
[1,null,null,null,null,null,null,null,null,null,null,null,null,null,null,null,1]
[1,null,null,null,null,null,null,null,null,null,null,null,null,null,null,null,1]
[1,null,null,null,null,null,null,null,null,null,null,null,null,null,null,null,1]
[1,null,null,null,null,null,null,null,null,null,null,null,null,null,null,null,1]
[1,null,null,null,null,null,null,null,null,null,null,null,null,null,null,null,1]
[1,null,null,null,null,null,null,null,null,null,null,null,null,null,null,null,1]
[1,null,null,null,null,null,null,null,null,null,null,null,null,null,null,null,1]
[1,null,null,null,null,null,null,null,null,null,null,null,null,null,null,null,1]
[1,null,null,null,null,null,null,null,null,null,null,null,null,null,null,null,1]
[1,null,null,null,null,null,null,null,null,null,null,null,null,null,null,null,1]
[1,null,null,null,null,null,null,null,null,null,null,null,null,null,null,null,1]
[1,null,null,null,null,null,null,null,null,null,null,null,null,null,null,null,1]
[1,null,null,null,null,null,null,null,null,null,null,null,null,null,null,null,1]
[1,null,null,null,null,null,null,null,null,null,null,null,null,null,null,null,1]
[1,null,null,null,null,null,null,null,null,null,null,null,null,null,null,null,1]
[1,null,null,null,null,null,null,null,null,null,null,null,null,null,null,null,1]
[1,null,null,null,null,null,null,null,null,null,null,null,null,null,null,null,1]
[1,null,null,null,null,null,null,null,null,null,null,null,null,null,null,null,1]
[1,null,null,null,null,null,null,null,null,null,null,null,null,null,null,null,1]
[1,null,null,null,null,null,null,null,null,null,null,null,null,null,null,null,1]
[1,null,null,null,null,null,null,null,null,null,null,null,null,null,null,null,1]
[1,null,null,null,null,null,null,null,null,null,null,null,null,null,null,null,1]
[1,null,null,null,null,null,null,null,null,null,null,null,null,null,null,null,1]
[1,null,null,null,null,null,null,null,null,null,null,null,null,null,null,null,1]
[1,null,null,null,null,null,null,null,null,null,null,null,null,null,null,null,1]
[1,null,null,null,null,null,null,null,null,null,null,null,null,null,null,null,1]
[1,null,null,null,null,null,null,null,null,null,null,null,null,null,null,null,1]
[1,null,null,null,null,null,null,null,null,null,null,null,null,null,null,null,1]
[1,null,null,null,null,null,null,null,null,null,null,null,null,null,null,null,1]
[1,null,null,null,null,null,null,null,null,null,null,null,null,null,null,null,1]
[1,null,null,null,null,null,null,null,null,null,null,null,null,null,null,null,1]
[1,null,null,null,null,null,null,null,null,null,null,null,null,null,null,null,1]
[1,null,null,null,null,null,null,null,null,null,null,null,null,null,null,null,1]
[1,null,null,null,null,null,null,null,null,null,null,null,null,null,null,null,1]
[1,null,null,null,null,null,null,null,null,null,null,null,null,null,null,null,1]
[1,null,null,null,null,null,null,null,null,null,null,null,null,null,null,null,1]
[1,null,null,null,null,null,null,null,null,null,null,null,null,null,null,null,1]
[1,null,null,null,null,null,null,null,null,null,null,null,null,null,null,null,1]
[1,null,null,null,null,null,null,null,null,null,null,null,null,null,null,null,1]
[1,null,null,null,null,null,null,null,null,null,null,null,null,null,null,null,1]
[1,null,null,null,null,null,null,null,null,null,null,null,null,null,null,null,1]
[1,null,null,null,null,null,null,null,null,null,null,null,null,null,null,null,1]
[1,null,null,null,null,null,null,null,null,null,null,null,null,null,null,null,1]
[1,null,null,null,null,null,null,null,null,null,null,null,null,null,null,null,1]
[1,null,null,null,null,null,null,null,null,null,null,null,null,null,null,null,1]
[1,null,null,null,null,null,null,null,null,null,null,null,null,null,null,null,1]
[1,null,null,null,null,null,null,null,null,null,null,null,null,null,null,null,1]
[1,null,null,null,null,null,null,null,null,null,null,null,null,null,null,null,1]
[1,null,null,null,null,null,null,null,null,null,null,null,null,null,null,null,1]
[1,null,null,null,null,null,null,null,null,null,null,null,null,null,null,null,1]
[1,null,null,null,null,null,null,null,null,null,null,null,null,null,null,null,1]
[1,null,null,null,null,null,null,null,null,null,null,null,null,null,null,null,1]
[1,null,null,null,null,null,null,null,null,null,null,null,null,null,null,null,1]
[1,null,null,null,null,null,null,null,null,null,null,null,null,null,null,null,1]
[1,null,null,null,null,null,null,null,null,null,null,null,null,null,null,null,1]
[1,null,null,null,null,null,null,null,null,null,null,null,null,null,null,null,1]
[1,null,null,null,null,null,null,null,null,null,null,null,null,null,null,null,1]
[1,null,null,null,null,null,null,null,null,null,null,null,null,null,null,null,1]
[1,null,null,null,null,null,null,null,null,null,null,null,null,null,null,null,1]
[1,null,null,null,null,null,null,null,null,null,null,null,null,null,null,null,1]
[1,null,null,null,null,null,null,null,null,null,null,null,null,null,null,null,1]
[1,null,null,null,null,null,null,null,null,null,null,null,null,null,null,null,1]
[1,null,null,null,null,null,null,null,null,null,null,null,null,null,null,null,1]
[1,null,null,null,null,null,null,null,null,null,null,null,null,null,null,null,1]
[1,null,null,null,null,null,null,null,null,null,null,null,null,null,null,null,1]
[1,null,null,null,null,null,null,null,null,null,null,null,null,null,null,null,1]
[1,null,null,null,null,null,null,null,null,null,null,null,null,null,null,null,1]
[1,null,null,null,null,null,null,null,null,null,null,null,null,null,null,null,1]
[1,null,null,null,null,null,null,null,null,null,null,null,null,null,null,null,1]
[1,null,null,null,null,null,null,null,null,null,null,null,null,null,null,null,1]
[1,null,null,null,null,null,null,null,null,null,null,null,null,null,null,null,1]
[1,null,null,null,null,null,null,null,null,null,null,null,null,null,null,null,1]
[1,null,null,null,null,null,null,null,null,null,null,null,null,null,null,null,1]
[1,null,null,null,null,null,null,null,null,null,null,null,null,null,null,null,1]
[1,null,null,null,null,null,null,null,null,null,null,null,null,null,null,null,1]
[1,null,null,null,null,null,null,null,null,null,null,null,null,null,null,null,1]
[1,null,null,null,null,null,null,null,null,null,null,null,null,null,null,null,1]
[1,null,null,null,null,null,null,null,null,null,null,null,null,null,null,null,1]
[1,null,null,null,null,null,null,null,null,null,null,null,null,null,null,null,1]
[1,null,null,null,null,null,null,null,null,null,null,null,null,null,null,null,1]
[1,null,null,null,null,null,null,null,null,null,null,null,null,null,null,null,1]
[1,null,null,null,null,null,null,null,null,null,null,null,null,null,null,null,1]
[1,null,null,null,null,null,null,null,null,null,null,null,null,null,null,null,1]
[1,null,null,null,null,null,null,null,null,null,null,null,null,null,null,null,1]
[1,null,null,null,null,null,null,null,null,null,null,null,null,null,null,null,1]
[1,null,null,null,null,null,null,null,null,null,null,null,null,null,null,null,1]
[1,null,null,null,null,null,null,null,null,null,null,null,null,null,null,null,1]
[1,null,null,null,null,null,null,null,null,null,null,null,null,null,null,null,1]
[1,null,null,null,null,null,null,null,null,null,null,null,null,null,null,null,1]
[1,null,null,null,null,null,null,null,null,null,null,null,null,null,null,null,1]
[1,null,null,null,null,null,null,null,null,null,null,null,null,null,null,null,1]
[1,null,null,null,null,null,null,null,null,null,null,null,null,null,null,null,1]
[1,null,null,null,null,null,null,null,null,null,null,null,null,null,null,null,1]
[1,null,null,null,null,null,null,null,null,null,null,null,null,null,null,null,1]
[1,null,null,null,null,null,null,null,null,null,null,null,null,null,null,null,1]
[1,null,null,null,null,null,null,null,null,null,null,null,null,null,null,null,1]
[1,null,null,null,null,null,null,null,null,null,null,null,null,null,null,null,1]
[1,null,null,null,null,null,null,null,null,null,null,null,null,null,null,null,1]
[1,null,null,null,null,null,null,null,null,null,null,null,null,null,null,null,1]
[1,null,null,null,null,null,null,null,null,null,null,null,null,null,null,null,1]
[1,null,null,null,null,null,null,null,null,null,null,null,null,null,null,null,1]
[1,null,null,null,null,null,null,null,null,null,null,null,null,null,null,null,1]
[1,null,null,null,null,null,null,null,null,null,null,null,null,null,null,null,1]
[1,null,null,null,null,null,null,null,null,null,null,null,null,null,null,null,1]
[1,null,null,null,null,null,null,null,null,null,null,null,null,null,null,null,1]
[1,null,null,null,null,null,null,null,null,null,null,null,null,null,null,null,1]
[1,null,null,null,null,null,null,null,null,null,null,null,null,null,null,null,1]
[1,null,null,null,null,null,null,null,null,null,null,null,null,null,null,null,1]
[1,null,null,null,null,null,null,null,null,null,null,null,null,null,null,null,1]
[1,null,null,null,null,null,null,null,null,null,null,null,null,null,null,null,1]
[1,null,null,null,null,null,null,null,null,null,null,null,null,null,null,null,1]
[1,null,null,null,null,null,null,null,null,null,null,null,null,null,null,null,1]
[1,null,null,null,null,null,null,null,null,null,null,null,null,null,null,null,1]
[1,null,null,null,null,null,null,null,null,null,null,null,null,null,null,null,1]
[1,null,null,null,null,null,null,null,null,null,null,null,null,null,null,null,1]
[1,null,null,null,null,null,null,null,null,null,null,null,null,null,null,null,1]
[1,null,null,null,null,null,null,null,null,null,null,null,null,null,null,null,1]
[1,null,null,null,null,null,null,null,null,null,null,null,null,null,null,null,1]
[1,null,null,null,null,null,null,null,null,null,null,null,null,null,null,null,1]
[1,null,null,null,null,null,null,null,null,null,null,null,null,null,null,null,1]
[1,null,null,null,null,null,null,null,null,null,null,null,null,null,null,null,1]
[1,null,null,null,null,null,null,null,null,null,null,null,null,null,null,null,1]
[1,null,null,null,null,null,null,null,null,null,null,null,null,null,null,null,1]
[1,null,null,null,null,null,null,null,null,null,null,null,null,null,null,null,1]
[1,null,null,null,null,null,null,null,null,null,null,null,null,null,null,null,1]
[1,null,null,null,null,null,null,null,null,null,null,null,null,null,null,null,1]
[1,null,null,null,null,null,null,null,null,null,null,null,null,null,null,null,1]
[1,null,null,null,null,null,null,null,null,null,null,null,null,null,null,null,1]
[1,null,null,null,null,null,null,null,null,null,null,null,null,null,null,null,1]
[1,null,null,null,null,null,null,null,null,null,null,null,null,null,null,null,1]
[1,null,null,null,null,null,null,null,null,null,null,null,null,null,null,null,1]
[1,null,null,null,null,null,null,null,null,null,null,null,null,null,null,null,1]
[1,null,null,null,null,null,null,null,null,null,null,null,null,null,null,null,1]
[1,null,null,null,null,null,null,null,null,null,null,null,null,null,null,null,1]
[1,null,null,null,null,null,null,null,null,null,null,null,null,null,null,null,1]
[1,null,null,null,null,null,null,null,null,null,null,null,null,null,null,null,1]
[1,null,null,null,null,null,null,null,null,null,null,null,null,null,null,null,1]
[1,null,null,null,null,null,null,null,null,null,null,null,null,null,null,null,1]
[1,null,null,null,null,null,null,null,null,null,null,null,null,null,null,null,1]
[1,null,null,null,null,null,null,null,null,null,null,null,null,null,null,null,1]
[1,null,null,null,null,null,null,null,null,null,null,null,null,null,null,null,1]
[1,null,null,null,null,null,null,null,null,null,null,null,null,null,null,null,1]
[1,null,null,null,null,null,null,null,null,null,null,null,null,null,null,null,1]
[1,null,null,null,null,null,null,null,null,null,null,null,null,null,null,null,1]
[1,null,null,null,null,null,null,null,null,null,null,null,null,null,null,null,1]
[1,null,null,null,null,null,null,null,null,null,null,null,null,null,null,null,1]
[1,null,null,null,null,null,null,null,null,null,null,null,null,null,null,null,1]
[1,null,null,null,null,null,null,null,null,null,null,null,null,null,null,null,1]
[1,null,null,null,null,null,null,null,null,null,null,null,null,null,null,null,1]
[1,null,null,null,null,null,null,null,null,null,null,null,null,null,null,null,1]
[1,null,null,null,null,null,null,null,null,null,null,null,null,null,null,null,1]
[1,null,null,null,null,null,null,null,null,null,null,null,null,null,null,null,1]
[1,null,null,null,null,null,null,null,null,null,null,null,null,null,null,null,1]
[1,null,null,null,null,null,null,null,null,null,null,null,null,null,null,null,1]
[1,null,null,null,null,null,null,null,null,null,null,null,null,null,null,null,1]
[1,null,null,null,null,null,null,null,null,null,null,null,null,null,null,null,1]
[1,null,null,null,null,null,null,null,null,null,null,null,null,null,null,null,1]
[1,null,null,null,null,null,null,null,null,null,null,null,null,null,null,null,1]
[1,null,null,null,null,null,null,null,null,null,null,null,null,null,null,null,1]
[1,null,null,null,null,null,null,null,null,null,null,null,null,null,null,null,1]
[1,null,null,null,null,null,null,null,null,null,null,null,null,null,null,null,1]
[1,null,null,null,null,null,null,null,null,null,null,null,null,null,null,null,1]
[1,null,null,null,null,null,null,null,null,null,null,null,null,null,null,null,1]
[1,null,null,null,null,null,null,null,null,null,null,null,null,null,null,null,1]
[1,null,null,null,null,null,null,null,null,null,null,null,null,null,null,null,1]
[1,null,null,null,null,null,null,null,null,null,null,null,null,null,null,null,1]
[1,null,null,null,null,null,null,null,null,null,null,null,null,null,null,null,1]
[1,null,null,null,null,null,null,null,null,null,null,null,null,null,null,null,1]
[1,null,null,null,null,null,null,null,null,null,null,null,null,null,null,null,1]
[1,null,null,null,null,null,null,null,null,null,null,null,null,null,null,null,1]
[1,null,null,null,null,null,null,null,null,null,null,null,null,null,null,null,1]
[1,null,null,null,null,null,null,null,null,null,null,null,null,null,null,null,1]
[1,null,null,null,null,null,null,null,null,null,null,null,null,null,null,null,1]
[1,null,null,null,null,null,null,null,null,null,null,null,null,null,null,null,1]
[1,null,null,null,null,null,null,null,null,null,null,null,null,null,null,null,1]
[1,null,null,null,null,null,null,null,null,null,null,null,null,null,null,null,1]
[1,null,null,null,null,null,null,null,null,null,null,null,null,null,null,null,1]
[1,null,null,null,null,null,null,null,null,null,null,null,null,null,null,null,1]
[1,null,null,null,null,null,null,null,null,null,null,null,null,null,null,null,1]
[1,null,null,null,null,null,null,null,null,null,null,null,null,null,null,null,1]
[1,null,null,null,null,null,null,null,null,null,null,null,null,null,null,null,1]
[1,null,null,null,null,null,null,null,null,null,null,null,null,null,null,null,1]
[1,null,null,null,null,null,null,null,null,null,null,null,null,null,null,null,1]
[1,null,null,null,null,null,null,null,null,null,null,null,null,null,null,null,1]
[1,null,null,null,null,null,null,null,null,null,null,null,null,null,null,null,1]
[1,null,null,null,null,null,null,null,null,null,null,null,null,null,null,null,1]
[1,null,null,null,null,null,null,null,null,null,null,null,null,null,null,null,1]
[1,null,null,null,null,null,null,null,null,null,null,null,null,null,null,null,1]
[1,null,null,null,null,null,null,null,null,null,null,null,null,null,null,null,1]
[1,null,null,null,null,null,null,null,null,null,null,null,null,null,null,null,1]
[1,null,null,null,null,null,null,null,null,null,null,null,null,null,null,null,1]
[1,null,null,null,null,null,null,null,null,null,null,null,null,null,null,null,1]
[1,null,null,null,null,null,null,null,null,null,null,null,null,null,null,null,1]
[1,null,null,null,null,null,null,null,null,null,null,null,null,null,null,null,1]
[1,null,null,null,null,null,null,null,null,null,null,null,null,null,null,null,1]
[1,null,null,null,null,null,null,null,null,null,null,null,null,null,null,null,1]
[1,null,null,null,null,null,null,null,null,null,null,null,null,null,null,null,1]
[1,null,null,null,null,null,null,null,null,null,null,null,null,null,null,null,1]
[1,null,null,null,null,null,null,null,null,null,null,null,null,null,null,null,1]
[1,null,null,null,null,null,null,null,null,null,null,null,null,null,null,null,1]
[1,null,null,null,null,null,null,null,null,null,null,null,null,null,null,null,1]
[1,null,null,null,null,null,null,null,null,null,null,null,null,null,null,null,1]
[1,null,null,null,null,null,null,null,null,null,null,null,null,null,null,null,1]
[1,null,null,null,null,null,null,null,null,null,null,null,null,null,null,null,1]
[1,null,null,null,null,null,null,null,null,null,null,null,null,null,null,null,1]
[1,null,null,null,null,null,null,null,null,null,null,null,null,null,null,null,1]
[1,null,null,null,null,null,null,null,null,null,null,null,null,null,null,null,1]
[1,null,null,null,null,null,null,null,null,null,null,null,null,null,null,null,1]
[1,null,null,null,null,null,null,null,null,null,null,null,null,null,null,null,1]
[1,null,null,null,null,null,null,null,null,null,null,null,null,null,null,null,1]
[1,null,null,null,null,null,null,null,null,null,null,null,null,null,null,null,1]
[1,null,null,null,null,null,null,null,null,null,null,null,null,null,null,null,1]
[1,null,null,null,null,null,null,null,null,null,null,null,null,null,null,null,1]
[1,null,null,null,null,null,null,null,null,null,null,null,null,null,null,null,1]
[1,null,null,null,null,null,null,null,null,null,null,null,null,null,null,null,1]
[1,null,null,null,null,null,null,null,null,null,null,null,null,null,null,null,1]
[1,null,null,null,null,null,null,null,null,null,null,null,null,null,null,null,1]
[1,null,null,null,null,null,null,null,null,null,null,null,null,null,null,null,1]
[1,null,null,null,null,null,null,null,null,null,null,null,null,null,null,null,1]
[1,null,null,null,null,null,null,null,null,null,null,null,null,null,null,null,1]
[1,null,null,null,null,null,null,null,null,null,null,null,null,null,null,null,1]
[1,null,null,null,null,null,null,null,null,null,null,null,null,null,null,null,1]
[1,null,null,null,null,null,null,null,null,null,null,null,null,null,null,null,1]
[1,null,null,null,null,null,null,null,null,null,null,null,null,null,null,null,1]
[1,null,null,null,null,null,null,null,null,null,null,null,null,null,null,null,1]
[1,null,null,null,null,null,null,null,null,null,null,null,null,null,null,null,1]
[1,null,null,null,null,null,null,null,null,null,null,null,null,null,null,null,1]
[1,null,null,null,null,null,null,null,null,null,null,null,null,null,null,null,1]
[1,null,null,null,null,null,null,null,null,null,null,null,null,null,null,null,1]
[1,null,null,null,null,null,null,null,null,null,null,null,null,null,null,null,1]
[1,null,null,null,null,null,null,null,null,null,null,null,null,null,null,null,1]
[1,null,null,null,null,null,null,null,null,null,null,null,null,null,null,null,1]
[1,null,null,null,null,null,null,null,null,null,null,null,null,null,null,null,1]
[1,null,null,null,null,null,null,null,null,null,null,null,null,null,null,null,1]
[1,null,null,null,null,null,null,null,null,null,null,null,null,null,null,null,1]
[1,null,null,null,null,null,null,null,null,null,null,null,null,null,null,null,1]
[1,null,null,null,null,null,null,null,null,null,null,null,null,null,null,null,1]
[1,null,null,null,null,null,null,null,null,null,null,null,null,null,null,null,1]
[1,null,null,null,null,null,null,null,null,null,null,null,null,null,null,null,1]
[1,null,null,null,null,null,null,null,null,null,null,null,null,null,null,null,1]
[1,null,null,null,null,null,null,null,null,null,null,null,null,null,null,null,1]
[1,null,null,null,null,null,null,null,null,null,null,null,null,null,null,null,1]
[1,null,null,null,null,null,null,null,null,null,null,null,null,null,null,null,1]
[1,null,null,null,null,null,null,null,null,null,null,null,null,null,null,null,1]
[1,null,null,null,null,null,null,null,null,null,null,null,null,null,null,null,1]
[1,null,null,null,null,null,null,null,null,null,null,null,null,null,null,null,1]
[1,null,null,null,null,null,null,null,null,null,null,null,null,null,null,null,1]
[1,null,null,null,null,null,null,null,null,null,null,null,null,null,null,null,1]
[1,null,null,null,null,null,null,null,null,null,null,null,null,null,null,null,1]
[1,null,null,null,null,null,null,null,null,null,null,null,null,null,null,null,1]
[1,null,null,null,null,null,null,null,null,null,null,null,null,null,null,null,1]
[1,null,null,null,null,null,null,null,null,null,null,null,null,null,null,null,1]
[1,null,null,null,null,null,null,null,null,null,null,null,null,null,null,null,1]
[1,null,null,null,null,null,null,null,null,null,null,null,null,null,null,null,1]
[1,null,null,null,null,null,null,null,null,null,null,null,null,null,null,null,1]
[1,null,null,null,null,null,null,null,null,null,null,null,null,null,null,null,1]
[1,null,null,null,null,null,null,null,null,null,null,null,null,null,null,null,1]
[1,null,null,null,null,null,null,null,null,null,null,null,null,null,null,null,1]
[1,null,null,null,null,null,null,null,null,null,null,null,null,null,null,null,1]
[1,null,null,null,null,null,null,null,null,null,null,null,null,null,null,null,1]
[1,null,null,null,null,null,null,null,null,null,null,null,null,null,null,null,1]
[1,null,null,null,null,null,null,null,null,null,null,null,null,null,null,null,1]
[1,null,null,null,null,null,null,null,null,null,null,null,null,null,null,null,1]
[1,null,null,null,null,null,null,null,null,null,null,null,null,null,null,null,1]
[1,null,null,null,null,null,null,null,null,null,null,null,null,null,null,null,1]
[1,null,null,null,null,null,null,null,null,null,null,null,null,null,null,null,1]
[1,null,null,null,null,null,null,null,null,null,null,null,null,null,null,null,1]
[1,null,null,null,null,null,null,null,null,null,null,null,null,null,null,null,1]
[1,null,null,null,null,null,null,null,null,null,null,null,null,null,null,null,1]
[1,null,null,null,null,null,null,null,null,null,null,null,null,null,null,null,1]
[1,null,null,null,null,null,null,null,null,null,null,null,null,null,null,null,1]
[1,null,null,null,null,null,null,null,null,null,null,null,null,null,null,null,1]
[1,null,null,null,null,null,null,null,null,null,null,null,null,null,null,null,1]
[1,null,null,null,null,null,null,null,null,null,null,null,null,null,null,null,1]
[1,null,null,null,null,null,null,null,null,null,null,null,null,null,null,null,1]
[1,null,null,null,null,null,null,null,null,null,null,null,null,null,null,null,1]
[1,null,null,null,null,null,null,null,null,null,null,null,null,null,null,null,1]
[1,null,null,null,null,null,null,null,null,null,null,null,null,null,null,null,1]
[1,null,null,null,null,null,null,null,null,null,null,null,null,null,null,null,1]
[1,null,null,null,null,null,null,null,null,null,null,null,null,null,null,null,1]
[1,null,null,null,null,null,null,null,null,null,null,null,null,null,null,null,1]
[1,null,null,null,null,null,null,null,null,null,null,null,null,null,null,null,1]
[1,null,null,null,null,null,null,null,null,null,null,null,null,null,null,null,1]
[1,null,null,null,null,null,null,null,null,null,null,null,null,null,null,null,1]
[1,null,null,null,null,null,null,null,null,null,null,null,null,null,null,null,1]
[1,null,null,null,null,null,null,null,null,null,null,null,null,null,null,null,1]
[1,null,null,null,null,null,null,null,null,null,null,null,null,null,null,null,1]
[1,null,null,null,null,null,null,null,null,null,null,null,null,null,null,null,1]
[1,null,null,null,null,null,null,null,null,null,null,null,null,null,null,null,1]
[1,null,null,null,null,null,null,null,null,null,null,null,null,null,null,null,1]
[1,null,null,null,null,null,null,null,null,null,null,null,null,null,null,null,1]
[1,null,null,null,null,null,null,null,null,null,null,null,null,null,null,null,1]
[1,null,null,null,null,null,null,null,null,null,null,null,null,null,null,null,1]
[1,null,null,null,null,null,null,null,null,null,null,null,null,null,null,null,1]
[1,null,null,null,null,null,null,null,null,null,null,null,null,null,null,null,1]
[1,null,null,null,null,null,null,null,null,null,null,null,null,null,null,null,1]
[1,null,null,null,null,null,null,null,null,null,null,null,null,null,null,null,1]
[1,null,null,null,null,null,null,null,null,null,null,null,null,null,null,null,1]
[1,null,null,null,null,null,null,null,null,null,null,null,null,null,null,null,1]
[1,null,null,null,null,null,null,null,null,null,null,null,null,null,null,null,1]
[1,null,null,null,null,null,null,null,null,null,null,null,null,null,null,null,1]
[1,null,null,null,null,null,null,null,null,null,null,null,null,null,null,null,1]
[1,null,null,null,null,null,null,null,null,null,null,null,null,null,null,null,1]
[1,null,null,null,null,null,null,null,null,null,null,null,null,null,null,null,1]
[1,null,null,null,null,null,null,null,null,null,null,null,null,null,null,null,1]
[1,null,null,null,null,null,null,null,null,null,null,null,null,null,null,null,1]
[1,null,null,null,null,null,null,null,null,null,null,null,null,null,null,null,1]
[1,null,null,null,null,null,null,null,null,null,null,null,null,null,null,null,1]
[1,null,null,null,null,null,null,null,null,null,null,null,null,null,null,null,1]
[1,null,null,null,null,null,null,null,null,null,null,null,null,null,null,null,1]
[1,null,null,null,null,null,null,null,null,null,null,null,null,null,null,null,1]
[1,null,null,null,null,null,null,null,null,null,null,null,null,null,null,null,1]
[1,null,null,null,null,null,null,null,null,null,null,null,null,null,null,null,1]
[1,null,null,null,null,null,null,null,null,null,null,null,null,null,null,null,1]
[1,null,null,null,null,null,null,null,null,null,null,null,null,null,null,null,1]
[1,null,null,null,null,null,null,null,null,null,null,null,null,null,null,null,1]
[1,null,null,null,null,null,null,null,null,null,null,null,null,null,null,null,1]
[1,null,null,null,null,null,null,null,null,null,null,null,null,null,null,null,1]
[1,null,null,null,null,null,null,null,null,null,null,null,null,null,null,null,1]
[1,null,null,null,null,null,null,null,null,null,null,null,null,null,null,null,1]
[1,null,null,null,null,null,null,null,null,null,null,null,null,null,null,null,1]
[1,null,null,null,null,null,null,null,null,null,null,null,null,null,null,null,1]
[1,null,null,null,null,null,null,null,null,null,null,null,null,null,null,null,1]
[1,null,null,null,null,null,null,null,null,null,null,null,null,null,null,null,1]
[1,null,null,null,null,null,null,null,null,null,null,null,null,null,null,null,1]
[1,null,null,null,null,null,null,null,null,null,null,null,null,null,null,null,1]
[1,null,null,null,null,null,null,null,null,null,null,null,null,null,null,null,1]
[1,null,null,null,null,null,null,null,null,null,null,null,null,null,null,null,1]
[1,null,null,null,null,null,null,null,null,null,null,null,null,null,null,null,1]
[1,null,null,null,null,null,null,null,null,null,null,null,null,null,null,null,1]
[1,null,null,null,null,null,null,null,null,null,null,null,null,null,null,null,1]
[1,null,null,null,null,null,null,null,null,null,null,null,null,null,null,null,1]
[1,null,null,null,null,null,null,null,null,null,null,null,null,null,null,null,1]
[1,null,null,null,null,null,null,null,null,null,null,null,null,null,null,null,1]
[1,null,null,null,null,null,null,null,null,null,null,null,null,null,null,null,1]
[1,null,null,null,null,null,null,null,null,null,null,null,null,null,null,null,1]
[1,null,null,null,null,null,null,null,null,null,null,null,null,null,null,null,1]
[1,null,null,null,null,null,null,null,null,null,null,null,null,null,null,null,1]
[1,null,null,null,null,null,null,null,null,null,null,null,null,null,null,null,1]
[1,null,null,null,null,null,null,null,null,null,null,null,null,null,null,null,1]
[1,null,null,null,null,null,null,null,null,null,null,null,null,null,null,null,1]
[1,null,null,null,null,null,null,null,null,null,null,null,null,null,null,null,1]
[1,null,null,null,null,null,null,null,null,null,null,null,null,null,null,null,1]
[1,null,null,null,null,null,null,null,null,null,null,null,null,null,null,null,1]
[1,null,null,null,null,null,null,null,null,null,null,null,null,null,null,null,1]
[1,null,null,null,null,null,null,null,null,null,null,null,null,null,null,null,1]
[1,null,null,null,null,null,null,null,null,null,null,null,null,null,null,null,1]
[1,null,null,null,null,null,null,null,null,null,null,null,null,null,null,null,1]
[1,null,null,null,null,null,null,null,null,null,null,null,null,null,null,null,1]
[1,null,null,null,null,null,null,null,null,null,null,null,null,null,null,null,1]
[1,null,null,null,null,null,null,null,null,null,null,null,null,null,null,null,1]
[1,null,null,null,null,null,null,null,null,null,null,null,null,null,null,null,1]
[1,null,null,null,null,null,null,null,null,null,null,null,null,null,null,null,1]
[1,null,null,null,null,null,null,null,null,null,null,null,null,null,null,null,1]
[1,null,null,null,null,null,null,null,null,null,null,null,null,null,null,null,1]
[1,null,null,null,null,null,null,null,null,null,null,null,null,null,null,null,1]
[1,null,null,null,null,null,null,null,null,null,null,null,null,null,null,null,1]
[1,null,null,null,null,null,null,null,null,null,null,null,null,null,null,null,1]
[1,null,null,null,null,null,null,null,null,null,null,null,null,null,null,null,1]
[1,null,null,null,null,null,null,null,null,null,null,null,null,null,null,null,1]
[1,null,null,null,null,null,null,null,null,null,null,null,null,null,null,null,1]
[1,null,null,null,null,null,null,null,null,null,null,null,null,null,null,null,1]
[1,null,null,null,null,null,null,null,null,null,null,null,null,null,null,null,1]
[1,null,null,null,null,null,null,null,null,null,null,null,null,null,null,null,1]
[1,null,null,null,null,null,null,null,null,null,null,null,null,null,null,null,1]
[1,null,null,null,null,null,null,null,null,null,null,null,null,null,null,null,1]
[1,null,null,null,null,null,null,null,null,null,null,null,null,null,null,null,1]
[1,null,null,null,null,null,null,null,null,null,null,null,null,null,null,null,1]
[1,null,null,null,null,null,null,null,null,null,null,null,null,null,null,null,1]
[1,null,null,null,null,null,null,null,null,null,null,null,null,null,null,null,1]
[1,null,null,null,null,null,null,null,null,null,null,null,null,null,null,null,1]
[1,null,null,null,null,null,null,null,null,null,null,null,null,null,null,null,1]
[1,null,null,null,null,null,null,null,null,null,null,null,null,null,null,null,1]
[1,null,null,null,null,null,null,null,null,null,null,null,null,null,null,null,1]
[1,null,null,null,null,null,null,null,null,null,null,null,null,null,null,null,1]
[1,null,null,null,null,null,null,null,null,null,null,null,null,null,null,null,1]
[1,null,null,null,null,null,null,null,null,null,null,null,null,null,null,null,1]
[1,null,null,null,null,null,null,null,null,null,null,null,null,null,null,null,1]
[1,null,null,null,null,null,null,null,null,null,null,null,null,null,null,null,1]
[1,null,null,null,null,null,null,null,null,null,null,null,null,null,null,null,1]
[1,null,null,null,null,null,null,null,null,null,null,null,null,null,null,null,1]
[1,null,null,null,null,null,null,null,null,null,null,null,null,null,null,null,1]
[1,null,null,null,null,null,null,null,null,null,null,null,null,null,null,null,1]
[1,null,null,null,null,null,null,null,null,null,null,null,null,null,null,null,1]
[1,null,null,null,null,null,null,null,null,null,null,null,null,null,null,null,1]
[1,null,null,null,null,null,null,null,null,null,null,null,null,null,null,null,1]
[1,null,null,null,null,null,null,null,null,null,null,null,null,null,null,null,1]
[1,null,null,null,null,null,null,null,null,null,null,null,null,null,null,null,1]
[1,null,null,null,null,null,null,null,null,null,null,null,null,null,null,null,1]
[1,null,null,null,null,null,null,null,null,null,null,null,null,null,null,null,1]
[1,null,null,null,null,null,null,null,null,null,null,null,null,null,null,null,1]
[1,null,null,null,null,null,null,null,null,null,null,null,null,null,null,null,1]
[1,null,null,null,null,null,null,null,null,null,null,null,null,null,null,null,1]
[1,null,null,null,null,null,null,null,null,null,null,null,null,null,null,null,1]
[1,null,null,null,null,null,null,null,null,null,null,null,null,null,null,null,1]
[1,null,null,null,null,null,null,null,null,null,null,null,null,null,null,null,1]
[1,null,null,null,null,null,null,null,null,null,null,null,null,null,null,null,1]
[1,null,null,null,null,null,null,null,null,null,null,null,null,null,null,null,1]
[1,null,null,null,null,null,null,null,null,null,null,null,null,null,null,null,1]
[1,null,null,null,null,null,null,null,null,null,null,null,null,null,null,null,1]
[1,null,null,null,null,null,null,null,null,null,null,null,null,null,null,null,1]
[1,null,null,null,null,null,null,null,null,null,null,null,null,null,null,null,1]
[1,null,null,null,null,null,null,null,null,null,null,null,null,null,null,null,1]
[1,null,null,null,null,null,null,null,null,null,null,null,null,null,null,null,1]
[1,null,null,null,null,null,null,null,null,null,null,null,null,null,null,null,1]
[1,null,null,null,null,null,null,null,null,null,null,null,null,null,null,null,1]
[1,null,null,null,null,null,null,null,null,null,null,null,null,null,null,null,1]
[1,null,null,null,null,null,null,null,null,null,null,null,null,null,null,null,1]
[1,null,null,null,null,null,null,null,null,null,null,null,null,null,null,null,1]
[1,null,null,null,null,null,null,null,null,null,null,null,null,null,null,null,1]
[1,null,null,null,null,null,null,null,null,null,null,null,null,null,null,null,1]
[1,null,null,null,null,null,null,null,null,null,null,null,null,null,null,null,1]
[1,null,null,null,null,null,null,null,null,null,null,null,null,null,null,null,1]
[1,null,null,null,null,null,null,null,null,null,null,null,null,null,null,null,1]
[1,null,null,null,null,null,null,null,null,null,null,null,null,null,null,null,1]
[1,null,null,null,null,null,null,null,null,null,null,null,null,null,null,null,1]
[1,null,null,null,null,null,null,null,null,null,null,null,null,null,null,null,1]
[1,null,null,null,null,null,null,null,null,null,null,null,null,null,null,null,1]
[1,null,null,null,null,null,null,null,null,null,null,null,null,null,null,null,1]
[1,null,null,null,null,null,null,null,null,null,null,null,null,null,null,null,1]
[1,null,null,null,null,null,null,null,null,null,null,null,null,null,null,null,1]
[1,null,null,null,null,null,null,null,null,null,null,null,null,null,null,null,1]
[1,null,null,null,null,null,null,null,null,null,null,null,null,null,null,null,1]
[1,null,null,null,null,null,null,null,null,null,null,null,null,null,null,null,1]
[1,null,null,null,null,null,null,null,null,null,null,null,null,null,null,null,1]
[1,null,null,null,null,null,null,null,null,null,null,null,null,null,null,null,1]
[1,null,null,null,null,null,null,null,null,null,null,null,null,null,null,null,1]
[1,null,null,null,null,null,null,null,null,null,null,null,null,null,null,null,1]
[1,null,null,null,null,null,null,null,null,null,null,null,null,null,null,null,1]
[1,null,null,null,null,null,null,null,null,null,null,null,null,null,null,null,1]
[1,null,null,null,null,null,null,null,null,null,null,null,null,null,null,null,1]
[1,null,null,null,null,null,null,null,null,null,null,null,null,null,null,null,1]
[1,null,null,null,null,null,null,null,null,null,null,null,null,null,null,null,1]
[1,null,null,null,null,null,null,null,null,null,null,null,null,null,null,null,1]
[1,null,null,null,null,null,null,null,null,null,null,null,null,null,null,null,1]
[1,null,null,null,null,null,null,null,null,null,null,null,null,null,null,null,1]
[1,null,null,null,null,null,null,null,null,null,null,null,null,null,null,null,1]
[1,null,null,null,null,null,null,null,null,null,null,null,null,null,null,null,1]
[1,null,null,null,null,null,null,null,null,null,null,null,null,null,null,null,1]
[1,null,null,null,null,null,null,null,null,null,null,null,null,null,null,null,1]
[1,null,null,null,null,null,null,null,null,null,null,null,null,null,null,null,1]
[1,null,null,null,null,null,null,null,null,null,null,null,null,null,null,null,1]
[1,null,null,null,null,null,null,null,null,null,null,null,null,null,null,null,1]
[1,null,null,null,null,null,null,null,null,null,null,null,null,null,null,null,1]
[1,null,null,null,null,null,null,null,null,null,null,null,null,null,null,null,1]
[1,null,null,null,null,null,null,null,null,null,null,null,null,null,null,null,1]
[1,null,null,null,null,null,null,null,null,null,null,null,null,null,null,null,1]
[1,null,null,null,null,null,null,null,null,null,null,null,null,null,null,null,1]
[1,null,null,null,null,null,null,null,null,null,null,null,null,null,null,null,1]
[1,null,null,null,null,null,null,null,null,null,null,null,null,null,null,null,1]
[1,null,null,null,null,null,null,null,null,null,null,null,null,null,null,null,1]
[1,null,null,null,null,null,null,null,null,null,null,null,null,null,null,null,1]
[1,null,null,null,null,null,null,null,null,null,null,null,null,null,null,null,1]
[1,null,null,null,null,null,null,null,null,null,null,null,null,null,null,null,1]
[1,null,null,null,null,null,null,null,null,null,null,null,null,null,null,null,1]
[1,null,null,null,null,null,null,null,null,null,null,null,null,null,null,null,1]
[1,null,null,null,null,null,null,null,null,null,null,null,null,null,null,null,1]
[1,null,null,null,null,null,null,null,null,null,null,null,null,null,null,null,1]
[1,null,null,null,null,null,null,null,null,null,null,null,null,null,null,null,1]
[1,null,null,null,null,null,null,null,null,null,null,null,null,null,null,null,1]
[1,null,null,null,null,null,null,null,null,null,null,null,null,null,null,null,1]
[1,null,null,null,null,null,null,null,null,null,null,null,null,null,null,null,1]
[1,null,null,null,null,null,null,null,null,null,null,null,null,null,null,null,1]
[1,null,null,null,null,null,null,null,null,null,null,null,null,null,null,null,1]
[1,null,null,null,null,null,null,null,null,null,null,null,null,null,null,null,1]
[1,null,null,null,null,null,null,null,null,null,null,null,null,null,null,null,1]
[1,null,null,null,null,null,null,null,null,null,null,null,null,null,null,null,1]
[1,null,null,null,null,null,null,null,null,null,null,null,null,null,null,null,1]
[1,null,null,null,null,null,null,null,null,null,null,null,null,null,null,null,1]
[1,null,null,null,null,null,null,null,null,null,null,null,null,null,null,null,1]
[1,null,null,null,null,null,null,null,null,null,null,null,null,null,null,null,1]
[1,null,null,null,null,null,null,null,null,null,null,null,null,null,null,null,1]
[1,null,null,null,null,null,null,null,null,null,null,null,null,null,null,null,1]
[1,null,null,null,null,null,null,null,null,null,null,null,null,null,null,null,1]
[1,null,null,null,null,null,null,null,null,null,null,null,null,null,null,null,1]
[1,null,null,null,null,null,null,null,null,null,null,null,null,null,null,null,1]
[1,null,null,null,null,null,null,null,null,null,null,null,null,null,null,null,1]
[1,null,null,null,null,null,null,null,null,null,null,null,null,null,null,null,1]
[1,null,null,null,null,null,null,null,null,null,null,null,null,null,null,null,1]
[1,null,null,null,null,null,null,null,null,null,null,null,null,null,null,null,1]
[1,null,null,null,null,null,null,null,null,null,null,null,null,null,null,null,1]
[1,null,null,null,null,null,null,null,null,null,null,null,null,null,null,null,1]
[1,null,null,null,null,null,null,null,null,null,null,null,null,null,null,null,1]
[1,null,null,null,null,null,null,null,null,null,null,null,null,null,null,null,1]
[1,null,null,null,null,null,null,null,null,null,null,null,null,null,null,null,1]
[1,null,null,null,null,null,null,null,null,null,null,null,null,null,null,null,1]
[1,null,null,null,null,null,null,null,null,null,null,null,null,null,null,null,1]
[1,null,null,null,null,null,null,null,null,null,null,null,null,null,null,null,1]
[1,null,null,null,null,null,null,null,null,null,null,null,null,null,null,null,1]
[1,null,null,null,null,null,null,null,null,null,null,null,null,null,null,null,1]
[1,null,null,null,null,null,null,null,null,null,null,null,null,null,null,null,1]
[1,null,null,null,null,null,null,null,null,null,null,null,null,null,null,null,1]
[1,null,null,null,null,null,null,null,null,null,null,null,null,null,null,null,1]
[1,null,null,null,null,null,null,null,null,null,null,null,null,null,null,null,1]
[1,null,null,null,null,null,null,null,null,null,null,null,null,null,null,null,1]
[1,null,null,null,null,null,null,null,null,null,null,null,null,null,null,null,1]
[1,null,null,null,null,null,null,null,null,null,null,null,null,null,null,null,1]
[1,null,null,null,null,null,null,null,null,null,null,null,null,null,null,null,1]
[1,null,null,null,null,null,null,null,null,null,null,null,null,null,null,null,1]
[1,null,null,null,null,null,null,null,null,null,null,null,null,null,null,null,1]
[1,null,null,null,null,null,null,null,null,null,null,null,null,null,null,null,1]
[1,null,null,null,null,null,null,null,null,null,null,null,null,null,null,null,1]
[1,null,null,null,null,null,null,null,null,null,null,null,null,null,null,null,1]
[1,null,null,null,null,null,null,null,null,null,null,null,null,null,null,null,1]
[1,null,null,null,null,null,null,null,null,null,null,null,null,null,null,null,1]
[1,null,null,null,null,null,null,null,null,null,null,null,null,null,null,null,1]
[1,null,null,null,null,null,null,null,null,null,null,null,null,null,null,null,1]
[1,null,null,null,null,null,null,null,null,null,null,null,null,null,null,null,1]
[1,null,null,null,null,null,null,null,null,null,null,null,null,null,null,null,1]
[1,null,null,null,null,null,null,null,null,null,null,null,null,null,null,null,1]
[1,null,null,null,null,null,null,null,null,null,null,null,null,null,null,null,1]
[1,null,null,null,null,null,null,null,null,null,null,null,null,null,null,null,1]
[1,null,null,null,null,null,null,null,null,null,null,null,null,null,null,null,1]
[1,null,null,null,null,null,null,null,null,null,null,null,null,null,null,null,1]
[1,null,null,null,null,null,null,null,null,null,null,null,null,null,null,null,1]
[1,null,null,null,null,null,null,null,null,null,null,null,null,null,null,null,1]
[1,null,null,null,null,null,null,null,null,null,null,null,null,null,null,null,1]
[1,null,null,null,null,null,null,null,null,null,null,null,null,null,null,null,1]
[1,null,null,null,null,null,null,null,null,null,null,null,null,null,null,null,1]
[1,null,null,null,null,null,null,null,null,null,null,null,null,null,null,null,1]
[1,null,null,null,null,null,null,null,null,null,null,null,null,null,null,null,1]
[1,null,null,null,null,null,null,null,null,null,null,null,null,null,null,null,1]
[1,null,null,null,null,null,null,null,null,null,null,null,null,null,null,null,1]
[1,null,null,null,null,null,null,null,null,null,null,null,null,null,null,null,1]
[1,null,null,null,null,null,null,null,null,null,null,null,null,null,null,null,1]
[1,null,null,null,null,null,null,null,null,null,null,null,null,null,null,null,1]
[1,null,null,null,null,null,null,null,null,null,null,null,null,null,null,null,1]
[1,null,null,null,null,null,null,null,null,null,null,null,null,null,null,null,1]
[1,null,null,null,null,null,null,null,null,null,null,null,null,null,null,null,1]
[1,null,null,null,null,null,null,null,null,null,null,null,null,null,null,null,1]
[1,null,null,null,null,null,null,null,null,null,null,null,null,null,null,null,1]
[1,null,null,null,null,null,null,null,null,null,null,null,null,null,null,null,1]
[1,null,null,null,null,null,null,null,null,null,null,null,null,null,null,null,1]
[1,null,null,null,null,null,null,null,null,null,null,null,null,null,null,null,1]
[1,null,null,null,null,null,null,null,null,null,null,null,null,null,null,null,1]
[1,null,null,null,null,null,null,null,null,null,null,null,null,null,null,null,1]
[1,null,null,null,null,null,null,null,null,null,null,null,null,null,null,null,1]
[1,null,null,null,null,null,null,null,null,null,null,null,null,null,null,null,1]
[1,null,null,null,null,null,null,null,null,null,null,null,null,null,null,null,1]
[1,null,null,null,null,null,null,null,null,null,null,null,null,null,null,null,1]
[1,null,null,null,null,null,null,null,null,null,null,null,null,null,null,null,1]
[1,null,null,null,null,null,null,null,null,null,null,null,null,null,null,null,1]
[1,null,null,null,null,null,null,null,null,null,null,null,null,null,null,null,1]
[1,null,null,null,null,null,null,null,null,null,null,null,null,null,null,null,1]
[1,null,null,null,null,null,null,null,null,null,null,null,null,null,null,null,1]
[1,null,null,null,null,null,null,null,null,null,null,null,null,null,null,null,1]
[1,null,null,null,null,null,null,null,null,null,null,null,null,null,null,null,1]
[1,null,null,null,null,null,null,null,null,null,null,null,null,null,null,null,1]
[1,null,null,null,null,null,null,null,null,null,null,null,null,null,null,null,1]
[1,null,null,null,null,null,null,null,null,null,null,null,null,null,null,null,1]
[1,null,null,null,null,null,null,null,null,null,null,null,null,null,null,null,1]
[1,null,null,null,null,null,null,null,null,null,null,null,null,null,null,null,1]
[1,null,null,null,null,null,null,null,null,null,null,null,null,null,null,null,1]
[1,null,null,null,null,null,null,null,null,null,null,null,null,null,null,null,1]
[1,null,null,null,null,null,null,null,null,null,null,null,null,null,null,null,1]
[1,null,null,null,null,null,null,null,null,null,null,null,null,null,null,null,1]
[1,null,null,null,null,null,null,null,null,null,null,null,null,null,null,null,1]
[1,null,null,null,null,null,null,null,null,null,null,null,null,null,null,null,1]
[1,null,null,null,null,null,null,null,null,null,null,null,null,null,null,null,1]
[1,null,null,null,null,null,null,null,null,null,null,null,null,null,null,null,1]
[1,null,null,null,null,null,null,null,null,null,null,null,null,null,null,null,1]
[1,null,null,null,null,null,null,null,null,null,null,null,null,null,null,null,1]
[1,null,null,null,null,null,null,null,null,null,null,null,null,null,null,null,1]
[1,null,null,null,null,null,null,null,null,null,null,null,null,null,null,null,1]
[1,null,null,null,null,null,null,null,null,null,null,null,null,null,null,null,1]
[1,null,null,null,null,null,null,null,null,null,null,null,null,null,null,null,1]
[1,null,null,null,null,null,null,null,null,null,null,null,null,null,null,null,1]
[1,null,null,null,null,null,null,null,null,null,null,null,null,null,null,null,1]
[1,null,null,null,null,null,null,null,null,null,null,null,null,null,null,null,1]
[1,null,null,null,null,null,null,null,null,null,null,null,null,null,null,null,1]
[1,null,null,null,null,null,null,null,null,null,null,null,null,null,null,null,1]
[1,null,null,null,null,null,null,null,null,null,null,null,null,null,null,null,1]
[1,null,null,null,null,null,null,null,null,null,null,null,null,null,null,null,1]
[1,null,null,null,null,null,null,null,null,null,null,null,null,null,null,null,1]
[1,null,null,null,null,null,null,null,null,null,null,null,null,null,null,null,1]
[1,null,null,null,null,null,null,null,null,null,null,null,null,null,null,null,1]
[1,null,null,null,null,null,null,null,null,null,null,null,null,null,null,null,1]
[1,null,null,null,null,null,null,null,null,null,null,null,null,null,null,null,1]
[1,null,null,null,null,null,null,null,null,null,null,null,null,null,null,null,1]
[1,null,null,null,null,null,null,null,null,null,null,null,null,null,null,null,1]
[1,null,null,null,null,null,null,null,null,null,null,null,null,null,null,null,1]
[1,null,null,null,null,null,null,null,null,null,null,null,null,null,null,null,1]
[1,null,null,null,null,null,null,null,null,null,null,null,null,null,null,null,1]
[1,null,null,null,null,null,null,null,null,null,null,null,null,null,null,null,1]
[1,null,null,null,null,null,null,null,null,null,null,null,null,null,null,null,1]
[1,null,null,null,null,null,null,null,null,null,null,null,null,null,null,null,1]
[1,null,null,null,null,null,null,null,null,null,null,null,null,null,null,null,1]
[1,null,null,null,null,null,null,null,null,null,null,null,null,null,null,null,1]
[1,null,null,null,null,null,null,null,null,null,null,null,null,null,null,null,1]
[1,null,null,null,null,null,null,null,null,null,null,null,null,null,null,null,1]
[1,null,null,null,null,null,null,null,null,null,null,null,null,null,null,null,1]
[1,null,null,null,null,null,null,null,null,null,null,null,null,null,null,null,1]
[1,null,null,null,null,null,null,null,null,null,null,null,null,null,null,null,1]
[1,null,null,null,null,null,null,null,null,null,null,null,null,null,null,null,1]
[1,null,null,null,null,null,null,null,null,null,null,null,null,null,null,null,1]
[1,null,null,null,null,null,null,null,null,null,null,null,null,null,null,null,1]
[1,null,null,null,null,null,null,null,null,null,null,null,null,null,null,null,1]
[1,null,null,null,null,null,null,null,null,null,null,null,null,null,null,null,1]
[1,null,null,null,null,null,null,null,null,null,null,null,null,null,null,null,1]
[1,null,null,null,null,null,null,null,null,null,null,null,null,null,null,null,1]
[1,null,null,null,null,null,null,null,null,null,null,null,null,null,null,null,1]
[1,null,null,null,null,null,null,null,null,null,null,null,null,null,null,null,1]
[1,null,null,null,null,null,null,null,null,null,null,null,null,null,null,null,1]
[1,null,null,null,null,null,null,null,null,null,null,null,null,null,null,null,1]
[1,null,null,null,null,null,null,null,null,null,null,null,null,null,null,null,1]
[1,null,null,null,null,null,null,null,null,null,null,null,null,null,null,null,1]
[1,null,null,null,null,null,null,null,null,null,null,null,null,null,null,null,1]
[1,null,null,null,null,null,null,null,null,null,null,null,null,null,null,null,1]
[1,null,null,null,null,null,null,null,null,null,null,null,null,null,null,null,1]
[1,null,null,null,null,null,null,null,null,null,null,null,null,null,null,null,1]
[1,null,null,null,null,null,null,null,null,null,null,null,null,null,null,null,1]
[1,null,null,null,null,null,null,null,null,null,null,null,null,null,null,null,1]
[1,null,null,null,null,null,null,null,null,null,null,null,null,null,null,null,1]
[1,null,null,null,null,null,null,null,null,null,null,null,null,null,null,null,1]
[1,null,null,null,null,null,null,null,null,null,null,null,null,null,null,null,1]
[1,null,null,null,null,null,null,null,null,null,null,null,null,null,null,null,1]
[1,null,null,null,null,null,null,null,null,null,null,null,null,null,null,null,1]
[1,null,null,null,null,null,null,null,null,null,null,null,null,null,null,null,1]
[1,null,null,null,null,null,null,null,null,null,null,null,null,null,null,null,1]
[1,null,null,null,null,null,null,null,null,null,null,null,null,null,null,null,1]
[1,null,null,null,null,null,null,null,null,null,null,null,null,null,null,null,1]
[1,null,null,null,null,null,null,null,null,null,null,null,null,null,null,null,1]
[1,null,null,null,null,null,null,null,null,null,null,null,null,null,null,null,1]
[1,null,null,null,null,null,null,null,null,null,null,null,null,null,null,null,1]
[1,null,null,null,null,null,null,null,null,null,null,null,null,null,null,null,1]
[1,null,null,null,null,null,null,null,null,null,null,null,null,null,null,null,1]
[1,null,null,null,null,null,null,null,null,null,null,null,null,null,null,null,1]
[1,null,null,null,null,null,null,null,null,null,null,null,null,null,null,null,1]
[1,null,null,null,null,null,null,null,null,null,null,null,null,null,null,null,1]
[1,null,null,null,null,null,null,null,null,null,null,null,null,null,null,null,1]
[1,null,null,null,null,null,null,null,null,null,null,null,null,null,null,null,1]
[1,null,null,null,null,null,null,null,null,null,null,null,null,null,null,null,1]
[1,null,null,null,null,null,null,null,null,null,null,null,null,null,null,null,1]
[1,null,null,null,null,null,null,null,null,null,null,null,null,null,null,null,1]
[1,null,null,null,null,null,null,null,null,null,null,null,null,null,null,null,1]
[1,null,null,{"$f":"50*7","v":350},null,null,null,null,null,null,null,null,null,null,null,null,1]
[1,null,null,null,null,null,null,null,null,null,null,null,null,null,null,null,1]
[1,null,null,null,null,null,null,null,null,null,null,null,null,null,null,null,1]
[1,null,null,null,null,null,null,null,null,null,null,null,null,null,null,null,1]
[1,null,null,null,null,null,null,null,null,null,null,null,null,null,null,null,1]
[1,null,null,null,null,null,null,null,null,null,null,null,null,null,null,null,1]
[1,null,null,null,null,null,null,null,null,null,null,null,null,null,null,null,1]
[1,null,null,null,null,null,null,null,null,null,null,null,null,null,null,null,1]
[1,null,null,null,null,null,null,null,null,null,null,null,null,null,null,null,1]
[1,null,null,null,null,null,null,null,null,null,null,null,null,null,null,null,1]
[null,null,null,null,null,null,null,null,null,null,null,null,null,null,null,null,1]
[null,null,null,null,null,null,null,null,null,null,null,null,null,null,null,null,1]
[null,null,null,null,null,null,null,null,null,null,null,null,null,null,null,null,1]
[null,null,null,null,null,null,null,null,null,null,null,null,null,null,null,null,1]
[null,null,null,null,null,null,null,null,null,null,null,null,null,null,null,null,1]
[null,null,null,null,null,null,null,null,null,null,null,null,null,null,null,null,1]
[null,null,null,null,null,null,null,null,null,null,null,null,null,null,null,null,1]
[null,null,null,null,null,null,null,null,null,null,null,null,null,null,null,null,1]
[null,null,null,null,null,null,null,null,null,null,null,null,null,null,null,null,1]
[null,null,null,null,null,null,null,null,null,null,null,null,null,null,null,null,1]
[null,null,null,null,null,null,null,null,null,null,null,null,null,null,null,null,1]
[null,null,null,null,null,null,null,null,null,null,null,null,null,null,null,null,1]
[null,null,null,null,null,null,null,null,null,null,null,null,null,null,null,null,1]
[null,null,null,null,null,null,null,null,null,null,null,null,null,null,null,null,1]
[null,null,null,null,null,null,null,null,null,null,null,null,null,null,null,null,1]
[null,null,null,null,null,null,null,null,null,null,null,null,null,null,null,null,1]
[null,null,null,null,null,null,null,null,null,null,null,null,null,null,null,null,1]
[null,null,null,null,null,null,null,null,null,null,null,null,null,null,null,null,1]
[null,null,null,null,null,null,null,null,null,null,null,null,null,null,null,null,1]
[null,null,null,null,null,null,null,null,null,null,null,null,null,null,null,null,1]
[null,null,null,null,null,null,null,null,null,null,null,null,null,null,null,null,1]
[null,null,null,null,null,null,null,null,null,null,null,null,null,null,null,null,1]
[null,null,null,null,null,null,null,null,null,null,null,null,null,null,null,null,1]
[null,null,null,null,null,null,null,null,null,null,null,null,null,null,null,null,1]
[null,null,null,null,null,null,null,null,null,null,null,null,null,null,null,null,1]
[null,null,null,null,null,null,null,null,null,null,null,null,null,null,null,null,1]
[null,null,null,null,null,null,null,null,null,null,null,null,null,null,null,null,1]
[null,null,null,null,null,null,null,null,null,null,null,null,null,null,null,null,1]
[null,null,null,null,null,null,null,null,null,null,null,null,null,null,null,null,1]
[null,null,null,null,null,null,null,null,null,null,null,null,null,null,null,null,1]
[null,null,null,null,null,null,null,null,null,null,null,null,null,null,null,null,1]
[null,null,null,null,null,null,null,null,null,null,null,null,null,null,null,null,1]
[null,null,null,null,null,null,null,null,null,null,null,null,null,null,null,null,1]
[null,null,null,null,null,null,null,null,null,null,null,null,null,null,null,null,1]
[null,null,null,null,null,null,null,null,null,null,null,null,null,null,null,null,1]
[null,null,null,null,null,null,null,null,null,null,null,null,null,null,null,null,1]
[null,null,null,null,null,null,null,null,null,null,null,null,null,null,null,null,1]
[null,null,null,null,null,null,null,null,null,null,null,null,null,null,null,null,1]
[null,null,null,null,null,null,null,null,null,null,null,null,null,null,null,null,1]
[null,null,null,null,null,null,null,null,null,null,null,null,null,null,null,null,1]
[null,null,null,null,null,null,null,null,null,null,null,null,null,null,null,null,1]
[null,null,null,null,null,null,null,null,null,null,null,null,null,null,null,null,1]
[null,null,null,null,null,null,null,null,null,null,null,null,null,null,null,null,1]
[null,null,null,null,null,null,null,null,null,null,null,null,null,null,null,null,1]
[null,null,null,null,null,null,null,null,null,null,null,null,null,null,null,null,1]
[null,null,null,null,null,null,null,null,null,null,null,null,null,null,null,null,1]
[null,null,null,null,null,null,null,null,null,null,null,null,null,null,null,null,1]
[null,null,null,null,null,null,null,null,null,null,null,null,null,null,null,null,1]
[null,null,null,null,null,null,null,null,null,null,null,null,null,null,null,null,1]
[null,null,null,null,null,null,null,null,null,null,null,null,null,null,null,null,1]
[null,null,null,null,null,null,null,null,null,null,null,null,null,null,null,null,1]
[null,null,null,null,null,null,null,null,null,null,null,null,null,null,null,null,1]
[null,null,null,null,null,null,null,null,null,null,null,null,null,null,null,null,1]
[null,null,null,null,null,null,null,null,null,null,null,null,null,null,null,null,1]
[null,null,null,null,null,null,null,null,null,null,null,null,null,null,null,null,1]
[null,null,null,null,null,null,null,null,null,null,null,null,null,null,null,null,1]
[null,null,null,null,null,null,null,null,null,null,null,null,null,null,null,null,1]
[null,null,null,null,null,null,null,null,null,null,null,null,null,null,null,null,1]
[null,null,null,null,null,null,null,null,null,null,null,null,null,null,null,null,1]
[null,null,null,null,null,null,null,null,null,null,null,null,null,null,null,null,1]
[null,null,null,null,null,null,null,null,null,null,null,null,null,null,null,null,1]
[null,null,null,null,null,null,null,null,null,null,null,null,null,null,null,null,1]
[null,null,null,null,null,null,null,null,null,null,null,null,null,null,null,null,1]
[null,null,null,null,null,null,null,null,null,null,null,null,null,null,null,null,1]
[null,null,null,null,null,null,null,null,null,null,null,null,null,null,null,null,1]
[null,null,null,null,null,null,null,null,null,null,null,null,null,null,null,null,1]
[null,null,null,null,null,null,null,null,null,null,null,null,null,null,null,null,1]
[null,null,null,null,null,null,null,null,null,null,null,null,null,null,null,null,1]
[null,null,null,null,null,null,null,null,null,null,null,null,null,null,null,null,1]
[null,null,null,null,null,null,null,null,null,null,null,null,null,null,null,null,1]
[null,null,null,null,null,null,null,null,null,null,null,null,null,null,null,null,1]
[null,null,null,null,null,null,null,null,null,null,null,null,null,null,null,null,1]
[null,null,null,null,null,null,null,null,null,null,null,null,null,null,null,null,1]
[null,null,null,null,null,null,null,null,null,null,null,null,null,null,null,null,1]
[null,null,null,null,null,null,null,null,null,null,null,null,null,null,null,null,1]
[null,null,null,null,null,null,null,null,null,null,null,null,null,null,null,null,1]
[null,null,null,null,null,null,null,null,null,null,null,null,null,null,null,null,1]
[null,null,null,null,null,null,null,null,null,null,null,null,null,null,null,null,1]
[null,null,null,null,null,null,null,null,null,null,null,null,null,null,null,null,1]
[null,null,null,null,null,null,null,null,null,null,null,null,null,null,null,null,1]
[null,null,null,null,null,null,null,null,null,null,null,null,null,null,null,null,1]
[null,null,null,null,null,null,null,null,null,null,null,null,null,null,null,null,1]
[null,null,null,null,null,null,null,null,null,null,null,null,null,null,null,null,1]
[null,null,null,null,null,null,null,null,null,null,null,null,null,null,null,null,1]
[null,null,null,null,null,null,null,null,null,null,null,null,null,null,null,null,1]
[null,null,null,null,null,null,null,null,null,null,null,null,null,null,null,null,1]
[null,null,null,null,null,null,null,null,null,null,null,null,null,null,null,null,1]
[null,null,null,null,null,null,null,null,null,null,null,null,null,null,null,null,1]
[null,null,null,null,null,null,null,null,null,null,null,null,null,null,null,null,1]
[null,null,null,null,null,null,null,null,null,null,null,null,null,null,null,null,1]
[null,null,null,null,null,null,null,null,null,null,null,null,null,null,null,null,1]
[null,null,null,null,null,null,null,null,null,null,null,null,null,null,null,null,1]
[null,null,null,null,null,null,null,null,null,null,null,null,null,null,null,null,1]
[null,null,null,null,null,null,null,null,null,null,null,null,null,null,null,null,1]
[null,null,null,null,null,null,null,null,null,null,null,null,null,null,null,null,1]
[null,null,null,null,null,null,null,null,null,null,null,null,null,null,null,null,1]
[null,null,null,null,null,null,null,null,null,null,null,null,null,null,null,null,1]
[null,null,null,null,null,null,null,null,null,null,null,null,null,null,null,null,1]
[null,null,null,null,null,null,null,null,null,null,null,null,null,null,null,null,1]
[null,null,null,null,null,null,null,null,null,null,null,null,null,null,null,null,1]
[null,null,null,null,null,null,null,null,null,null,null,null,null,null,null,null,1]
[null,null,null,null,null,null,null,null,null,null,null,null,null,null,null,null,1]
[null,null,null,null,null,null,null,null,null,null,null,null,null,null,null,null,1]
[null,null,null,null,null,null,null,null,null,null,null,null,null,null,null,null,1]
[null,null,null,null,null,null,null,null,null,null,null,null,null,null,null,null,1]
[null,null,null,null,null,null,null,null,null,null,null,null,null,null,null,null,1]
[null,null,null,null,null,null,null,null,null,null,null,null,null,null,null,null,1]
[null,null,null,null,null,null,null,null,null,null,null,null,null,null,null,null,1]
[null,null,null,null,null,null,null,null,null,null,null,null,null,null,null,null,1]
[null,null,null,null,null,null,null,null,null,null,null,null,null,null,null,null,1]
[null,null,null,null,null,null,null,null,null,null,null,null,null,null,null,null,1]
[null,null,null,null,null,null,null,null,null,null,null,null,null,null,null,null,1]
[null,null,null,null,null,null,null,null,null,null,null,null,null,null,null,null,1]
[null,null,null,null,null,null,null,null,null,null,null,null,null,null,null,null,1]
[null,null,null,null,null,null,null,null,null,null,null,null,null,null,null,null,1]
[null,null,null,null,null,null,null,null,null,null,null,null,null,null,null,null,1]
[null,null,null,null,null,null,null,null,null,null,null,null,null,null,null,null,1]
[null,null,null,null,null,null,null,null,null,null,null,null,null,null,null,null,1]
[null,null,null,null,null,null,null,null,null,null,null,null,null,null,null,null,1]
[null,null,null,null,null,null,null,null,null,null,null,null,null,null,null,null,1]
[null,null,null,null,null,null,null,null,null,null,null,null,null,null,null,null,1]
[null,null,null,null,null,null,null,null,null,null,null,null,null,null,null,null,1]
[null,null,null,null,null,null,null,null,null,null,null,null,null,null,null,null,1]
[null,null,null,null,null,null,null,null,null,null,null,null,null,null,null,null,1]
[null,null,null,null,null,null,null,null,null,null,null,null,null,null,null,null,1]
[null,null,null,null,null,null,null,null,null,null,null,null,null,null,null,null,1]
[null,null,null,null,null,null,null,null,null,null,null,null,null,null,null,null,1]
[null,null,null,null,null,null,null,null,null,null,null,null,null,null,null,null,1]
[null,null,null,null,null,null,null,null,null,null,null,null,null,null,null,null,1]
[null,null,null,null,null,null,null,null,null,null,null,null,null,null,null,null,1]
[null,null,null,null,null,null,null,null,null,null,null,null,null,null,null,null,1]
[null,null,null,null,null,null,null,null,null,null,null,null,null,null,null,null,1]
[null,null,null,null,null,null,null,null,null,null,null,null,null,null,null,null,1]
[null,null,null,null,null,null,null,null,null,null,null,null,null,null,null,null,1]
[null,null,null,null,null,null,null,null,null,null,null,null,null,null,null,null,1]
[null,null,null,null,null,null,null,null,null,null,null,null,null,null,null,null,1]
[null,null,null,null,null,null,null,null,null,null,null,null,null,null,null,null,1]
[null,null,null,null,null,null,null,null,null,null,null,null,null,null,null,null,1]
[null,null,null,null,null,null,null,null,null,null,null,null,null,null,null,null,1]
[null,null,null,null,null,null,null,null,null,null,null,null,null,null,null,null,1]
[null,null,null,null,null,null,null,null,null,null,null,null,null,null,null,null,1]
[null,null,null,null,null,null,null,null,null,null,null,null,null,null,null,null,1]
[null,null,null,null,null,null,null,null,null,null,null,null,null,null,null,null,1]
[null,null,null,null,null,null,null,null,null,null,null,null,null,null,null,null,1]
[null,null,null,null,null,null,null,null,null,null,null,null,null,null,null,null,1]
[null,null,null,null,null,null,null,null,null,null,null,null,null,null,null,null,1]
[null,null,null,null,null,null,null,null,null,null,null,null,null,null,null,null,1]
[null,null,null,null,null,null,null,null,null,null,null,null,null,null,null,null,1]
[null,null,null,null,null,null,null,null,null,null,null,null,null,null,null,null,1]
[null,null,null,null,null,null,null,null,null,null,null,null,null,null,null,null,1]
[null,null,null,null,null,null,null,null,null,null,null,null,null,null,null,null,1]
[null,null,null,null,null,null,null,null,null,null,null,null,null,null,null,null,1]
[null,null,null,null,null,null,null,null,null,null,null,null,null,null,null,null,1]
[null,null,null,null,null,null,null,null,null,null,null,null,null,null,null,null,1]
[null,null,null,null,null,null,null,null,null,null,null,null,null,null,null,null,1]
[null,null,null,null,null,null,null,null,null,null,null,null,null,null,null,null,1]
[null,null,null,null,null,null,null,null,null,null,null,null,null,null,null,null,1]
[null,null,null,null,null,null,null,null,null,null,null,null,null,null,null,null,1]
[null,null,null,null,null,null,null,null,null,null,null,null,null,null,null,null,1]
[null,null,null,null,null,null,null,null,null,null,null,null,null,null,null,null,1]
[null,null,null,null,null,null,null,null,null,null,null,null,null,null,null,null,1]
[null,null,null,null,null,null,null,null,null,null,null,null,null,null,null,null,1]
[null,null,null,null,null,null,null,null,null,null,null,null,null,null,null,null,1]
[null,null,null,null,null,null,null,null,null,null,null,null,null,null,null,null,1]
[null,null,null,null,null,null,null,null,null,null,null,null,null,null,null,null,1]
[null,null,null,null,null,null,null,null,null,null,null,null,null,null,null,null,1]
[null,null,null,null,null,null,null,null,null,null,null,null,null,null,null,null,1]
[null,null,null,null,null,null,null,null,null,null,null,null,null,null,null,null,1]
[null,null,null,null,null,null,null,null,null,null,null,null,null,null,null,null,1]
[null,null,null,null,null,null,null,null,null,null,null,null,null,null,null,null,1]
[null,null,null,null,null,null,null,null,null,null,null,null,null,null,null,null,1]
[null,null,null,null,null,null,null,null,null,null,null,null,null,null,null,null,1]
[null,null,null,null,null,null,null,null,null,null,null,null,null,null,null,null,1]
[null,null,null,null,null,null,null,null,null,null,null,null,null,null,null,null,1]
[null,null,null,null,null,null,null,null,null,null,null,null,null,null,null,null,1]
[null,null,null,null,null,null,null,null,null,null,null,null,null,null,null,null,1]
[null,null,null,null,null,null,null,null,null,null,null,null,null,null,null,null,1]
[null,null,null,null,null,null,null,null,null,null,null,null,null,null,null,null,1]
[null,null,null,null,null,null,null,null,null,null,null,null,null,null,null,null,1]
[null,null,null,null,null,null,null,null,null,null,null,null,null,null,null,null,1]
[null,null,null,null,null,null,null,null,null,null,null,null,null,null,null,null,1]
[null,null,null,null,null,null,null,null,null,null,null,null,null,null,null,null,1]
[null,null,null,null,null,null,null,null,null,null,null,null,null,null,null,null,1]
[null,null,null,null,null,null,null,null,null,null,null,null,null,null,null,null,1]
[null,null,null,null,null,null,null,null,null,null,null,null,null,null,null,null,1]
[null,null,null,null,null,null,null,null,null,null,null,null,null,null,null,null,1]
[null,null,null,null,null,null,null,null,null,null,null,null,null,null,null,null,1]
[null,null,null,null,null,null,null,null,null,null,null,null,null,null,null,null,1]
[null,null,null,null,null,null,null,null,null,null,null,null,null,null,null,null,1]
[null,null,null,null,null,null,null,null,null,null,null,null,null,null,null,null,1]
[null,null,null,null,null,null,null,null,null,null,null,null,null,null,null,null,1]
[null,null,null,null,null,null,null,null,null,null,null,null,null,null,null,null,1]
[null,null,null,null,null,null,null,null,null,null,null,null,null,null,null,null,1]
[null,null,null,null,null,null,null,null,null,null,null,null,null,null,null,null,1]
[null,null,null,null,null,null,null,null,null,null,null,null,null,null,null,null,1]
[null,null,null,null,null,null,null,null,null,null,null,null,null,null,null,null,1]
[null,null,null,null,null,null,null,null,null,null,null,null,null,null,null,null,1]
[null,null,null,null,null,null,null,null,null,null,null,null,null,null,null,null,1]
[null,null,null,null,null,null,null,null,null,null,null,null,null,null,null,null,1]
[null,null,null,null,null,null,null,null,null,null,null,null,null,null,null,null,1]
[null,null,null,null,null,null,null,null,null,null,null,null,null,null,null,null,1]
[null,null,null,null,null,null,null,null,null,null,null,null,null,null,null,null,1]
[null,null,null,null,null,null,null,null,null,null,null,null,null,null,null,null,1]
[null,null,null,null,null,null,null,null,null,null,null,null,null,null,null,null,1]
[null,null,null,null,null,null,null,null,null,null,null,null,null,null,null,null,1]
[null,null,null,null,null,null,null,null,null,null,null,null,null,null,null,null,1]
[null,null,null,null,null,null,null,null,null,null,null,null,null,null,null,null,1]
[null,null,null,null,null,null,null,null,null,null,null,null,null,null,null,null,1]
[null,null,null,null,null,null,null,null,null,null,null,null,null,null,null,null,1]
[null,null,null,null,null,null,null,null,null,null,null,null,null,null,null,null,1]
[null,null,null,null,null,null,null,null,null,null,null,null,null,null,null,null,1]
[null,null,null,null,null,null,null,null,null,null,null,null,null,null,null,null,1]
[null,null,null,null,null,null,null,null,null,null,null,null,null,null,null,null,1]
[null,null,null,null,null,null,null,null,null,null,null,null,null,null,null,null,1]
[null,null,null,null,null,null,null,null,null,null,null,null,null,null,null,null,1]
[null,null,null,null,null,null,null,null,null,null,null,null,null,null,null,null,1]
[null,null,null,null,null,null,null,null,null,null,null,null,null,null,null,null,1]
[null,null,null,null,null,null,null,null,null,null,null,null,null,null,null,null,1]
[null,null,null,null,null,null,null,null,null,null,null,null,null,null,null,null,1]
[null,null,null,null,null,null,null,null,null,null,null,null,null,null,null,null,1]
[null,null,null,null,null,null,null,null,null,null,null,null,null,null,null,null,1]
[null,null,null,null,null,null,null,null,null,null,null,null,null,null,null,null,1]
[null,null,null,null,null,null,null,null,null,null,null,null,null,null,null,null,1]
[null,null,null,null,null,null,null,null,null,null,null,null,null,null,null,null,1]
[null,null,null,null,null,null,null,null,null,null,null,null,null,null,null,null,1]
[null,null,null,null,null,null,null,null,null,null,null,null,null,null,null,null,1]
[null,null,null,null,null,null,null,null,null,null,null,null,null,null,null,null,1]
[null,null,null,null,null,null,null,null,null,null,null,null,null,null,null,null,1]
[null,null,null,null,null,null,null,null,null,null,null,null,null,null,null,null,1]
[null,null,null,null,null,null,null,null,null,null,null,null,null,null,null,null,1]
[null,null,null,null,null,null,null,null,null,null,null,null,null,null,null,null,1]
[null,null,null,null,null,null,null,null,null,null,null,null,null,null,null,null,1]
[null,null,null,null,null,null,null,null,null,null,null,null,null,null,null,null,1]
[null,null,null,null,null,null,null,null,null,null,null,null,null,null,null,null,1]
[null,null,null,null,null,null,null,null,null,null,null,null,null,null,null,null,1]
[null,null,null,null,null,null,null,null,null,null,null,null,null,null,null,null,1]
[null,null,null,null,null,null,null,null,null,null,null,null,null,null,null,null,1]
[null,null,null,null,null,null,null,null,null,null,null,null,null,null,null,null,1]
[null,null,null,null,null,null,null,null,null,null,null,null,null,null,null,null,1]
[null,null,null,null,null,null,null,null,null,null,null,null,null,null,null,null,1]
[null,null,null,null,null,null,null,null,null,null,null,null,null,null,null,null,1]
[null,null,null,null,null,null,null,null,null,null,null,null,null,null,null,null,1]
[null,null,null,null,null,null,null,null,null,null,null,null,null,null,null,null,1]
[null,null,null,null,null,null,null,null,null,null,null,null,null,null,null,null,1]
[null,null,null,null,null,null,null,null,null,null,null,null,null,null,null,null,1]
[null,null,null,null,null,null,null,null,null,null,null,null,null,null,null,null,1]
[null,null,null,null,null,null,null,null,null,null,null,null,null,null,null,null,1]
[null,null,null,null,null,null,null,null,null,null,null,null,null,null,null,null,1]
[null,null,null,null,null,null,null,null,null,null,null,null,null,null,null,null,1]
[null,null,null,null,null,null,null,null,null,null,null,null,null,null,null,null,1]
[null,null,null,null,null,null,null,null,null,null,null,null,null,null,null,null,1]
[null,null,null,null,null,null,null,null,null,null,null,null,null,null,null,null,1]
[null,null,null,null,null,null,null,null,null,null,null,null,null,null,null,null,1]
[null,null,null,null,null,null,null,null,null,null,null,null,null,null,null,null,1]
[null,null,null,null,null,null,null,null,null,null,null,null,null,null,null,null,1]
[null,null,null,null,null,null,null,null,null,null,null,null,null,null,null,null,1]
[null,null,null,null,null,null,null,null,null,null,null,null,null,null,null,null,1]
[null,null,null,null,null,null,null,null,null,null,null,null,null,null,null,null,1]
[null,null,null,null,null,null,null,null,null,null,null,null,null,null,null,null,1]
[null,null,null,null,null,null,null,null,null,null,null,null,null,null,null,null,1]
[null,null,null,null,null,null,null,null,null,null,null,null,null,null,null,null,1]
[null,null,null,null,null,null,null,null,null,null,null,null,null,null,null,null,1]
[null,null,null,null,null,null,null,null,null,null,null,null,null,null,null,null,1]
[null,null,null,null,null,null,null,null,null,null,null,null,null,null,null,null,1]
[null,null,null,null,null,null,null,null,null,null,null,null,null,null,null,null,1]
[null,null,null,null,null,null,null,null,null,null,null,null,null,null,null,null,1]
[null,null,null,null,null,null,null,null,null,null,null,null,null,null,null,null,1]
[null,null,null,null,null,null,null,null,null,null,null,null,null,null,null,null,1]
[null,null,null,null,null,null,null,null,null,null,null,null,null,null,null,null,1]
[null,null,null,null,null,null,null,null,null,null,null,null,null,null,null,null,1]
[null,null,null,null,null,null,null,null,null,null,null,null,null,null,null,null,1]
[null,null,null,null,null,null,null,null,null,null,null,null,null,null,null,null,1]
[null,null,null,null,null,null,null,null,null,null,null,null,null,null,null,null,1]
[null,null,null,null,null,null,null,null,null,null,null,null,null,null,null,null,1]
[null,null,null,null,null,null,null,null,null,null,null,null,null,null,null,null,1]
[null,null,null,null,null,null,null,null,null,null,null,null,null,null,null,null,1]
[null,null,null,null,null,null,null,null,null,null,null,null,null,null,null,null,1]
[null,null,null,null,null,null,null,null,null,null,null,null,null,null,null,null,1]
[null,null,null,null,null,null,null,null,null,null,null,null,null,null,null,null,1]
[null,null,null,null,null,null,null,null,null,null,null,null,null,null,null,null,1]
[null,null,null,null,null,null,null,null,null,null,null,null,null,null,null,null,1]
[null,null,null,null,null,null,null,null,null,null,null,null,null,null,null,null,1]
[null,null,null,null,null,null,null,null,null,null,null,null,null,null,null,null,1]
[null,null,null,null,null,null,null,null,null,null,null,null,null,null,null,null,1]
[null,null,null,null,null,null,null,null,null,null,null,null,null,null,null,null,1]
[null,null,null,null,null,null,null,null,null,null,null,null,null,null,null,null,1]
[null,null,null,null,null,null,null,null,null,null,null,null,null,null,null,null,1]
[null,null,null,null,null,null,null,null,null,null,null,null,null,null,null,null,1]
[null,null,null,null,null,null,null,null,null,null,null,null,null,null,null,null,1]
[null,null,null,null,null,null,null,null,null,null,null,null,null,null,null,null,1]
[null,null,null,null,null,null,null,null,null,null,null,null,null,null,null,null,1]
[null,null,null,null,null,null,null,null,null,null,null,null,null,null,null,null,1]
[null,null,null,null,null,null,null,null,null,null,null,null,null,null,null,null,1]
[null,null,null,null,null,null,null,null,null,null,null,null,null,null,null,null,1]
[null,null,null,null,null,null,null,null,null,null,null,null,null,null,null,null,1]
[null,null,null,null,null,null,null,null,null,null,null,null,null,null,null,null,1]
[null,null,null,null,null,null,null,null,null,null,null,null,null,null,null,null,1]
[null,null,null,null,null,null,null,null,null,null,null,null,null,null,null,null,1]
[null,null,null,null,null,null,null,null,null,null,null,null,null,null,null,null,1]
[null,null,null,null,null,null,null,null,null,null,null,null,null,null,null,null,1]
[null,null,null,null,null,null,null,null,null,null,null,null,null,null,null,null,1]
[null,null,null,null,null,null,null,null,null,null,null,null,null,null,null,null,1]
[null,null,null,null,null,null,null,null,null,null,null,null,null,null,null,null,1]
[null,null,null,null,null,null,null,null,null,null,null,null,null,null,null,null,1]
[null,null,null,null,null,null,null,null,null,null,null,null,null,null,null,null,1]
[null,null,null,null,null,null,null,null,null,null,null,null,null,null,null,null,1]
[null,null,null,null,null,null,null,null,null,null,null,null,null,null,null,null,1]
[null,null,null,null,null,null,null,null,null,null,null,null,null,null,null,null,1]
[null,null,null,null,null,null,null,null,null,null,null,null,null,null,null,null,1]
[null,null,null,null,null,null,null,null,null,null,null,null,null,null,null,null,1]
[null,null,null,null,null,null,null,null,null,null,null,null,null,null,null,null,1]
[null,null,null,null,null,null,null,null,null,null,null,null,null,null,null,null,1]
[null,null,null,null,null,null,null,null,null,null,null,null,null,null,null,null,1]
[null,null,null,null,null,null,null,null,null,null,null,null,null,null,null,null,1]
[null,null,null,null,null,null,null,null,null,null,null,null,null,null,null,null,1]
[null,null,null,null,null,null,null,null,null,null,null,null,null,null,null,null,1]
[null,null,null,null,null,null,null,null,null,null,null,null,null,null,null,null,1]
[null,null,null,null,null,null,null,null,null,null,null,null,null,null,null,null,1]
[null,null,null,null,null,null,null,null,null,null,null,null,null,null,null,null,1]
[null,null,null,null,null,null,null,null,null,null,null,null,null,null,null,null,1]
[null,null,null,null,null,null,null,null,null,null,null,null,null,null,null,null,1]
[null,null,null,null,null,null,null,null,null,null,null,null,null,null,null,null,1]
[null,null,null,null,null,null,null,null,null,null,null,null,null,null,null,null,1]
[null,null,null,null,null,null,null,null,null,null,null,null,null,null,null,null,1]
[null,null,null,null,null,null,null,null,null,null,null,null,null,null,null,null,1]
[null,null,null,null,null,null,null,null,null,null,null,null,null,null,null,null,1]
[null,null,null,null,null,null,null,null,null,null,null,null,null,null,null,null,1]
[null,null,null,null,null,null,null,null,null,null,null,null,null,null,null,null,1]
[null,null,null,null,null,null,null,null,null,null,null,null,null,null,null,null,1]
[null,null,null,null,null,null,null,null,null,null,null,null,null,null,null,null,1]
[null,null,null,null,null,null,null,null,null,null,null,null,null,null,null,null,1]
[null,null,null,null,null,null,null,null,null,null,null,null,null,null,null,null,1]
[null,null,null,null,null,null,null,null,null,null,null,null,null,null,null,null,1]
[null,null,null,null,null,null,null,null,null,null,null,null,null,null,null,null,1]
[null,null,null,null,null,null,null,null,null,null,null,null,null,null,null,null,1]
[null,null,null,null,null,null,null,null,null,null,null,null,null,null,null,null,1]
[null,null,null,null,null,null,null,null,null,null,null,null,null,null,null,null,1]
[null,null,null,null,null,null,null,null,null,null,null,null,null,null,null,null,1]
[null,null,null,null,null,null,null,null,null,null,null,null,null,null,null,null,1]
[null,null,null,null,null,null,null,null,null,null,null,null,null,null,null,null,1]
[null,null,null,null,null,null,null,null,null,null,null,null,null,null,null,null,1]
[null,null,null,null,null,null,null,null,null,null,null,null,null,null,null,null,1]
[null,null,null,null,null,null,null,null,null,null,null,null,null,null,null,null,1]
[null,null,null,null,null,null,null,null,null,null,null,null,null,null,null,null,1]
[null,null,null,null,null,null,null,null,null,null,null,null,null,null,null,null,1]
[null,null,null,null,null,null,null,null,null,null,null,null,null,null,null,null,1]
[null,null,null,null,null,null,null,null,null,null,null,null,null,null,null,null,1]
[null,null,null,null,null,null,null,null,null,null,null,null,null,null,null,null,1]
[null,null,null,null,null,null,null,null,null,null,null,null,null,null,null,null,1]
[null,null,null,null,null,null,null,null,null,null,null,null,null,null,null,null,1]
[null,null,null,null,null,null,null,null,null,null,null,null,null,null,null,null,1]
[null,null,null,null,null,null,null,null,null,null,null,null,null,null,null,null,1]
[null,null,null,null,null,null,null,null,null,null,null,null,null,null,null,null,1]
[null,null,null,null,null,null,null,null,null,null,null,null,null,null,null,null,1]
[null,null,null,null,null,null,null,null,null,null,null,null,null,null,null,null,1]
[null,null,null,null,null,null,null,null,null,null,null,null,null,null,null,null,1]
[null,null,null,null,null,null,null,null,null,null,null,null,null,null,null,null,1]
[null,null,null,null,null,null,null,null,null,null,null,null,null,null,null,null,1]
[null,null,null,null,null,null,null,null,null,null,null,null,null,null,null,null,1]
[null,null,null,null,null,null,null,null,null,null,null,null,null,null,null,null,1]
[null,null,null,null,null,null,null,null,null,null,null,null,null,null,null,null,1]
[null,null,null,null,null,null,null,null,null,null,null,null,null,null,null,null,1]
[null,null,null,null,null,null,null,null,null,null,null,null,null,null,null,null,1]
[null,null,null,null,null,null,null,null,null,null,null,null,null,null,null,null,1]
[null,null,null,null,null,null,null,null,null,null,null,null,null,null,null,null,1]
[null,null,null,null,null,null,null,null,null,null,null,null,null,null,null,null,1]
[null,null,null,null,null,null,null,null,null,null,null,null,null,null,null,null,1]
[null,null,null,null,null,null,null,null,null,null,null,null,null,null,null,null,1]
[null,null,null,null,null,null,null,null,null,null,null,null,null,null,null,null,1]
[null,null,null,null,null,null,null,null,null,null,null,null,null,null,null,null,1]
[null,null,null,null,null,null,null,null,null,null,null,null,null,null,null,null,1]
[null,null,null,null,null,null,null,null,null,null,null,null,null,null,null,null,1]
[null,null,null,null,null,null,null,null,null,null,null,null,null,null,null,null,1]
[null,null,null,null,null,null,null,null,null,null,null,null,null,null,null,null,1]
[null,null,null,null,null,null,null,null,null,null,null,null,null,null,null,null,1]
[null,null,null,null,null,null,null,null,null,null,null,null,null,null,null,null,1]
[null,null,null,null,null,null,null,null,null,null,null,null,null,null,null,null,1]
[null,null,null,null,null,null,null,null,null,null,null,null,null,null,null,null,1]
[null,null,null,null,null,null,null,null,null,null,null,null,null,null,null,null,1]
[null,null,null,null,null,null,null,null,null,null,null,null,null,null,null,null,1]
[null,null,null,null,null,null,null,null,null,null,null,null,null,null,null,null,1]
[null,null,null,null,null,null,null,null,null,null,null,null,null,null,null,null,1]
[null,null,null,null,null,null,null,null,null,null,null,null,null,null,null,null,1]
[null,null,null,null,null,null,null,null,null,null,null,null,null,null,null,null,1]
[null,null,null,null,null,null,null,null,null,null,null,null,null,null,null,null,1]
[null,null,null,null,null,null,null,null,null,null,null,null,null,null,null,null,1]
[null,null,null,null,null,null,null,null,null,null,null,null,null,null,null,null,1]
[null,null,null,null,null,null,null,null,null,null,null,null,null,null,null,null,1]
[null,null,null,null,null,null,null,null,null,null,null,null,null,null,null,null,1]
[null,null,null,null,null,null,null,null,null,null,null,null,null,null,null,null,1]
[null,null,null,null,null,null,null,null,null,null,null,null,null,null,null,null,1]
[null,null,null,null,null,null,null,null,null,null,null,null,null,null,null,null,1]
[null,null,null,null,null,null,null,null,null,null,null,null,null,null,null,null,1]
[null,null,null,null,null,null,null,null,null,null,null,null,null,null,null,null,1]
[null,null,null,null,null,null,null,null,null,null,null,null,null,null,null,null,1]
[null,null,null,null,null,null,null,null,null,null,null,null,null,null,null,null,1]
[null,null,null,null,null,null,null,null,null,null,null,null,null,null,null,null,1]
[null,null,null,null,null,null,null,null,null,null,null,null,null,null,null,null,1]
[null,null,null,null,null,null,null,null,null,null,null,null,null,null,null,null,1]
[null,null,null,null,null,null,null,null,null,null,null,null,null,null,null,null,1]
[null,null,null,null,null,null,null,null,null,null,null,null,null,null,null,null,1]
[null,null,null,null,null,null,null,null,null,null,null,null,null,null,null,null,1]
[null,null,null,null,null,null,null,null,null,null,null,null,null,null,null,null,1]
[null,null,null,null,null,null,null,null,null,null,null,null,null,null,null,null,1]
[null,null,null,null,null,null,null,null,null,null,null,null,null,null,null,null,1]
[null,null,null,null,null,null,null,null,null,null,null,null,null,null,null,null,1]
[null,null,null,null,null,null,null,null,null,null,null,null,null,null,null,null,1]
[null,null,null,null,null,null,null,null,null,null,null,null,null,null,null,null,1]
[null,null,null,null,null,null,null,null,null,null,null,null,null,null,null,null,1]
[null,null,null,null,null,null,null,null,null,null,null,null,null,null,null,null,1]
[null,null,null,null,null,null,null,null,null,null,null,null,null,null,null,null,1]
[null,null,null,null,null,null,null,null,null,null,null,null,null,null,null,null,1]
[null,null,null,null,null,null,null,null,null,null,null,null,null,null,null,null,1]
[null,null,null,null,null,null,null,null,null,null,null,null,null,null,null,null,1]
[null,null,null,null,null,null,null,null,null,null,null,null,null,null,null,null,1]
[null,null,null,null,null,null,null,null,null,null,null,null,null,null,null,null,1]
[null,null,null,null,null,null,null,null,null,null,null,null,null,null,null,null,1]
[null,null,null,null,null,null,null,null,null,null,null,null,null,null,null,null,1]
[null,null,null,null,null,null,null,null,null,null,null,null,null,null,null,null,1]
[null,null,null,null,null,null,null,null,null,null,null,null,null,null,null,null,1]
[null,null,null,null,null,null,null,null,null,null,null,null,null,null,null,null,1]
[null,null,null,null,null,null,null,null,null,null,null,null,null,null,null,null,1]
[null,null,null,null,null,null,null,null,null,null,null,null,null,null,null,null,1]
[null,null,null,null,null,null,null,null,null,null,null,null,null,null,null,null,1]
[null,null,null,null,null,null,null,null,null,null,null,null,null,null,null,null,1]
[null,null,null,null,null,null,null,null,null,null,null,null,null,null,null,null,1]
[null,null,null,null,null,null,null,null,null,null,null,null,null,null,null,null,1]
[null,null,null,null,null,null,null,null,null,null,null,null,null,null,null,null,1]
[null,null,null,null,null,null,null,null,null,null,null,null,null,null,null,null,1]
[null,null,null,null,null,null,null,null,null,null,null,null,null,null,null,null,1]
[null,null,null,null,null,null,null,null,null,null,null,null,null,null,null,null,1]
[null,null,null,null,null,null,null,null,null,null,null,null,null,null,null,null,1]
[null,null,null,null,null,null,null,null,null,null,null,null,null,null,null,null,1]
[null,null,null,null,null,null,null,null,null,null,null,null,null,null,null,null,1]
[null,null,null,null,null,null,null,null,null,null,null,null,null,null,null,null,1]
[null,null,null,null,null,null,null,null,null,null,null,null,null,null,null,null,1]
[null,null,null,null,null,null,null,null,null,null,null,null,null,null,null,null,1]
[null,null,null,null,null,null,null,null,null,null,null,null,null,null,null,null,1]
[null,null,null,null,null,null,null,null,null,null,null,null,null,null,null,null,1]
[null,null,null,null,null,null,null,null,null,null,null,null,null,null,null,null,1]
[null,null,null,null,null,null,null,null,null,null,null,null,null,null,null,null,1]
[null,null,null,null,null,null,null,null,null,null,null,null,null,null,null,null,1]
[null,null,null,null,null,null,null,null,null,null,null,null,null,null,null,null,1]
[null,null,null,null,null,null,null,null,null,null,null,null,null,null,null,null,1]
[null,null,null,null,null,null,null,null,null,null,null,null,null,null,null,null,1]
[null,null,null,null,null,null,null,null,null,null,null,null,null,null,null,null,1]
[null,null,null,null,null,null,null,null,null,null,null,null,null,null,null,null,1]
[null,null,null,null,null,null,null,null,null,null,null,null,null,null,null,null,1]
[null,null,null,null,null,null,null,null,null,null,null,null,null,null,null,null,1]
[null,null,null,null,null,null,null,null,null,null,null,null,null,null,null,null,1]
[null,null,null,null,null,null,null,null,null,null,null,null,null,null,null,null,1]
[null,null,null,null,null,null,null,null,null,null,null,null,null,null,null,null,1]
[null,null,null,null,null,null,null,null,null,null,null,null,null,null,null,null,1]
[null,null,null,null,null,null,null,null,null,null,null,null,null,null,null,null,1]
[null,null,null,null,null,null,null,null,null,null,null,null,null,null,null,null,1]
[null,null,null,null,null,null,null,null,null,null,null,null,null,null,null,null,1]
[null,null,null,null,null,null,null,null,null,null,null,null,null,null,null,null,1]
[null,null,null,null,null,null,null,null,null,null,null,null,null,null,null,null,1]
[null,null,null,null,null,null,null,null,null,null,null,null,null,null,null,null,1]
[null,null,null,null,null,null,null,null,null,null,null,null,null,null,null,null,1]
[null,null,null,null,null,null,null,null,null,null,null,null,null,null,null,null,1]
[null,null,null,null,null,null,null,null,null,null,null,null,null,null,null,null,1]
[null,null,null,null,null,null,null,null,null,null,null,null,null,null,null,null,1]
[null,null,null,null,null,null,null,null,null,null,null,null,null,null,null,null,1]
[null,null,null,null,null,null,null,null,null,null,null,null,null,null,null,null,1]
[null,null,null,null,null,null,null,null,null,null,null,null,null,null,null,null,1]
[null,null,null,null,null,null,null,null,null,null,null,null,null,null,null,null,1]
[null,null,null,null,null,null,null,null,null,null,null,null,null,null,null,null,1]
[null,null,null,null,null,null,null,null,null,null,null,null,null,null,null,null,1]
[null,null,null,null,null,null,null,null,null,null,null,null,null,null,null,null,1]
[null,null,null,null,null,null,null,null,null,null,null,null,null,null,null,null,1]
[null,null,null,null,null,null,null,null,null,null,null,null,null,null,null,null,1]
[null,null,null,null,null,null,null,null,null,null,null,null,null,null,null,null,1]
[null,null,null,null,null,null,null,null,null,null,null,null,null,null,null,null,1]
[null,null,null,null,null,null,null,null,null,null,null,null,null,null,null,null,1]
[null,null,null,null,null,null,null,null,null,null,null,null,null,null,null,null,1]
[null,null,null,null,null,null,null,null,null,null,null,null,null,null,null,null,1]
[null,null,null,null,null,null,null,null,null,null,null,null,null,null,null,null,1]
[null,null,null,null,null,null,null,null,null,null,null,null,null,null,null,null,1]
[null,null,null,null,null,null,null,null,null,null,null,null,null,null,null,null,1]
[null,null,null,null,null,null,null,null,null,null,null,null,null,null,null,null,1]
[null,null,null,null,null,null,null,null,null,null,null,null,null,null,null,null,1]
[null,null,null,null,null,null,null,null,null,null,null,null,null,null,null,null,1]
[null,null,null,null,null,null,null,null,null,null,null,null,null,null,null,null,1]
[null,null,null,null,null,null,null,null,null,null,null,null,null,null,null,null,1]
[null,null,null,null,null,null,null,null,null,null,null,null,null,null,null,null,1]
[null,null,null,null,null,null,null,null,null,null,null,null,null,null,null,null,1]
[null,null,null,null,null,null,null,null,null,null,null,null,null,null,null,null,1]
[null,null,null,null,null,null,null,null,null,null,null,null,null,null,null,null,1]
[null,null,null,null,null,null,null,null,null,null,null,null,null,null,null,null,1]
[null,null,null,null,null,null,null,null,null,null,null,null,null,null,null,null,1]
[null,null,null,null,null,null,null,null,null,null,null,null,null,null,null,null,1]
[null,null,null,null,null,null,null,null,null,null,null,null,null,null,null,null,1]
[null,null,null,null,null,null,null,null,null,null,null,null,null,null,null,null,1]
[null,null,null,null,null,null,null,null,null,null,null,null,null,null,null,null,1]
[null,null,null,null,null,null,null,null,null,null,null,null,null,null,null,null,1]
[null,null,null,null,null,null,null,null,null,null,null,null,null,null,null,null,1]
[null,null,null,null,null,null,null,null,null,null,null,null,null,null,null,null,1]
[null,null,null,null,null,null,null,null,null,null,null,null,null,null,null,null,1]
[null,null,null,null,null,null,null,null,null,null,null,null,null,null,null,null,1]
[null,null,null,null,null,null,null,null,null,null,null,null,null,null,null,null,1]
[null,null,null,null,null,null,null,null,null,null,null,null,null,null,null,null,1]
[null,null,null,null,null,null,null,null,null,null,null,null,null,null,null,null,1]
[null,null,null,null,null,null,null,null,null,null,null,null,null,null,null,null,1]
[null,null,null,null,null,null,null,null,null,null,null,null,null,null,null,null,1]
[null,null,null,null,null,null,null,null,null,null,null,null,null,null,null,null,1]
[null,null,null,null,null,null,null,null,null,null,null,null,null,null,null,null,1]
[null,null,null,null,null,null,null,null,null,null,null,null,null,null,null,null,1]
[null,null,null,null,null,null,null,null,null,null,null,null,null,null,null,null,1]
[null,null,null,null,null,null,null,null,null,null,null,null,null,null,null,null,1]
[null,null,null,null,null,null,null,null,null,null,null,null,null,null,null,null,1]
[null,null,null,null,null,null,null,null,null,null,null,null,null,null,null,null,1]
[null,null,null,null,null,null,null,null,null,null,null,null,null,null,null,null,1]
[null,null,null,null,null,null,null,null,null,null,null,null,null,null,null,null,1]
[null,null,null,null,null,null,null,null,null,null,null,null,null,null,null,null,1]
[null,null,null,null,null,null,null,null,null,null,null,null,null,null,null,null,1]
[null,null,null,null,null,null,null,null,null,null,null,null,null,null,null,null,1]
[null,null,null,null,null,null,null,null,null,null,null,null,null,null,null,null,1]
[null,null,null,null,null,null,null,null,null,null,null,null,null,null,null,null,1]
[null,null,null,null,null,null,null,null,null,null,null,null,null,null,null,null,1]
[null,null,null,null,null,null,null,null,null,null,null,null,null,null,null,null,1]
[null,null,null,null,null,null,null,null,null,null,null,null,null,null,null,null,1]
[null,null,null,null,null,null,null,null,null,null,null,null,null,null,null,null,1]
[null,null,null,null,null,null,null,null,null,null,null,null,null,null,null,null,1]
[null,null,null,null,null,null,null,null,null,null,null,null,null,null,null,null,1]
[null,null,null,null,null,null,null,null,null,null,null,null,null,null,null,null,1]
[null,null,null,null,null,null,null,null,null,null,null,null,null,null,null,null,1]
[null,null,null,null,null,null,null,null,null,null,null,null,null,null,null,null,1]
[null,null,null,null,null,null,null,null,null,null,null,null,null,null,null,null,1]
[null,null,null,null,null,null,null,null,null,null,null,null,null,null,null,null,1]
[null,null,null,null,null,null,null,null,null,null,null,null,null,null,null,null,1]
[null,null,null,null,null,null,null,null,null,null,null,null,null,null,null,null,1]
[null,null,null,null,null,null,null,null,null,null,null,null,null,null,null,null,1]
[null,null,null,null,null,null,null,null,null,null,null,null,null,null,null,null,1]
[null,null,null,null,null,null,null,null,null,null,null,null,null,null,null,null,1]
[null,null,null,null,null,null,null,null,null,null,null,null,null,null,null,null,1]
[null,null,null,null,null,null,null,null,null,null,null,null,null,null,null,null,1]
[null,null,null,null,null,null,null,null,null,null,null,null,null,null,null,null,1]
[null,null,null,null,null,null,null,null,null,null,null,null,null,null,null,null,1]
[null,null,null,null,null,null,null,null,null,null,null,null,null,null,null,null,1]
[null,null,null,null,null,null,null,null,null,null,null,null,null,null,null,null,1]
[null,null,null,null,null,null,null,null,null,null,null,null,null,null,null,null,1]
[null,null,null,null,null,null,null,null,null,null,null,null,null,null,null,null,1]
[null,null,null,null,null,null,null,null,null,null,null,null,null,null,null,null,1]
[null,null,null,null,null,null,null,null,null,null,null,null,null,null,null,null,1]
[null,null,null,null,null,null,null,null,null,null,null,null,null,null,null,null,1]
[null,null,null,null,null,null,null,null,null,null,null,null,null,null,null,null,1]
[null,null,null,null,null,null,null,null,null,null,null,null,null,null,null,null,1]
[null,null,null,null,null,null,null,null,null,null,null,null,null,null,null,null,1]
[null,null,null,null,null,null,null,null,null,null,null,null,null,null,null,null,1]
[null,null,null,null,null,null,null,null,null,null,null,null,null,null,null,null,1]
[null,null,null,null,null,null,null,null,null,null,null,null,null,null,null,null,1]
[null,null,null,null,null,null,null,null,null,null,null,null,null,null,null,null,1]
[null,null,null,null,null,null,null,null,null,null,null,null,null,null,null,null,1]
[null,null,null,null,null,null,null,null,null,null,null,null,null,null,null,null,1]
[null,null,null,null,null,null,null,null,null,null,null,null,null,null,null,null,1]
[null,null,null,null,null,null,null,null,null,null,null,null,null,null,null,null,1]
[null,null,null,null,null,null,null,null,null,null,null,null,null,null,null,null,1]
[null,null,null,null,null,null,null,null,null,null,null,null,null,null,null,null,1]
[null,null,null,null,null,null,null,null,null,null,null,null,null,null,null,null,1]
[null,null,null,null,null,null,null,null,null,null,null,null,null,null,null,null,1]
[null,null,null,null,null,null,null,null,null,null,null,null,null,null,null,null,1]
[null,null,null,null,null,null,null,null,null,null,null,null,null,null,null,null,1]
[null,null,null,null,null,null,null,null,null,null,null,null,null,null,null,null,1]
[null,null,null,null,null,null,null,null,null,null,null,null,null,null,null,null,1]
[null,null,null,null,null,null,null,null,null,null,null,null,null,null,null,null,1]
[null,null,null,null,null,null,null,null,null,null,null,null,null,null,null,null,1]
[null,null,null,null,null,null,null,null,null,null,null,null,null,null,null,null,1]
[null,null,null,null,null,null,null,null,null,null,null,null,null,null,null,null,1]
[null,null,null,null,null,null,null,null,null,null,null,null,null,null,null,null,1]
[null,null,null,null,null,null,null,null,null,null,null,null,null,null,null,null,1]
[null,null,null,null,null,null,null,null,null,null,null,null,null,null,null,null,1]
[null,null,null,null,null,null,null,null,null,null,null,null,null,null,null,null,1]
[null,null,null,null,null,null,null,null,null,null,null,null,null,null,null,null,1]
[null,null,null,null,null,null,null,null,null,null,null,null,null,null,null,null,1]
[null,null,null,null,null,null,null,null,null,null,null,null,null,null,null,null,1]
[null,null,null,null,null,null,null,null,null,null,null,null,null,null,null,null,1]
[null,null,null,null,null,null,null,null,null,null,null,null,null,null,null,null,1]
[null,null,null,null,null,null,null,null,null,null,null,null,null,null,null,null,1]
[null,null,null,null,null,null,null,null,null,null,null,null,null,null,null,null,1]
[null,null,null,null,null,null,null,null,null,null,null,null,null,null,null,null,1]
[null,null,null,null,null,null,null,null,null,null,null,null,null,null,null,null,1]
[null,null,null,null,null,null,null,null,null,null,null,null,null,null,null,null,1]
[null,null,null,null,null,null,null,null,null,null,null,null,null,null,null,null,1]
[null,null,null,null,null,null,null,null,null,null,null,null,null,null,null,null,1]
[null,null,null,null,null,null,null,null,null,null,null,null,null,null,null,null,1]
[null,null,null,null,null,null,null,null,null,null,null,null,null,null,null,null,1]
[null,null,null,null,null,null,null,null,null,null,null,null,null,null,null,null,1]
[null,null,null,null,null,null,null,null,null,null,null,null,null,null,null,null,1]
[null,null,null,null,null,null,null,null,null,null,null,null,null,null,null,null,1]
[null,null,null,null,null,null,null,null,null,null,null,null,null,null,null,null,1]
[null,null,null,null,null,null,null,null,null,null,null,null,null,null,null,null,1]
[null,null,null,null,null,null,null,null,null,null,null,null,null,null,null,null,1]
[null,null,null,null,null,null,null,null,null,null,null,null,null,null,null,null,1]
[null,null,null,null,null,null,null,null,null,null,null,null,null,null,null,null,1]
[null,null,null,null,null,null,null,null,null,null,null,null,null,null,null,null,1]
[null,null,null,null,null,null,null,null,null,null,null,null,null,null,null,null,1]
[null,null,null,null,null,null,null,null,null,null,null,null,null,null,null,null,1]
[null,null,null,null,null,null,null,null,null,null,null,null,null,null,null,null,1]
[null,null,null,null,null,null,null,null,null,null,null,null,null,null,null,null,1]
[null,null,null,null,null,null,null,null,null,null,null,null,null,null,null,null,1]
[null,null,null,null,null,null,null,null,null,null,null,null,null,null,null,null,1]
[null,null,null,null,null,null,null,null,null,null,null,null,null,null,null,null,1]
[null,null,null,null,null,null,null,null,null,null,null,null,null,null,null,null,1]
[null,null,null,null,null,null,null,null,null,null,null,null,null,null,null,null,1]
[null,null,null,null,null,null,null,null,null,null,null,null,null,null,null,null,1]
[null,null,null,null,null,null,null,null,null,null,null,null,null,null,null,null,1]
[null,null,null,null,null,null,null,null,null,null,null,null,null,null,null,null,1]
[null,null,null,null,null,null,null,null,null,null,null,null,null,null,null,null,1]
[null,null,null,null,null,null,null,null,null,null,null,null,null,null,null,null,1]
[null,null,null,null,null,null,null,null,null,null,null,null,null,null,null,null,1]
[null,null,null,null,null,null,null,null,null,null,null,null,null,null,null,null,1]
[null,null,null,null,null,null,null,null,null,null,null,null,null,null,null,null,1]
[null,null,null,null,null,null,null,null,null,null,null,null,null,null,null,null,1]
[null,null,null,null,null,null,null,null,null,null,null,null,null,null,null,null,1]
[null,null,null,null,null,null,null,null,null,null,null,null,null,null,null,null,1]
[null,null,null,null,null,null,null,null,null,null,null,null,null,null,null,null,1]
[null,null,null,null,null,null,null,null,null,null,null,null,null,null,null,null,1]
[null,null,null,null,null,null,null,null,null,null,null,null,null,null,null,null,1]
[null,null,null,null,null,null,null,null,null,null,null,null,null,null,null,null,1]
[null,null,null,null,null,null,null,null,null,null,null,null,null,null,null,null,1]
[null,null,null,null,null,null,null,null,null,null,null,null,null,null,null,null,1]
[null,null,null,null,null,null,null,null,null,null,null,null,null,null,null,null,1]
[null,null,null,null,null,null,null,null,null,null,null,null,null,null,null,null,1]
[null,null,null,null,null,null,null,null,null,null,null,null,null,null,null,null,1]
[null,null,null,null,null,null,null,null,null,null,null,null,null,null,null,null,1]
[null,null,null,null,null,null,null,null,null,null,null,null,null,null,null,null,1]
[null,null,null,null,null,null,null,null,null,null,null,null,null,null,null,null,1]
[null,null,null,null,null,null,null,null,null,null,null,null,null,null,null,null,1]
[null,null,null,null,null,null,null,null,null,null,null,null,null,null,null,null,1]
[null,null,null,null,null,null,null,null,null,null,null,null,null,null,null,null,1]
[null,null,null,null,null,null,null,null,null,null,null,null,null,null,null,null,1]
[null,null,null,null,null,null,null,null,null,null,null,null,null,null,null,null,1]
[null,null,null,null,null,null,null,null,null,null,null,null,null,null,null,null,1]
[null,null,null,null,null,null,null,null,null,null,null,null,null,null,null,null,1]
[null,null,null,null,null,null,null,null,null,null,null,null,null,null,null,null,1]
[null,null,null,null,null,null,null,null,null,null,null,null,null,null,null,null,1]
[null,null,null,null,null,null,null,null,null,null,null,null,null,null,null,null,1]
[null,null,null,null,null,null,null,null,null,null,null,null,null,null,null,null,1]
[null,null,null,null,null,null,null,null,null,null,null,null,null,null,null,null,1]
[null,null,null,null,null,null,null,null,null,null,null,null,null,null,null,null,1]
[null,null,null,null,null,null,null,null,null,null,null,null,null,null,null,null,1]
[null,null,null,null,null,null,null,null,null,null,null,null,null,null,null,null,1]
[null,null,null,null,null,null,null,null,null,null,null,null,null,null,null,null,1]
[null,null,null,null,null,null,null,null,null,null,null,null,null,null,null,null,1]
[null,null,null,null,null,null,null,null,null,null,null,null,null,null,null,null,1]
[null,null,null,null,null,null,null,null,null,null,null,null,null,null,null,null,1]
[null,null,null,null,null,null,null,null,null,null,null,null,null,null,null,null,1]
[null,null,null,null,null,null,null,null,null,null,null,null,null,null,null,null,1]
[null,null,null,null,null,null,null,null,null,null,null,null,null,null,null,null,1]
[null,null,null,null,null,null,null,null,null,null,null,null,null,null,null,null,1]
[null,null,null,null,null,null,null,null,null,null,null,null,null,null,null,null,1]
[null,null,null,null,null,null,null,null,null,null,null,null,null,null,null,null,1]
[null,null,null,null,null,null,null,null,null,null,null,null,null,null,null,null,1]
[null,null,null,null,null,null,null,null,null,null,null,null,null,null,null,null,1]
[null,null,null,null,null,null,null,null,null,null,null,null,null,null,null,null,1]
[null,null,null,null,null,null,null,null,null,null,null,null,null,null,null,null,1]
[null,null,null,null,null,null,null,null,null,null,null,null,null,null,null,null,1]
[null,null,null,null,null,null,null,null,null,null,null,null,null,null,null,null,1]
[null,null,null,null,null,null,null,null,null,null,null,null,null,null,null,null,1]
[null,null,null,null,null,null,null,null,null,null,null,null,null,null,null,null,1]
[null,null,null,null,null,null,null,null,null,null,null,null,null,null,null,null,1]
[null,null,null,null,null,null,null,null,null,null,null,null,null,null,null,null,1]
[null,null,null,null,null,null,null,null,null,null,null,null,null,null,null,null,1]
[null,null,null,null,null,null,null,null,null,null,null,null,null,null,null,null,1]
[null,null,null,null,null,null,null,null,null,null,null,null,null,null,null,null,1]
[null,null,null,null,null,null,null,null,null,null,null,null,null,null,null,null,1]
[null,null,null,null,null,null,null,null,null,null,null,null,null,null,null,null,1]
[null,null,null,null,null,null,null,null,null,null,null,null,null,null,null,null,1]
[null,null,null,null,null,null,null,null,null,null,null,null,null,null,null,null,1]
[null,null,null,null,null,null,null,null,null,null,null,null,null,null,null,null,1]
[null,null,null,null,null,null,null,null,null,null,null,null,null,null,null,null,1]
[null,null,null,null,null,null,null,null,null,null,null,null,null,null,null,null,1]
[null,null,null,null,null,null,null,null,null,null,null,null,null,null,null,null,1]
[null,null,null,null,null,null,null,null,null,null,null,null,null,null,null,null,1]
[null,null,null,null,null,null,null,null,null,null,null,null,null,null,null,null,1]
[null,null,null,null,null,null,null,null,null,null,null,null,null,null,null,null,1]
[null,null,null,null,null,null,null,null,null,null,null,null,null,null,null,null,1]
[null,null,null,null,null,null,null,null,null,null,null,null,null,null,null,null,1]
[null,null,null,null,null,null,null,null,null,null,null,null,null,null,null,null,1]
[null,null,null,null,null,null,null,null,null,null,null,null,null,null,null,null,1]
[null,null,null,null,null,null,null,null,null,null,null,null,null,null,null,null,1]
[null,null,null,null,null,null,null,null,null,null,null,null,null,null,null,null,1]
[null,null,null,null,null,null,null,null,null,null,null,null,null,null,null,null,1]
[null,null,null,null,null,null,null,null,null,null,null,null,null,null,null,null,1]
[null,null,null,null,null,null,null,null,null,null,null,null,null,null,null,null,1]
[null,null,null,null,null,null,null,null,null,null,null,null,null,null,null,null,1]
[null,null,null,null,null,null,null,null,null,null,null,null,null,null,null,null,1]
[null,null,null,null,null,null,null,null,null,null,null,null,null,null,null,null,1]
[null,null,null,null,null,null,null,null,null,null,null,null,null,null,null,null,1]
[null,null,null,null,null,null,null,null,null,null,null,null,null,null,null,null,1]
[null,null,null,null,null,null,null,null,null,null,null,null,null,null,null,null,1]
[null,null,null,null,null,null,null,null,null,null,null,null,null,null,null,null,1]
[null,null,null,null,null,null,null,null,null,null,null,null,null,null,null,null,1]
[null,null,null,null,null,null,null,null,null,null,null,null,null,null,null,null,1]
[null,null,null,null,null,null,null,null,null,null,null,null,null,null,null,null,1]
[null,null,null,null,null,null,null,null,null,null,null,null,null,null,null,null,1]
[null,null,null,null,null,null,null,null,null,null,null,null,null,null,null,null,1]
[null,null,null,null,null,null,null,null,null,null,null,null,null,null,null,null,1]
[null,null,null,null,null,null,null,null,null,null,null,null,null,null,null,null,1]
[null,null,null,null,null,null,null,null,null,null,null,null,null,null,null,null,1]
[null,null,null,null,null,null,null,null,null,null,null,null,null,null,null,null,1]
[null,null,null,null,null,null,null,null,null,null,null,null,null,null,null,null,1]
[null,null,null,null,null,null,null,null,null,null,null,null,null,null,null,null,1]
[null,null,null,null,null,null,null,null,null,null,null,null,null,null,null,null,1]
[null,null,null,null,null,null,null,null,null,null,null,null,null,null,null,null,1]
[null,null,null,null,null,null,null,null,null,null,null,null,null,null,null,null,1]
[null,null,null,null,null,null,null,null,null,null,null,null,null,null,null,null,1]
[null,null,null,null,null,null,null,null,null,null,null,null,null,null,null,null,1]
[null,null,null,null,null,null,null,null,null,null,null,null,null,null,null,null,1]
[null,null,null,null,null,null,null,null,null,null,null,null,null,null,null,null,1]
[null,null,null,null,null,null,null,null,null,null,null,null,null,null,null,null,1]
[null,null,null,null,null,null,null,null,null,null,null,null,null,null,null,null,1]
[null,null,null,null,null,null,null,null,null,null,null,null,null,null,null,null,1]
[null,null,null,null,null,null,null,null,null,null,null,null,null,null,null,null,1]
[null,null,null,null,null,null,null,null,null,null,null,null,null,null,null,null,1]
[null,null,null,null,null,null,null,null,null,null,null,null,null,null,null,null,1]
[null,null,null,null,null,null,null,null,null,null,null,null,null,null,null,null,1]
[null,null,null,null,null,null,null,null,null,null,null,null,null,null,null,null,1]
[null,null,null,null,null,null,null,null,null,null,null,null,null,null,null,null,1]
[null,null,null,null,null,null,null,null,null,null,null,null,null,null,null,null,1]
[null,null,null,null,null,null,null,null,null,null,null,null,null,null,null,null,1]
[null,null,null,null,null,null,null,null,null,null,null,null,null,null,null,null,1]
[null,null,null,null,null,null,null,null,null,null,null,null,null,null,null,null,1]
[null,null,null,null,null,null,null,null,null,null,null,null,null,null,null,null,1]
[null,null,null,null,null,null,null,null,null,null,null,null,null,null,null,null,1]
[null,null,null,null,null,null,null,null,null,null,null,null,null,null,null,null,1]
[null,null,null,null,null,null,null,null,null,null,null,null,null,null,null,null,1]
[null,null,null,null,null,null,null,null,null,null,null,null,null,null,null,null,1]
[null,null,null,null,null,null,null,null,null,null,null,null,null,null,null,null,1]
[null,null,null,null,null,null,null,null,null,null,null,null,null,null,null,null,1]
[null,null,null,null,null,null,null,null,null,null,null,null,null,null,null,null,1]
[null,null,null,null,null,null,null,null,null,null,null,null,null,null,null,null,1]
[null,null,null,null,null,null,null,null,null,null,null,null,null,null,null,null,1]
[null,null,null,null,null,null,null,null,null,null,null,null,null,null,null,null,1]
[null,null,null,null,null,null,null,null,null,null,null,null,null,null,null,null,1]
[null,null,null,null,null,null,null,null,null,null,null,null,null,null,null,null,1]
[null,null,null,null,null,null,null,null,null,null,null,null,null,null,null,null,1]
[null,null,null,null,null,null,null,null,null,null,null,null,null,null,null,null,1]
[null,null,null,null,null,null,null,null,null,null,null,null,null,null,null,null,1]
[null,null,null,null,null,null,null,null,null,null,null,null,null,null,null,null,1]
[null,null,null,null,null,null,null,null,null,null,null,null,null,null,null,null,1]
[null,null,null,null,null,null,null,null,null,null,null,null,null,null,null,null,1]
[null,null,null,null,null,null,null,null,null,null,null,null,null,null,null,null,1]
[null,null,null,null,null,null,null,null,null,null,null,null,null,null,null,null,1]
[null,null,null,null,null,null,null,null,null,null,null,null,null,null,null,null,1]
[null,null,null,null,null,null,null,null,null,null,null,null,null,null,null,null,1]
[null,null,null,null,null,null,null,null,null,null,null,null,null,null,null,null,1]
[null,null,null,null,null,null,null,null,null,null,null,null,null,null,null,null,1]
[null,null,null,null,null,null,null,null,null,null,null,null,null,null,null,null,1]
[null,null,null,null,null,null,null,null,null,null,null,null,null,null,null,null,1]
[null,null,null,null,null,null,null,null,null,null,null,null,null,null,null,null,1]
[null,null,null,null,null,null,null,null,null,null,null,null,null,null,null,null,1]
[null,null,null,null,null,null,null,null,null,null,null,null,null,null,null,null,1]
[null,null,null,null,null,null,null,null,null,null,null,null,null,null,null,null,1]
[null,null,null,null,null,null,null,null,null,null,null,null,null,null,null,null,1]
[null,null,null,null,null,null,null,null,null,null,null,null,null,null,null,null,1]
[null,null,null,null,null,null,null,null,null,null,null,null,null,null,null,null,1]
[null,null,null,null,null,null,null,null,null,null,null,null,null,null,null,null,1]
[null,null,null,null,null,null,null,null,null,null,null,null,null,null,null,null,1]
[null,null,null,null,null,null,null,null,null,null,null,null,null,null,null,null,1]
[null,null,null,null,null,null,null,null,null,null,null,null,null,null,null,null,1]
[null,null,null,null,null,null,null,null,null,null,null,null,null,null,null,null,1]
[null,null,null,null,null,null,null,null,null,null,null,null,null,null,null,null,1]
[null,null,null,null,null,null,null,null,null,null,null,null,null,null,null,null,1]
[null,null,null,null,null,null,null,null,null,null,null,null,null,null,null,null,1]
[null,null,null,null,null,null,null,null,null,null,null,null,null,null,null,null,1]
[null,null,null,null,null,null,null,null,null,null,null,null,null,null,null,null,1]
[null,null,null,null,null,null,null,null,null,null,null,null,null,null,null,null,1]
[null,null,null,null,null,null,null,null,null,null,null,null,null,null,null,null,1]
[null,null,null,null,null,null,null,null,null,null,null,null,null,null,null,null,1]
[null,null,null,null,null,null,null,null,null,null,null,null,null,null,null,null,1]
[null,null,null,null,null,null,null,null,null,null,null,null,null,null,null,null,1]
[null,null,null,null,null,null,null,null,null,null,null,null,null,null,null,null,1]
[null,null,null,null,null,null,null,null,null,null,null,null,null,null,null,null,1]
[null,null,null,null,null,null,null,null,null,null,null,null,null,null,null,null,1]
[null,null,null,null,null,null,null,null,null,null,null,null,null,null,null,null,1]
[null,null,null,null,null,null,null,null,null,null,null,null,null,null,null,null,1]
[null,null,null,null,null,null,null,null,null,null,null,null,null,null,null,null,1]
[null,null,null,null,null,null,null,null,null,null,null,null,null,null,null,null,1]
[null,null,null,null,null,null,null,null,null,null,null,null,null,null,null,null,1]
[null,null,null,null,null,null,null,null,null,null,null,null,null,null,null,null,1]
[null,null,null,null,null,null,null,null,null,null,null,null,null,null,null,null,1]
[null,null,null,null,null,null,null,null,null,null,null,null,null,null,null,null,1]
[null,null,null,null,null,null,null,null,null,null,null,null,null,null,null,null,1]
[null,null,null,null,null,null,null,null,null,null,null,null,null,null,null,null,1]
[null,null,null,null,null,null,null,null,null,null,null,null,null,null,null,null,1]
[null,null,null,null,null,null,null,null,null,null,null,null,null,null,null,null,1]
[null,null,null,null,null,null,null,null,null,null,null,null,null,null,null,null,1]
[null,null,null,null,null,null,null,null,null,null,null,null,null,null,null,null,1]
[null,null,null,null,null,null,null,null,null,null,null,null,null,null,null,null,1]
[null,null,null,null,null,null,null,null,null,null,null,null,null,null,null,null,1]
[null,null,null,null,null,null,null,null,null,null,null,null,null,null,null,null,1]
[null,null,null,null,null,null,null,null,null,null,null,null,null,null,null,null,1]
[null,null,null,null,null,null,null,null,null,null,null,null,null,null,null,null,1]
[null,null,null,null,null,null,null,null,null,null,null,null,null,null,null,null,1]
[null,null,null,null,null,null,null,null,null,null,null,null,null,null,null,null,1]
[null,null,null,null,null,null,null,null,null,null,null,null,null,null,null,null,1]
[null,null,null,null,null,null,null,null,null,null,null,null,null,null,null,null,1]
[null,null,null,null,null,null,null,null,null,null,null,null,null,null,null,null,1]
[null,null,null,null,null,null,null,null,null,null,null,null,null,null,null,null,1]
[null,null,null,null,null,null,null,null,null,null,null,null,null,null,null,null,1]
[null,null,null,null,null,null,null,null,null,null,null,null,null,null,null,null,1]
[null,null,null,null,null,null,null,null,null,null,null,null,null,null,null,null,1]
[null,null,null,null,null,null,null,null,null,null,null,null,null,null,null,null,1]
[null,null,null,null,null,null,null,null,null,null,null,null,null,null,null,null,1]
[null,null,null,null,null,null,null,null,null,null,null,null,null,null,null,null,1]
[null,null,null,null,null,null,null,null,null,null,null,null,null,null,null,null,1]
[null,null,null,null,null,null,null,null,null,null,null,null,null,null,null,null,1]
[null,null,null,null,null,null,null,null,null,null,null,null,null,null,null,null,1]
[null,null,null,null,null,null,null,null,null,null,null,null,null,null,null,null,1]
[null,null,null,null,null,null,null,null,null,null,null,null,null,null,null,null,1]
[null,null,null,null,null,null,null,null,null,null,null,null,null,null,null,null,1]
[null,null,null,null,null,null,null,null,null,null,null,null,null,null,null,null,1]
[null,null,null,null,null,null,null,null,null,null,null,null,null,null,null,null,1]
[null,null,null,null,null,null,null,null,null,null,null,null,null,null,null,null,1]
[null,null,null,null,null,null,null,null,null,null,null,null,null,null,null,null,1]
[null,null,null,null,null,null,null,null,null,null,null,null,null,null,null,null,1]
[null,null,null,null,null,null,null,null,null,null,null,null,null,null,null,null,1]
[null,null,null,null,null,null,null,null,null,null,null,null,null,null,null,null,1]
[null,null,null,null,null,null,null,null,null,null,null,null,null,null,null,null,1]
[null,null,null,null,null,null,null,null,null,null,null,null,null,null,null,null,1]
[null,null,null,null,null,null,null,null,null,null,null,null,null,null,null,null,1]
[null,null,null,null,null,null,null,null,null,null,null,null,null,null,null,null,1]
[null,null,null,null,null,null,null,null,null,null,null,null,null,null,null,null,1]
[null,null,null,null,null,null,null,null,null,null,null,null,null,null,null,null,1]
[null,null,null,null,null,null,null,null,null,null,null,null,null,null,null,null,1]
[null,null,null,null,null,null,null,null,null,null,null,null,null,null,null,null,1]
[null,null,null,null,null,null,null,null,null,null,null,null,null,null,null,null,1]
[null,null,null,null,null,null,null,null,null,null,null,null,null,null,null,null,1]
[null,null,null,null,null,null,null,null,null,null,null,null,null,null,null,null,1]
[null,null,null,null,null,null,null,null,null,null,null,null,null,null,null,null,1]
[null,null,null,null,null,null,null,null,null,null,null,null,null,null,null,null,1]
[null,null,null,null,null,null,null,null,null,null,null,null,null,null,null,null,1]
[null,null,null,null,null,null,null,null,null,null,null,null,null,null,null,null,1]
[null,null,null,null,null,null,null,null,null,null,null,null,null,null,null,null,1]
[null,null,null,null,null,null,null,null,null,null,null,null,null,null,null,null,1]
[null,null,null,null,null,null,null,null,null,null,null,null,null,null,null,null,1]
[null,null,null,null,null,null,null,null,null,null,null,null,null,null,null,null,1]
[null,null,null,null,null,null,null,null,null,null,null,null,null,null,null,null,1]
[null,null,null,null,null,null,null,null,null,null,null,null,null,null,null,null,1]
[null,null,null,null,null,null,null,null,null,null,null,null,null,null,null,null,1]
[null,null,null,null,null,null,null,null,null,null,null,null,null,null,null,null,1]
[null,null,null,null,null,null,null,null,null,null,null,null,null,null,null,null,1]
[null,null,null,null,null,null,null,null,null,null,null,null,null,null,null,null,1]
[null,null,null,null,null,null,null,null,null,null,null,null,null,null,null,null,1]
[null,null,null,null,null,null,null,null,null,null,null,null,null,null,null,null,1]
[null,null,null,null,null,null,null,null,null,null,null,null,null,null,null,null,1]
[null,null,null,null,null,null,null,null,null,null,null,null,null,null,null,null,1]
[null,null,null,null,null,null,null,null,null,null,null,null,null,null,null,null,1]
[null,null,null,null,null,null,null,null,null,null,null,null,null,null,null,null,1]
[null,null,null,null,null,null,null,null,null,null,null,null,null,null,null,null,1]
[null,null,null,null,null,null,null,null,null,null,null,null,null,null,null,null,1]
[null,null,null,null,null,null,null,null,null,null,null,null,null,null,null,null,1]
[null,null,null,null,null,null,null,null,null,null,null,null,null,null,null,null,1]
[null,null,null,null,null,null,null,null,null,null,null,null,null,null,null,null,1]
[null,null,null,null,null,null,null,null,null,null,null,null,null,null,null,null,1]
[null,null,null,null,null,null,null,null,null,null,null,null,null,null,null,null,1]
[null,null,null,null,null,null,null,null,null,null,null,null,null,null,null,null,1]
[null,null,null,null,null,null,null,null,null,null,null,null,null,null,null,null,1]
[null,null,null,null,null,null,null,null,null,null,null,null,null,null,null,null,1]
[null,null,null,null,null,null,null,null,null,null,null,null,null,null,null,null,1]
[null,null,null,null,null,null,null,null,null,null,null,null,null,null,null,null,1]
[null,null,null,null,null,null,null,null,null,null,null,null,null,null,null,null,1]
[null,null,null,null,null,null,null,null,null,null,null,null,null,null,null,null,1]
[null,null,null,null,null,null,null,null,null,null,null,null,null,null,null,null,1]
[null,null,null,null,null,null,null,null,null,null,null,null,null,null,null,null,1]
[null,null,null,null,null,null,null,null,null,null,null,null,null,null,null,null,1]
[null,null,null,null,null,null,null,null,null,null,null,null,null,null,null,null,1]
[null,null,null,null,null,null,null,null,null,null,null,null,null,null,null,null,1]
[null,null,null,null,null,null,null,null,null,null,null,null,null,null,null,null,1]
[null,null,null,null,null,null,null,null,null,null,null,null,null,null,null,null,1]
[null,null,null,null,null,null,null,null,null,null,null,null,null,null,null,null,1]
[null,null,null,null,null,null,null,null,null,null,null,null,null,null,null,null,1]
[null,null,null,null,null,null,null,null,null,null,null,null,null,null,null,null,1]
[null,null,null,null,null,null,null,null,null,null,null,null,null,null,null,null,1]
[null,null,null,null,null,null,null,null,null,null,null,null,null,null,null,null,1]
[null,null,null,null,null,null,null,null,null,null,null,null,null,null,null,null,1]
[null,null,null,null,null,null,null,null,null,null,null,null,null,null,null,null,1]
[null,null,null,null,null,null,null,null,null,null,null,null,null,null,null,null,1]
[null,null,null,null,null,null,null,null,null,null,null,null,null,null,null,null,1]
[null,null,null,null,null,null,null,null,null,null,null,null,null,null,null,null,1]
[null,null,null,null,null,null,null,null,null,null,null,null,null,null,null,null,1]
[null,null,null,null,null,null,null,null,null,null,null,null,null,null,null,null,1]
[null,null,null,null,null,null,null,null,null,null,null,null,null,null,null,null,1]
[null,null,null,null,null,null,null,null,null,null,null,null,null,null,null,null,1]
[null,null,null,null,null,null,null,null,null,null,null,null,null,null,null,null,1]
[null,null,null,null,null,null,null,null,null,null,null,null,null,null,null,null,1]
[null,null,null,null,null,null,null,null,null,null,null,null,null,null,null,null,1]
[null,null,null,null,null,null,null,null,null,null,null,null,null,null,null,null,1]
[null,null,null,null,null,null,null,null,null,null,null,null,null,null,null,null,1]
[null,null,null,null,null,null,null,null,null,null,null,null,null,null,null,null,1]
[null,null,null,null,null,null,null,null,null,null,null,null,null,null,null,null,1]
[null,null,null,null,null,null,null,null,null,null,null,null,null,null,null,null,1]
[null,null,null,null,null,null,null,null,null,null,null,null,null,null,null,null,1]
[null,null,null,null,null,null,null,null,null,null,null,null,null,null,null,null,1]
[null,null,null,null,null,null,null,null,null,null,null,null,null,null,null,null,1]
[null,null,null,null,null,null,null,null,null,null,null,null,null,null,null,null,1]
[null,null,null,null,null,null,null,null,null,null,null,null,null,null,null,null,1]
[null,null,null,null,null,null,null,null,null,null,null,null,null,null,null,null,1]
[null,null,null,null,null,null,null,null,null,null,null,null,null,null,null,null,1]
[null,null,null,null,null,null,null,null,null,null,null,null,null,null,null,null,1]
[null,null,null,null,null,null,null,null,null,null,null,null,null,null,null,null,1]
[null,null,null,null,null,null,null,null,null,null,null,null,null,null,null,null,1]
[null,null,null,null,null,null,null,null,null,null,null,null,null,null,null,null,1]
[null,null,null,null,null,null,null,null,null,null,null,null,null,null,null,null,1]
[null,null,null,null,null,null,null,null,null,null,null,null,null,null,null,null,1]
[null,null,null,null,null,null,null,null,null,null,null,null,null,null,null,null,1]
[null,null,null,null,null,null,null,null,null,null,null,null,null,null,null,null,1]
[null,null,null,null,null,null,null,null,null,null,null,null,null,null,null,null,1]
[null,null,null,null,null,null,null,null,null,null,null,null,null,null,null,null,1]
[null,null,null,null,null,null,null,null,null,null,null,null,null,null,null,null,1]
[null,null,null,null,null,null,null,null,null,null,null,null,null,null,null,null,1]
[null,null,null,null,null,null,null,null,null,null,null,null,null,null,null,null,1]
[null,null,null,null,null,null,null,null,null,null,null,null,null,null,null,null,1]
[null,null,null,null,null,null,null,null,null,null,null,null,null,null,null,null,1]
[null,null,null,null,null,null,null,null,null,null,null,null,null,null,null,null,1]
[null,null,null,null,null,null,null,null,null,null,null,null,null,null,null,null,1]
[null,null,null,null,null,null,null,null,null,null,null,null,null,null,null,null,1]
[null,null,null,null,null,null,null,null,null,null,null,null,null,null,null,null,1]
[null,null,null,null,null,null,null,null,null,null,null,null,null,null,null,null,1]
[null,null,null,null,null,null,null,null,null,null,null,null,null,null,null,null,1]
[null,null,null,null,null,null,null,null,null,null,null,null,null,null,null,null,1]
[null,null,null,null,null,null,null,null,null,null,null,null,null,null,null,null,1]
[null,null,null,null,null,null,null,null,null,null,null,null,null,null,null,null,1]
[null,null,null,null,null,null,null,null,null,null,null,null,null,null,null,null,1]
[null,null,null,null,null,null,null,null,null,null,null,null,null,null,null,null,1]
[null,null,null,null,null,null,null,null,null,null,null,null,null,null,null,null,1]
[null,null,null,null,null,null,null,null,null,null,null,null,null,null,null,null,1]
[null,null,null,null,null,null,null,null,null,null,null,null,null,null,null,null,1]
[null,null,null,null,null,null,null,null,null,null,null,null,null,null,null,null,1]
[null,null,null,null,null,null,null,null,null,null,null,null,null,null,null,null,1]
[null,null,null,null,null,null,null,null,null,null,null,null,null,null,null,null,1]
[null,null,null,null,null,null,null,null,null,null,null,null,null,null,null,null,1]
[null,null,null,null,null,null,null,null,null,null,null,null,null,null,null,null,1]
[null,null,null,null,null,null,null,null,null,null,null,null,null,null,null,null,1]
[null,null,null,null,null,null,null,null,null,null,null,null,null,null,null,null,1]
[null,null,null,null,null,null,null,null,null,null,null,null,null,null,null,null,1]
[null,null,null,null,null,null,null,null,null,null,null,null,null,null,null,null,1]
[null,null,null,null,null,null,null,null,null,null,null,null,null,null,null,null,1]
[null,null,null,null,null,null,null,null,null,null,null,null,null,null,null,null,1]
[null,null,null,null,null,null,null,null,null,null,null,null,null,null,null,null,1]
[null,null,null,null,null,null,null,null,null,null,null,null,null,null,null,null,1]
[null,null,null,null,null,null,null,null,null,null,null,null,null,null,null,null,1]
[null,null,null,null,null,null,null,null,null,null,null,null,null,null,null,null,1]
[null,null,null,null,null,null,null,null,null,null,null,null,null,null,null,null,1]
[null,null,null,null,null,null,null,null,null,null,null,null,null,null,null,null,1]
[null,null,null,null,null,null,null,null,null,null,null,null,null,null,null,null,1]
[null,null,null,null,null,null,null,null,null,null,null,null,null,null,null,null,1]
[null,null,null,null,null,null,null,null,null,null,null,null,null,null,null,null,1]
[null,null,null,null,null,null,null,null,null,null,null,null,null,null,null,null,1]
[null,null,null,null,null,null,null,null,null,null,null,null,null,null,null,null,1]
[null,null,null,null,null,null,null,null,null,null,null,null,null,null,null,null,1]
[null,null,null,null,null,null,null,null,null,null,null,null,null,null,null,null,1]
[null,null,null,null,null,null,null,null,null,null,null,null,null,null,null,null,1]
[null,null,null,null,null,null,null,null,null,null,null,null,null,null,null,null,1]
[null,null,null,null,null,null,null,null,null,null,null,null,null,null,null,null,1]
[null,null,null,null,null,null,null,null,null,null,null,null,null,null,null,null,1]
[null,null,null,null,null,null,null,null,null,null,null,null,null,null,null,null,1]
[null,null,null,null,null,null,null,null,null,null,null,null,null,null,null,null,1]
[null,null,null,null,null,null,null,null,null,null,null,null,null,null,null,null,1]
[null,null,null,null,null,null,null,null,null,null,null,null,null,null,null,null,1]
[null,null,null,null,null,null,null,null,null,null,null,null,null,null,null,null,1]
[null,null,null,null,null,null,null,null,null,null,null,null,null,null,null,null,1]
[null,null,null,null,null,null,null,null,null,null,null,null,null,null,null,null,1]
[null,null,null,null,null,null,null,null,null,null,null,null,null,null,null,null,1]
[null,null,null,null,null,null,null,null,null,null,null,null,null,null,null,null,1]
[null,null,null,null,null,null,null,null,null,null,null,null,null,null,null,null,1]
[null,null,null,null,null,null,null,null,null,null,null,null,null,null,null,null,1]
[null,null,null,null,null,null,null,null,null,null,null,null,null,null,null,null,1]
[null,null,null,null,null,null,null,null,null,null,null,null,null,null,null,null,1]
[null,null,null,null,null,null,null,null,null,null,null,null,null,null,null,null,1]
[null,null,null,null,null,null,null,null,null,null,null,null,null,null,null,null,1]
[null,null,null,null,null,null,null,null,null,null,null,null,null,null,null,null,1]
[null,null,null,null,null,null,null,null,null,null,null,null,null,null,null,null,1]
[null,null,null,null,null,null,null,null,null,null,null,null,null,null,null,null,1]
[null,null,null,null,null,null,null,null,null,null,null,null,null,null,null,null,1]
[null,null,null,null,null,null,null,null,null,null,null,null,null,null,null,null,1]
[null,null,null,null,null,null,null,null,null,null,null,null,null,null,null,null,1]
[null,null,null,null,null,null,null,null,null,null,null,null,null,null,null,null,1]
[null,null,null,null,null,null,null,null,null,null,null,null,null,null,null,null,1]
[null,null,null,null,null,null,null,null,null,null,null,null,null,null,null,null,1]
[null,null,null,null,null,null,null,null,null,null,null,null,null,null,null,null,1]
[null,null,null,null,null,null,null,null,null,null,null,null,null,null,null,null,1]
[null,null,null,null,null,null,null,null,null,null,null,null,null,null,null,null,1]
[null,null,null,null,null,null,null,null,null,null,null,null,null,null,null,null,1]
[null,null,null,null,null,null,null,null,null,null,null,null,null,null,null,null,1]
[null,null,null,null,null,null,null,null,null,null,null,null,null,null,null,null,1]
[null,null,null,null,null,null,null,null,null,null,null,null,null,null,null,null,1]
[null,null,null,null,null,null,null,null,null,null,null,null,null,null,null,null,1]
[null,null,null,null,null,null,null,null,null,null,null,null,null,null,null,null,1]
[null,null,null,null,null,null,null,null,null,null,null,null,null,null,null,null,1]
[null,null,null,null,null,null,null,null,null,null,null,null,null,null,null,null,1]
[null,null,null,null,null,null,null,null,null,null,null,null,null,null,null,null,1]
[null,null,null,null,null,null,null,null,null,null,null,null,null,null,null,null,1]
[null,null,null,null,null,null,null,null,null,null,null,null,null,null,null,null,1]
[null,null,null,null,null,null,null,null,null,null,null,null,null,null,null,null,1]
[null,null,null,null,null,null,null,null,null,null,null,null,null,null,null,null,1]
[null,null,null,null,null,null,null,null,null,null,null,null,null,null,null,null,1]
[null,null,null,null,null,null,null,null,null,null,null,null,null,null,null,null,1]
[null,null,null,null,null,null,null,null,null,null,null,null,null,null,null,null,1]
[null,null,null,null,null,null,null,null,null,null,null,null,null,null,null,null,1]
[null,null,null,null,null,null,null,null,null,null,null,null,null,null,null,null,1]
[null,null,null,null,null,null,null,null,null,null,null,null,null,null,null,null,1]
[null,null,null,null,null,null,null,null,null,null,null,null,null,null,null,null,1]
[null,null,null,null,null,null,null,null,null,null,null,null,null,null,null,null,1]
[null,null,null,null,null,null,null,null,null,null,null,null,null,null,null,null,1]
[null,null,null,null,null,null,null,null,null,null,null,null,null,null,null,null,1]
[null,null,null,null,null,null,null,null,null,null,null,null,null,null,null,null,1]
[null,null,null,null,null,null,null,null,null,null,null,null,null,null,null,null,1]
[null,null,null,null,null,null,null,null,null,null,null,null,null,null,null,null,1]
[null,null,null,null,null,null,null,null,null,null,null,null,null,null,null,null,1]
[null,null,null,null,null,null,null,null,null,null,null,null,null,null,null,null,1]
[null,null,null,null,null,null,null,null,null,null,null,null,null,null,null,null,1]
[null,null,null,null,null,null,null,null,null,null,null,null,null,null,null,null,1]
[null,null,null,null,null,null,null,null,null,null,null,null,null,null,null,null,1]
[null,null,null,null,null,null,null,null,null,null,null,null,null,null,null,null,1]
[null,null,null,null,null,null,null,null,null,null,null,null,null,null,null,null,1]
[null,null,null,null,null,null,null,null,null,null,null,null,null,null,null,null,1]
[null,null,null,null,null,null,null,null,null,null,null,null,null,null,null,null,1]
[null,null,null,null,null,null,null,null,null,null,null,null,null,null,null,null,1]
[null,null,null,null,null,null,null,null,null,null,null,null,null,null,null,null,1]
[null,null,null,null,null,null,null,null,null,null,null,null,null,null,null,null,1]
[null,null,null,null,null,null,null,null,null,null,null,null,null,null,null,null,1]
[null,null,null,null,null,null,null,null,null,null,null,null,null,null,null,null,1]
[null,null,null,null,null,null,null,null,null,null,null,null,null,null,null,null,1]
[null,null,null,null,null,null,null,null,null,null,null,null,null,null,null,null,1]
[null,null,null,null,null,null,null,null,null,null,null,null,null,null,null,null,1]
[null,null,null,null,null,null,null,null,null,null,null,null,null,null,null,null,1]
[null,null,null,null,null,null,null,null,null,null,null,null,null,null,null,null,1]
[null,null,null,null,null,null,null,null,null,null,null,null,null,null,null,null,1]
[null,null,null,null,null,null,null,null,null,null,null,null,null,null,null,null,1]
[null,null,null,null,null,null,null,null,null,null,null,null,null,null,null,null,1]
[null,null,null,null,null,null,null,null,null,null,null,null,null,null,null,null,1]
[null,null,null,null,null,null,null,null,null,null,null,null,null,null,null,null,1]
[null,null,null,null,null,null,null,null,null,null,null,null,null,null,null,null,1]
[null,null,null,null,null,null,null,null,null,null,null,null,null,null,null,null,1]
[null,null,null,null,null,null,null,null,null,null,null,null,null,null,null,null,1]
[null,null,null,null,null,null,null,null,null,null,null,null,null,null,null,null,1]
[null,null,null,null,null,null,null,null,null,null,null,null,null,null,null,null,1]
[null,null,null,null,null,null,null,null,null,null,null,null,null,null,null,null,1]
[null,null,null,null,null,null,null,null,null,null,null,null,null,null,null,null,1]
[null,null,null,null,null,null,null,null,null,null,null,null,null,null,null,null,1]
[null,null,null,null,null,null,null,null,null,null,null,null,null,null,null,null,1]
[null,null,null,null,null,null,null,null,null,null,null,null,null,null,null,null,1]
[null,null,null,null,null,null,null,null,null,null,null,null,null,null,null,null,1]
[null,null,null,null,null,null,null,null,null,null,null,null,null,null,null,null,1]
[null,null,null,null,null,null,null,null,null,null,null,null,null,null,null,null,1]
[null,null,null,null,null,null,null,null,null,null,null,null,null,null,null,null,1]
[null,null,null,null,null,null,null,null,null,null,null,null,null,null,null,null,1]
[null,null,null,null,null,null,null,null,null,null,null,null,null,null,null,null,1]
[null,null,null,null,null,null,null,null,null,null,null,null,null,null,null,null,1]
[null,null,null,null,null,null,null,null,null,null,null,null,null,null,null,null,1]
[null,null,null,null,null,null,null,null,null,null,null,null,null,null,null,null,1]
[null,null,null,null,null,null,null,null,null,null,null,null,null,null,null,null,1]
[null,null,null,null,null,null,null,null,null,null,null,null,null,null,null,null,1]
[null,null,null,null,null,null,null,null,null,null,null,null,null,null,null,null,1]
[null,null,null,null,null,null,null,null,null,null,null,null,null,null,null,null,1]
[null,null,null,null,null,null,null,null,null,null,null,null,null,null,null,null,1]
[null,null,null,null,null,null,null,null,null,null,null,null,null,null,null,null,1]
[null,null,null,null,null,null,null,null,null,null,null,null,null,null,null,null,1]
[null,null,null,null,null,null,null,null,null,null,null,null,null,null,null,null,1]
[null,null,null,null,null,null,null,null,null,null,null,null,null,null,null,null,1]
[null,null,null,null,null,null,null,null,null,null,null,null,null,null,null,null,1]
[null,null,null,null,null,null,null,null,null,null,null,null,null,null,null,null,1]
[null,null,null,null,null,null,null,null,null,null,null,null,null,null,null,null,1]
[null,null,null,null,null,null,null,null,null,null,null,null,null,null,null,null,1]
[null,null,null,null,null,null,null,null,null,null,null,null,null,null,null,null,1]
[null,null,null,null,null,null,null,null,null,null,null,null,null,null,null,null,1]
[null,null,null,null,null,null,null,null,null,null,null,null,null,null,null,null,1]
[null,null,null,null,null,null,null,null,null,null,null,null,null,null,null,null,1]
[null,null,null,null,null,null,null,null,null,null,null,null,null,null,null,null,1]
[null,null,null,null,null,null,null,null,null,null,null,null,null,null,null,null,1]
[null,null,null,null,null,null,null,null,null,null,null,null,null,null,null,null,1]
[null,null,null,null,null,null,null,null,null,null,null,null,null,null,null,null,1]
[null,null,null,null,null,null,null,null,null,null,null,null,null,null,null,null,1]
[null,null,null,null,null,null,null,null,null,null,null,null,null,null,null,null,1]
[null,null,null,null,null,null,null,null,null,null,null,null,null,null,null,null,1]
[null,null,null,null,null,null,null,null,null,null,null,null,null,null,null,null,1]
[null,null,null,null,null,null,null,null,null,null,null,null,null,null,null,null,1]
[null,null,null,null,null,null,null,null,null,null,null,null,null,null,null,null,1]
[null,null,null,null,null,null,null,null,null,null,null,null,null,null,null,null,1]
[null,null,null,null,null,null,null,null,null,null,null,null,null,null,null,null,1]
[null,null,null,null,null,null,null,null,null,null,null,null,null,null,null,null,1]
[null,null,null,null,null,null,null,null,null,null,null,null,null,null,null,null,1]
[null,null,null,null,null,null,null,null,null,null,null,null,null,null,null,null,1]
[null,null,null,null,null,null,null,null,null,null,null,null,null,null,null,null,1]
[null,null,null,null,null,null,null,null,null,null,null,null,null,null,null,null,1]
[null,null,null,null,null,null,null,null,null,null,null,null,null,null,null,null,1]
[null,null,null,null,null,null,null,null,null,null,null,null,null,null,null,null,1]
[null,null,null,null,null,null,null,null,null,null,null,null,null,null,null,null,1]
[null,null,null,null,null,null,null,null,null,null,null,null,null,null,null,null,1]
[null,null,null,null,null,null,null,null,null,null,null,null,null,null,null,null,1]
[null,null,null,null,null,null,null,null,null,null,null,null,null,null,null,null,1]
[null,null,null,null,null,null,null,null,null,null,null,null,null,null,null,null,1]
[null,null,null,null,null,null,null,null,null,null,null,null,null,null,null,null,1]
[null,null,null,null,null,null,null,null,null,null,null,null,null,null,null,null,1]
[null,null,null,null,null,null,null,null,null,null,null,null,null,null,null,null,1]
[null,null,null,null,null,null,null,null,null,null,null,null,null,null,null,null,1]
[null,null,null,null,null,null,null,null,null,null,null,null,null,null,null,null,1]
[null,null,null,null,null,null,null,null,null,null,null,null,null,null,null,null,1]
[null,null,null,null,null,null,null,null,null,null,null,null,null,null,null,null,1]
[null,null,null,null,null,null,null,null,null,null,null,null,null,null,null,null,1]
[null,null,null,null,null,null,null,null,null,null,null,null,null,null,null,null,1]
[null,null,null,null,null,null,null,null,null,null,null,null,null,null,null,null,1]
[null,null,null,null,null,null,null,null,null,null,null,null,null,null,null,null,1]
[null,null,null,null,null,null,null,null,null,null,null,null,null,null,null,null,1]

{"sheet":"جارى","index":1,"n_rows":30,"n_cols":15,"rows_kept":30,"cut":false,"hidden":false,"merged":[[26,14,26,15],[29,14,29,15],[22,2,22,8],[22,14,22,15],[3,6,3,10],[4,6,4,7],[6,10,6,11],[7,11,7,12],[6,4,6,6],[9,4,9,6],[10,4,10,6],[11,4,11,6],[12,4,12,6],[26,11,26,12]]}
[]
[]
[]
[null,null,null,null,null,null,"شركة الصفوة للمقاولات"]
[null,null,null,null,null,null,"مستخلص  ",null,"جارى1"]
[null,null,null,"     ○ مشـــــــــــــــــــــــروع:- تركيبات بيوت زراعية بمحور الضبعة"]
[null,null,null,"الشركة او المورد او المقاول","أحمد حجازى عبدالحكيم",null,null,null,null,"تاريخ اعداد المستخلص","2023-06-21"]
[]
[null,null,null,"     ○ اسم البنـــــــــد: ","     تركيب هيكل معدنى"]
[null,null,null,"     ○ رقم العقد :- ","  2023/34",null,null,null,null,"من تاريخ :","2023-06-06"]
[null,null,null,"     ○ قيمة العقد:- ",35000,null,null,null,null,"الي تاريخ :","2023-06-21"]
[null,null,null,"     ○ رقم الكلاستــر :- ","    E12"]
[null,null,null,"     ○ رقم الصوبـــــــة:-  ",2]
[]
[null,null,"م","بيــــــــــــــــان الأعمــــــــــال","الكمية بالعقد","قيمة البند","ما سبق","الكمية الحالية","إجمالي الكمية ","قيمة المستخلص","قيمة التأمين (10%)","قيمة تأمين بيت الخدمه (5%)","صافى المستحق","الخصم","ملاحظــــــــــــــــــــــات"]
[null,null,"1","تركيب مجاري المطر - كمر- تدعيم اكسات- تدعيم كهات",1,32000,0.5,0.1,{"$f":"H16+G16","v":0.6},{"$f":"H16*F16","v":3200},{"$f":"0.1*J16","v":320},{"$f":"J16*0.05","v":160},{"$f":"J16*0.85","v":2720}]
[null,null,"2","الاقواس- المدادات",1,42000,0.2,0.15,0.35,6300,630,315,5355]
[null,null,"3","البروفيل",1,12000,0.3,0.3,0.6,3600,360,180,3060]
[null,null,"4","البوابات",1,6000,0.15,0.6,0.75,3600,360,180,3060]
[null,null,"5","النهايز",1,6000,0.6,0.35,0.95,2100,210,105,1785]
[null,null,"6","حامل الثمار",1,10000,0.7,0.25,0.95,2500,250,125,2125]
[null,null,"7","النقل",1,7000,0.9,0.05,0.95000000000000007,350,35,17.5,297.5]
[null,null,"إجمـــــــــــــــــــــــــــــــالي المستحق",null,null,null,null,null,null,{"$f":"SUM(J16:J22)","v":21650},{"$f":"SUM(K16:K22)","v":2165},1082.5,18402.5,0]
[]
[]
[]
[null,null,"المقاول","مهندس الموقع",null,"مراجعة مالية بالموقع",null,null,null,"مدير الموقع",null,"الادارة الهندسيه",null,null,"مدير الادارة الهندسيه"]
[null,null,null,null,null,"محاسب/ رضا الخطيب",null,null,null,"م/ أحد لاشين"]
[]
[null,null,null,null,null,null,null,null,null,null,null,null,null,null,"رئيس مجلس الادارة"]

{"sheet":"جارى2","index":2,"n_rows":30,"n_cols":19,"rows_kept":30,"cut":false,"hidden":false,"merged":[[9,4,9,6],[3,6,3,10],[4,6,4,7],[6,4,6,6],[6,10,6,11],[7,11,7,12],[29,14,29,15],[10,4,10,6],[11,4,11,6],[12,4,12,6],[22,2,22,8],[22,14,22,15],[26,11,26,12],[26,14,26,15]]}
[]
[]
[]
[null,null,null,null,null,null,"شركة الصفوة للمقاولات"]
[null,null,null,null,null,null,"مستخلص  ",null,"جارى2"]
[null,null,null,"     ○ مشـــــــــــــــــــــــروع:- تركيبات بيوت زراعية بمحور الضبعة"]
[null,null,null,"الشركة او المورد او المقاول","أحمد حجازى عبدالحكيم",null,null,null,null,"تاريخ اعداد المستخلص","2023-06-21"]
[]
[null,null,null,"     ○ اسم البنـــــــــد: ","     تركيب هيكل معدنى"]
[null,null,null,"     ○ رقم العقد :- ","  2023/34",null,null,null,null,"من تاريخ :","2023-06-06"]
[null,null,null,"     ○ قيمة العقد:- ",35000,null,null,null,null,"الي تاريخ :","2023-06-21"]
[null,null,null,"     ○ رقم الكلاستــر :- ","    E12"]
[null,null,null,"     ○ رقم الصوبـــــــة:-  ",2]
[]
[null,null,"م","بيــــــــــــــــان الأعمــــــــــال","الكمية بالعقد","قيمة البند","ما سبق","الكمية الحالية","إجمالي الكمية ","قيمة المستخلص","قيمة التأمين (10%)","قيمة تأمين بيت الخدمه (5%)","صافى المستحق","الخصم","ملاحظــــــــــــــــــــــات",null,null,null,"ctrl+shift+k"]
[null,null,"1","تركيب مجاري المطر - كمر- تدعيم اكسات- تدعيم كهات",1,32000,0.6,0.3,{"$f":"H16+G16","v":0.89999999999999991},{"$f":"H16*F16","v":9600},{"$f":"0.1*J16","v":960},{"$f":"J16*0.05","v":480},{"$f":"J16*0.85","v":8160}]
[null,null,"2","الاقواس- المدادات",1,42000,0.35,0.15,0.5,6300,630,315,5355]
[null,null,"3","البروفيل",1,12000,0.6,0.2,0.8,2400,240,120,2040]
[null,null,"4","البوابات",1,6000,0.75,0.1,0.85,600,60,30,510]
[null,null,"5","النهايز",1,6000,0.95,0,0.95,0,0,0,0]
[null,null,"6","حامل الثمار",1,10000,0.95,0,0.95,0,0,0,0]
[null,null,"7","النقل",1,7000,0.95000000000000007,0,0.95000000000000007,0,0,0,0]
[null,null,"إجمـــــــــــــــــــــــــــــــالي المستحق",null,null,null,null,null,null,{"$f":"SUM(J16:J22)","v":18900},{"$f":"SUM(K16:K22)","v":1890},945,16065,0]
[]
[]
[]
[null,null,"المقاول","مهندس الموقع",null,"مراجعة مالية بالموقع",null,null,null,"مدير الموقع",null,"الادارة الهندسيه",null,null,"مدير الادارة الهندسيه"]
[null,null,null,null,null,"محاسب/ رضا الخطيب",null,null,null,"م/ أحد لاشين"]
[]
[null,null,null,null,null,null,null,null,null,null,null,null,null,null,"رئيس مجلس الادارة"]

{"sheet":"جارى3","index":3,"n_rows":30,"n_cols":18,"rows_kept":30,"cut":false,"hidden":false,"merged":[[9,4,9,6],[3,6,3,10],[4,6,4,7],[6,4,6,6],[6,10,6,11],[7,11,7,12],[29,14,29,15],[10,4,10,6],[11,4,11,6],[12,4,12,6],[22,2,22,8],[22,14,22,15],[26,11,26,12],[26,14,26,15]]}
[]
[]
[]
[null,null,null,null,null,null,"شركة الصفوة للمقاولات"]
[null,null,null,null,null,null,"مستخلص  ",null,"جارى3"]
[null,null,null,"     ○ مشـــــــــــــــــــــــروع:- تركيبات بيوت زراعية بمحور الضبعة"]
[null,null,null,"الشركة او المورد او المقاول","أحمد حجازى عبدالحكيم",null,null,null,null,"تاريخ اعداد المستخلص","2023-06-21"]
[]
[null,null,null,"     ○ اسم البنـــــــــد: ","     تركيب هيكل معدنى"]
[null,null,null,"     ○ رقم العقد :- ","  2023/34",null,null,null,null,"من تاريخ :","2023-06-06"]
[null,null,null,"     ○ قيمة العقد:- ",35000,null,null,null,null,"الي تاريخ :","2023-06-21"]
[null,null,null,"     ○ رقم الكلاستــر :- ","    E12"]
[null,null,null,"     ○ رقم الصوبـــــــة:-  ",2]
[null,null,null,null,null,null,null,null,null,null,null,null,null,null,null,null,null,"Ctrl+shift+k"]
[null,null,"م","بيــــــــــــــــان الأعمــــــــــال","الكمية بالعقد","قيمة البند","ما سبق","الكمية الحالية","إجمالي الكمية ","قيمة المستخلص","قيمة التأمين (10%)","قيمة تأمين بيت الخدمه (5%)","صافى المستحق","الخصم","ملاحظــــــــــــــــــــــات"]
[null,null,"1","تركيب مجاري المطر - كمر- تدعيم اكسات- تدعيم كهات",1,32000,0.89999999999999991,0.05,{"$f":"H16+G16","v":0.95},{"$f":"H16*F16","v":1600},{"$f":"0.1*J16","v":160},{"$f":"J16*0.05","v":80},{"$f":"J16*0.85","v":1360}]
[null,null,"2","الاقواس- المدادات",1,42000,0.5,0.3,0.8,12600,1260,630,10710]
[null,null,"3","البروفيل",1,12000,0.8,0,0.8,0,0,0,0]
[null,null,"4","البوابات",1,6000,0.85,0,0.85,0,0,0,0]
[null,null,"5","النهايز",1,6000,0.95,0,0.95,0,0,0,0]
[null,null,"6","حامل الثمار",1,10000,0.95,0,0.95,0,0,0,0]
[null,null,"7","النقل",1,7000,0.95000000000000007,0,0.95000000000000007,0,0,0,0]
[null,null,"إجمـــــــــــــــــــــــــــــــالي المستحق",null,null,null,null,null,null,{"$f":"SUM(J16:J22)","v":14200},{"$f":"SUM(K16:K22)","v":1420},710,12070,0]
[]
[]
[]
[null,null,"المقاول","مهندس الموقع",null,"مراجعة مالية بالموقع",null,null,null,"مدير الموقع",null,"الادارة الهندسيه",null,null,"مدير الادارة الهندسيه"]
[null,null,null,null,null,"محاسب/ رضا الخطيب",null,null,null,"م/ أحد لاشين"]
[]
[null,null,null,null,null,null,null,null,null,null,null,null,null,null,"رئيس مجلس الادارة"]

{"sheet":"جارى4","index":4,"n_rows":30,"n_cols":15,"rows_kept":30,"cut":false,"hidden":false,"merged":[[29,14,29,15],[10,4,10,6],[11,4,11,6],[12,4,12,6],[22,2,22,8],[22,14,22,15],[26,11,26,12],[26,14,26,15],[9,4,9,6],[3,6,3,10],[4,6,4,7],[6,4,6,6],[6,10,6,11],[7,11,7,12]]}
[]
[]
[]
[null,null,null,null,null,null,"شركة الصفوة للمقاولات"]
[null,null,null,null,null,null,"مستخلص  ",null,"جارى4"]
[null,null,null,"     ○ مشـــــــــــــــــــــــروع:- تركيبات بيوت زراعية بمحور الضبعة"]
[null,null,null,"الشركة او المورد او المقاول","أحمد حجازى عبدالحكيم",null,null,null,null,"تاريخ اعداد المستخلص","2023-06-21"]
[]
[null,null,null,"     ○ اسم البنـــــــــد: ","     تركيب هيكل معدنى "]
[null,null,null,"     ○ رقم العقد :- ","  2023/34",null,null,null,null,"من تاريخ :","2023-06-06"]
[null,null,null,"     ○ قيمة العقد:- ",35000,null,null,null,null,"الي تاريخ :","2023-06-21"]
[null,null,null,"     ○ رقم الكلاستــر :- ","    E12"]
[null,null,null,"     ○ رقم الصوبـــــــة:-  ",2]
[]
[null,null,"م","بيــــــــــــــــان الأعمــــــــــال","الكمية بالعقد","قيمة البند","ما سبق","الكمية الحالية","إجمالي الكمية ","قيمة المستخلص","قيمة التأمين (10%)","قيمة تأمين بيت الخدمه (5%)","صافى المستحق","الخصم","ملاحظــــــــــــــــــــــات"]
[null,null,"1","تركيب مجاري المطر - كمر- تدعيم اكسات- تدعيم كهات",1,32000,0.5,0.1,{"$f":"H16+G16","v":0.6},{"$f":"H16*F16","v":3200},{"$f":"0.1*J16","v":320},{"$f":"J16*0.05","v":160},{"$f":"J16*0.85","v":2720}]
[null,null,"2","الاقواس- المدادات",1,42000,0.2,0.15,0.35,6300,630,315,5355]
[null,null,"3","البروفيل",1,12000,0.3,0.3,0.6,3600,360,180,3060]
[null,null,"4","البوابات",1,6000,0.15,0.6,0.75,3600,360,180,3060]
[null,null,"5","النهايز",1,6000,0.6,0.35,0.95,2100,210,105,1785]
[null,null,"6","حامل الثمار",1,10000,0.7,0.25,0.95,2500,250,125,2125]
[null,null,"7","النقل",1,7000,0.9,0.05,0.95000000000000007,350,35,17.5,297.5]
[null,null,"إجمـــــــــــــــــــــــــــــــالي المستحق",null,null,null,null,null,null,{"$f":"SUM(J16:J22)","v":21650},{"$f":"SUM(K16:K22)","v":2165},1082.5,18402.5,0]
[]
[]
[]
[null,null,"المقاول","مهندس الموقع",null,"مراجعة مالية بالموقع",null,null,null,"مدير الموقع",null,"الادارة الهندسيه",null,null,"مدير الادارة الهندسيه"]
[null,null,null,null,null,"محاسب/ رضا الخطيب",null,null,null,"م/ أحد لاشين"]
[]
[null,null,null,null,null,null,null,null,null,null,null,null,null,null,"رئيس مجلس الادارة"]